Workbook

Sheet Handicaps
E1: Today | F1: SGL | G1: 24 | H1: Handicaps | V1: Current scores
E2: 2024-07-26 | F2: 2019-05-10T15:21:27.390 | L2: Course Handicaps, 18 or less per 9 | R2: 18 | S2: 36 | AC2: 24 | AD2: Gross Scores | AW2: 24 | AX2: Courses
A3: Div. | B3: Order | C3: No. | D3: Team | E3: Player | F3: HI | G3: SH | H3: SHb | I3: CC | J3: CCb | K3: OH | L3: OHb | M3: DC | N3: DCB | O3: KC | P3: KCb | Q3: DR | R3: DRb | S3: SHt | T3: tees | U3: Code | V3: Score | W3: 1 | X3: 2 | Y3: 3 | Z3: 4 | AA3: 5 | AB3: 6 | AC3: 7 | AD3: 8 | AE3: 9 | AF3: 10 | AG3: 11 | AH3: 12 | AI3: 13 | AJ3: 14 | AK3: 15 | AL3: 16 | AM3: 17 | AN3: 18 | AO3: 19 | AP3: 20 | AQ3: 1 | AR3: 2 | AS3: 3 | AT3: 4 | AU3: 5 | AV3: 6 | AW3: 7 | AX3: 8 | AY3: 9 | AZ3: 10 | BA3: 11 | BB3: 12 | BC3: 13 | BD3: 14 | BE3: 15 | BF3: 16 | BG3: 17 | BH3: 18 | BI3: 19 | BJ3: 20 | BK3: 24
A4: A | B4: 1 | C4: 0
A5: A | B5: 1 | C5: 1 | D5: X01 | E5: Brad Whitley | F5: 13.92590592 | G5: 13 | H5: 14 | I5: 12 | J5: 13 | K5: 12 | L5: 12 | M5: 14 | N5: 15 | O5: 15 | P5: 15 | Q5: 13 | R5: 13 | S5: 27 | W5: 14 | X5: 17 | Y5: 18 | Z5: 18 | AA5: 17 | AB5: 16 | AC5: 13 | AD5: 15 | AE5: 14 | AF5: 10 | AG5: 16 | AQ5: sh | AR5: cc | AS5: dc | AT5: oh | AU5: sh | AV5: cc | AW5: sh | AX5: cc | AY5: sh | AZ5: dr | BA5: oh | BK5: 11
A6: A | B6: 1 | C6: 2 | D6: X01 | E6: Aaron Kenny | F6: 16.45788043 | G6: 15 | H6: 17 | I6: 15 | J6: 16 | K6: 15 | L6: 15 | M6: 17 | N6: 18 | O6: 18 | P6: 18 | Q6: 16 | R6: 16 | S6: 32 | W6: 13 | X6: 22 | Y6: 17 | Z6: 18 | AA6: 21 | AB6: 16 | AC6: 18 | AD6: 12 | AQ6: dc | AR6: oh | AS6: cc | AT6: sh | AU6: dr | AV6: sh | AW6: dr | AX6: oh | BK6: 8
A7: A | B7: 1 | C7: 3 | D7: X01 | E7: Travis Wells | F7: 13.9390029 | G7: 13 | H7: 14 | I7: 12 | J7: 13 | K7: 12 | L7: 12 | M7: 14 | N7: 15 | O7: 15 | P7: 15 | Q7: 13 | R7: 14 | S7: 27 | W7: 15 | X7: 15 | Y7: 15 | Z7: 15 | AA7: 14 | AB7: 14 | AQ7: sh | AR7: cc | AS7: drb | AT7: dr | AU7: oh | AV7: oh | BK7: 6
A8: A | B8: 1 | C8: 4 | D8: X01 | E8: Warren Doyle | F8: 8.033295743 | G8: 4 | H8: 6 | I8: 4 | J8: 5 | K8: 5 | L8: 5 | M8: 8 | N8: 8 | O8: 8 | P8: 8 | Q8: 5 | R8: 4 | S8: 11 | T8: s | W8: 13 | X8: 7 | Y8: 4 | Z8: 11 | AA8: 4 | AB8: 5 | AC8: 8 | AD8: 6 | AE8: 5 | AF8: 7 | AG8: 8 | AQ8: sh | AR8: cc | AS8: dc | AT8: oh | AU8: oh | AV8: sh | AW8: drb | AX8: dr | AY8: oh | AZ8: sh | BA8: dr | BK8: 11
A9: A | B9: 1 | C9: 5 | D9: X01 | E9: Thurston Gore | F9: 7.542578224 | G9: 6 | H9: 7 | I9: 6 | J9: 6 | K9: 6 | L9: 6 | M9: 7 | N9: 8 | O9: 8 | P9: 9 | Q9: 6 | R9: 7 | S9: 13 | T9: st | W9: 11 | X9: 6 | Y9: 5 | Z9: 2 | AA9: 6 | AB9: 6 | AC9: 10 | AQ9: oh | AR9: oh | AS9: cc | AT9: drb | AU9: dr | AV9: oh | AW9: oh | BK9: 7
A10: A | B10: 1 | C10: 6 | D10: X01 | E10: Glenn Dorsey | F10: 11.98007515 | G10: 11 | H10: 12 | I10: 10 | J10: 11 | K10: 10 | L10: 10 | M10: 12 | N10: 13 | O10: 13 | P10: 13 | Q10: 11 | R10: 11 | S10: 23 | BK10: 0
A11: A | B11: 1 | C11: 7 | D11: X01 | E11: John Ord | F11: 12.73592121 | G11: 11 | H11: 13 | I11: 11 | J11: 12 | K11: 11 | L11: 11 | M11: 13 | N11: 14 | O11: 14 | P11: 14 | Q11: 12 | R11: 12 | S11: 24 | W11: 20 | X11: 21 | Y11: 14 | Z11: 14 | AA11: 12 | AB11: 19 | AQ11: oh | AR11: sh | AS11: sh | AT11: dr | AU11: oh | AV11: dr | BK11: 6
A12: A | B12: 1 | C12: 8 | D12: X01 | E12: Kristie Kenny | F12: 15.38834381 | G12: 14 | H12: 16 | I12: 14 | J12: 14 | K12: 13 | L12: 15 | M12: 14 | N12: 16 | O12: 15 | P12: 16 | Q12: 11 | R12: 14 | S12: 30 | T12: w | W12: 16 | X12: 16 | Y12: 18 | Z12: 20 | AQ12: sh | AR12: oh | AS12: sh | AT12: oh | BK12: 4
A13: A | B13: 1 | C13: 9 | D13: X01 | E13: Floyd Byrd | F13: 8.570252988 | G13: 7 | H13: 8 | I13: 7 | J13: 7 | K13: 7 | L13: 7 | M13: 8 | N13: 9 | O13: 9 | P13: 10 | Q13: 7 | R13: 8 | S13: 16 | W13: 11 | X13: 13 | Y13: 14 | Z13: 12 | AA13: 8 | AB13: 15 | AC13: 5 | AD13: 9 | AE13: 12 | AF13: 9 | AG13: 12 | AQ13: sh | AR13: cc | AS13: dc | AT13: oh | AU13: oh | AV13: sh | AW13: cc | AX13: sh | AY13: cc | AZ13: sh | BA13: oh | BK13: 11
A14: A | B14: 1 | C14: 10 | D14: X01 | E14: Rusty Spady | F14: 11.01158494 | G14: 10 | H14: 11 | I14: 9 | J14: 10 | K14: 9 | L14: 9 | M14: 11 | N14: 12 | O14: 12 | P14: 12 | Q14: 10 | R14: 11 | S14: 21 | W14: 12 | X14: 14 | Y14: 14 | Z14: 14 | AA14: 11 | AB14: 10 | AC14: 10 | AD14: 14 | AQ14: sh | AR14: cc | AS14: oh | AT14: cc | AU14: cc | AV14: drb | AW14: sh | AX14: dr | BK14: 8
A15: A | B15: 1 | C15: 11 | D15: X01 | E15: Craig Comeaux | F15: 7.10917564 | G15: 6 | H15: 7 | I15: 5 | J15: 6 | K15: 6 | L15: 5 | M15: 7 | N15: 7 | O15: 8 | P15: 8 | Q15: 6 | R15: 6 | S15: 12 | W15: 11 | X15: 10 | Y15: 5 | Z15: 8 | AA15: 13 | AB15: 4 | AC15: 11 | AD15: 12 | AE15: 7 | AF15: 12 | AG15: 7 | AQ15: cc | AR15: dc | AS15: oh | AT15: oh | AU15: sh | AV15: cc | AW15: sh | AX15: cc | AY15: drb | AZ15: dr | BA15: dr | BK15: 11
A16: A | B16: 1 | C16: 12 | D16: X01 | E16: Bill Daniels | F16: 7.734287152 | G16: 4 | H16: 6 | I16: 3 | J16: 5 | K16: 5 | L16: 5 | M16: 7 | N16: 8 | O16: 7 | P16: 8 | Q16: 5 | R16: 3 | S16: 10 | T16: s | W16: 6 | X16: 10 | Y16: 9 | Z16: 9 | AA16: 6 | AB16: 4 | AQ16: cc | AR16: sh | AS16: sh | AT16: cc | AU16: drb | AV16: oh | BK16: 6
A17: A | B17: 2 | C17: 0
A18: A | B18: 2 | C18: 1 | D18: AMSC | E18: Matt Helfer | F18: 10.74563909 | G18: 9 | H18: 11 | I18: 9 | J18: 10 | K18: 9 | L18: 9 | M18: 11 | N18: 11 | O18: 12 | P18: 12 | Q18: 10 | R18: 10 | S18: 20 | W18: 16 | X18: 9 | Y18: 17 | Z18: 14 | AA18: 15 | AQ18: oh | AR18: cc | AS18: cc | AT18: drb | AU18: dc | BK18: 5
A19: A | B19: 2 | C19: 2 | D19: AMSC | E19: Dave Cullen | F19: 7.847832045 | G19: 6 | H19: 8 | I19: 6 | J19: 7 | K19: 6 | L19: 6 | M19: 8 | N19: 8 | O19: 8 | P19: 9 | Q19: 7 | R19: 7 | S19: 14 | W19: 11 | X19: 8 | Y19: 6 | Z19: 8 | AA19: 12 | AQ19: oh | AR19: drb | AS19: cc | AT19: drb | AU19: sh | BK19: 5
A20: A | B20: 2 | C20: 3 | D20: AMSC | E20: Chris Nosil | F20: 5.041466537 | G20: 3 | H20: 5 | I20: 3 | J20: 4 | K20: 4 | L20: 3 | M20: 5 | N20: 5 | O20: 5 | P20: 6 | Q20: 4 | R20: 4 | S20: 8 | W20: 7 | X20: 3 | Y20: 9 | Z20: 7 | AA20: 4 | AB20: 4 | AC20: 7 | AQ20: oh | AR20: cc | AS20: drb | AT20: oh | AU20: oh | AV20: sh | AW20: oh | BK20: 7
A21: A | B21: 2 | C21: 4 | D21: AMSC | E21: Colin Govan | F21: 13.57148283 | G21: 12 | H21: 14 | I21: 12 | J21: 13 | K21: 12 | L21: 12 | M21: 14 | N21: 15 | O21: 15 | P21: 15 | Q21: 13 | R21: 13 | S21: 26 | U21: ndr | V21: 18.3 | W21: 24 | X21: 12 | Y21: 18 | AQ21: drb | AR21: oh | AS21: oh | BK21: 3
A22: A | B22: 2 | C22: 5 | D22: AMSC | E22: Freeman Ward | F22: 11.89573704 | G22: 11 | H22: 12 | I22: 10 | J22: 11 | K22: 10 | L22: 10 | M22: 12 | N22: 13 | O22: 13 | P22: 13 | Q22: 11 | R22: 11 | S22: 23 | U22: ndr | V22: 14.3 | W22: 12 | X22: 17 | Y22: 16 | Z22: 10 | AA22: 12 | AB22: 16 | AQ22: oh | AR22: drb | AS22: oh | AT22: cc | AU22: oh | AV22: dc | BK22: 6
A23: A | B23: 2 | C23: 6 | D23: AMSC | E23: Steve Kortz | F23: 8.167086671 | G23: 7 | H23: 8 | I23: 6 | J23: 7 | K23: 7 | L23: 6 | M23: 8 | N23: 9 | O23: 9 | P23: 9 | Q23: 7 | R23: 8 | S23: 15 | W23: 12 | X23: 6 | Y23: 7 | Z23: 8 | AA23: 9 | AB23: 8 | AQ23: drb | AR23: oh | AS23: cc | AT23: drb | AU23: oh | AV23: dc | BK23: 6
A24: A | B24: 2 | C24: 7 | D24: AMSC | E24: Dan Mahar | F24: 16.8450536 | G24: 16 | H24: 17 | I24: 15 | J24: 16 | K24: 15 | L24: 15 | M24: 17 | N24: 18 | O24: 18 | P24: 18 | Q24: 16 | R24: 16 | S24: 33 | W24: 19 | X24: 20 | Y24: 13 | Z24: 21 | AA24: 21 | AB24: 23 | AQ24: oh | AR24: drb | AS24: cc | AT24: drb | AU24: sh | AV24: dc | BK24: 6
A25: A | B25: 2 | C25: 8 | D25: AMSC | E25: Edward Outen | F25: 10.25832121 | G25: 9 | H25: 10 | I25: 8 | J25: 9 | K25: 9 | L25: 9 | M25: 10 | N25: 11 | O25: 11 | P25: 11 | Q25: 9 | R25: 10 | S25: 19 | U25: ndr | V25: 11.7 | W25: 17 | X25: 12 | Y25: 16 | Z25: 8 | AA25: 12 | AB25: 10 | AC25: 10 | AD25: 11 | AQ25: oh | AR25: oh | AS25: drb | AT25: oh | AU25: oh | AV25: oh | AW25: sh | AX25: oh | BK25: 8
A26: A | B26: 2 | C26: 9 | D26: AMSC | E26: Cornell Owens | F26: 16.60931608 | G26: 16 | H26: 17 | I26: 15 | J26: 16 | K26: 15 | L26: 15 | M26: 17 | N26: 18 | O26: 18 | P26: 18 | Q26: 16 | R26: 16 | S26: 33 | W26: 18 | X26: 21 | Y26: 21 | Z26: 17 | AA26: 18 | AB26: 22 | AQ26: oh | AR26: cc | AS26: oh | AT26: cc | AU26: oh | AV26: dc | BK26: 6
A27: A | B27: 2 | C27: 10 | D27: AMSC | E27: Brad Forbes | F27: 11.79583317 | G27: 11 | H27: 12 | I27: 10 | J27: 11 | K27: 10 | L27: 10 | M27: 12 | N27: 13 | O27: 13 | P27: 13 | Q27: 11 | R27: 11 | S27: 22 | W27: 14 | X27: 20 | Y27: 16 | Z27: 17 | AA27: 6 | AB27: 19 | AC27: 8 | AD27: 15 | AQ27: oh | AR27: cc | AS27: drb | AT27: oh | AU27: drb | AV27: sh | AW27: oh | AX27: dc | BK27: 8
A28: A | B28: 2 | C28: 11 | D28: AMSC | E28: Sam Richardson | F28: 8.465360738 | G28: 7 | H28: 8 | I28: 7 | J28: 7 | K28: 7 | L28: 7 | M28: 8 | N28: 9 | O28: 9 | P28: 10 | Q28: 7 | R28: 8 | S28: 15 | U28: ndr | V28: 94 | W28: 12 | X28: 7 | Y28: 16 | Z28: 11 | AA28: 6 | AB28: 10 | AC28: 9 | AQ28: oh | AR28: cc | AS28: drb | AT28: oh | AU28: oh | AV28: oh | AW28: oh | BK28: 7
A29: A | B29: 2 | C29: 12 | D29: AMSC | E29: Leroy Harrell | F29: 5.629433001 | G29: 2 | H29: 4 | I29: 1 | J29: 3 | K29: 3 | L29: 3 | M29: 5 | N29: 6 | O29: 5 | P29: 5 | Q29: 3 | R29: 1 | S29: 6 | T29: s | W29: 12 | X29: 7 | Y29: 10 | Z29: 10 | AA29: 11 | AB29: 8 | AC29: 2 | AQ29: oh | AR29: cc | AS29: drb | AT29: oh | AU29: oh | AV29: oh | AW29: sh | BK29: 7
A30: A | B30: 3 | C30: 0
A31: A | B31: 3 | C31: 1 | D31: E12 | E31: Drew Alfred | F31: 11.17375382 | G31: 10 | H31: 11 | I31: 9 | J31: 10 | K31: 9 | L31: 9 | M31: 11 | N31: 12 | O31: 12 | P31: 12 | Q31: 10 | R31: 11 | S31: 21 | W31: 12 | X31: 15 | Y31: 10 | Z31: 6 | AA31: 14 | AB31: 13 | AC31: 9 | AD31: 15 | AQ31: oh | AR31: drb | AS31: cc | AT31: sh | AU31: sh | AV31: oh | AW31: oh | AX31: sh | BK31: 8
A32: A | B32: 3 | C32: 2 | D32: E12 | E32: Joe Gray | F32: 12.51464465 | G32: 11 | H32: 13 | I32: 11 | J32: 12 | K32: 11 | L32: 11 | M32: 13 | N32: 13 | O32: 13 | P32: 14 | Q32: 11 | R32: 12 | S32: 24 | W32: 14 | X32: 13 | Y32: 16 | Z32: 11 | AA32: 13 | AB32: 12 | AC32: 10 | AQ32: oh | AR32: dr | AS32: drb | AT32: cc | AU32: sh | AV32: oh | AW32: cc | BK32: 7
A33: A | B33: 3 | C33: 3 | D33: E12 | E33: Larry Snyder | F33: 14.26834565 | G33: 13 | H33: 15 | I33: 12 | J33: 13 | K33: 12 | L33: 13 | M33: 15 | N33: 15 | O33: 15 | P33: 16 | Q33: 13 | R33: 14 | S33: 28 | T33: st | W33: 20 | X33: 21 | Y33: 16 | Z33: 20 | AA33: 19 | AB33: 23 | AQ33: cc | AR33: dr | AS33: drb | AT33: sh | AU33: sh | AV33: dc | BK33: 6
A34: A | B34: 3 | C34: 4 | D34: E12 | E34: Bruce Beers | F34: 11.44773804 | G34: 10 | H34: 12 | I34: 10 | J34: 10 | K34: 10 | L34: 10 | M34: 12 | N34: 12 | O34: 12 | P34: 13 | Q34: 10 | R34: 11 | S34: 22 | W34: 12 | X34: 21 | Y34: 18 | Z34: 13 | AA34: 8 | AB34: 9 | AC34: 17 | AD34: 7 | AQ34: cc | AR34: oh | AS34: oh | AT34: cc | AU34: sh | AV34: sh | AW34: dc | AX34: cc | BK34: 8
A35: A | B35: 3 | C35: 5 | D35: E12 | E35: Pete Carr | F35: 8.579523052 | G35: 7 | H35: 8 | I35: 7 | J35: 7 | K35: 7 | L35: 7 | M35: 8 | N35: 9 | O35: 9 | P35: 10 | Q35: 7 | R35: 8 | S35: 16 | W35: 15 | X35: 9 | Y35: 10 | Z35: 14 | AA35: 9 | AB35: 10 | AC35: 9 | AD35: 9 | AE35: 1 | AQ35: cc | AR35: oh | AS35: cc | AT35: sh | AU35: sh | AV35: oh | AW35: oh | AX35: oh | AY35: cc | BK35: 9
A36: A | B36: 3 | C36: 6 | D36: E12 | E36: Joey Revere | F36: 14.85269099 | G36: 14 | H36: 15 | I36: 13 | J36: 14 | K36: 13 | L36: 13 | M36: 15 | N36: 16 | O36: 16 | P36: 16 | Q36: 14 | R36: 14 | S36: 29 | W36: 18 | X36: 17 | Y36: 19 | Z36: 15 | AA36: 17 | AB36: 14 | AC36: 17 | AD36: 14 | AQ36: oh | AR36: drb | AS36: sh | AT36: sh | AU36: oh | AV36: sh | AW36: dc | AX36: cc | BK36: 8
A37: A | B37: 3 | C37: 7 | D37: E12 | E37: James Revere | F37: 14.82294082 | G37: 14 | H37: 15 | I37: 13 | J37: 14 | K37: 13 | L37: 13 | M37: 15 | N37: 16 | O37: 16 | P37: 16 | Q37: 14 | R37: 14 | S37: 29 | W37: 17 | X37: 20 | Y37: 19 | Z37: 15 | AA37: 19 | AB37: 14 | AC37: 18 | AD37: 11 | AE37: 19 | AQ37: oh | AR37: dr | AS37: drb | AT37: sh | AU37: sh | AV37: oh | AW37: oh | AX37: oh | AY37: dc | BK37: 9
A38: A | B38: 3 | C38: 8 | D38: E12 | E38: Robert Staha | F38: 8.984859298 | G38: 8 | H38: 9 | I38: 7 | J38: 8 | K38: 7 | L38: 7 | M38: 9 | N38: 9 | O38: 10 | P38: 10 | Q38: 8 | R38: 8 | S38: 16 | W38: 16 | X38: 9 | Y38: 12 | Z38: 12 | AA38: 16 | AB38: 7 | AC38: 13 | AD38: 11 | AQ38: cc | AR38: oh | AS38: cc | AT38: sh | AU38: sh | AV38: oh | AW38: sh | AX38: dc | BK38: 8
A39: A | B39: 3 | C39: 9 | D39: E12 | E39: Chris Dover | F39: 9.720751304 | G39: 8 | H39: 10 | I39: 8 | J39: 9 | K39: 8 | L39: 8 | M39: 10 | N39: 10 | O39: 10 | P39: 11 | Q39: 9 | R39: 9 | S39: 18 | W39: 8 | X39: 11 | Y39: 9 | Z39: 12 | AA39: 12 | AB39: 5 | AQ39: cc | AR39: oh | AS39: dr | AT39: sh | AU39: oh | AV39: oh | BK39: 6
A40: A | B40: 3 | C40: 10 | D40: E12 | E40: Ricky Moyer | F40: 12.05578585 | G40: 11 | H40: 12 | I40: 10 | J40: 11 | K40: 10 | L40: 10 | M40: 12 | N40: 13 | O40: 13 | P40: 13 | Q40: 11 | R40: 12 | S40: 23 | W40: 16 | X40: 16 | Y40: 15 | Z40: 10 | AA40: 13 | AB40: 14 | AQ40: cc | AR40: oh | AS40: dr | AT40: sh | AU40: oh | AV40: oh | BK40: 6
A41: A | B41: 3 | C41: 11 | D41: E12 | E41: Bob White | F41: 9.940790017 | G41: 9 | H41: 10 | I41: 8 | J41: 9 | K41: 8 | L41: 8 | M41: 10 | N41: 11 | O41: 11 | P41: 11 | Q41: 9 | R41: 9 | S41: 19 | T41: st | W41: 14 | X41: 10 | Y41: 5 | Z41: 8 | AA41: 11 | AB41: 6 | AC41: 7 | AD41: 10 | AE41: 13 | AF41: 9 | AQ41: oh | AR41: oh | AS41: dr | AT41: drb | AU41: sh | AV41: oh | AW41: oh | AX41: sh | AY41: dc | AZ41: cc | BK41: 10
A42: A | B42: 3 | C42: 12 | D42: E12 | E42: Rinehart Wilke | F42: 15.20108396 | G42: 14 | H42: 16 | I42: 13 | J42: 14 | K42: 13 | L42: 14 | M42: 16 | N42: 17 | O42: 16 | P42: 17 | Q42: 14 | R42: 15 | S42: 30 | W42: 16 | X42: 15 | Y42: 15 | Z42: 16 | AQ42: sh | AR42: sh | AS42: oh | AT42: cc | BK42: 4
A43: A | B43: 4 | C43: 0
A44: A | B44: 4 | C44: 1 | D44: E55A | E44: Brandon Kelly | F44: 5.15831305 | G44: 4 | H44: 5 | I44: 3 | J44: 4 | K44: 4 | L44: 3 | M44: 5 | N44: 5 | O44: 5 | P44: 6 | Q44: 4 | R44: 4 | S44: 8 | W44: 6 | X44: 9 | Y44: 4 | Z44: 7 | AA44: 9 | AB44: 8 | AC44: 12 | AD44: 6 | AQ44: sh | AR44: oh | AS44: oh | AT44: sh | AU44: cc | AV44: oh | AW44: dr | AX44: drb | BK44: 8
A45: A | B45: 4 | C45: 2 | D45: E55A | E45: Ryan Lorson | F45: -0.0958330723 | G45: -2 | H45: -1 | I45: -2 | J45: -2 | K45: -1 | L45: -2 | M45: -1 | N45: -1 | O45: 0.0001 | P45: 0.0001 | Q45: -2 | R45: -1 | S45: -3 | W45: 3 | X45: 1 | Y45: -1 | Z45: -1 | AA45: 3 | AB45: -1 | AQ45: sh | AR45: cc | AS45: oh | AT45: sh | AU45: drb | AV45: dr | BK45: 6
A46: A | B46: 4 | C46: 3 | D46: E55A | E46: Maria Stewart | F46: 4.060177698 | G46: 2 | H46: 4 | I46: 2 | J46: 3 | K46: 3 | L46: 3 | M46: 2 | N46: 4 | O46: 4 | P46: 4 | Q46: 0.0001 | R46: 2 | S46: 6 | T46: w | W46: 13 | X46: 4 | Y46: 4 | Z46: 5 | AA46: 4 | AB46: 4 | AC46: 5 | AD46: 3 | AE46: 8 | AF46: 3 | AQ46: sh | AR46: sh | AS46: oh | AT46: cc | AU46: dc | AV46: sh | AW46: sh | AX46: drb | AY46: dr | AZ46: drb | BK46: 10
A47: A | B47: 4 | C47: 4 | D47: E55A | E47: Bill Rinehart | F47: 12.02019723 | G47: 8 | H47: 10 | I47: 8 | J47: 9 | K47: 9 | L47: 9 | M47: 12 | N47: 13 | O47: 12 | P47: 12 | Q47: 9 | R47: 7 | S47: 19 | T47: s | W47: 14 | X47: 12 | Y47: 14 | Z47: 11 | AA47: 9 | AQ47: oh | AR47: oh | AS47: drb | AT47: oh | AU47: drb | BK47: 5
A48: A | B48: 4 | C48: 5 | D48: E55A | E48: Mike Konrad | F48: 7.613704305 | G48: 4 | H48: 6 | I48: 3 | J48: 5 | K48: 5 | L48: 5 | M48: 7 | N48: 8 | O48: 7 | P48: 8 | Q48: 5 | R48: 3 | S48: 10 | T48: s | W48: 6 | X48: 4 | Y48: 12 | Z48: 6 | AA48: 10 | AB48: 6 | AC48: 4 | AD48: 6 | AE48: 10 | AF48: 5 | AQ48: sh | AR48: sh | AS48: cc | AT48: oh | AU48: oh | AV48: cc | AW48: dc | AX48: sh | AY48: oh | AZ48: dr | BK48: 10
A49: A | B49: 4 | C49: 6 | D49: E55A | E49: Bryan Randall | F49: 2.181352712 | G49: 0.0001 | H49: 2 | I49: 0.0001 | J49: 1 | K49: 1 | L49: 0.0001 | M49: 1 | N49: 2 | O49: 2 | P49: 3 | Q49: 1 | R49: 1 | S49: 2 | W49: 8 | X49: 6 | Y49: 6 | Z49: 0 | AA49: 2 | AB49: 0 | AQ49: sh | AR49: oh | AS49: oh | AT49: cc | AU49: drb | AV49: dr | BK49: 6
A50: A | B50: 4 | C50: 7 | D50: E55A | E50: Darren Swann | F50: 6.542920912 | G50: 5 | H50: 6 | I50: 5 | J50: 5 | K50: 5 | L50: 5 | M50: 6 | N50: 7 | O50: 7 | P50: 8 | Q50: 5 | R50: 6 | S50: 11 | W50: 8 | X50: 10 | Y50: 7 | Z50: 7 | AA50: 11 | AB50: 8 | AC50: 4 | AQ50: cc | AR50: oh | AS50: oh | AT50: oh | AU50: dc | AV50: oh | AW50: dr | BK50: 7
A51: a | B51: 4 | C51: 8 | D51: E55A | E51: Mike Newland | F51: 6.940117748 | G51: 3 | H51: 5 | I51: 3 | J51: 4 | K51: 4 | L51: 4 | M51: 7 | N51: 7 | O51: 6 | P51: 7 | Q51: 4 | R51: 3 | S51: 8 | T51: s | W51: 8 | X51: 6 | Y51: 7 | Z51: 10 | AA51: 1 | AB51: 4 | AC51: 3 | AD51: 2 | AE51: 4 | AQ51: sh | AR51: sh | AS51: oh | AT51: cc | AU51: dc | AV51: sh | AW51: cc | AX51: drb | AY51: drb | BK51: 9
A52: A | B52: 4 | C52: 9 | D52: E55A | E52: Darnell Exum | F52: 6.277209234 | G52: 5 | H52: 6 | I52: 4 | J52: 5 | K52: 5 | L52: 4 | M52: 6 | N52: 6 | O52: 7 | P52: 7 | Q52: 5 | R52: 6 | S52: 11 | W52: 8 | X52: 7 | Y52: 9 | Z52: 5 | AQ52: cc | AR52: cc | AS52: sh | AT52: cc | BK52: 4
A53: A | B53: 4 | C53: 10 | D53: E55A | E53: Ben Hunter | F53: -0.6731981806 | G53: -3 | H53: -2 | I53: -3 | J53: -3 | K53: -2 | L53: -3 | M53: -2 | N53: -1 | O53: -1 | P53: 0.0001 | Q53: -3 | R53: -1 | S53: -4 | W53: 0 | X53: 0 | Y53: 0 | Z53: 0 | AQ53: cc | AR53: sh | AS53: sh | AT53: cc | BK53: 4
A54: A | B54: 4 | C54: 11 | D54: E55A | E54: Kenny Stewart | F54: 2.643023755 | G54: 1 | H54: 2 | I54: 1 | J54: 1 | K54: 1 | L54: 1 | M54: 2 | N54: 2 | O54: 3 | P54: 3 | Q54: 1 | R54: 2 | S54: 3 | W54: 1 | X54: 5 | Y54: 5 | Z54: 5 | AA54: 2 | AB54: 0 | AC54: 6 | AD54: 1 | AE54: 2 | AF54: 8 | AG54: 4 | AH54: 7 | AQ54: sh | AR54: cc | AS54: oh | AT54: cc | AU54: oh | AV54: dc | AW54: sh | AX54: sh | AY54: cc | AZ54: drb | BA54: oh | BB54: drb | BK54: 12
A55: A | B55: 4 | C55: 12 | D55: E55A | E55: Fred Brown | F55: 10.32864645 | G55: 9 | H55: 10 | I55: 8 | J55: 9 | K55: 9 | L55: 9 | M55: 10 | N55: 11 | O55: 11 | P55: 12 | Q55: 9 | R55: 10 | S55: 19 | W55: 16 | X55: 14 | Y55: 16 | Z55: 9 | AA55: 10 | AB55: 18 | AC55: 14 | AD55: 12 | AE55: 12 | AQ55: sh | AR55: sh | AS55: cc | AT55: oh | AU55: oh | AV55: dc | AW55: sh | AX55: oh | AY55: drb | BK55: 9
A56: A | B56: 5 | C56: 0
A57: A | B57: 5 | C57: 1 | D57: X87 | E57: Gary Coffey | F57: 13.21960821 | G57: 12 | H57: 13 | I57: 11 | J57: 12 | K57: 11 | L57: 12 | M57: 14 | N57: 14 | O57: 14 | P57: 15 | Q57: 12 | R57: 13 | S57: 25 | W57: 15 | X57: 21 | Y57: 15 | Z57: 14 | AA57: 13 | AB57: 10 | AC57: 15 | AD57: 15 | AE57: 15 | AF57: 13 | AQ57: sh | AR57: cc | AS57: sh | AT57: oh | AU57: dc | AV57: oh | AW57: cc | AX57: sh | AY57: cc | AZ57: oh | BK57: 10
A58: A | B58: 5 | C58: 2 | D58: X87 | E58: Ron Ellsworth | F58: 12.01402215 | G58: 11 | H58: 12 | I58: 10 | J58: 11 | K58: 10 | L58: 10 | M58: 12 | N58: 13 | O58: 13 | P58: 13 | Q58: 11 | R58: 12 | S58: 23 | W58: 13 | X58: 10 | Y58: 14 | Z58: 18 | AA58: 13 | AB58: 8 | AC58: 12 | AD58: 18 | AE58: 7 | AQ58: cc | AR58: dr | AS58: sh | AT58: dr | AU58: oh | AV58: oh | AW58: cc | AX58: sh | AY58: oh | BK58: 9
A59: A | B59: 5 | C59: 3 | D59: X87 | E59: Billy McGlothlin | F59: 3.962867082 | G59: 2 | H59: 3 | I59: 2 | J59: 2 | K59: 2 | L59: 2 | M59: 3 | N59: 4 | O59: 4 | P59: 5 | Q59: 2 | R59: 3 | S59: 6 | W59: 6 | X59: 4 | Y59: 0 | Z59: 5 | AA59: 4 | AB59: 1 | AC59: 3 | AD59: 11 | AE59: 8 | AF59: 4 | AG59: 5 | AQ59: cc | AR59: cc | AS59: sh | AT59: cc | AU59: dr | AV59: sh | AW59: oh | AX59: dc | AY59: drb | AZ59: cc | BA59: cc | BK59: 11
A60: A | B60: 5 | C60: 4 | D60: X87 | E60: Kevin Holland | F60: 10.39040292 | G60: 9 | H60: 10 | I60: 8 | J60: 9 | K60: 9 | L60: 9 | M60: 10 | N60: 11 | O60: 11 | P60: 12 | Q60: 9 | R60: 10 | S60: 19 | W60: 14 | X60: 8 | Y60: 10 | Z60: 15 | AA60: 6 | AB60: 12 | AC60: 12 | AD60: 20 | AE60: 14 | AF60: 18 | AG60: 12 | AH60: 7 | AI60: 12 | AJ60: 14 | AQ60: cc | AR60: cc | AS60: sh | AT60: cc | AU60: dr | AV60: sh | AW60: dr | AX60: dc | AY60: oh | AZ60: drb | BA60: cc | BB60: sh | BC60: cc | BD60: oh | BK60: 14
A61: A | B61: 5 | C61: 5 | D61: X87 | E61: Cliff Kauffman | F61: 2.498331017 | G61: 1 | H61: 2 | I61: 0.0001 | J61: 1 | K61: 1 | L61: 1 | M61: 2 | N61: 2 | O61: 3 | P61: 3 | Q61: 1 | R61: 2 | S61: 3 | W61: 1 | X61: 2 | Y61: 1 | Z61: 6 | AQ61: dr | AR61: oh | AS61: oh | AT61: drb | BK61: 4
A62: A | B62: 5 | C62: 6 | D62: X87 | E62: Shane Beaber | F62: 6.205051987 | G62: 5 | H62: 6 | I62: 4 | J62: 5 | K62: 5 | L62: 4 | M62: 6 | N62: 6 | O62: 7 | P62: 7 | Q62: 5 | R62: 6 | S62: 11 | W62: 8 | X62: 4 | Y62: 6 | Z62: 4 | AQ62: cc | AR62: cc | AS62: cc | AT62: sh | BK62: 4
A63: A | B63: 5 | C63: 7 | D63: X87 | E63: Steve Green | F63: 9.101303734 | G63: 8 | H63: 9 | I63: 7 | J63: 8 | K63: 7 | L63: 7 | M63: 9 | N63: 10 | O63: 10 | P63: 10 | Q63: 8 | R63: 9 | S63: 17 | W63: 10 | X63: 12 | Y63: 13 | Z63: 13 | AA63: 18 | AB63: 7 | AC63: 10 | AQ63: cc | AR63: cc | AS63: sh | AT63: cc | AU63: sh | AV63: cc | AW63: cc | BK63: 7
A64: A | B64: 5 | C64: 8 | D64: X87 | E64: Curtis Lett | F64: 9.274571137 | G64: 8 | H64: 9 | I64: 7 | J64: 8 | K64: 8 | L64: 8 | M64: 9 | N64: 10 | O64: 10 | P64: 10 | Q64: 8 | R64: 9 | S64: 17 | W64: 8 | X64: 14 | Y64: 10 | Z64: 15 | AA64: 13 | AQ64: cc | AR64: cc | AS64: sh | AT64: dr | AU64: dc | BK64: 5
A65: A | B65: 5 | C65: 9 | D65: X87 | E65: Bruce Coffey | F65: 9.213442311 | G65: 6 | H65: 7 | I65: 5 | J65: 6 | K65: 6 | L65: 7 | M65: 9 | N65: 10 | O65: 9 | P65: 9 | Q65: 7 | R65: 5 | S65: 13 | T65: s | W65: 11 | X65: 6 | Y65: 5 | Z65: 8 | AA65: 8 | AQ65: dr | AR65: dr | AS65: oh | AT65: oh | AU65: drb | BK65: 5
A66: A | B66: 5 | C66: 10 | D66: X87 | E66: Mike Lowers | F66: 8.497919764 | G66: 7 | H66: 8 | I66: 7 | J66: 7 | K66: 7 | L66: 7 | M66: 8 | N66: 9 | O66: 9 | P66: 10 | Q66: 7 | R66: 8 | S66: 15 | W66: 8 | X66: 9 | Y66: 5 | Z66: 10 | AA66: 6 | AB66: 12 | AC66: 4 | AD66: 7 | AE66: 6 | AF66: 8 | AQ66: cc | AR66: cc | AS66: sh | AT66: sh | AU66: dr | AV66: dc | AW66: cc | AX66: sh | AY66: cc | AZ66: oh | BK66: 10
A67: A | B67: 5 | C67: 11 | D67: X87 | E67: Brian Davis | F67: 12.42149554 | G67: 11 | H67: 13 | I67: 11 | J67: 12 | K67: 11 | L67: 11 | M67: 13 | N67: 13 | O67: 13 | P67: 14 | Q67: 11 | R67: 12 | S67: 24 | W67: 16 | X67: 13 | Y67: 14 | Z67: 12 | AA67: 13 | AB67: 15 | AQ67: dr | AR67: dr | AS67: dc | AT67: drb | AU67: sh | AV67: oh | BK67: 6
A68: A | B68: 5 | C68: 12 | D68: X87 | E68: Geoff Allen | F68: 7.757436148 | G68: 4 | H68: 6 | I68: 3 | J68: 5 | K68: 5 | L68: 5 | M68: 8 | N68: 8 | O68: 7 | P68: 8 | Q68: 5 | R68: 3 | S68: 10 | T68: s | W68: 8 | X68: 8 | Y68: 4 | Z68: 6 | AA68: 7 | AQ68: oh | AR68: oh | AS68: drb | AT68: cc | AU68: oh | BK68: 5
A69: A | B69: 6 | C69: 0
A70: A | B70: 6 | C70: 1 | D70: E55B | E70: Phil Delk | F70: 9.036940682 | G70: 8 | H70: 9 | I70: 7 | J70: 8 | K70: 7 | L70: 7 | M70: 9 | N70: 10 | O70: 10 | P70: 10 | Q70: 8 | R70: 8 | S70: 17 | W70: 6 | X70: 11 | Y70: 12 | Z70: 15 | AA70: 10 | AB70: 11 | AC70: 10 | AD70: 11 | AQ70: cc | AR70: dc | AS70: cc | AT70: cc | AU70: sh | AV70: oh | AW70: oh | AX70: sh | BK70: 8
A71: A | B71: 6 | C71: 2 | D71: E55B | E71: Joel Hickman | F71: 8.895328277 | G71: 7 | H71: 9 | I71: 7 | J71: 8 | K71: 7 | L71: 7 | M71: 9 | N71: 9 | O71: 10 | P71: 10 | Q71: 8 | R71: 8 | S71: 16 | W71: 11 | AQ71: dc | BK71: 1
A72: A | B72: 6 | C72: 3 | D72: E55B | E72: Steve Burton | F72: 8.324985185 | G72: 5 | H72: 7 | I72: 4 | J72: 5 | K72: 5 | L72: 6 | M72: 8 | N72: 9 | O72: 8 | P72: 8 | Q72: 6 | R72: 4 | S72: 11 | T72: s | W72: 8 | X72: 10 | Y72: 3 | Z72: 3 | AA72: 6 | AB72: 7 | AQ72: cc | AR72: cc | AS72: drb | AT72: oh | AU72: sh | AV72: cc | BK72: 6
A73: A | B73: 6 | C73: 4 | D73: E55B | E73: Zachary Dial | F73: 8.790351797 | G73: 7 | H73: 9 | I73: 7 | J73: 8 | K73: 7 | L73: 7 | M73: 9 | N73: 9 | O73: 9 | P73: 10 | Q73: 8 | R73: 8 | S73: 16 | W73: 7 | X73: 13 | Y73: 12 | Z73: 10 | AA73: 7 | AB73: 10 | AC73: 9 | AD73: 9 | AQ73: cc | AR73: cc | AS73: sh | AT73: drb | AU73: oh | AV73: oh | AW73: sh | AX73: cc | BK73: 8
A74: A | B74: 6 | C74: 5 | D74: E55B | E74: Robert Holley | F74: 8.404723067 | G74: 7 | H74: 8 | I74: 6 | J74: 7 | K74: 7 | L74: 7 | M74: 8 | N74: 9 | O74: 9 | P74: 9 | Q74: 7 | R74: 8 | S74: 15 | W74: 19 | X74: 12 | Y74: 12 | Z74: 14 | AA74: 6 | AB74: 11 | AC74: 9 | AQ74: dc | AR74: cc | AS74: sh | AT74: oh | AU74: oh | AV74: sh | AW74: cc | BK74: 7
A75: A | B75: 6 | C75: 6 | D75: E55B | E75: Ray Foster | F75: 13.49950408 | G75: 12 | H75: 14 | I75: 12 | J75: 13 | K75: 12 | L75: 12 | M75: 14 | N75: 15 | O75: 14 | P75: 15 | Q75: 13 | R75: 13 | S75: 26 | W75: 13 | X75: 19 | Y75: 16 | Z75: 15 | AA75: 17 | AB75: 13 | AQ75: cc | AR75: dc | AS75: cc | AT75: drb | AU75: sh | AV75: cc | BK75: 6
A76: A | B76: 6 | C76: 7 | D76: E55B | E76: Johnny Nelms | F76: 11.53727897 | G76: 10 | H76: 12 | I76: 10 | J76: 11 | K76: 10 | L76: 10 | M76: 12 | N76: 12 | O76: 12 | P76: 13 | Q76: 10 | R76: 11 | S76: 22 | W76: 13 | AQ76: sh | BK76: 1
A77: A | B77: 6 | C77: 8 | D77: E55B | E77: Scott Bohn | F77: 6.00070472 | G77: 4 | H77: 6 | I77: 4 | J77: 5 | K77: 4 | L77: 4 | M77: 6 | N77: 6 | O77: 6 | P77: 7 | Q77: 5 | R77: 5 | S77: 10 | W77: 8 | X77: 7 | Y77: 9 | Z77: 9 | AA77: 4 | AB77: 9 | AC77: 6 | AQ77: cc | AR77: dc | AS77: cc | AT77: drb | AU77: oh | AV77: sh | AW77: cc | BK77: 7
A78: A | B78: 6 | C78: 9 | D78: E55B | E78: Jerry Adkins | F78: 18.90846113 | G78: 18 | H78: 18 | I78: 17 | J78: 18 | K78: 17 | L78: 17 | M78: 18 | N78: 18 | O78: 18 | P78: 18 | Q78: 18 | R78: 18 | S78: 36 | T78: st | W78: 21 | X78: 18 | Y78: 19 | Z78: 24 | AQ78: cc | AR78: sh | AS78: sh | AT78: cc | BK78: 4
A79: A | B79: 6 | C79: 10 | D79: E55B | E79: Ed Cunningham | F79: 12.23775772 | G79: 11 | H79: 12 | I79: 10 | J79: 11 | K79: 11 | L79: 11 | M79: 12 | N79: 13 | O79: 13 | P79: 14 | Q79: 11 | R79: 12 | S79: 23 | T79: st | W79: 10 | X79: 15 | Y79: 15.4 | Z79: 17 | AA79: 15 | AB79: 10 | AQ79: dc | AR79: cc | AS79: drb | AT79: oh | AU79: sh | AV79: sh | BK79: 6
A80: A | B80: 6 | C80: 11 | D80: E55B | E80: Dallas Wilkinson | F80: 18.49163069 | G80: 18 | H80: 18 | I80: 17 | J80: 18 | K80: 17 | L80: 17 | M80: 18 | N80: 18 | O80: 18 | P80: 18 | Q80: 18 | R80: 18 | S80: 36 | U80: ndr | V80: 94 | W80: 24 | X80: 26 | Y80: 21 | Z80: 20.6 | AA80: 20 | AB80: 17 | AQ80: cc | AR80: cc | AS80: sh | AT80: drb | AU80: oh | AV80: sh | BK80: 6
A81: A | B81: 6 | C81: 12 | D81: E55B | E81: Aaron Roscoe | F81: 11.51246189 | G81: 10 | H81: 12 | I81: 10 | J81: 11 | K81: 10 | L81: 10 | M81: 12 | N81: 12 | O81: 12 | P81: 13 | Q81: 10 | R81: 11 | S81: 22 | U81: ndr | V81: 94 | W81: 14 | X81: 18 | Y81: 17 | Z81: 17 | AA81: 11 | AB81: 9 | AQ81: cc | AR81: cc | AS81: sh | AT81: oh | AU81: oh | AV81: sh | BK81: 6
A82: A | B82: 7 | C82: 0
A83: A | B83: 7 | C83: 1 | D83: X04 | E83: Scott Mooneyham | F83: 15.20121526 | G83: 14 | H83: 16 | I83: 13 | J83: 14 | K83: 13 | L83: 14 | M83: 16 | N83: 17 | O83: 16 | P83: 17 | Q83: 14 | R83: 15 | S83: 30 | W83: 17 | X83: 16 | Y83: 16 | Z83: 22 | AA83: 17 | AB83: 15 | AC83: 20 | AQ83: oh | AR83: sh | AS83: oh | AT83: dc | AU83: cc | AV83: sh | AW83: cc | BK83: 7
A84: A | B84: 7 | C84: 2 | D84: X04 | E84: Loria Mooneyham | F84: 21.69727184 | G84: 18 | H84: 18 | I84: 18 | J84: 18 | K84: 18 | L84: 18 | M84: 18 | N84: 18 | O84: 18 | P84: 18 | Q84: 17 | R84: 18 | S84: 36 | T84: w | W84: 23 | X84: 21 | Y84: 25 | Z84: 25 | AA84: 22 | AB84: 25 | AC84: 24 | AQ84: oh | AR84: sh | AS84: oh | AT84: dc | AU84: cc | AV84: sh | AW84: cc | BK84: 7
A85: A | B85: 7 | C85: 3 | D85: X04 | E85: Greg Boyters | F85: 8.1812 | G85: 7 | H85: 8 | I85: 6 | J85: 7 | K85: 7 | L85: 6 | M85: 8 | N85: 9 | O85: 9 | P85: 9 | Q85: 7 | R85: 8 | S85: 15 | W85: 9 | X85: 5 | Y85: 11 | Z85: 10 | AQ85: oh | AR85: cc | AS85: cc | AT85: sh | BK85: 4
A86: A | B86: 7 | C86: 4 | D86: X04 | E86: Tommy Walker | F86: 5.720710366 | G86: 4 | H86: 5 | I86: 4 | J86: 4 | K86: 4 | L86: 4 | M86: 5 | N86: 6 | O86: 6 | P86: 7 | Q86: 4 | R86: 5 | S86: 10 | W86: 9 | X86: 6 | Y86: 7 | Z86: 5 | AA86: 2 | AB86: 10 | AC86: 4 | AD86: 8 | AQ86: oh | AR86: oh | AS86: oh | AT86: oh | AU86: dc | AV86: cc | AW86: cc | AX86: sh | BK86: 8
A87: A | B87: 7 | C87: 5 | D87: X04 | E87: Leo King | F87: 11.60987879 | G87: 8 | H87: 10 | I87: 7 | J87: 9 | K87: 8 | L87: 9 | M87: 12 | N87: 12 | O87: 11 | P87: 12 | Q87: 9 | R87: 7 | S87: 18 | T87: s | W87: 12 | X87: 13 | Y87: 14 | Z87: 14 | AA87: 12 | AB87: 11 | AC87: 8 | AQ87: oh | AR87: sh | AS87: dr | AT87: dc | AU87: cc | AV87: cc | AW87: cc | BK87: 7
A88: A | B88: 7 | C88: 6 | D88: X04 | E88: Joshua Pryor | F88: 7.505428921 | G88: 6 | H88: 7 | I88: 6 | J88: 6 | K88: 6 | L88: 6 | M88: 7 | N88: 8 | O88: 8 | P88: 9 | Q88: 6 | R88: 7 | S88: 13 | U88: ndr | V88: 11 | W88: 5 | X88: 6 | Y88: 13 | Z88: 9 | AA88: 8 | AB88: 10 | AC88: 15 | AQ88: oh | AR88: sh | AS88: dr | AT88: oh | AU88: cc | AV88: cc | AW88: sh | BK88: 7
A89: A | B89: 7 | C89: 7 | D89: X04 | E89: Jesse Johnson | F89: 12.8184688 | G89: 12 | H89: 13 | I89: 11 | J89: 12 | K89: 11 | L89: 11 | M89: 13 | N89: 14 | O89: 14 | P89: 14 | Q89: 12 | R89: 12 | S89: 25 | W89: 15 | X89: 14 | Y89: 19 | Z89: 12 | AA89: 17 | AQ89: oh | AR89: dr | AS89: oh | AT89: cc | AU89: cc | BK89: 5
A90: A | B90: 7 | C90: 8 | D90: X04 | E90: Mike Pyrtle | F90: 13.31054423 | G90: 12 | H90: 14 | I90: 11 | J90: 12 | K90: 12 | L90: 12 | M90: 14 | N90: 14 | O90: 14 | P90: 15 | Q90: 12 | R90: 13 | S90: 26 | W90: 18 | X90: 14 | Y90: 13 | Z90: 18 | AA90: 11 | AQ90: oh | AR90: sh | AS90: dr | AT90: oh | AU90: cc | BK90: 5
A91: A | B91: 7 | C91: 9 | D91: X04 | E91: Brent McConnell | F91: 9.213848951 | G91: 8 | H91: 9 | I91: 7 | J91: 8 | K91: 8 | L91: 7 | M91: 9 | N91: 10 | O91: 10 | P91: 10 | Q91: 8 | R91: 9 | S91: 17 | W91: 7 | X91: 13 | Y91: 12 | Z91: 17 | AA91: 10 | AB91: 8 | AC91: 17 | AD91: 11 | AQ91: sh | AR91: oh | AS91: sh | AT91: dr | AU91: dc | AV91: cc | AW91: cc | AX91: cc | BK91: 8
A92: A | B92: 7 | C92: 10 | D92: X04 | E92: Ron Gorman | F92: 11.31232429 | G92: 8 | H92: 10 | I92: 7 | J92: 9 | K92: 8 | L92: 9 | M92: 11 | N92: 12 | O92: 11 | P92: 11 | Q92: 9 | R92: 7 | S92: 17 | T92: s | W92: 11 | X92: 14 | Y92: 12 | Z92: 12 | AA92: 16 | AB92: 6 | AQ92: oh | AR92: sh | AS92: oh | AT92: dr | AU92: oh | AV92: cc | BK92: 6
A93: A | B93: 7 | C93: 11 | D93: X04 | E93: Reginald Bonney | F93: 15.80851302 | G93: 15 | H93: 16 | I93: 14 | J93: 15 | K93: 14 | L93: 14 | M93: 16 | N93: 17 | O93: 17 | P93: 17 | Q93: 15 | R93: 15 | S93: 31 | W93: 23 | X93: 20 | Y93: 21 | Z93: 19 | AA93: 16 | AB93: 18 | AC93: 15 | AQ93: oh | AR93: sh | AS93: sh | AT93: oh | AU93: cc | AV93: cc | AW93: sh | BK93: 7
A94: A | B94: 7 | C94: 12 | D94: X04 | E94: Darren Fahlbusch | F94: 8.347359332 | G94: 7 | H94: 8 | I94: 6 | J94: 7 | K94: 7 | L94: 7 | M94: 8 | N94: 9 | O94: 9 | P94: 9 | Q94: 7 | R94: 8 | S94: 15 | U94: ndr | V94: 9.7 | W94: 16 | X94: 11 | Y94: 10 | Z94: 13 | AA94: 14 | AB94: 5 | AQ94: oh | AR94: sh | AS94: oh | AT94: sh | AU94: dc | AV94: cc | BK94: 6
A95: A | B95: 8 | C95: 0
A96: A | B96: 8 | C96: 1 | D96: AGS | E96: Clay Copeland | F96: 5.781151691 | G96: 4 | H96: 5 | I96: 4 | J96: 4 | K96: 4 | L96: 4 | M96: 5 | N96: 6 | O96: 6 | P96: 7 | Q96: 4 | R96: 5 | S96: 10 | U96: ndr | V96: 10 | W96: 5 | X96: 12 | Y96: 8 | Z96: 7 | AA96: 4 | AB96: 7 | AC96: 5 | AQ96: cc | AR96: sh | AS96: cc | AT96: dr | AU96: cc | AV96: cc | AW96: dr | BK96: 7
A97: A | B97: 8 | C97: 2 | D97: AGS | E97: Brock Harris | F97: 5.414855248 | G97: 4 | H97: 5 | I97: 3 | J97: 4 | K97: 4 | L97: 4 | M97: 5 | N97: 5 | O97: 6 | P97: 6 | Q97: 4 | R97: 5 | S97: 9 | W97: 7 | X97: 6 | Y97: 4 | Z97: 4 | AQ97: oh | AR97: oh | AS97: drb | AT97: oh | BK97: 4
A98: A | B98: 8 | C98: 3 | D98: AGS | E98: Daniel Lutz | F98: 8.962235861 | G98: 8 | H98: 9 | I98: 7 | J98: 8 | K98: 7 | L98: 7 | M98: 9 | N98: 9 | O98: 10 | P98: 10 | Q98: 8 | R98: 8 | S98: 16 | W98: 15 | X98: 12 | Y98: 16 | Z98: 9 | AA98: 5 | AB98: 14 | AC98: 9 | AQ98: oh | AR98: cc | AS98: sh | AT98: dr | AU98: cc | AV98: dr | AW98: cc | BK98: 7
A99: A | B99: 8 | C99: 4 | D99: AGS | E99: Justin James | F99: 14.95912659 | G99: 14 | H99: 15 | I99: 13 | J99: 14 | K99: 13 | L99: 13 | M99: 15 | N99: 16 | O99: 16 | P99: 17 | Q99: 14 | R99: 15 | S99: 29 | U99: ndr | V99: 16 | W99: 15 | X99: 17 | Y99: 21 | Z99: 16 | AA99: 13 | AB99: 20 | AC99: 13 | AD99: 16 | AE99: 18 | AQ99: oh | AR99: cc | AS99: sh | AT99: oh | AU99: cc | AV99: dr | AW99: cc | AX99: drb | AY99: oh | BK99: 9
A100: A | B100: 8 | C100: 5 | D100: AGS | E100: James Miller | F100: 10.54449365 | G100: 9 | H100: 11 | I100: 9 | J100: 9 | K100: 9 | L100: 9 | M100: 11 | N100: 11 | O100: 11 | P100: 12 | Q100: 9 | R100: 10 | S100: 20 | W100: 16 | X100: 12 | Y100: 12 | Z100: 9 | AA100: 9 | AB100: 12 | AC100: 12 | AD100: 7 | AQ100: cc | AR100: sh | AS100: sh | AT100: cc | AU100: cc | AV100: cc | AW100: dr | AX100: cc | BK100: 8
A101: A | B101: 8 | C101: 6 | D101: AGS | E101: Brooks Ryno | F101: 13.32473744 | G101: 10 | H101: 12 | I101: 9 | J101: 11 | K101: 10 | L101: 11 | M101: 14 | N101: 14 | O101: 13 | P101: 14 | Q101: 11 | R101: 8 | S101: 21 | T101: s | W101: 15 | X101: 10 | Y101: 12 | Z101: 14 | AQ101: sh | AR101: cc | AS101: dr | AT101: cc | BK101: 4
A102: A | B102: 8 | C102: 7 | D102: AGS | E102: Zach Harding | F102: 11.63558168 | G102: 10 | H102: 12 | I102: 10 | J102: 11 | K102: 10 | L102: 10 | M102: 12 | N102: 12 | O102: 12 | P102: 13 | Q102: 11 | R102: 11 | S102: 22 | W102: 12 | X102: 14 | Y102: 11 | Z102: 11 | AQ102: sh | AR102: oh | AS102: drb | AT102: oh | BK102: 4
A103: A | B103: 8 | C103: 8 | D103: AGS | E103: Melissa Gaskins | F103: 20.36154817 | G103: 18 | H103: 18 | I103: 18 | J103: 18 | K103: 18 | L103: 18 | M103: 18 | N103: 18 | O103: 18 | P103: 18 | Q103: 16 | R103: 18 | S103: 36 | T103: w | W103: 18 | X103: 23 | Y103: 18 | Z103: 21 | AA103: 20 | AB103: 16 | AQ103: oh | AR103: sh | AS103: oh | AT103: dr | AU103: drb | AV103: oh | BK103: 6
A104: A | B104: 8 | C104: 9 | D104: AGS | E104: Colt Copeland | F104: 7.67474616 | G104: 6 | H104: 7 | I104: 6 | J104: 6 | K104: 6 | L104: 6 | M104: 7 | N104: 8 | O104: 8 | P104: 9 | Q104: 6 | R104: 7 | S104: 14 | W104: 5 | X104: 13 | Y104: 8 | Z104: 10 | AQ104: cc | AR104: sh | AS104: cc | AT104: dr | BK104: 4
A105: A | B105: 8 | C105: 10 | D105: AGS | E105: Forrest Barefoot | F105: 5.819008659 | G105: 4 | H105: 5 | I105: 4 | J105: 4 | K105: 4 | L105: 4 | M105: 5 | N105: 6 | O105: 6 | P105: 7 | Q105: 4 | R105: 5 | S105: 10 | W105: 7 | X105: 5 | Y105: 1 | Z105: 9 | AA105: 8 | AQ105: sh | AR105: cc | AS105: cc | AT105: dr | AU105: cc | BK105: 5
A106: A | B106: 8 | C106: 11 | D106: AGS | E106: Zach Gaskins | F106: 7.811068243 | G106: 6 | H106: 8 | I106: 6 | J106: 7 | K106: 6 | L106: 6 | M106: 8 | N106: 8 | O106: 8 | P106: 9 | Q106: 6 | R106: 7 | S106: 14 | W106: 17 | X106: 7 | Y106: 10 | Z106: 13 | AA106: 11 | AB106: 10 | AC106: 8 | AD106: 11 | AE106: 12 | AQ106: oh | AR106: cc | AS106: sh | AT106: oh | AU106: cc | AV106: dr | AW106: cc | AX106: oh | AY106: cc | BK106: 9
A107: A | B107: 8 | C107: 12 | D107: AGS | E107: Glenn Gaskins | F107: 7.979319434 | G107: 4 | H107: 6 | I107: 4 | J107: 5 | K107: 5 | L107: 5 | M107: 8 | N107: 8 | O107: 7 | P107: 8 | Q107: 5 | R107: 3 | S107: 10 | T107: s | W107: 6 | X107: 6 | Y107: 12 | Z107: 4 | AA107: 7 | AB107: 4 | AC107: 9 | AD107: 4 | AQ107: oh | AR107: sh | AS107: oh | AT107: dr | AU107: cc | AV107: drb | AW107: oh | AX107: cc | BK107: 8
A108: A | B108: 9 | C108: 0
A109: A | B109: 9 | C109: 1 | D109: E86 | E109: Jeff Asby | F109: 8.320780103 | G109: 7 | H109: 8 | I109: 6 | J109: 7 | K109: 7 | L109: 7 | M109: 8 | N109: 9 | O109: 9 | P109: 9 | Q109: 7 | R109: 8 | S109: 15 | W109: 6 | X109: 13 | Y109: 9 | Z109: 8 | AA109: 12 | AB109: 7 | AC109: 10 | AD109: 13 | AE109: 13 | AQ109: dr | AR109: sh | AS109: oh | AT109: cc | AU109: oh | AV109: shb | AW109: oh | AX109: dr | AY109: dr | BK109: 9
A110: A | B110: 9 | C110: 2 | D110: E86 | E110: Wade Traynham | F110: 3.288541592 | G110: 2 | H110: 3 | I110: 1 | J110: 2 | K110: 2 | L110: 1 | M110: 3 | N110: 3 | O110: 3 | P110: 4 | Q110: 2 | R110: 3 | S110: 4 | W110: 1 | X110: 5 | Y110: 5 | Z110: 7 | AA110: 8 | AB110: 2 | AC110: 9 | AD110: 4 | AE110: 3 | AF110: 4 | AQ110: sh | AR110: oh | AS110: cc | AT110: cc | AU110: oh | AV110: shb | AW110: cc | AX110: dr | AY110: cc | AZ110: dr | BK110: 10
A111: A | B111: 9 | C111: 3 | D111: E86 | E111: Dennis Nicely | F111: 10.56470603 | G111: 9 | H111: 11 | I111: 9 | J111: 10 | K111: 9 | L111: 9 | M111: 11 | N111: 11 | O111: 11 | P111: 12 | Q111: 9 | R111: 10 | S111: 20 | T111: st | W111: 12 | X111: 14 | Y111: 11 | Z111: 15 | AA111: 8 | AB111: 14 | AQ111: dr | AR111: oh | AS111: cc | AT111: oh | AU111: cc | AV111: cc | BK111: 6
A112: A | B112: 9 | C112: 4 | D112: E86 | E112: Joseph Evans III | F112: 0.3652571937 | G112: -1 | H112: 0.0001 | I112: -2 | J112: -1 | K112: -1 | L112: -2 | M112: -1 | N112: 0.0001 | O112: 0.0001 | P112: 1 | Q112: -1 | R112: 0.0001 | S112: -2 | W112: 0 | X112: -1 | Y112: 0 | Z112: 0 | AA112: 2 | AQ112: sh | AR112: cc | AS112: cc | AT112: cc | AU112: dr | BK112: 5
A113: A | B113: 9 | C113: 5 | D113: E86 | E113: Eric Thorvaldson | F113: 11.76685984 | G113: 10 | H113: 12 | I113: 10 | J113: 11 | K113: 10 | L113: 10 | M113: 12 | N113: 13 | O113: 13 | P113: 13 | Q113: 11 | R113: 11 | S113: 22 | W113: 13 | X113: 8 | Y113: 15 | Z113: 8 | AA113: 11 | AB113: 10 | AC113: 12 | AD113: 13 | AE113: 19 | AQ113: sh | AR113: oh | AS113: cc | AT113: cc | AU113: shb | AV113: cc | AW113: oh | AX113: cc | AY113: dr | BK113: 9
A114: A | B114: 9 | C114: 6 | D114: E86 | E114: Wildlando Handy | F114: 9.098644135 | G114: 8 | H114: 9 | I114: 7 | J114: 8 | K114: 7 | L114: 7 | M114: 9 | N114: 10 | O114: 10 | P114: 10 | Q114: 8 | R114: 9 | S114: 17 | W114: 14 | X114: 9 | Y114: 16 | Z114: 8 | AA114: 11 | AQ114: dr | AR114: oh | AS114: shb | AT114: oh | AU114: dr | BK114: 5
A115: A | B115: 9 | C115: 7 | D115: E86 | E115: Gilbert Meekins | F115: 7.875855336 | G115: 6 | H115: 8 | I115: 6 | J115: 7 | K115: 6 | L115: 6 | M115: 8 | N115: 8 | O115: 8 | P115: 9 | Q115: 7 | R115: 7 | S115: 14 | T115: st | W115: 10 | X115: 5 | Y115: 5 | Z115: 6 | AA115: 11 | AB115: 10 | AC115: 14 | AQ115: cc | AR115: cc | AS115: oh | AT115: cc | AU115: dr | AV115: cc | AW115: dr | BK115: 7
A116: A | B116: 9 | C116: 8 | D116: E86 | E116: Jimmy Jessup | F116: 9.978677672 | G116: 9 | H116: 10 | I116: 8 | J116: 9 | K116: 8 | L116: 8 | M116: 10 | N116: 11 | O116: 11 | P116: 11 | Q116: 9 | R116: 9 | S116: 19 | W116: 15 | X116: 12 | Y116: 6 | AQ116: oh | AR116: cc | AS116: oh | BK116: 3
A117: A | B117: 9 | C117: 9 | D117: E86 | E117: Keith Thompson | F117: 3.747701652 | G117: 2 | H117: 3 | I117: 2 | J117: 2 | K117: 2 | L117: 2 | M117: 3 | N117: 4 | O117: 4 | P117: 5 | Q117: 2 | R117: 3 | S117: 5 | W117: 3 | X117: 4 | Y117: 9 | Z117: 4 | AQ117: sh | AR117: cc | AS117: oh | AT117: shb | BK117: 4
A118: A | B118: 9 | C118: 10 | D118: E86 | E118: Paul Bodensick | F118: 4.063840442 | G118: 2 | H118: 4 | I118: 2 | J118: 3 | K118: 3 | L118: 2 | M118: 3 | N118: 4 | O118: 4 | P118: 5 | Q118: 3 | R118: 3 | S118: 6 | W118: 8 | X118: 7 | Y118: 6 | Z118: 7 | AA118: 4 | AB118: 3 | AQ118: dr | AR118: oh | AS118: oh | AT118: dr | AU118: cc | AV118: dr | BK118: 6
A119: A | B119: 9 | C119: 11 | D119: E86 | E119: Tim Randolph | F119: 11.68586667 | G119: 10 | H119: 12 | I119: 10 | J119: 11 | K119: 10 | L119: 10 | M119: 12 | N119: 13 | O119: 13 | P119: 13 | Q119: 11 | R119: 11 | S119: 22 | U119: ndr | V119: 14.3 | W119: 15 | X119: 12 | Y119: 14 | AQ119: cc | AR119: oh | AS119: dr | BK119: 3
A120: A | B120: 9 | C120: 12 | D120: E86 | E120: Kyle Franklin | F120: 3.259382609 | G120: 2 | H120: 3 | I120: 1 | J120: 2 | K120: 2 | L120: 1 | M120: 3 | N120: 3 | O120: 3 | P120: 4 | Q120: 2 | R120: 3 | S120: 4 | U120: ndr | V120: 5.1 | W120: 5 | X120: 6 | Y120: 2 | Z120: 7 | AQ120: dr | AR120: sh | AS120: cc | AT120: shb | BK120: 4
A121: A | B121: 10 | C121: 0
A122: A | B122: 10 | C122: 1 | D122: E60 | E122: Jason Harry | F122: 6.167037784 | G122: 5 | H122: 6 | I122: 4 | J122: 5 | K122: 5 | L122: 4 | M122: 6 | N122: 6 | O122: 7 | P122: 7 | Q122: 5 | R122: 6 | S122: 10 | W122: 8 | X122: 9 | Y122: 12 | Z122: 7 | AQ122: oh | AR122: drb | AS122: oh | AT122: drb | BK122: 4
A123: A | B123: 10 | C123: 2 | D123: E60 | E123: Chris Yoko | F123: 9.929749304 | G123: 9 | H123: 10 | I123: 8 | J123: 9 | K123: 8 | L123: 8 | M123: 10 | N123: 11 | O123: 11 | P123: 11 | Q123: 9 | R123: 9 | S123: 18 | W123: 10 | X123: 9 | Y123: 8 | Z123: 12 | AA123: 13 | AB123: 17 | AC123: 12 | AQ123: oh | AR123: sh | AS123: oh | AT123: drb | AU123: sh | AV123: drb | AW123: cc | BK123: 7
A124: A | B124: 10 | C124: 3 | D124: E60 | E124: Eric Giddinge | F124: 12.4841765 | G124: 11 | H124: 13 | I124: 11 | J124: 12 | K124: 11 | L124: 11 | M124: 13 | N124: 13 | O124: 13 | P124: 14 | Q124: 11 | R124: 12 | S124: 24 | W124: 21 | X124: 12 | Y124: 20 | Z124: 12 | AA124: 15 | AQ124: cc | AR124: oh | AS124: oh | AT124: dr | AU124: cc | BK124: 5
A125: A | B125: 10 | C125: 4 | D125: E60 | E125: Don Divis | F125: 14.88806042 | G125: 14 | H125: 15 | I125: 13 | J125: 14 | K125: 13 | L125: 13 | M125: 15 | N125: 16 | O125: 16 | P125: 16 | Q125: 14 | R125: 14 | S125: 29 | T125: st | W125: 23 | X125: 11 | Y125: 8 | Z125: 12 | AA125: 8 | AB125: 15 | AC125: 14 | AD125: 15 | AE125: 13 | AQ125: sh | AR125: cc | AS125: drb | AT125: sh | AU125: drb | AV125: oh | AW125: drb | AX125: dr | AY125: cc | BK125: 9
A126: A | B126: 10 | C126: 5 | D126: E60 | E126: Bill Johnson | F126: 14.18354681 | G126: 13 | H126: 15 | I126: 12 | J126: 13 | K126: 12 | L126: 13 | M126: 15 | N126: 15 | O126: 15 | P126: 16 | Q126: 13 | R126: 14 | S126: 28 | T126: st | W126: 13 | X126: 11 | Y126: 16 | Z126: 12 | AA126: 10 | AB126: 15 | AC126: 8 | AQ126: sh | AR126: cc | AS126: drb | AT126: sh | AU126: drb | AV126: sh | AW126: cc | BK126: 7
A127: A | B127: 10 | C127: 6 | D127: E60 | E127: Ronald Crowell | F127: 5.974740094 | G127: 4 | H127: 6 | I127: 4 | J127: 5 | K127: 4 | L127: 4 | M127: 6 | N127: 6 | O127: 6 | P127: 7 | Q127: 5 | R127: 5 | S127: 10 | W127: 6 | X127: 5 | Y127: 6 | Z127: 13 | AA127: 6 | AB127: 7 | AC127: 4 | AD127: 4 | AE127: 4 | AF127: 7 | AQ127: sh | AR127: oh | AS127: sh | AT127: drb | AU127: sh | AV127: oh | AW127: oh | AX127: drb | AY127: dr | AZ127: cc | BK127: 10
A128: A | B128: 10 | C128: 7 | D128: E60 | E128: Nathan Vandygriff | F128: 5.555112714 | G128: 4 | H128: 5 | I128: 4 | J128: 4 | K128: 4 | L128: 4 | M128: 5 | N128: 6 | O128: 6 | P128: 6 | Q128: 4 | R128: 5 | S128: 9 | W128: 7 | X128: 8 | Y128: 5 | Z128: 3 | AA128: 5 | AB128: 2 | AC128: 13 | AD128: 5 | AQ128: oh | AR128: cc | AS128: oh | AT128: drb | AU128: drb | AV128: oh | AW128: dr | AX128: cc | BK128: 8
A129: A | B129: 10 | C129: 8 | D129: E60 | E129: Taylor Brooks | F129: 9.63031972 | G129: 8 | H129: 10 | I129: 8 | J129: 9 | K129: 8 | L129: 8 | M129: 10 | N129: 10 | O129: 10 | P129: 11 | Q129: 8 | R129: 9 | S129: 18 | U129: ndr | V129: 12 | W129: 10 | X129: 13 | Y129: 9 | Z129: 12 | AA129: 12 | AB129: 10 | AC129: 8 | AD129: 9 | AE129: 10 | AQ129: oh | AR129: cc | AS129: drb | AT129: sh | AU129: oh | AV129: oh | AW129: drb | AX129: cc | AY129: cc | BK129: 9
A130: A | B130: 10 | C130: 9 | D130: E60 | E130: Rusty Cullen | F130: 6.012219021 | G130: 4 | H130: 6 | I130: 4 | J130: 5 | K130: 4 | L130: 4 | M130: 6 | N130: 6 | O130: 6 | P130: 7 | Q130: 5 | R130: 5 | S130: 10 | W130: 11 | X130: 6 | Y130: 12 | Z130: 7 | AA130: 5 | AB130: 7 | AC130: 6 | AD130: 3 | AQ130: sh | AR130: oh | AS130: sh | AT130: sh | AU130: oh | AV130: dr | AW130: cc | AX130: cc | BK130: 8
A131: A | B131: 10 | C131: 10 | D131: E60 | E131: Robbie Watkins | F131: 5.360633361 | G131: 4 | H131: 5 | I131: 3 | J131: 4 | K131: 4 | L131: 4 | M131: 5 | N131: 5 | O131: 6 | P131: 6 | Q131: 4 | R131: 5 | S131: 9 | W131: 6 | X131: 5 | Y131: 7 | AQ131: cc | AR131: oh | AS131: drb | BK131: 3
A132: A | B132: 10 | C132: 11 | D132: E60 | E132: Glenn Parker | F132: 5.21583355 | G132: 4 | H132: 5 | I132: 3 | J132: 4 | K132: 4 | L132: 3 | M132: 5 | N132: 5 | O132: 6 | P132: 6 | Q132: 4 | R132: 5 | S132: 8 | W132: 8 | X132: 3 | Y132: 6 | Z132: 11 | AA132: 6 | AQ132: oh | AR132: drb | AS132: sh | AT132: oh | AU132: cc | BK132: 5
A133: A | B133: 10 | C133: 12 | D133: E60 | E133: Ricky Wyatt | F133: 7.589490634 | G133: 6 | H133: 7 | I133: 6 | J133: 6 | K133: 6 | L133: 6 | M133: 7 | N133: 8 | O133: 8 | P133: 9 | Q133: 6 | R133: 7 | S133: 14 | W133: 6 | X133: 14 | Y133: 13 | Z133: 10 | AA133: 13 | AB133: 13 | AC133: 12 | AD133: 13 | AE133: 5 | AQ133: oh | AR133: sh | AS133: oh | AT133: sh | AU133: sh | AV133: oh | AW133: drb | AX133: dr | AY133: cc | BK133: 9
A134: A | B134: 11 | C134: 0
A135: A | B135: 11 | C135: 1 | D135: E42 | E135: Walt Jones | F135: 10.52060876 | G135: 9 | H135: 11 | I135: 9 | J135: 9 | K135: 9 | L135: 9 | M135: 11 | N135: 11 | O135: 11 | P135: 12 | Q135: 9 | R135: 10 | S135: 20 | W135: 15 | X135: 8 | Y135: 13 | Z135: 11 | AA135: 11 | AB135: 13 | AC135: 9 | AD135: 20 | AE135: 13 | AQ135: sh | AR135: sh | AS135: cc | AT135: dr | AU135: oh | AV135: drb | AW135: dr | AX135: drb | AY135: oh | BK135: 9
A136: A | B136: 11 | C136: 2 | D136: E42 | E136: John Christein | F136: 14.00641099 | G136: 10 | H136: 12 | I136: 10 | J136: 11 | K136: 10 | L136: 11 | M136: 14 | N136: 15 | O136: 14 | P136: 14 | Q136: 11 | R136: 9 | S136: 23 | T136: s | W136: 15 | X136: 13 | AQ136: dr | AR136: ccb | BK136: 2
A137: A | B137: 11 | C137: 3 | D137: E42 | E137: Daanish Iqbal | F137: 15.05481185 | G137: 14 | H137: 15 | I137: 13 | J137: 14 | K137: 13 | L137: 13 | M137: 16 | N137: 16 | O137: 16 | P137: 17 | Q137: 14 | R137: 15 | S137: 29 | U137: ndr | V137: 94 | W137: 17 | X137: 20 | Y137: 16 | Z137: 16 | AA137: 16 | AQ137: sh | AR137: sh | AS137: cc | AT137: ccb | AU137: sh | BK137: 5
A138: A | B138: 11 | C138: 4 | D138: E42 | E138: David Langston | F138: 8.804440343 | G138: 5 | H138: 7 | I138: 4 | J138: 6 | K138: 6 | L138: 6 | M138: 9 | N138: 9 | O138: 8 | P138: 9 | Q138: 6 | R138: 4 | S138: 12 | T138: s | W138: 7 | X138: 6 | Y138: 12 | Z138: 8 | AA138: 7 | AB138: 4 | AC138: 11 | AD138: 5 | AE138: 7 | AF138: 4 | AG138: 11 | AH138: 10 | AQ138: oh | AR138: sh | AS138: cc | AT138: sh | AU138: dr | AV138: cc | AW138: oh | AX138: ccb | AY138: sh | AZ138: drb | BA138: dr | BB138: drb | BK138: 12
A139: A | B139: 11 | C139: 5 | D139: E42 | E139: Keith Carter | F139: 11.78768605 | G139: 11 | H139: 12 | I139: 10 | J139: 11 | K139: 10 | L139: 10 | M139: 12 | N139: 13 | O139: 13 | P139: 13 | Q139: 11 | R139: 11 | S139: 22 | W139: 14 | X139: 12 | Y139: 15 | Z139: 15 | AA139: 14 | AB139: 7 | AC139: 14 | AD139: 16 | AE139: 12 | AQ139: oh | AR139: cc | AS139: sh | AT139: dr | AU139: cc | AV139: oh | AW139: sh | AX139: drb | AY139: oh | BK139: 9
A140: A | B140: 11 | C140: 6 | D140: E42 | E140: Jason love | F140: 15.5291044 | G140: 14 | H140: 16 | I140: 14 | J140: 15 | K140: 14 | L140: 14 | M140: 16 | N140: 17 | O140: 17 | P140: 17 | Q140: 15 | R140: 15 | S140: 30 | U140: ndr | V140: 16.1 | W140: 19 | X140: 21 | Y140: 16 | Z140: 16 | AA140: 19 | AB140: 24 | AQ140: sh | AR140: oh | AS140: sh | AT140: oh | AU140: dr | AV140: oh | BK140: 6
A141: A | B141: 11 | C141: 7 | D141: E42 | E141: Roger Woods | F141: 11.90847482 | G141: 11 | H141: 12 | I141: 10 | J141: 11 | K141: 10 | L141: 10 | M141: 12 | N141: 13 | O141: 13 | P141: 13 | Q141: 11 | R141: 11 | S141: 23 | W141: 12 | X141: 15 | Y141: 10 | Z141: 8 | AA141: 9 | AB141: 15 | AC141: 15 | AD141: 12 | AQ141: oh | AR141: sh | AS141: oh | AT141: oh | AU141: ccb | AV141: dr | AW141: drb | AX141: oh | BK141: 8
A142: A | B142: 11 | C142: 8 | D142: E42 | E142: Philip Ashe | F142: 16.86888798 | G142: 16 | H142: 17 | I142: 15 | J142: 16 | K142: 15 | L142: 15 | M142: 18 | N142: 18 | O142: 18 | P142: 18 | Q142: 16 | R142: 17 | S142: 33 | W142: 19 | X142: 17 | Y142: 21 | Z142: 14 | AA142: 21 | AB142: 22 | AC142: 22 | AQ142: sh | AR142: oh | AS142: sh | AT142: cc | AU142: sh | AV142: drb | AW142: drb | BK142: 7
A143: A | B143: 11 | C143: 9 | D143: E42 | E143: Henry Beale | F143: 7.866934097 | G143: 6 | H143: 8 | I143: 6 | J143: 7 | K143: 6 | L143: 6 | M143: 8 | N143: 8 | O143: 8 | P143: 9 | Q143: 7 | R143: 7 | S143: 14 | W143: 14 | X143: 12 | Y143: 8 | Z143: 10 | AA143: 4 | AB143: 9 | AC143: 11 | AD143: 13 | AE143: 9 | AF143: 14 | AQ143: oh | AR143: cc | AS143: dr | AT143: oh | AU143: oh | AV143: ccb | AW143: drb | AX143: dr | AY143: drb | AZ143: oh | BK143: 10
A144: A | B144: 11 | C144: 10 | D144: E42 | E144: Todd Osler | F144: 6.942940664 | G144: 5 | H144: 7 | I144: 5 | J144: 6 | K144: 5 | L144: 5 | M144: 7 | N144: 7 | O144: 7 | P144: 8 | Q144: 6 | R144: 6 | S144: 12 | W144: 9 | X144: 7 | Y144: 11 | Z144: 20 | AA144: 13 | AB144: 12 | AQ144: sh | AR144: cc | AS144: sh | AT144: oh | AU144: oh | AV144: sh | BK144: 6
A145: A | B145: 11 | C145: 11 | D145: E42 | E145: Comfort Bell | F145: 10.81886688 | G145: 9 | H145: 11 | I145: 9 | J145: 10 | K145: 9 | L145: 9 | M145: 11 | N145: 12 | O145: 12 | P145: 12 | Q145: 10 | R145: 10 | S145: 20 | W145: 16 | X145: 14 | Y145: 8 | Z145: 14 | AA145: 13 | AB145: 12 | AC145: 11 | AD145: 7 | AE145: 11 | AF145: 15 | AQ145: sh | AR145: sh | AS145: cc | AT145: sh | AU145: dr | AV145: cc | AW145: oh | AX145: ccb | AY145: drb | AZ145: dr | BK145: 10
A146: A | B146: 11 | C146: 12 | D146: E42 | E146: Vincent Saunders | F146: 16.35399511 | G146: 15 | H146: 17 | I146: 15 | J146: 16 | K146: 15 | L146: 15 | M146: 17 | N146: 18 | O146: 18 | P146: 18 | Q146: 16 | R146: 16 | S146: 32 | W146: 21 | X146: 12 | Y146: 14 | Z146: 22 | AA146: 20 | AQ146: sh | AR146: cc | AS146: oh | AT146: drb | AU146: oh | BK146: 5
A147: A | B147: 12 | C147: 0
A148: A | B148: 12 | C148: 1 | D148: X88 | E148: Mark Barker | F148: 6.457710603 | G148: 3 | H148: 5 | I148: 2 | J148: 4 | K148: 3 | L148: 4 | M148: 6 | N148: 7 | O148: 6 | P148: 6 | Q148: 4 | R148: 2 | S148: 7 | T148: s | W148: 3 | X148: 2 | Y148: 7 | Z148: 9 | AA148: 5 | AB148: 2 | AC148: 2 | AD148: 3 | AQ148: drb | AR148: cc | AS148: cc | AT148: shb | AU148: cc | AV148: sh | AW148: cc | AX148: oh | BK148: 8
A149: A | B149: 12 | C149: 2 | D149: X88 | E149: Ed Spruill | F149: 11.52668313 | G149: 8 | H149: 10 | I149: 7 | J149: 9 | K149: 8 | L149: 9 | M149: 12 | N149: 12 | O149: 11 | P149: 12 | Q149: 9 | R149: 7 | S149: 18 | T149: s | W149: 14 | X149: 12 | Y149: 10 | Z149: 12 | AA149: 11 | AB149: 8 | AC149: 12 | AD149: 8 | AQ149: dr | AR149: drb | AS149: shb | AT149: cc | AU149: dr | AV149: sh | AW149: sh | AX149: oh | BK149: 8
A150: A | B150: 12 | C150: 3 | D150: X88 | E150: John Hooper | F150: 19.99670258 | G150: 17 | H150: 18 | I150: 15 | J150: 17 | K150: 16 | L150: 17 | M150: 18 | N150: 18 | O150: 18 | P150: 18 | Q150: 17 | R150: 14 | S150: 35 | T150: s | W150: 18 | X150: 19 | Y150: 22 | Z150: 20 | AA150: 21 | AQ150: dr | AR150: dr | AS150: drb | AT150: shb | AU150: dr | BK150: 5
A151: A | B151: 12 | C151: 4 | D151: X88 | E151: Darrell Goodrich | F151: 18.04499941 | G151: 17 | H151: 18 | I151: 16 | J151: 18 | K151: 16 | L151: 17 | M151: 18 | N151: 18 | O151: 18 | P151: 18 | Q151: 17 | R151: 18 | S151: 36 | W151: 21.4 | X151: 23 | Y151: 20 | Z151: 20.6 | AA151: 18 | AB151: 19 | AC151: 16 | AD151: 15 | AE151: 14 | AQ151: dr | AR151: drb | AS151: sh | AT151: drb | AU151: shb | AV151: cc | AW151: dr | AX151: sh | AY151: oh | BK151: 9
A152: A | B152: 12 | C152: 5 | D152: X88 | E152: Rich Dietz | F152: 15.06439077 | G152: 12 | H152: 13 | I152: 11 | J152: 12 | K152: 11 | L152: 12 | M152: 16 | N152: 16 | O152: 15 | P152: 15 | Q152: 12 | R152: 10 | S152: 25 | T152: s | W152: 14 | X152: 13 | Y152: 14 | Z152: 9 | AA152: 16 | AB152: 11 | AC152: 12 | AD152: 19 | AE152: 15 | AQ152: drb | AR152: dr | AS152: sh | AT152: cc | AU152: cc | AV152: cc | AW152: sh | AX152: sh | AY152: oh | BK152: 9
A153: A | B153: 12 | C153: 6 | D153: X88 | E153: Chris Stumpf | F153: 20.2659669 | G153: 18 | H153: 18 | I153: 18 | J153: 18 | K153: 18 | L153: 18 | M153: 18 | N153: 18 | O153: 18 | P153: 18 | Q153: 18 | R153: 18 | S153: 36 | U153: ndr | V153: 93 | W153: 25.9 | X153: 22 | Y153: 20 | Z153: 25 | AA153: 26 | AQ153: dr | AR153: drb | AS153: dr | AT153: oh | AU153: cc | BK153: 5
A154: A | B154: 12 | C154: 7 | D154: X88 | E154: Scott White | F154: 17.12457864 | G154: 16 | H154: 18 | I154: 15 | J154: 17 | K154: 15 | L154: 16 | M154: 18 | N154: 18 | O154: 18 | P154: 18 | Q154: 16 | R154: 17 | S154: 34 | W154: 19 | X154: 21 | Y154: 17 | Z154: 20 | AA154: 19 | AB154: 19 | AC154: 17 | AD154: 12 | AQ154: dr | AR154: sh | AS154: cc | AT154: cc | AU154: shb | AV154: sh | AW154: oh | AX154: cc | BK154: 8
A155: A | B155: 12 | C155: 8 | D155: X88 | E155: John Plevelich | F155: 14.49623919 | G155: 11 | H155: 13 | I155: 10 | J155: 12 | K155: 11 | L155: 12 | M155: 15 | N155: 16 | O155: 14 | P155: 15 | Q155: 12 | R155: 9 | S155: 24 | T155: s | W155: 18 | X155: 18 | Y155: 13 | Z155: 20 | AQ155: oh | AR155: sh | AS155: cc | AT155: oh | BK155: 4
A156: A | B156: 12 | C156: 9 | D156: X88 | E156: Dale Stumpf | F156: 13.98844388 | G156: 10 | H156: 12 | I156: 9 | J156: 11 | K156: 10 | L156: 11 | M156: 14 | N156: 15 | O156: 14 | P156: 14 | Q156: 11 | R156: 9 | S156: 23 | T156: s | W156: 13 | X156: 16 | Y156: 12 | Z156: 9 | AA156: 14 | AB156: 11 | AC156: 11 | AD156: 11 | AE156: 10 | AQ156: dr | AR156: dr | AS156: cc | AT156: cc | AU156: cc | AV156: dr | AW156: oh | AX156: sh | AY156: oh | BK156: 9
A157: A | B157: 12 | C157: 10 | D157: X88 | E157: Larry Batten | F157: 7.802619566 | G157: 4 | H157: 6 | I157: 4 | J157: 5 | K157: 5 | L157: 5 | M157: 8 | N157: 8 | O157: 7 | P157: 8 | Q157: 5 | R157: 3 | S157: 10 | T157: s | W157: 10 | X157: 10 | Y157: 3 | Z157: 10 | AA157: 5 | AB157: 10 | AC157: 8 | AD157: 8 | AE157: 5 | AQ157: dr | AR157: sh | AS157: cc | AT157: drb | AU157: cc | AV157: shb | AW157: oh | AX157: sh | AY157: cc | BK157: 9
A158: A | B158: 12 | C158: 11 | D158: X88 | E158: Ron LaFrenierre | F158: 11.96223316 | G158: 8 | H158: 10 | I158: 8 | J158: 9 | K158: 9 | L158: 9 | M158: 12 | N158: 13 | O158: 12 | P158: 12 | Q158: 9 | R158: 7 | S158: 19 | T158: s | W158: 9 | X158: 12 | Y158: 5 | Z158: 12 | AA158: 14 | AB158: 11 | AC158: 11 | AD158: 7 | AQ158: drb | AR158: sh | AS158: cc | AT158: drb | AU158: cc | AV158: sh | AW158: sh | AX158: cc | BK158: 8
A159: A | B159: 12 | C159: 12 | D159: X88 | E159: Eric Neese | F159: 18.6744334 | G159: 18 | H159: 18 | I159: 17 | J159: 18 | K159: 17 | L159: 17 | M159: 18 | N159: 18 | O159: 18 | P159: 18 | Q159: 18 | R159: 18 | S159: 36 | W159: 21.4 | X159: 27 | Y159: 22 | Z159: 18 | AA159: 23.1 | AB159: 20 | AC159: 19 | AD159: 22 | AQ159: dr | AR159: drb | AS159: dr | AT159: sh | AU159: drb | AV159: cc | AW159: dr | AX159: oh | BK159: 8
A160: A | B160: 13 | C160: 0
A161: A | B161: 13 | C161: 1 | D161: SUBS | E161: Andrew Horan | F161: 19.10782938 | G161: 18 | H161: 18 | I161: 17 | J161: 18 | K161: 17 | L161: 18 | M161: 18 | N161: 18 | O161: 18 | P161: 18 | Q161: 18 | R161: 18 | S161: 36 | U161: ndr | V161: 18.3 | W161: 21 | X161: 18 | Y161: 21 | Z161: 23 | AA161: 22 | AB161: 21 | AC161: 25 | AD161: 21 | AQ161: cc | AR161: dr | AS161: sh | AT161: sh | AU161: drb | AV161: sh | AW161: sh | AX161: cc | BK161: 8
A162: A | B162: 13 | C162: 2 | D162: SUBS | E162: Eric Scott | F162: 18.88080972 | G162: 18 | H162: 18 | I162: 17 | J162: 18 | K162: 17 | L162: 17 | M162: 18 | N162: 18 | O162: 18 | P162: 18 | Q162: 18 | R162: 18 | S162: 36 | W162: 20 | X162: 25 | Y162: 19 | Z162: 24 | AA162: 14 | AB162: 22 | AC162: 20 | AD162: 21 | AE162: 19 | AQ162: oh | AR162: sh | AS162: oh | AT162: oh | AU162: sh | AV162: sh | AW162: cc | AX162: cc | AY162: drb | BK162: 9
A163: A | B163: 13 | C163: 3 | D163: SUBS | E163: Doug Murphy | F163: 15.28639307 | G163: 14 | H163: 16 | I163: 13 | J163: 15 | K163: 13 | L163: 14 | M163: 16 | N163: 17 | O163: 16 | P163: 17 | Q163: 14 | R163: 15 | S163: 30 | W163: 16 | X163: 20 | Y163: 15 | AQ163: oh | AR163: drb | AS163: drb | BK163: 3
A164: A | B164: 13 | C164: 4 | D164: SUBS | E164: Rich Egyud | F164: 17.37670224 | G164: 14 | H164: 16 | I164: 13 | J164: 15 | K164: 13 | L164: 15 | M164: 18 | N164: 18 | O164: 18 | P164: 18 | Q164: 15 | R164: 12 | S164: 29 | T164: s | W164: 19.1 | X164: 23 | Y164: 20 | Z164: 16 | AA164: 15 | AB164: 16 | AC164: 19 | AQ164: dr | AR164: drb | AS164: sh | AT164: drb | AU164: sh | AV164: cc | AW164: drb | BK164: 7
A165: A | B165: 13 | C165: 5 | D165: SUBS | E165: Jason Earnhardt | F165: 11.8343043 | G165: 11 | H165: 12 | I165: 10 | J165: 11 | K165: 10 | L165: 10 | M165: 12 | N165: 13 | O165: 13 | P165: 13 | Q165: 11 | R165: 11 | S165: 23 | W165: 19 | X165: 12 | Y165: 15 | Z165: 14 | AA165: 9 | AB165: 11 | AC165: 6 | AQ165: oh | AR165: sh | AS165: sh | AT165: oh | AU165: oh | AV165: sh | AW165: cc | BK165: 7
A166: A | B166: 13 | C166: 6 | D166: SUBS | E166: Lonnie Ness | F166: 8.49967747 | G166: 7 | H166: 8 | I166: 7 | J166: 7 | K166: 7 | L166: 7 | M166: 8 | N166: 9 | O166: 9 | P166: 10 | Q166: 7 | R166: 8 | S166: 15 | W166: 13 | X166: 12 | Y166: 12 | Z166: 5 | AA166: 7 | AB166: 12 | AC166: 11 | AD166: 10 | AE166: 7 | AF166: 7 | AG166: 10 | AQ166: cc | AR166: dr | AS166: sh | AT166: drb | AU166: sh | AV166: oh | AW166: sh | AX166: cc | AY166: cc | AZ166: cc | BA166: drb | BK166: 11
A167: A | B167: 13 | C167: 7 | D167: SUBS | E167: Raphael Olfato | F167: 2.151751724 | G167: 0.0001 | H167: 2 | I167: 0.0001 | J167: 1 | K167: 1 | L167: 0.0001 | M167: 1 | N167: 2 | O167: 2 | P167: 3 | Q167: 0.0001 | R167: 1 | S167: 2 | U167: ndr | V167: 3.6 | W167: 5 | X167: 3 | Y167: 3 | Z167: 4 | AQ167: sh | AR167: oh | AS167: drb | AT167: drb | BK167: 4
A168: A | B168: 13 | C168: 8 | D168: SUBS | E168: Larry Smith | F168: 10.37720378 | G168: 9 | H168: 10 | I168: 8 | J168: 9 | K168: 9 | L168: 9 | M168: 10 | N168: 11 | O168: 11 | P168: 12 | Q168: 9 | R168: 10 | S168: 19 | W168: 14 | X168: 5 | Y168: 13 | Z168: 12 | AA168: 12 | AB168: 19 | AC168: 17 | AD168: 9 | AQ168: cc | AR168: oh | AS168: drb | AT168: drb | AU168: sh | AV168: sh | AW168: cc | AX168: cc | BK168: 8
A169: A | B169: 13 | C169: 9 | D169: SUBS | E169: David Hall | F169: 12.33373134 | G169: 11 | H169: 13 | I169: 10 | J169: 11 | K169: 11 | L169: 11 | M169: 13 | N169: 13 | O169: 13 | P169: 14 | Q169: 11 | R169: 12 | S169: 24 | W169: 13 | X169: 13 | Y169: 10 | Z169: 14 | AA169: 13 | AB169: 11 | AC169: 15 | AD169: 17 | AE169: 19 | AQ169: cc | AR169: dr | AS169: oh | AT169: drb | AU169: oh | AV169: oh | AW169: sh | AX169: sh | AY169: drb | BK169: 9
A170: A | B170: 13 | C170: 10 | D170: SUBS | E170: Marcus Freese | F170: 11.85730908 | G170: 8 | H170: 10 | I170: 7 | J170: 9 | K170: 8 | L170: 9 | M170: 12 | N170: 13 | O170: 12 | P170: 12 | Q170: 9 | R170: 7 | S170: 18 | T170: s | W170: 11.3 | X170: 11 | Y170: 2 | Z170: 11 | AA170: 12 | AB170: 7 | AC170: 13 | AD170: 10 | AQ170: dr | AR170: sh | AS170: drb | AT170: oh | AU170: oh | AV170: cc | AW170: cc | AX170: cc | BK170: 8
A171: A | B171: 13 | C171: 11 | D171: SUBS | E171: Chris Hernandez | F171: 18.87448129 | G171: 18 | H171: 18 | I171: 17 | J171: 18 | K171: 17 | L171: 17 | M171: 18 | N171: 18 | O171: 18 | P171: 18 | Q171: 18 | R171: 18 | S171: 36 | U171: ndr | V171: 94 | W171: 24 | X171: 19 | Y171: 23 | AQ171: cc | AR171: cc | AS171: drb | BK171: 3
A172: A | B172: 13 | C172: 12 | D172: SUBS | E172: David Breeding | F172: 9.773049664 | G172: 6 | H172: 8 | I172: 5 | J172: 7 | K172: 6 | L172: 7 | M172: 10 | N172: 10 | O172: 9 | P172: 10 | Q172: 7 | R172: 5 | S172: 14 | T172: s | W172: 10 | X172: 11 | Y172: 9 | Z172: 14 | AA172: 4 | AB172: 12 | AC172: 5 | AQ172: oh | AR172: sh | AS172: sh | AT172: oh | AU172: oh | AV172: sh | AW172: cc | BK172: 7
A173: A | B173: 14 | C173: 0
A174: A | B174: 14 | C174: 1 | D174: E83 | E174: Doug Rutledge | F174: 12.74977725 | G174: 9 | H174: 11 | I174: 8 | J174: 10 | K174: 9 | L174: 10 | M174: 13 | N174: 14 | O174: 13 | P174: 13 | Q174: 10 | R174: 8 | S174: 20 | T174: s | W174: 11 | X174: 16 | Y174: 9 | Z174: 12 | AA174: 4 | AB174: 9 | AC174: 11 | AD174: 12 | AE174: 10 | AQ174: dr | AR174: sh | AS174: dr | AT174: cc | AU174: drb | AV174: oh | AW174: cc | AX174: oh | AY174: cc | BK174: 9
A175: A | B175: 14 | C175: 2 | D175: E83 | E175: Tim Hersom | F175: 9.492901065 | G175: 8 | H175: 9 | I175: 8 | J175: 8 | K175: 8 | L175: 8 | M175: 9 | N175: 10 | O175: 10 | P175: 11 | Q175: 8 | R175: 9 | S175: 18 | W175: 18 | X175: 6 | Y175: 13 | Z175: 15 | AA175: 8 | AB175: 11 | AC175: 11 | AD175: 8 | AQ175: sh | AR175: sh | AS175: cc | AT175: cc | AU175: drb | AV175: sh | AW175: cc | AX175: drb | BK175: 8
A176: A | B176: 14 | C176: 3 | D176: E83 | E176: Sean Mueller | F176: 14.30019271 | G176: 13 | H176: 15 | I176: 12 | J176: 14 | K176: 13 | L176: 13 | M176: 15 | N176: 15 | O176: 15 | P176: 16 | Q176: 13 | R176: 14 | S176: 28 | U176: ndr | V176: 18.3 | W176: 20 | X176: 18 | Y176: 13 | Z176: 17 | AQ176: sh | AR176: sh | AS176: oh | AT176: oh | BK176: 4
A177: A | B177: 14 | C177: 4 | D177: E83 | E177: Todd Pobiak | F177: 7.7468014 | G177: 6 | H177: 8 | I177: 6 | J177: 6 | K177: 6 | L177: 6 | M177: 8 | N177: 8 | O177: 8 | P177: 9 | Q177: 6 | R177: 7 | S177: 14 | W177: 9 | X177: 12 | Y177: 10 | Z177: 8 | AA177: 12 | AB177: 12 | AC177: 8 | AQ177: dr | AR177: cc | AS177: oh | AT177: cc | AU177: sh | AV177: oh | AW177: oh | BK177: 7
A178: A | B178: 14 | C178: 5 | D178: E83 | E178: Richard Jordan | F178: 16.48396265 | G178: 15 | H178: 17 | I178: 15 | J178: 16 | K178: 15 | L178: 15 | M178: 17 | N178: 18 | O178: 18 | P178: 18 | Q178: 16 | R178: 16 | S178: 32 | T178: st | W178: 17 | X178: 15 | Y178: 13 | Z178: 15 | AA178: 12 | AB178: 23 | AC178: 15 | AD178: 10 | AQ178: sh | AR178: dr | AS178: dr | AT178: drb | AU178: cc | AV178: sh | AW178: cc | AX178: drb | BK178: 8
A179: A | B179: 14 | C179: 6 | D179: E83 | E179: Dave Snyder | F179: 16.98844646 | G179: 13 | H179: 15 | I179: 12 | J179: 14 | K179: 13 | L179: 14 | M179: 18 | N179: 18 | O179: 17 | P179: 17 | Q179: 14 | R179: 12 | S179: 29 | T179: s | W179: 22 | X179: 17 | Y179: 17 | Z179: 16 | AA179: 14 | AB179: 15 | AC179: 14 | AD179: 12 | AQ179: sh | AR179: sh | AS179: cc | AT179: drb | AU179: sh | AV179: sh | AW179: cc | AX179: drb | BK179: 8
A180: A | B180: 14 | C180: 7 | D180: E83 | E180: Tony Gorgone | F180: 10.29018107 | G180: 9 | H180: 10 | I180: 8 | J180: 9 | K180: 9 | L180: 9 | M180: 10 | N180: 11 | O180: 11 | P180: 12 | Q180: 9 | R180: 10 | S180: 19 | W180: 16 | X180: 8 | Y180: 10 | Z180: 13 | AA180: 13 | AB180: 14 | AQ180: sh | AR180: sh | AS180: cc | AT180: cc | AU180: cc | AV180: oh | BK180: 6
A181: A | B181: 14 | C181: 8 | D181: E83 | E181: Don Sniady | F181: 11.33066052 | G181: 10 | H181: 11 | I181: 9 | J181: 10 | K181: 10 | L181: 10 | M181: 11 | N181: 12 | O181: 12 | P181: 13 | Q181: 10 | R181: 11 | S181: 21 | T181: st | W181: 12 | X181: 16 | Y181: 10 | Z181: 8 | AA181: 8 | AB181: 8 | AC181: 7 | AD181: 7 | AE181: 10 | AQ181: sh | AR181: dr | AS181: dr | AT181: cc | AU181: sh | AV181: oh | AW181: oh | AX181: cc | AY181: drb | BK181: 9
A182: A | B182: 14 | C182: 9 | D182: E83 | E182: Marlon Crowder | F182: 11.89106606 | G182: 8 | H182: 10 | I182: 7 | J182: 9 | K182: 8 | L182: 9 | M182: 12 | N182: 13 | O182: 12 | P182: 12 | Q182: 9 | R182: 7 | S182: 18 | T182: s | W182: 12 | X182: 12 | Y182: 12 | Z182: 11 | AA182: 6 | AB182: 8 | AC182: 9 | AD182: 8 | AE182: 8 | AQ182: sh | AR182: dr | AS182: sh | AT182: dr | AU182: cc | AV182: drb | AW182: oh | AX182: cc | AY182: drb | BK182: 9
A183: A | B183: 14 | C183: 10 | D183: E83 | E183: Kevin Carpenter | F183: 10.93419587 | G183: 10 | H183: 11 | I183: 9 | J183: 10 | K183: 9 | L183: 9 | M183: 11 | N183: 12 | O183: 12 | P183: 12 | Q183: 10 | R183: 10 | S183: 21 | W183: 12 | X183: 9 | Y183: 8 | Z183: 17 | AA183: 14 | AB183: 15 | AQ183: dr | AR183: dr | AS183: cc | AT183: sh | AU183: oh | AV183: cc | BK183: 6
A184: A | B184: 14 | C184: 11 | D184: E83 | E184: Tim Spradlin | F184: 11.57077043 | G184: 10 | H184: 12 | I184: 10 | J184: 11 | K184: 10 | L184: 10 | M184: 12 | N184: 12 | O184: 12 | P184: 13 | Q184: 10 | R184: 11 | S184: 22 | W184: 16 | X184: 11 | Y184: 20 | Z184: 12 | AA184: 14 | AB184: 12 | AC184: 12 | AD184: 13 | AE184: 14 | AF184: 12 | AQ184: sh | AR184: cc | AS184: drb | AT184: sh | AU184: oh | AV184: cc | AW184: sh | AX184: oh | AY184: oh | AZ184: drb | BK184: 10
A185: A | B185: 14 | C185: 12 | D185: E83 | E185: Tom Callaghan | F185: 20.32611766 | G185: 18 | H185: 18 | I185: 18 | J185: 18 | K185: 18 | L185: 18 | M185: 18 | N185: 18 | O185: 18 | P185: 18 | Q185: 18 | R185: 18 | S185: 36 | T185: st | W185: 25 | X185: 22 | Y185: 23 | Z185: 23 | AA185: 16 | AB185: 21 | AQ185: dr | AR185: cc | AS185: oh | AT185: sh | AU185: oh | AV185: oh | BK185: 6
A186: A | B186: 15 | C186: 0
A187: A | B187: 15 | C187: 1 | D187: E14 | E187: Rick Chapman | F187: 9.938086335 | G187: 9 | H187: 10 | I187: 8 | J187: 9 | K187: 8 | L187: 8 | M187: 10 | N187: 11 | O187: 11 | P187: 11 | Q187: 9 | R187: 9 | S187: 19 | W187: 16 | X187: 16 | Y187: 11 | Z187: 14 | AA187: 13 | AB187: 12 | AC187: 18 | AD187: 9 | AE187: 10 | AQ187: cc | AR187: cc | AS187: oh | AT187: oh | AU187: dc | AV187: cc | AW187: oh | AX187: dr | AY187: oh | BK187: 9
A188: A | B188: 15 | C188: 2 | D188: E14 | E188: Jimmy Simpson | F188: 11.6822815 | G188: 10 | H188: 12 | I188: 10 | J188: 11 | K188: 10 | L188: 10 | M188: 12 | N188: 13 | O188: 13 | P188: 13 | Q188: 11 | R188: 11 | S188: 22 | W188: 15 | X188: 12 | Y188: 16 | Z188: 15 | AA188: 11 | AB188: 18 | AC188: 12 | AD188: 8 | AE188: 13 | AF188: 18 | AQ188: cc | AR188: cc | AS188: oh | AT188: oh | AU188: dc | AV188: drb | AW188: ccb | AX188: oh | AY188: dr | AZ188: oh | BK188: 10
A189: A | B189: 15 | C189: 3 | D189: E14 | E189: Kevin Roscoe | F189: 6.568658325 | G189: 5 | H189: 6 | I189: 5 | J189: 5 | K189: 5 | L189: 5 | M189: 6 | N189: 7 | O189: 7 | P189: 8 | Q189: 5 | R189: 6 | S189: 11 | W189: 9 | X189: 5 | Y189: 9 | Z189: 8 | AA189: 10 | AB189: 6 | AC189: 8 | AQ189: dr | AR189: oh | AS189: oh | AT189: dc | AU189: oh | AV189: dr | AW189: oh | BK189: 7
A190: A | B190: 15 | C190: 4 | D190: E14 | E190: Bo Turner | F190: 7.476404773 | G190: 6 | H190: 7 | I190: 6 | J190: 6 | K190: 6 | L190: 6 | M190: 7 | N190: 8 | O190: 8 | P190: 9 | Q190: 6 | R190: 7 | S190: 13 | W190: 9 | X190: 7 | Y190: 10 | Z190: 5 | AA190: 9 | AB190: 12 | AC190: 12 | AQ190: oh | AR190: dc | AS190: drb | AT190: cc | AU190: ccb | AV190: oh | AW190: sh | BK190: 7
A191: A | B191: 15 | C191: 5 | D191: E14 | E191: Jody Miller | F191: 10.84503444 | G191: 10 | H191: 11 | I191: 9 | J191: 10 | K191: 9 | L191: 9 | M191: 11 | N191: 12 | O191: 12 | P191: 12 | Q191: 10 | R191: 10 | S191: 20 | W191: 19 | X191: 14 | Y191: 13 | Z191: 12 | AA191: 14 | AB191: 16 | AQ191: cc | AR191: oh | AS191: oh | AT191: ccb | AU191: sh | AV191: oh | BK191: 6
A192: A | B192: 15 | C192: 6 | D192: E14 | E192: Dave Hause | F192: 8.620196872 | G192: 7 | H192: 9 | I192: 7 | J192: 7 | K192: 7 | L192: 7 | M192: 8 | N192: 9 | O192: 9 | P192: 10 | Q192: 7 | R192: 8 | S192: 16 | W192: 10 | X192: 13 | Y192: 8 | Z192: 13 | AA192: 6 | AQ192: cc | AR192: dr | AS192: ccb | AT192: sh | AU192: dr | BK192: 5
A193: A | B193: 15 | C193: 7 | D193: E14 | E193: Jim Lawson | F193: 10.17885815 | G193: 9 | H193: 10 | I193: 8 | J193: 9 | K193: 9 | L193: 8 | M193: 10 | N193: 11 | O193: 11 | P193: 11 | Q193: 9 | R193: 10 | S193: 19 | W193: 12 | X193: 13 | Y193: 11 | Z193: 15 | AA193: 12 | AB193: 14 | AC193: 10 | AQ193: cc | AR193: dr | AS193: oh | AT193: dc | AU193: drb | AV193: sh | AW193: dr | BK193: 7
A194: A | B194: 15 | C194: 8 | D194: E14 | E194: Chris Rohlf | F194: 13.94701915 | G194: 10 | H194: 12 | I194: 9 | J194: 11 | K194: 10 | L194: 11 | M194: 14 | N194: 15 | O194: 14 | P194: 14 | Q194: 11 | R194: 9 | S194: 23 | T194: s | W194: 15 | X194: 11 | Y194: 11 | Z194: 10 | AA194: 10 | AB194: 17 | AC194: 10 | AD194: 16 | AE194: 12 | AQ194: cc | AR194: dr | AS194: oh | AT194: oh | AU194: oh | AV194: drb | AW194: cc | AX194: oh | AY194: oh | BK194: 9
A195: A | B195: 15 | C195: 9 | D195: E14 | E195: Jim Albright | F195: 14.86185787 | G195: 11 | H195: 13 | I195: 10 | J195: 12 | K195: 11 | L195: 12 | M195: 15 | N195: 16 | O195: 15 | P195: 15 | Q195: 12 | R195: 10 | S195: 24 | T195: s | W195: 11 | X195: 12 | Y195: 17 | Z195: 13 | AA195: 15 | AB195: 20 | AC195: 16 | AD195: 9 | AE195: 16 | AQ195: cc | AR195: cc | AS195: oh | AT195: oh | AU195: oh | AV195: cc | AW195: ccb | AX195: oh | AY195: sh | BK195: 9
A196: A | B196: 15 | C196: 10 | D196: E14 | E196: Brandon Cash | F196: 14.16264524 | G196: 13 | H196: 14 | I196: 12 | J196: 13 | K196: 12 | L196: 13 | M196: 15 | N196: 15 | O196: 15 | P196: 16 | Q196: 13 | R196: 14 | S196: 27 | W196: 13 | X196: 21 | AQ196: dr | AR196: drb | BK196: 2
A197: A | B197: 15 | C197: 11 | D197: E14 | E197: Jeff Merichko | F197: 18.02751806 | G197: 17 | H197: 18 | I197: 16 | J197: 18 | K197: 16 | L197: 17 | M197: 18 | N197: 18 | O197: 18 | P197: 18 | Q197: 17 | R197: 18 | S197: 36 | W197: 20 | X197: 17 | Y197: 18 | Z197: 17 | AA197: 16 | AB197: 20 | AC197: 20 | AQ197: cc | AR197: cc | AS197: dr | AT197: oh | AU197: oh | AV197: dc | AW197: cc | BK197: 7
A198: A | B198: 15 | C198: 12 | D198: E14 | E198: Ben Cash | F198: 10.61896447 | G198: 9 | H198: 11 | I198: 9 | J198: 10 | K198: 9 | L198: 9 | M198: 11 | N198: 11 | O198: 11 | P198: 12 | Q198: 9 | R198: 10 | S198: 20 | W198: 19 | X198: 19 | Y198: 17 | Z198: 8 | AA198: 11 | AB198: 10 | AQ198: drb | AR198: cc | AS198: ccb | AT198: sh | AU198: dr | AV198: oh | BK198: 6
A199: A | B199: 16 | C199: 0
A200: A | B200: 16 | C200: 1 | D200: E17 | E200: Roger Lohr | F200: 16.752985 | G200: 16 | H200: 17 | I200: 15 | J200: 16 | K200: 15 | L200: 15 | M200: 17 | N200: 18 | O200: 18 | P200: 18 | Q200: 16 | R200: 16 | S200: 33 | U200: ndr | V200: 18 | W200: 19 | X200: 18 | Y200: 19 | Z200: 21 | AA200: 16 | AB200: 20 | AQ200: sh | AR200: oh | AS200: drb | AT200: cc | AU200: sh | AV200: oh | BK200: 6
... 245 more rows

Sheet Season
D3: Team | T3: 2024 | AG3: - Adjusted scores
A4: 1 | D4: =OFFSET( $E$7, A4, 0 ) -> E17 | T4: SGL Season | AG4: - Make-up matches | BB4: 2024 | BC4: SGL Season Average Scoring
A5: 7 | D5: =OFFSET( $E$25, A5, 0 ) -> E75 | BB5: Both | BC5: Venue | BD5: Q1 | BE5: Q2 | BF5: Q3 | BG5: Q4 | BH5: Year
E6: 2024-03-25 | H6: 2024-04-01 | K6: 2024-04-08 | N6: 2024-04-15 | Q6: 2024-04-22 | T6: 2024-04-29 | W6: 2024-05-06 | Z6: 2024-05-13 | AC6: 2024-05-20 | AF6: 2024-06-03 | AI6: 2024-06-10 | AL6: 2024-06-17 | AO6: 2024-06-24 | AR6: 2024-07-08 | AU6: 2024-07-15 | BC6: SH | BD6: =IF( BD15*1 + BD27*1 = 0, 0, ( BD14*BD15*1 + BD26 * BD27*1 ) / ( BD15*1+BD27*1 ) ) -> 23.59375 | BE6: =IF( BE15*1 + BE27*1 = 0, 0, ( BE14*BE15*1 + BE26 * BE27*1 ) / ( BE15*1+BE27*1 ) ) -> 23.09375 | BF6: =IF( BF15*1 + BF27*1 = 0, 0, ( BF14*BF15*1 + BF26 * BF27*1 ) / ( BF15*1+BF27*1 ) ) -> 18.90628125 | BG6: =IF( BG15*1 + BG27*1 = 0, 0, ( BG14*BG15*1 + BG26 * BG27*1 ) / ( BG15*1+BG27*1 ) ) -> 18.25 | BH6: =IF( BH15*1 + BH27*1 = 0, 0, ( BH14*BH15*1 + BH26 * BH27*1 ) / ( BH15*1+BH27*1 ) ) -> 21.34822321
B7: League | C7: Course | D7: Week | F7: 1 | I7: 2 | L7: 3 | O7: 4 | R7: 5 | U7: 6 | X7: 7 | AA7: 8 | AD7: 9 | AG7: 10 | AJ7: 11 | AM7: 12 | AP7: 13 | AS7: 14 | AV7: 15 | AY7: 16 | BB7: per | BC7: CC | BD7: =IF( BD17*1 + BD29*1 = 0, 0, ( BD16*BD17*1 + BD28 * BD29*1 ) / ( BD17*1+BD29*1 ) ) -> 20.625 | BE7: =IF( BE17*1 + BE29*1 = 0, 0, ( BE16*BE17*1 + BE28 * BE29*1 ) / ( BE17*1+BE29*1 ) ) -> 17.25357143 | BF7: =IF( BF17*1 + BF29*1 = 0, 0, ( BF16*BF17*1 + BF28 * BF29*1 ) / ( BF17*1+BF29*1 ) ) -> 15.93666667 | BG7: =IF( BG17*1 + BG29*1 = 0, 0, ( BG16*BG17*1 + BG28 * BG29*1 ) / ( BG17*1+BG29*1 ) ) -> 13.31818182 | BH7: =IF( BH17*1 + BH29*1 = 0, 0, ( BH16*BH17*1 + BH28 * BH29*1 ) / ( BH17*1+BH29*1 ) ) -> 17.09107143
A8: =A7+1 -> 1 | C8: DR | D8: Tue | E8: E17 | F8: f | H8: E86 | I8: 30 | K8: X88 | L8: 23 | N8: E14 | O8: 15 | Q8: E60 | R8: 0.001 | T8: E17 | U8: 16 | W8: X88 | X8: 34.7 | Z8: X04 | AA8: 20 | AC8: X04 | AD8: f | AF8: AMSC | AG8: 12 | AI8: E86 | AJ8: 25 | AL8: E42 | AM8: 21 | AO8: E14 | AP8: 5 | AR8: E55a | AS8: 12 | AU8: SUBS | AV8: 29 | BB8: Team | BC8: OH | BD8: =IF( BD19*1 + BD31*1 = 0, 0, ( BD18*BD19*1 + BD30 * BD31*1 ) / ( BD19*1+BD31*1 ) ) -> 21.4375 | BE8: =IF( BE19*1 + BE31*1 = 0, 0, ( BE18*BE19*1 + BE30 * BE31*1 ) / ( BE19*1+BE31*1 ) ) -> 22.0625 | BF8: =IF( BF19*1 + BF31*1 = 0, 0, ( BF18*BF19*1 + BF30 * BF31*1 ) / ( BF19*1+BF31*1 ) ) -> 13.6875 | BG8: =IF( BG19*1 + BG31*1 = 0, 0, ( BG18*BG19*1 + BG30 * BG31*1 ) / ( BG19*1+BG31*1 ) ) -> 18.75 | BH8: =IF( BH19*1 + BH31*1 = 0, 0, ( BH18*BH19*1 + BH30 * BH31*1 ) / ( BH19*1+BH31*1 ) ) -> 19
A9: =A8+1 -> 2 | C9: DR | D9: Tue | E9: E55B | H9: E83 | I9: 16 | K9: AMSC | L9: 28 | N9: E83 | O9: 4 | Q9: E12 | R9: 16 | T9: E42 | U9: 17 | W9: E55B | X9: 15 | Z9: E14 | AA9: 12 | AC9: E55B | AF9: X01 | AG9: 2 | AI9: AGS | AJ9: 26 | AL9: X87 | AM9: 21 | AO9: E60 | AP9: 18 | AR9: X01 | AS9: 14 | AU9: E42 | AV9: 32 | BC9: RF | BD9: =IF( BD21*1 + BD33*1 = 0, 0, ( BD20*BD21*1 + BD32 * BD33*1 ) / ( BD21*1+BD33*1 ) ) -> 22.875 | BE9: =IF( BE21*1 + BE33*1 = 0, 0, ( BE20*BE21*1 + BE32 * BE33*1 ) / ( BE21*1+BE33*1 ) ) -> 19.57142857 | BF9: =IF( BF21*1 + BF33*1 = 0, 0, ( BF20*BF21*1 + BF32 * BF33*1 ) / ( BF21*1+BF33*1 ) ) -> 10.4375 | BG9: =IF( BG21*1 + BG33*1 = 0, 0, ( BG20*BG21*1 + BG32 * BG33*1 ) / ( BG21*1+BG33*1 ) ) -> 19.6 | BH9: =IF( BH21*1 + BH33*1 = 0, 0, ( BH20*BH21*1 + BH32 * BH33*1 ) / ( BH21*1+BH33*1 ) ) -> 17.91071429
A10: 3 | C10: OH | D10: Tue | E10: E60 | F10: 16 | H10: AGS | I10: 26 | K10: X04 | L10: 22 | N10: X01 | O10: 28 | Q10: X01 | R10: 13 | T10: E55a | U10: 17 | W10: E86 | X10: 29 | Z10: E42 | AA10: 10 | AC10: X87 | AD10: 10 | AF10: E55B | AG10: 3 | AI10: E14 | AJ10: 21 | AL10: E83 | AM10: 11 | AO10: E55a | AP10: 26 | AR10: E14 | AS10: 23 | AU10: X87 | AV10: 13 | BC10: KC | BD10: =BD34 -> 14.6875 | BE10: =BE34 -> 10.4375 | BF10: =BF34 -> 5.3125 | BG10: 7.916666667 | BH10: =IF( BH23*0 + BH35*1 = 0, 0, ( BH22*BH23*0 + BH34 * BH35*1 ) / ( BH23*0+BH35*1 ) ) -> 9.7
A11: 4 | C11: OH | D11: Tue | E11: AMSC | F11: 38 | H11: E12 | I11: 28 | K11: SUBS | L11: 13 | N11: E86 | O11: 18 | Q11: E17 | R11: 31 | T11: AMSC | U11: 21 | W11: X04 | X11: 34 | Z11: E83 | AA11: 18 | AC11: E60 | AD11: 17 | AF11: E12 | AG11: 11 | AI11: E12 | AJ11: 8 | AL11: AGS | AM11: 14 | AO11: X88 | AP11: 26 | AR11: E17 | AS11: 13 | AU11: X01 | AV11: 20 | BC11: DR | BD11: =BD22 -> 18.18571429 | BE11: =BE22 -> 16.2313125 | BF11: =BF22 -> 17 | BG11: 18.16666667 | BH11: =IF( BH23*1 + BH35*0 = 0, 0, ( BH22*BH23*1 + BH34 * BH35*0 ) / ( BH23*1+BH35*0 ) ) -> 17.32680357
A12: 5 | C12: SH | D12: Tue | E12: E83 | F12: 30 | H12: E42 | I12: 36 | K12: E55a | L12: 21 | N12: X87 | O12: 7 | Q12: AGS | R12: 30 | T12: E60 | U12: 13 | W12: X87 | X12: 18 | Z12: E55a | AA12: 18 | AC12: E86 | AD12: 12 | AF12: E55a | AG12: 16 | AI12: E83 | AJ12: 25 | AL12: E14 | AM12: 24 | AO12: X01 | AP12: 8 | AR12: AGS | AS12: f | AU12: AMSC | BC12: Ave | BD12: =IF( SUM( BD24 ) = 0, 0, ( BD25 ) / BD24 ) -> 20.74285714 | BE12: =IF( SUM( BE24 ) = 0, 0, ( BE25 ) / BE24 ) -> 18.65410656 | BF12: =IF( SUM( BF24 ) = 0, 0, ( BF25 ) / BF24 ) -> 14.45242742 | BG12: 15.70238095 | BH12: 17.54496053
A13: 6 | C13: SH | D13: Tue | E13: X01 | F13: 20 | H13: E60 | I13: 25 | K13: E86 | L13: 17 | N13: E17 | O13: 26 | Q13: E42 | R13: 28 | T13: E55B | U13: 26 | W13: E12 | X13: 17 | Z13: E12 | AA13: 14 | AC13: X88 | AD13: 12 | AF13: SUBS | AG13: 13 | AI13: SUBS | AJ13: 34 | AL13: X88 | AM13: 0.001 | AO13: X04 | AP13: 25 | AR13: X04 | AU13: AGS
A14: 7 | C14: CC | D14: Tue | E14: SUBS | F14: 28 | H14: X87 | I14: 17 | K14: E14 | L14: 23 | N14: E42 | O14: 24 | Q14: E83 | R14: 20 | T14: X88 | U14: -3 | W14: AGS | X14: 15 | Z14: E86 | AA14: f | AC14: E17 | AD14: 8 | AF14: E42 | AG14: 1 | AI14: X04 | AJ14: 28 | AL14: E17 | AM14: 33 | AO14: X87 | AP14: 9 | AR14: SUBS | AS14: 10 | AU14: X88 | AV14: 9 | BC14: SH | BD14: =IF( BD15 = 0, 0, AVERAGE( F12:F13,I12:I13,L12:L13,O12:O13, F20:F21,I20:I21,L20:L21,O20:O21 ) ) -> 23.625 | BE14: =IF( BE15 = 0, 0, AVERAGE( R12:R13,U12:U13,X12:X13,AA12:AA13, R20:R21,U20:U21,X20:X21,AA20:AA21 ) ) -> 22.375 | BF14: =IF( BF15 = 0, 0, AVERAGE( AD12:AD13,AG12:AG13,AJ12:AJ13,AM12:AM13, AD20:AD21,AG20:AG21,AJ20:AJ21,AM20:AM21 ) ) -> 17.8750625 | BG14: =IF( BG15 = 0, 0, AVERAGE( AP12:AP13,AS12:AS13,AV12:AV13,AY12:AY13, AP20:AP21,AS20:AS21,AV20:AV21,AY20:AY21 ) ) -> 16 | BH14: =SUMPRODUCT( BD14:BG14, BD15:BG15 ) / IF( BH15 = 0, 1, BH15 ) -> 20.88463462
A15: 8 | B15: A | C15: CC | D15: Tue | E15: E12 | F15: 30 | H15: E55B | I15: 27 | K15: X87 | L15: 16 | N15: AMSC | O15: 30 | Q15: E55B | R15: 36 | T15: E83 | U15: 18 | W15: E55a | X15: 22 | Z15: AMSC | AC15: AMSC | AD15: 7 | AF15: E14 | AG15: 19 | AI15: E55a | AJ15: 12.1 | AL15: X04 | AM15: 13 | AO15: SUBS | AP15: 32 | AR15: E60 | AS15: 3 | AU15: E60 | AV15: 14 | BD15: =COUNT( F12:F13, I12:I13, L12:L13, O12:O13, F20:F21, I20:I21, L20:L21, O20:O21 ) / 2 -> 8 | BE15: =COUNT( R12:R13, U12:U13, X12:X13, AA12:AA13, R20:R21, U20:U21, X20:X21, AA20:AA21 ) / 2 -> 8 | BF15: =COUNT( AD12:AD13, AG12:AG13, AJ12:AJ13, AM12:AM13, AD20:AD21, AG20:AG21, AJ20:AJ21, AM20:AM21 ) / 2 -> 8 | BG15: =COUNT( AP12:AP13, AS12:AS13, AV12:AV13, AY12:AY13, AP20:AP21, AS20:AS21, AV20:AV21, AY20:AY21 ) / 2 -> 2 | BH15: =SUM(BD15:BG15) -> 26
A16: 9 | C16: DR | D16: Thu | E16: E55a | F16: 7 | H16: X88 | I16: 22.7 | K16: E55B | L16: 19 | N16: E12 | O16: 16 | Q16: AMSC | R16: 43 | T16: X04 | U16: 29 | W16: E83 | X16: 7 | Z16: AGS | AA16: 18 | AC16: SUBS | AD16: 26 | AF16: AGS | AG16: 14 | AI16: X01 | AJ16: 15 | AL16: E60 | AM16: 5 | AO16: E86 | AP16: 27 | AR16: E12 | AS16: 23 | AU16: E83 | AV16: -6 | BC16: CC | BD16: =IF( BD17 = 0, 0, AVERAGE( F14:F15,I14:I15,L14:L15,O14:O15, F22:F23,I22:I23,L22:L23,O22:O23 ) ) -> 24.8125 | BE16: =IF( BE17 = 0, 0, AVERAGE( R14:R15,U14:U15,X14:X15,AA14:AA15, R22:R23,U22:U23,X22:X23,AA22:AA23 ) ) -> 18.07142857 | BF16: =IF( BF17 = 0, 0, AVERAGE( AD14:AD15,AG14:AG15,AJ14:AJ15,AM14:AM15, AD22:AD23,AG22:AG23,AJ22:AJ23,AM22:AM23 ) ) -> 15.86428571 | BG16: =IF( BG17 = 0, 0, AVERAGE( AP14:AP15,AS14:AS15,AV14:AV15,AY14:AY15, AP22:AP23,AS22:AS23,AV22:AV23,AY22:AY23 ) ) -> 13.08333333 | BH16: =SUMPRODUCT( BD16:BG16, BD17:BG17 ) / IF( BH17 = 0, 1, BH17 ) -> 18.37678571
A17: 10 | C17: DR | D17: Thu | E17: X87 | F17: 23 | H17: SUBS | I17: 19.9 | K17: X01 | L17: 14 | N17: X88 | O17: 17 | Q17: SUBS | R17: 12 | T17: X87 | U17: 11 | W17: E60 | X17: 2 | Z17: X87 | AA17: 7 | AC17: E14 | AD17: 38 | AF17: E17 | AG17: 8 | AI17: X88 | AJ17: 6 | AL17: E55a | AM17: 19 | AO17: E42 | AP17: 27 | AR17: AMSC | AS17: 23 | AU17: E55a | AV17: 14 | BD17: =COUNT( F14:F15, I14:I15, L14:L15, O14:O15, F22:F23, I22:I23, L22:L23, O22:O23 ) / 2 -> 8 | BE17: =COUNT( R14:R15, U14:U15, X14:X15, AA14:AA15, R22:R23, U22:U23, X22:X23, AA22:AA23 ) / 2 -> 7 | BF17: =COUNT( AD14:AD15, AG14:AG15, AJ14:AJ15, AM14:AM15, AD22:AD23, AG22:AG23, AJ22:AJ23, AM22:AM23 ) / 2 -> 7 | BG17: =COUNT( AP14:AP15, AS14:AS15, AV14:AV15, AY14:AY15, AP22:AP23, AS22:AS23, AV22:AV23, AY22:AY23 ) / 2 -> 6 | BH17: =SUM(BD17:BG17) -> 28
A18: 11 | C18: OH | D18: Thu | E18: AGS | F18: 16 | H18: X04 | I18: 32 | K18: E12 | L18: 22 | N18: E60 | O18: 10 | Q18: E55a | R18: 29 | T18: AGS | U18: 26 | W18: E17 | X18: 15 | Z18: SUBS | AA18: 6 | AC18: E42 | AD18: 16 | AF18: E60 | AG18: 24 | AI18: AMSC | AJ18: 14 | AL18: E12 | AM18: 3 | AO18: AMSC | AP18: 19 | AR18: E42 | AS18: 30 | AU18: E17 | AV18: f | BB18: A | BC18: OH | BD18: =IF( BD19 = 0, 0, AVERAGE( F10:F11,I10:I11,L10:L11,O10:O11 ) ) -> 23.625 | BE18: =IF( BE19 = 0, 0, AVERAGE( R10:R11,U10:U11,X10:X11,AA10:AA11 ) ) -> 21.625 | BF18: =IF( BF19 = 0, 0, AVERAGE( AD10:AD11,AG10:AG11,AJ10:AJ11,AM10:AM11 ) ) -> 11.875 | BG18: =IF( BG19 = 0, 0, AVERAGE( AP10:AP11,AS10:AS11,AV10:AV11,AY10:AY11 ) ) -> 20.16666667 | BH18: =SUMPRODUCT( BD18:BG18, BD19:BG19 ) / IF( BH19 = 0, 1, BH19 ) -> 19.26666667
A19: 12 | C19: OH | D19: Thu | E19: X88 | F19: 19 | H19: AMSC | I19: 31 | K19: E42 | L19: 24 | N19: X04 | O19: 27 | Q19: E14 | R19: 17 | T19: E14 | U19: 13 | W19: SUBS | X19: 26 | Z19: E55B | AA19: 24 | AC19: E55a | AD19: 10 | AF19: E86 | AG19: 12 | AI19: X87 | AJ19: 10 | AL19: X01 | AM19: 5 | AO19: E83 | AP19: 14 | AR19: X88 | AS19: 8 | AU19: E86 | BD19: =COUNT( F10:F11, I10:I11, L10:L11, O10:O11 ) / 2 -> 4 | BE19: =COUNT( R10:R11, U10:U11, X10:X11, AA10:AA11 ) / 2 -> 4 | BF19: =COUNT( AD10:AD11, AG10:AG11, AJ10:AJ11, AM10:AM11 ) / 2 -> 4 | BG19: =COUNT( AP10:AP11, AS10:AS11, AV10:AV11, AY10:AY11 ) / 2 -> 3 | BH19: =SUM(BD19:BG19) -> 15
A20: 13 | C20: SH | D20: Thu | E20: E42 | F20: 22 | H20: E17 | I20: 30 | K20: E83 | L20: 17 | N20: SUBS | O20: 25 | Q20: X04 | R20: 24 | T20: X01 | U20: 35 | W20: AMSC | X20: 25 | Z20: X01 | AA20: 17 | AC20: E12 | AD20: 15 | AF20: X88 | AG20: 28 | AI20: E55B | AJ20: 15 | AL20: AMSC | AM20: 22 | AO20: E12 | AP20: 17 | AR20: E55B | AU20: E55B | BD20: =IF( BD21 = 0, 0, AVERAGE( F18:F19,I18:I19,L18:L19,O18:O19 ) ) -> 22.625 | BE20: =IF( BE21 = 0, 0, AVERAGE( R18:R19,U18:U19,X18:X19,AA18:AA19 ) ) -> 19.5 | BF20: =IF( BF21 = 0, 0, AVERAGE( AD18:AD19,AG18:AG19,AJ18:AJ19,AM18:AM19 ) ) -> 11.75 | BG20: =IF( BG21 = 0, 0, AVERAGE( AP18:AP19,AS18:AS19,AV18:AV19,AY18:AY19 ) ) -> 17.75 | BH20: =SUMPRODUCT( BD20:BG20, BD21:BG21 ) / IF( BH21 = 0, 1, BH21 ) -> 17.92857143
A21: 14 | C21: SH | D21: Thu | E21: X04 | F21: 24 | H21: E55a | I21: 24 | K21: E17 | L21: 30 | N21: AGS | O21: 24 | Q21: X88 | R21: 20 | T21: SUBS | U21: 28 | W21: E14 | X21: 24 | Z21: E60 | AA21: 21 | AC21: E83 | AD21: 17 | AF21: X87 | AG21: 10 | AI21: E42 | AJ21: 33 | AL21: E55B | AM21: 10 | AO21: E17 | AP21: 14 | AR21: E86 | AS21: f | AU21: E14 | AV21: f | BD21: =COUNT( F18:F19, I18:I19, L18:L19, O18:O19 ) / 2 -> 4 | BE21: =COUNT( R18:R19, U18:U19, X18:X19, AA18:AA19 ) / 2 -> 4 | BF21: =COUNT( AD18:AD19, AG18:AG19, AJ18:AJ19, AM18:AM19 ) / 2 -> 4 | BG21: =COUNT( AP18:AP19, AS18:AS19, AV18:AV19, AY18:AY19 ) / 2 -> 2 | BH21: =SUM(BD21:BG21) -> 14
A22: 15 | C22: CC | D22: Thu | E22: E86 | F22: 17 | H22: E14 | I22: 33 | K22: E60 | L22: 17 | N22: E55B | O22: 34 | Q22: X87 | R22: 26 | T22: E12 | U22: 21 | W22: X01 | X22: 8 | Z22: X88 | AA22: 16 | AC22: X01 | AD22: 23 | AF22: E83 | AG22: 16 | AI22: E60 | AL22: SUBS | AM22: 21 | AO22: E55B | AP22: 17 | AR22: X87 | AS22: 14 | AU22: E12 | AV22: -5 | BC22: DR | BD22: =IF( BD23 = 0, 0, AVERAGE( F8:F9,I8:I9,L8:L9,O8:O9, F16:F17,I16:I17,L16:L17,O16:O17 ) ) -> 18.18571429 | BE22: =IF( BE23 = 0, 0, AVERAGE( R8:R9,U8:U9,X8:X9,AA8:AA9, R16:R17,U16:U17,X16:X17,AA16:AA17 ) ) -> 16.2313125 | BF22: =IF( BF23 = 0, 0, AVERAGE( AD8:AD9,AG8:AG9,AJ8:AJ9,AM8:AM9, AD16:AD17,AG16:AG17,AJ16:AJ17,AM16:AM17 ) ) -> 17 | BG22: =IF( BG23 = 0, 0, AVERAGE( AP8:AP9,AS8:AS9,AV8:AV9,AY8:AY9, AP16:AP17,AS16:AS17,AV16:AV17,AY16:AY17 ) ) -> 18.16666667 | BH22: =SUMPRODUCT( BD22:BG22, BD23:BG23 ) / IF( BH23 = 0, 1, BH23 ) -> 17.32680357
A23: 16 | C23: CC | D23: Thu | E23: E14 | F23: 23 | H23: X01 | I23: 27 | K23: AGS | L23: 19 | N23: E55a | O23: 32 | Q23: E86 | R23: 21 | T23: E86 | U23: 13 | W23: E42 | X23: 6 | Z23: E17 | AA23: 34 | AC23: AGS | AD23: 11 | AF23: X04 | AG23: 12 | AI23: E17 | AJ23: f | AL23: E86 | AM23: 18 | AO23: AGS | AP23: 15 | AR23: E83 | AS23: 4 | AU23: X04 | AV23: 35 | BD23: =COUNT( F8:F9, I8:I9, L8:L9, O8:O9, F16:F17, I16:I17, L16:L17, O16:O17 ) / 2 -> 7 | BE23: =COUNT( R8:R9, U8:U9, X8:X9, AA8:AA9, R16:R17, U16:U17, X16:X17, AA16:AA17 ) / 2 -> 8 | BF23: =COUNT( AD8:AD9, AG8:AG9, AJ8:AJ9, AM8:AM9, AD16:AD17, AG16:AG17, AJ16:AJ17, AM16:AM17 ) / 2 -> 7 | BG23: =COUNT( AP8:AP9, AS8:AS9, AV8:AV9, AY8:AY9, AP16:AP17, AS16:AS17, AV16:AV17, AY16:AY17 ) / 2 -> 6 | BH23: =SUM(BD23:BG23) -> 28
A24: 17 | B24: C | C24: 0 | D24: Mon | E24: 0 | H24: 0 | K24: 0 | N24: 0 | Q24: 0 | T24: 0 | W24: 0 | Z24: 0 | AC24: 0 | AF24: 0 | AI24: 0 | AL24: 0 | AO24: 0 | AR24: 0 | AU24: 0 | BC24: SH | BD24: =SUM( BD15,BD17,BD19,BD21,BD23,BD27,BD29,BD31,BD33,BD35 ) -> 63 | BE24: =SUM( BE15,BE17,BE19,BE21,BE23,BE27,BE29,BE31,BE33,BE35 ) -> 61 | BF24: 62 | BG24: 42 | BH24: 228
A25: 18 | C25: 0 | D25: Mon | E25: 0 | H25: 0 | K25: 0 | N25: 0 | Q25: 0 | T25: 0 | W25: 0 | Z25: 0 | AC25: 0 | AF25: 0 | AI25: 0 | AL25: 0 | AO25: 0 | AR25: 0 | AU25: 0 | BD25: =BD14*BD15 + BD16*BD17 + BD18*BD19 + BD20*BD21 + BD22*BD23 + BD26*BD27 + BD28*BD29 + BD30*BD31 + BD32*BD33 + BD34*BD35 -> 1306.8 | BE25: =BE14*BE15 + BE16*BE17 + BE18*BE19 + BE20*BE21 + BE22*BE23 + BE26*BE27 + BE28*BE29 + BE30*BE31 + BE32*BE33 + BE34*BE35 -> 1137.9005 | BF25: 896.0505 | BG25: 659.5 | BH25: 4000.251
A26: 19 | C26: KC | D26: Mon | E26: E25 | F26: 11 | H26: O19 | I26: 19 | K26: CVN | L26: 21 | N26: A572 | O26: 14 | Q26: ENGR | R26: 14 | T26: E25 | U26: 39 | W26: CVN | X26: 25 | Z26: CRF | AA26: 12 | AC26: CRF | AD26: 8 | AF26: O46 | AG26: 6 | AI26: O19 | AJ26: 14 | AL26: ARG | AM26: 4 | AO26: A572 | AP26: 18 | AR26: SCM | AS26: -5 | AU26: E75 | AV26: 13 | BC26: DR | BD26: =IF( BD27 = 0, 0, AVERAGE( F30:F31,I30:I31,L30:L31,O30:O31, F38:F39,I38:I39,L38:L39,O38:O39 ) ) -> 23.5625 | BE26: =IF( BE27 = 0, 0, AVERAGE( R30:R31,U30:U31,X30:X31,AA30:AA31, R38:R39,U38:U39,X38:X39,AA38:AA39 ) ) -> 23.8125 | BF26: =IF( BF27 = 0, 0, AVERAGE( AD30:AD31,AG30:AG31,AJ30:AJ31,AM30:AM31, AD38:AD39,AG38:AG39,AJ38:AJ39,AM38:AM39 ) ) -> 19.9375 | BG26: =IF( BG27 = 0, 0, AVERAGE( AP30:AP31,AS30:AS31,AV30:AV31,AY30:AY31, AP38:AP39,AS38:AS39,AV38:AV39,AY38:AY39 ) ) -> 19 | BH26: =SUMPRODUCT( BD26:BG26, BD27:BG27 ) / IF( BH27 = 0, 1, BH27 ) -> 21.75
A27: 20 | C27: KC | D27: Mon | E27: M10 | F27: 10 | H27: X31 | I27: 13 | K27: O46 | L27: 11 | N27: X31 | O27: 13 | Q27: E20 | R27: 15 | T27: ARG | U27: 9 | W27: M10 | X27: 12 | Z27: A572 | AA27: 16 | AC27: M10 | AD27: 11 | AF27: X10 | AG27: 10 | AI27: NNIT | AJ27: 6 | AL27: O87 | AM27: 2 | AO27: ENGR | AP27: 6 | AR27: X10 | AS27: 11 | AU27: ARG | AV27: -2 | BD27: =COUNT( F30:F31, I30:I31, L30:L31, O30:O31, F38:F39, I38:I39, L38:L39, O38:O39 ) / 2 -> 8 | BE27: =COUNT( R30:R31, U30:U31, X30:X31, AA30:AA31, R38:R39, U38:U39, X38:X39, AA38:AA39 ) / 2 -> 8 | BF27: =COUNT( AD30:AD31, AG30:AG31, AJ30:AJ31, AM30:AM31, AD38:AD39, AG38:AG39, AJ38:AJ39, AM38:AM39 ) / 2 -> 8 | BG27: =COUNT( AP30:AP31, AS30:AS31, AV30:AV31, AY30:AY31, AP38:AP39, AS38:AS39, AV38:AV39, AY38:AY39 ) / 2 -> 6 | BH27: =SUM(BD27:BG27) -> 30
A28: 21 | C28: OH | D28: Mon | E28: ENGR | F28: 29 | H28: NNIT | I28: 32 | K28: CRF | L28: 20 | N28: X10 | O28: 11 | Q28: X10 | R28: 24 | T28: SCM | U28: 16 | W28: O19 | X28: 26 | Z28: ARG | AC28: O87 | AD28: 10 | AF28: M10 | AG28: 8 | AI28: A572 | AJ28: -1 | AL28: X31 | AM28: 11 | AO28: SCM | AP28: 2 | AR28: A572 | AS28: 26 | AU28: O87 | AV28: 22 | BB28: B | BC28: OH | BD28: =IF( BD29 = 0, 0, AVERAGE( F32:F33,I32:I33,L32:L33,O32:O33, F40:F41,I40:I41,L40:L41,O40:O41 ) ) -> 16.4375 | BE28: =IF( BE29 = 0, 0, AVERAGE( R32:R33,U32:U33,X32:X33,AA32:AA33, R40:R41,U40:U41,X40:X41,AA40:AA41 ) ) -> 16.43571429 | BF28: =IF( BF29 = 0, 0, AVERAGE( AD32:AD33,AG32:AG33,AJ32:AJ33,AM32:AM33, AD40:AD41,AG40:AG41,AJ40:AJ41,AM40:AM41 ) ) -> 16 | BG28: =IF( BG29 = 0, 0, AVERAGE( AP32:AP33,AS32:AS33,AV32:AV33,AY32:AY33, AP40:AP41,AS40:AS41,AV40:AV41,AY40:AY41 ) ) -> 13.6 | BH28: =SUMPRODUCT( BD28:BG28, BD29:BG29 ) / IF( BH29 = 0, 1, BH29 ) -> 15.80535714
A29: 22 | C29: OH | D29: Mon | E29: O46 | F29: 25 | H29: E20 | I29: 19 | K29: E75 | L29: 18 | N29: O19 | O29: 31 | Q29: E25 | R29: 15 | T29: O46 | U29: 21 | W29: CRF | X29: 16 | Z29: X31 | AA29: f | AC29: ENGR | AD29: 7 | AF29: E20 | AG29: 13 | AI29: E20 | AJ29: 10 | AL29: NNIT | AM29: 15 | AO29: CVN | AP29: 22 | AR29: E25 | AS29: 19 | AU29: X10 | AV29: 34 | BD29: =COUNT( F32:F33, I32:I33, L32:L33, O32:O33, F40:F41, I40:I41, L40:L41, O40:O41 ) / 2 -> 8 | BE29: =COUNT( R32:R33, U32:U33, X32:X33, AA32:AA33, R40:R41, U40:U41, X40:X41, AA40:AA41 ) / 2 -> 7 | BF29: =COUNT( AD32:AD33, AG32:AG33, AJ32:AJ33, AM32:AM33, AD40:AD41, AG40:AG41, AJ40:AJ41, AM40:AM41 ) / 2 -> 8 | BG29: =COUNT( AP32:AP33, AS32:AS33, AV32:AV33, AY32:AY33, AP40:AP41, AS40:AS41, AV40:AV41, AY40:AY41 ) / 2 -> 5 | BH29: =SUM(BD29:BG29) -> 28
A30: 23 | C30: SH | D30: Mon | E30: X31 | F30: 26 | H30: ARG | I30: -1 | K30: SCM | L30: 20 | N30: O87 | O30: 37 | Q30: NNIT | R30: 31 | T30: ENGR | U30: 38 | W30: O87 | X30: 11 | Z30: SCM | AA30: 23 | AC30: O19 | AD30: 20 | AF30: SCM | AG30: 20 | AI30: X31 | AJ30: 20 | AL30: A572 | AM30: 18 | AO30: X10 | AP30: -2 | AR30: NNIT | AS30: 16 | AU30: O46 | AV30: 22 | BD30: =IF( BD31 = 0, 0, AVERAGE( F36:F37,I36:I37,L36:L37,O36:O37 ) ) -> 19.25 | BE30: =IF( BE31 = 0, 0, AVERAGE( R36:R37,U36:U37,X36:X37,AA36:AA37 ) ) -> 22.5 | BF30: =IF( BF31 = 0, 0, AVERAGE( AD36:AD37,AG36:AG37,AJ36:AJ37,AM36:AM37 ) ) -> 15.5 | BG30: =IF( BG31 = 0, 0, AVERAGE( AP36:AP37,AS36:AS37,AV36:AV37,AY36:AY37 ) ) -> 17.33333333 | BH30: =SUMPRODUCT( BD30:BG30, BD31:BG31 ) / IF( BH31 = 0, 1, BH31 ) -> 18.73333333
A31: 24 | C31: SH | D31: Mon | E31: X10 | F31: 26 | H31: ENGR | I31: 34 | K31: O19 | L31: 29 | N31: E25 | O31: 41 | Q31: ARG | R31: 19 | T31: M10 | U31: 25 | W31: E20 | X31: 20 | Z31: E20 | AA31: 22 | AC31: CVN | AD31: 31 | AF31: E75 | AG31: 8 | AI31: E75 | AJ31: 26 | AL31: CVN | AM31: 23 | AO31: CRF | AP31: 39 | AR31: CRF | AS31: 23 | AU31: NNIT | AV31: 12 | BD31: =COUNT( F36:F37, I36:I37, L36:L37, O36:O37 ) / 2 -> 4 | BE31: =COUNT( R36:R37, U36:U37, X36:X37, AA36:AA37 ) / 2 -> 4 | BF31: =COUNT( AD36:AD37, AG36:AG37, AJ36:AJ37, AM36:AM37 ) / 2 -> 4 | BG31: =COUNT( AP36:AP37, AS36:AS37, AV36:AV37, AY36:AY37 ) / 2 -> 3 | BH31: =SUM(BD31:BG31) -> 15
A32: 25 | C32: DR | D32: Mon | E32: E75 | F32: 14 | H32: O87 | I32: 30 | K32: A572 | L32: 16 | N32: ARG | O32: 7 | Q32: X31 | R32: 0.1 | T32: CVN | U32: 23 | W32: NNIT | X32: 23 | Z32: O19 | AA32: 19 | AC32: E25 | AD32: 37 | AF32: ARG | AG32: 13 | AI32: CRF | AJ32: 8 | AL32: E25 | AM32: 25 | AO32: O87 | AP32: 26 | AR32: E75 | AS32: 17 | AU32: CVN | AV32: f | BC32: KC | BD32: =IF( BD33 = 0, 0, AVERAGE( F28:F29,I28:I29,L28:L29,O28:O29 ) ) -> 23.125 | BE32: =IF( BE33 = 0, 0, AVERAGE( R28:R29,U28:U29,X28:X29,AA28:AA29 ) ) -> 19.66666667 | BF32: =IF( BF33 = 0, 0, AVERAGE( AD28:AD29,AG28:AG29,AJ28:AJ29,AM28:AM29 ) ) -> 9.125 | BG32: =IF( BG33 = 0, 0, AVERAGE( AP28:AP29,AS28:AS29,AV28:AV29,AY28:AY29 ) ) -> 20.83333333 | BH32: =SUMPRODUCT( BD32:BG32, BD33:BG33 ) / IF( BH33 = 0, 1, BH33 ) -> 17.89285714
A33: 26 | B33: B | C33: DR | D33: Mon | E33: E20 | F33: 24 | H33: M10 | I33: 15 | K33: O87 | L33: 15 | N33: O46 | O33: 9 | Q33: M10 | R33: 14 | T33: X31 | U33: 31 | W33: SCM | X33: -3 | Z33: O46 | AA33: 24 | AC33: O46 | AD33: 18 | AF33: A572 | AG33: 6 | AI33: SCM | AJ33: -6 | AL33: CRF | AM33: 22 | AO33: E75 | AP33: 12 | AR33: ENGR | AS33: 14 | AU33: ENGR | BD33: =COUNT( F28:F29, I28:I29, L28:L29, O28:O29 ) / 2 -> 4 | BE33: =COUNT( R28:R29, U28:U29, X28:X29, AA28:AA29 ) / 2 -> 3 | BF33: =COUNT( AD28:AD29, AG28:AG29, AJ28:AJ29, AM28:AM29 ) / 2 -> 4 | BG33: =COUNT( AP28:AP29, AS28:AS29, AV28:AV29, AY28:AY29 ) / 2 -> 3 | BH33: =SUM(BD33:BG33) -> 14
A34: 27 | C34: KC | D34: Wed | E34: SCM | F34: 7 | H34: CVN | I34: 17 | K34: M10 | L34: 6 | N34: E20 | O34: 19 | Q34: O46 | R34: 14 | T34: CRF | U34: 12 | W34: X31 | X34: -8 | Z34: NNIT | AA34: -11 | AC34: E75 | AD34: -6 | AF34: NNIT | AG34: 5 | AI34: X10 | AJ34: 4 | AL34: ENGR | AM34: -3 | AO34: O19 | AP34: 22 | AR34: E20 | AS34: 4 | AU34: X31 | AV34: 12 | BD34: =IF( BD35 = 0, 0, AVERAGE( F26:F27,I26:I27,L26:L27,O26:O27, F34:F35,I34:I35,L34:L35,O34:O35 ) ) -> 14.6875 | BE34: =IF( BE35 = 0, 0, AVERAGE( R26:R27,U26:U27,X26:X27,AA26:AA27, R34:R35,U34:U35,X34:X35,AA34:AA35 ) ) -> 10.4375 | BF34: =IF( BF35 = 0, 0, AVERAGE( AD26:AD27,AG26:AG27,AJ26:AJ27,AM26:AM27, AD34:AD35,AG34:AG35,AJ34:AJ35,AM34:AM35 ) ) -> 5.3125 | BG34: =IF( BG35 = 0, 0, AVERAGE( AP26:AP27,AS26:AS27,AV26:AV27,AY26:AY27, AP34:AP35,AS34:AS35,AV34:AV35,AY34:AY35 ) ) -> 7.916666667 | BH34: =SUMPRODUCT( BD34:BG34, BD35:BG35 ) / IF( BH35 = 0, 1, BH35 ) -> 9.7
A35: 28 | C35: KC | D35: Wed | E35: O87 | F35: 18 | H35: E75 | I35: 13 | K35: X10 | L35: 34 | N35: CVN | O35: 9 | Q35: E75 | R35: 12 | T35: O87 | U35: 8 | W35: ENGR | X35: 2 | Z35: O87 | AA35: -4 | AC35: A572 | AD35: -6 | AF35: E25 | AG35: 20 | AI35: CVN | AJ35: -1 | AL35: SCM | AM35: 11 | AO35: ARG | AP35: 10 | AR35: O46 | AS35: -7 | AU35: SCM | AV35: 13 | BC35: SH | BD35: =COUNT( F26:F27, I26:I27, L26:L27, O26:O27, F34:F35, I34:I35, L34:L35, O34:O35 ) / 2 -> 8 | BE35: =COUNT( R26:R27, U26:U27, X26:X27, AA26:AA27, R34:R35, U34:U35, X34:X35, AA34:AA35 ) / 2 -> 8 | BF35: =COUNT( AD26:AD27, AG26:AG27, AJ26:AJ27, AM26:AM27, AD34:AD35, AG34:AG35, AJ34:AJ35, AM34:AM35 ) / 2 -> 8 | BG35: =COUNT( AP26:AP27, AS26:AS27, AV26:AV27, AY26:AY27, AP34:AP35, AS34:AS35, AV34:AV35, AY34:AY35 ) / 2 -> 6 | BH35: =SUM(BD35:BG35) -> 30
A36: 29 | C36: OH | D36: Wed | E36: NNIT | F36: 22 | H36: CRF | I36: 17 | K36: E20 | L36: 10 | N36: ENGR | O36: 21 | Q36: SCM | R36: 31 | T36: NNIT | U36: 12 | W36: E25 | X36: 26 | Z36: E75 | AA36: 18 | AC36: ARG | AD36: 17 | AF36: ENGR | AG36: 19 | AI36: O46 | AJ36: 12 | AL36: E20 | AM36: 15 | AO36: O46 | AP36: 13 | AR36: ARG | AS36: 23 | AU36: E25 | AV36: 15 | BB36: per | BC36: CC
A37: 30 | C37: OH | D37: Wed | E37: CVN | F37: 18 | H37: O46 | I37: 24 | K37: ARG | L37: 21 | N37: CRF | O37: 21 | Q37: A572 | R37: 11 | T37: A572 | U37: 28 | W37: E75 | X37: 25 | Z37: M10 | AA37: 29 | AC37: SCM | AD37: 20 | AF37: O19 | AG37: 11 | AI37: O87 | AJ37: 12 | AL37: X10 | AM37: 18 | AO37: X31 | AP37: 18 | AR37: CVN | AS37: 20 | AU37: O19 | AV37: 15 | BB37: Player | BC37: OH | BD37: =BD6/6 -> 3.932291667 | BE37: 3.848958333 | BF37: =BF6/6 -> 3.151046875 | BG37: =BG6/6 -> 3.041666667 | BH37: 3.558037202
A38: 31 | C38: SH | D38: Wed | E38: ARG | F38: 30 | H38: E25 | I38: 32 | K38: X31 | L38: 13 | N38: E75 | O38: 16 | Q38: CRF | R38: 27 | T38: X10 | U38: 23 | W38: O46 | X38: 19 | Z38: X10 | AA38: 21 | AC38: E20 | AD38: 18 | AF38: CVN | AG38: 28 | AI38: M10 | AJ38: 17 | AL38: O46 | AM38: 10 | AO38: E20 | AP38: 6 | AR38: M10 | AS38: 41 | AU38: M10 | AV38: 12 | BC38: RF | BD38: 3.4375 | BE38: 2.875595238 | BF38: 2.656111111 | BG38: 2.21969697 | BH38: 2.848511905
A39: 32 | C39: SH | D39: Wed | E39: CRF | F39: 23 | H39: SCM | I39: 13 | K39: E25 | L39: 21 | N39: NNIT | O39: 17 | Q39: CVN | R39: 35 | T39: E75 | U39: 21 | W39: A572 | X39: 15 | Z39: ENGR | AA39: 31 | AC39: X31 | AD39: 23 | AF39: O87 | AG39: 21 | AI39: ARG | AJ39: 28 | AL39: M10 | AM39: 8 | AO39: E25 | AP39: 27 | AR39: O19 | AS39: 17 | AU39: A572 | AV39: 15 | BC39: KC | BD39: 3.572916667 | BE39: 3.677083333 | BF39: 2.28125 | BG39: 3.125 | BH39: 3.166666667
A40: 33 | C40: DR | D40: Wed | E40: O19 | F40: 11 | H40: A572 | I40: 27 | K40: ENGR | L40: 20 | N40: M10 | O40: 25 | Q40: O87 | R40: 8 | T40: E20 | U40: 21 | W40: X10 | X40: 18 | Z40: CVN | AA40: f | AC40: X10 | AD40: 25 | AF40: X31 | AG40: 10 | AI40: ENGR | AJ40: 8 | AL40: E75 | AM40: 14 | AO40: M10 | AP40: 7 | AR40: O87 | AS40: 9 | AU40: E20 | AV40: 16 | BC40: DR | BD40: 3.8125 | BE40: 3.261904762 | BF40: 1.739583333 | BG40: 3.266666667 | BH40: 2.985119048
A41: 34 | C41: DR | D41: Wed | E41: A572 | F41: 29 | H41: X10 | I41: 8 | K41: NNIT | L41: 7 | N41: SCM | O41: 6 | Q41: O19 | R41: 19 | T41: O19 | U41: 14 | W41: ARG | X41: 19 | Z41: E25 | AC41: NNIT | AD41: 14 | AF41: CRF | AG41: 26 | AI41: E25 | AJ41: 17 | AL41: O19 | AM41: 19 | AO41: NNIT | AP41: 7 | AR41: X31 | AS41: 11 | AU41: CRF | AV41: 17 | BC41: Ave | BD41: 2.447916667 | BE41: 1.739583333 | BF41: 0.8854166667 | BG41: 1.319444444 | BH41: 1.616666667
BC42: DR | BD42: 3.030952381 | BE42: 2.70521875 | BF42: 2.833333333 | BG42: 3.027777778 | BH42: 2.887800595
C43: Matches: | D43: 32 | F43: 32 | G43: 0 | I43: 32 | J43: 0 | L43: 32 | M43: 0 | O43: 32 | P43: 0 | R43: 32 | S43: 0 | U43: 32 | V43: 0 | X43: 32 | Y43: 0 | AA43: 32 | AB43: 0 | AD43: 32 | AE43: 0 | AG43: 32 | AH43: 0 | AJ43: 32 | AK43: 0 | AM43: 32 | AN43: 0 | AP43: 32 | AQ43: 0 | AS43: 32 | AT43: 0 | AV43: 30 | AW43: 0 | BC43: Ave | BD43: =BD12 / 6 -> 3.457142857 | BE43: =BE12 / 6 -> 3.10901776 | BF43: 2.408737903 | BG43: 2.617063492 | BH43: =BH12 / 6 -> 2.924160088 | BJ43: SGL Ave Net
BB44: =COUNTIF( BB12:BC28, ">0" ) -> 0

Sheet Standings
AP1: Season | AY1: Head-to-Head
N2: Sorts by Pts | W2: 2 | X2: =IF( W2 = 1, "A", "B" ) -> B | Y2: League Tie Breakers | AW2: Sort Standings | AZ2: Head-to-Head Points
N3: then GB (before July) | AG3: Tiebreak | AK3: All League Matches | AR3: To organized standings in accordance with tie-break rules (2015 Rule 25): | AZ3: Automatic for 3 teams
E4: Division A Teams | N4: Division B Teams | W4: 8 | Y4: =IF( W2 = 1, BB35, BC35 ) -> 15 | Z4: Points | AE4: Week | AF4: Match | AG4: Match | AH4: Home | AI4: Pts | AJ4: Away | AK4: Pts | AL4: Won | AM4: Lost | AN4: Tied | AO4: Tied | BA4: Relevant Matches | BH4: Points For and Against
C5: Team | D5: W | E5: L | F5: T | G5: Pts | H5: GB | I5: # | L5: Team | M5: W | N5: L | O5: T | P5: Pts | Q5: GB | R5: # | AE5: 1 | AF5: 1 | AG5: =IF( OR( ISNA( MATCH( AH5, $W$8:$W$13, 0 ) ), ISNA( MATCH( AJ5, $W$8:$W$13, 0 ) ) ), " . ", MAX( $AG$4:AG4 ) + 1 ) -> . | AH5: =IF( $AE5 = "", "", OFFSET( Season!$E$7, 2 * $AF5 - 1 + IF( AH$4 = $AJ$4, 1, 0 ), 3*( $AE5-1) + 0 ) ) -> E17 | AI5: =IF( $AE5 = "", 0, OFFSET( Season!$E$7, 2 * $AF5 - 1 + IF( AH$4 = $AJ$4, 1, 0 ), 3*( $AE5-1) + 1 ) ) -> f | AJ5: =IF( $AE5 = "", "", OFFSET( Season!$E$7, 2 * $AF5 - 1 + IF( AJ$4 = $AJ$4, 1, 0 ), 3*( $AE5-1) + 0 ) ) -> E55B | AK5: =IF( $AE5 = "", 0, OFFSET( Season!$E$7, 2 * $AF5 - 1 + IF( AJ$4 = $AJ$4, 1, 0 ), 3*( $AE5-1) + 1 ) ) -> 0 | AL5: =IF( LEFT( $AI5, 1 ) = "f", $AJ5, IF( LEFT( $AK5, 1 ) = "f", $AH5, IF( AND( $AI5 = "", $AK5 = "" ), ".", IF( $AI5^2 + $AK5^2 = 0, "x", IF( $AI5 = $AK5, "Tie", IF( $AI5 < $AK5, $AH5, $AJ5 ) ) ) ) ) ) -> E55B | AM5: =IF( LEFT( $AI5, 1 ) = "f", $AH5, IF( LEFT( $AK5, 1 ) = "f", $AJ5, IF( AND( $AI5 = "", $AK5 = "" ), ".", IF( $AI5^2 + $AK5^2 = 0, "x", IF( $AI5 = $AK5, "Tie", IF( $AI5 > $AK5, $AH5, $AJ5 ) ) ) ) ) ) -> E17 | AN5: =IF( AL5 = "Tie", $AH5, "" ) ->  | AO5: =IF( AM5 = "Tie", $AJ5, "" ) ->  | AR5: Tiebreak | AS5: Instructions | AZ5: 1 | BA5: =OFFSET(W$16, $AZ5 + 1, 0 ) -> ENGR | BB5: =OFFSET(X$16, $AZ5 + 1, 0 ) -> 21 | BC5: =OFFSET(Y$16, $AZ5 + 1, 0 ) -> CRF | BD5: =OFFSET(Z$16, $AZ5 + 1, 0 ) -> 21 | BE5: =MATCH( BA5, $BH$6:$BH$8, 0 ) * 10 + MATCH( BC5, $BH$6:$BH$8, 0 ) -> 21 | BH5: Team | BI5: =BH6 -> CRF | BJ5: =BH7 -> ENGR | BK5: =BH8 ->  | BL5: For
A6: =A5+1 -> 1 | C6: =Season!E22 -> E86 | D6: =COUNTIF($AL:$AL, $C6 ) + B6 -> 10 | E6: =COUNTIF($AM:$AM, $C6 ) -> 3 | F6: =COUNTIF($AN:$AO, $C6 ) -> 2 | G6: =2 * D6 + F6 -> 22 | H6: =( D$6 - E$6 - D6 + E6 ) / 2 -> 0 | I6: =SUM(D6:F6) -> 15 | L6: =Season!E32 -> E75 | M6: =COUNTIF($AL:$AL, $L6 ) + K6 -> 11 | N6: =COUNTIF($AM:$AM, $L6 ) -> 3 | O6: =COUNTIF($AN:$AO, $L6 ) -> 1 | P6: =2 * M6 + O6 -> 23 | Q6: =( M$6 - N$6 - M6 + N6 ) / 2 -> 0 | R6: =SUM(M6:O6) -> 15 | V6: =X2 & " Head-to-Head Record" -> B Head-to-Head Record | Z6: Season | AE6: =AE5 -> 1 | AF6: =AF5+1 -> 2 | AG6: =IF( OR( ISNA( MATCH( AH6, $W$8:$W$13, 0 ) ), ISNA( MATCH( AJ6, $W$8:$W$13, 0 ) ) ), " . ", MAX( $AG$4:AG5 ) + 1 ) -> . | AH6: =IF( $AE6 = "", "", OFFSET( Season!$E$7, 2 * $AF6 - 1 + IF( AH$4 = $AJ$4, 1, 0 ), 3*( $AE6-1) + 0 ) ) -> E60 | AI6: =IF( $AE6 = "", "", OFFSET( Season!$E$7, 2 * $AF6 - 1 + IF( AH$4 = $AJ$4, 1, 0 ), 3*( $AE6-1) + 1 ) ) -> 16 | AJ6: =IF( $AE6 = "", "", OFFSET( Season!$E$7, 2 * $AF6 - 1 + IF( AJ$4 = $AJ$4, 1, 0 ), 3*( $AE6-1) + 0 ) ) -> AMSC | AK6: =IF( $AE6 = "", "", OFFSET( Season!$E$7, 2 * $AF6 - 1 + IF( AJ$4 = $AJ$4, 1, 0 ), 3*( $AE6-1) + 1 ) ) -> 38 | AL6: E60 | AM6: AMSC | AR6: 1 | AS6: Teams sorted based on points (click on "Sort Standings" button, cell J2) | AZ6: 2 | BA6: =OFFSET(W$16, $AZ6 + 1, 0 ) ->  | BE6: =MATCH( BA6, $BH$6:$BH$8, 0 ) * 10 + MATCH( BC6, $BH$6:$BH$8, 0 ) -> 33 | BG6: 1 | BH6: =W8 -> CRF | BI6: =IF( BB$14 = $BG6, " - ", IF( ISNA( MATCH( $BG6 * 10 + BB$14, $BE$5:$BE$7, 0 ) ), OFFSET( $BB$4, MATCH( $BG6 + BB$14 * 10, $BE$5:$BE$7, 0 ), 2 ), OFFSET( $BB$4, MATCH( $BG6 * 10 + BB$14, $BE$5:$BE$7, 0 ), 0 ) ) ) -> - | BJ6: 21 | BL6: =SUM(BI6:BK6) -> 
A7: =A6+1 -> 2 | C7: =Season!E17 -> X87 | D7: 10 | E7: 4 | F7: 1 | G7: 21 | H7: 0.5 | I7: 15 | L7: =Season!E30 -> X31 | M7: 9 | N7: 5 | O7: 1 | P7: 19 | Q7: 2 | R7: 15 | V7: Position | W7: Team | X7: W | Y7: L | Z7: Net Pts | AE7: 1 | AF7: =AF6+1 -> 3 | AG7: =IF( OR( ISNA( MATCH( AH7, $W$8:$W$13, 0 ) ), ISNA( MATCH( AJ7, $W$8:$W$13, 0 ) ) ), " . ", MAX( $AG$4:AG6 ) + 1 ) -> . | AH7: =IF( $AE7 = "", "", OFFSET( Season!$E$7, 2 * $AF7 - 1 + IF( AH$4 = $AJ$4, 1, 0 ), 3*( $AE7-1) + 0 ) ) -> E83 | AI7: =IF( $AE7 = "", "", OFFSET( Season!$E$7, 2 * $AF7 - 1 + IF( AH$4 = $AJ$4, 1, 0 ), 3*( $AE7-1) + 1 ) ) -> 30 | AJ7: =IF( $AE7 = "", "", OFFSET( Season!$E$7, 2 * $AF7 - 1 + IF( AJ$4 = $AJ$4, 1, 0 ), 3*( $AE7-1) + 0 ) ) -> X01 | AK7: =IF( $AE7 = "", "", OFFSET( Season!$E$7, 2 * $AF7 - 1 + IF( AJ$4 = $AJ$4, 1, 0 ), 3*( $AE7-1) + 1 ) ) -> 20 | AL7: X01 | AM7: E83 | AR7: Next | AT7: Manipulate the sliders in cells V2 and V4 to select teams for tie-break (equal total points) | AZ7: 3 | BE7: =MATCH( BA7, $BH$6:$BH$8, 0 ) * 10 + MATCH( BC7, $BH$6:$BH$8, 0 ) -> 33 | BG7: 2 | BH7: =W9 -> ENGR | BI7: 21 | BJ7: - | BL7: =SUM(BI7:BK7) -> 
A8: 3 | C8: =Season!E10 -> E60 | D8: 10 | E8: 5 | F8: 0 | G8: 20 | H8: 1 | I8: 15 | L8: =Season!E35 -> O87 | M8: 9 | N8: 5 | O8: 1 | P8: 19 | Q8: 2 | R8: 15 | V8: =IF( $W$2 = 1, BB36, BC36 ) -> 8 | W8: =IF( V8 = "", "", OFFSET( C$5, V8, 9 * ( $W$2 - 1 ) ) ) -> CRF | X8: =IF( $W8 = "", "", COUNTIF( AA$18:AA$33, $W8 ) ) -> 0 | Y8: 0 | AA8: =IF( W8 = "", "", OFFSET( Scoring!$AW$1, MATCH( W8, Scoring!$AT:$AT, 0 ) - 1, 0 ) ) -> 2.866666667 | AE8: 1 | AF8: 4 | AG8: =IF( OR( ISNA( MATCH( AH8, $W$8:$W$13, 0 ) ), ISNA( MATCH( AJ8, $W$8:$W$13, 0 ) ) ), " . ", MAX( $AG$4:AG7 ) + 1 ) -> . | AH8: =IF( $AE8 = "", "", OFFSET( Season!$E$7, 2 * $AF8 - 1 + IF( AH$4 = $AJ$4, 1, 0 ), 3*( $AE8-1) + 0 ) ) -> SUBS | AI8: =IF( $AE8 = "", "", OFFSET( Season!$E$7, 2 * $AF8 - 1 + IF( AH$4 = $AJ$4, 1, 0 ), 3*( $AE8-1) + 1 ) ) -> 28 | AJ8: =IF( $AE8 = "", "", OFFSET( Season!$E$7, 2 * $AF8 - 1 + IF( AJ$4 = $AJ$4, 1, 0 ), 3*( $AE8-1) + 0 ) ) -> E12 | AK8: =IF( $AE8 = "", "", OFFSET( Season!$E$7, 2 * $AF8 - 1 + IF( AJ$4 = $AJ$4, 1, 0 ), 3*( $AE8-1) + 1 ) ) -> 30 | AL8: SUBS | AM8: E12 | AR8: 2 | AS8: Use the "Head-to-Head Record" at cell V6 | BG8: 3 | BK8: - | BL8: =SUM(BI8:BK8) -> 
A9: 4 | C9: =Season!E14 -> SUBS | D9: 9 | E9: 6 | F9: 0 | G9: 18 | H9: 2 | I9: 15 | L9: =Season!E27 -> M10 | M9: 9 | N9: 5 | O9: 1 | P9: 19 | Q9: 2 | R9: 15 | V9: =IF( MAX($V$8:V8) - $V$8 > IF( $W$2 =1, $BB$37, $BC$37 ) - 2, "", V8 + 1 ) -> 9 | W9: ENGR | X9: 0 | Y9: 0 | AA9: =IF( W9 = "", "", OFFSET( Scoring!$AW$1, MATCH( W9, Scoring!$AT:$AT, 0 ) - 1, 0 ) ) -> 3.642857143 | AE9: 1 | AF9: 5 | AG9: =IF( OR( ISNA( MATCH( AH9, $W$8:$W$13, 0 ) ), ISNA( MATCH( AJ9, $W$8:$W$13, 0 ) ) ), " . ", MAX( $AG$4:AG8 ) + 1 ) -> . | AH9: =IF( $AE9 = "", "", OFFSET( Season!$E$7, 2 * $AF9 - 1 + IF( AH$4 = $AJ$4, 1, 0 ), 3*( $AE9-1) + 0 ) ) -> E55a | AI9: =IF( $AE9 = "", "", OFFSET( Season!$E$7, 2 * $AF9 - 1 + IF( AH$4 = $AJ$4, 1, 0 ), 3*( $AE9-1) + 1 ) ) -> 7 | AJ9: =IF( $AE9 = "", "", OFFSET( Season!$E$7, 2 * $AF9 - 1 + IF( AJ$4 = $AJ$4, 1, 0 ), 3*( $AE9-1) + 0 ) ) -> X87 | AK9: =IF( $AE9 = "", "", OFFSET( Season!$E$7, 2 * $AF9 - 1 + IF( AJ$4 = $AJ$4, 1, 0 ), 3*( $AE9-1) + 1 ) ) -> 23 | AL9: E55a | AM9: X87 | AR9: 3 | AS9: Use Head-to-Head Points | BA9: Point Difference | BH9: Against | BI9: =SUM(BI6:BI8) ->  | BJ9: =SUM(BJ6:BJ8) ->  | BK9: =SUM(BK6:BK8) -> 
A10: 5 | C10: =Season!E12 -> E83 | D10: 9 | E10: 6 | F10: 0 | G10: 18 | H10: 2 | I10: 15 | L10: =Season!E34 -> SCM | M10: 9 | N10: 6 | O10: 0 | P10: 18 | Q10: 2.5 | R10: 15 | V10: =IF( MAX($V$8:V9) - $V$8 > IF( $W$2 =1, $BB$37, $BC$37 ) - 2, "", V9 + 1 ) ->  | AA10: =IF( W10 = "", "", OFFSET( Scoring!$AW$1, MATCH( W10, Scoring!$AT:$AT, 0 ) - 1, 0 ) ) ->  | AE10: 1 | AF10: 6 | AG10: =IF( OR( ISNA( MATCH( AH10, $W$8:$W$13, 0 ) ), ISNA( MATCH( AJ10, $W$8:$W$13, 0 ) ) ), " . ", MAX( $AG$4:AG9 ) + 1 ) -> . | AH10: =IF( $AE10 = "", "", OFFSET( Season!$E$7, 2 * $AF10 - 1 + IF( AH$4 = $AJ$4, 1, 0 ), 3*( $AE10-1) + 0 ) ) -> AGS | AI10: =IF( $AE10 = "", "", OFFSET( Season!$E$7, 2 * $AF10 - 1 + IF( AH$4 = $AJ$4, 1, 0 ), 3*( $AE10-1) + 1 ) ) -> 16 | AJ10: =IF( $AE10 = "", "", OFFSET( Season!$E$7, 2 * $AF10 - 1 + IF( AJ$4 = $AJ$4, 1, 0 ), 3*( $AE10-1) + 0 ) ) -> X88 | AK10: =IF( $AE10 = "", "", OFFSET( Season!$E$7, 2 * $AF10 - 1 + IF( AJ$4 = $AJ$4, 1, 0 ), 3*( $AE10-1) + 1 ) ) -> 19 | AL10: AGS | AM10: X88 | AT10: For 2 tied teams, use the "Head-to-Head" match result | BA10: Team | BB10: =BI5 -> CRF | BC10: =BJ5 -> ENGR | BD10: =BK5 -> 
A11: 6 | C11: =Season!E19 -> X88 | D11: 8 | E11: 5 | F11: 2 | G11: 18 | H11: 2 | I11: 15 | L11: =Season!E36 -> NNIT | M11: 8 | N11: 6 | O11: 1 | P11: 17 | Q11: 3 | R11: 15 | V11: =IF( MAX($V$8:V10) - $V$8 > IF( $W$2 =1, $BB$37, $BC$37 ) - 2, "", V10 + 1 ) ->  | AA11: =IF( W11 = "", "", OFFSET( Scoring!$AW$1, MATCH( W11, Scoring!$AT:$AT, 0 ) - 1, 0 ) ) ->  | AE11: 1 | AF11: 7 | AG11: =IF( OR( ISNA( MATCH( AH11, $W$8:$W$13, 0 ) ), ISNA( MATCH( AJ11, $W$8:$W$13, 0 ) ) ), " . ", MAX( $AG$4:AG10 ) + 1 ) -> . | AH11: =IF( $AE11 = "", "", OFFSET( Season!$E$7, 2 * $AF11 - 1 + IF( AH$4 = $AJ$4, 1, 0 ), 3*( $AE11-1) + 0 ) ) -> E42 | AI11: =IF( $AE11 = "", "", OFFSET( Season!$E$7, 2 * $AF11 - 1 + IF( AH$4 = $AJ$4, 1, 0 ), 3*( $AE11-1) + 1 ) ) -> 22 | AJ11: =IF( $AE11 = "", "", OFFSET( Season!$E$7, 2 * $AF11 - 1 + IF( AJ$4 = $AJ$4, 1, 0 ), 3*( $AE11-1) + 0 ) ) -> X04 | AK11: =IF( $AE11 = "", "", OFFSET( Season!$E$7, 2 * $AF11 - 1 + IF( AJ$4 = $AJ$4, 1, 0 ), 3*( $AE11-1) + 1 ) ) -> 24 | AL11: E42 | AM11: X04 | AU11: If teams tied or didn't play each other, go to Tiebreak 4 | BA11: PF | BB11: =SUM(BI6:BK6) ->  | BC11: =SUM(BI7:BK7) ->  | BD11: =SUM(BI8:BK8) -> 
A12: 7 | C12: =Season!E15 -> E12 | D12: 8 | E12: 6 | F12: 1 | G12: 17 | H12: 2.5 | I12: 15 | L12: =Season!E38 -> ARG | M12: 8 | N12: 7 | O12: 0 | P12: 16 | Q12: 3.5 | R12: 15 | V12: =IF( MAX($V$8:V11) - $V$8 > IF( $W$2 =1, $BB$37, $BC$37 ) - 2, "", V11 + 1 ) ->  | AA12: =IF( W12 = "", "", OFFSET( Scoring!$AW$1, MATCH( W12, Scoring!$AT:$AT, 0 ) - 1, 0 ) ) ->  | AE12: 1 | AF12: 8 | AG12: =IF( OR( ISNA( MATCH( AH12, $W$8:$W$13, 0 ) ), ISNA( MATCH( AJ12, $W$8:$W$13, 0 ) ) ), " . ", MAX( $AG$4:AG11 ) + 1 ) -> . | AH12: =IF( $AE12 = "", "", OFFSET( Season!$E$7, 2 * $AF12 - 1 + IF( AH$4 = $AJ$4, 1, 0 ), 3*( $AE12-1) + 0 ) ) -> E86 | AI12: =IF( $AE12 = "", "", OFFSET( Season!$E$7, 2 * $AF12 - 1 + IF( AH$4 = $AJ$4, 1, 0 ), 3*( $AE12-1) + 1 ) ) -> 17 | AJ12: =IF( $AE12 = "", "", OFFSET( Season!$E$7, 2 * $AF12 - 1 + IF( AJ$4 = $AJ$4, 1, 0 ), 3*( $AE12-1) + 0 ) ) -> E14 | AK12: =IF( $AE12 = "", "", OFFSET( Season!$E$7, 2 * $AF12 - 1 + IF( AJ$4 = $AJ$4, 1, 0 ), 3*( $AE12-1) + 1 ) ) -> 23 | AL12: E86 | AM12: E14 | AT12: For 3 tied teams, input relevant match data at cell V15 into cells at BA4 | BA12: PA | BB12: =SUM(BI6:BI8) ->  | BC12: =SUM(BJ6:BJ8) ->  | BD12: =SUM(BK6:BK8) -> 
A13: 8 | C13: =Season!E9 -> E55B | D13: 8 | E13: 7 | F13: 0 | G13: 16 | H13: 3 | I13: 15 | L13: =Season!E39 -> CRF | M13: 7 | N13: 7 | O13: 1 | P13: 15 | Q13: 4 | R13: 15 | V13: =IF( MAX($V$8:V12) - $V$8 > IF( $W$2 =1, $BB$37, $BC$37 ) - 2, "", V12 + 1 ) ->  | AA13: =IF( W13 = "", "", OFFSET( Scoring!$AW$1, MATCH( W13, Scoring!$AT:$AT, 0 ) - 1, 0 ) ) ->  | AE13: 1 | AF13: 9 | AG13: =IF( OR( ISNA( MATCH( AH13, $W$8:$W$13, 0 ) ), ISNA( MATCH( AJ13, $W$8:$W$13, 0 ) ) ), " . ", MAX( $AG$4:AG12 ) + 1 ) -> . | AH13: =IF( $AE13 = "", "", OFFSET( Season!$E$7, 2 * $AF13 - 1 + IF( AH$4 = $AJ$4, 1, 0 ), 3*( $AE13-1) + 0 ) ) -> 0 | AI13: =IF( $AE13 = "", "", OFFSET( Season!$E$7, 2 * $AF13 - 1 + IF( AH$4 = $AJ$4, 1, 0 ), 3*( $AE13-1) + 1 ) ) -> 0 | AJ13: =IF( $AE13 = "", "", OFFSET( Season!$E$7, 2 * $AF13 - 1 + IF( AJ$4 = $AJ$4, 1, 0 ), 3*( $AE13-1) + 0 ) ) -> 0 | AK13: =IF( $AE13 = "", "", OFFSET( Season!$E$7, 2 * $AF13 - 1 + IF( AJ$4 = $AJ$4, 1, 0 ), 3*( $AE13-1) + 1 ) ) -> 0 | AL13: x | AM13: x | AT13: For more than 3 tied teams, use the same method as for 3 tied teams. | BA13: Diff | BB13: =BB11-BB12 ->  | BC13: =BC11-BC12 ->  | BD13: =BD11-BD12 ->  | BE13: <-- The lower the score, the better
A14: 9 | C14: =Season!E16 -> E55a | D14: 7 | E14: 7 | F14: 1 | G14: 15 | H14: 3.5 | I14: 15 | L14: =Season!E28 -> ENGR | M14: 7 | N14: 7 | O14: 1 | P14: 15 | Q14: 4 | R14: 15 | AE14: 1 | AF14: 10 | AG14: =IF( OR( ISNA( MATCH( AH14, $W$8:$W$13, 0 ) ), ISNA( MATCH( AJ14, $W$8:$W$13, 0 ) ) ), " . ", MAX( $AG$4:AG13 ) + 1 ) -> . | AH14: =IF( $AE14 = "", "", OFFSET( Season!$E$7, 2 * $AF14 - 1 + IF( AH$4 = $AJ$4, 1, 0 ), 3*( $AE14-1) + 0 ) ) -> E25 | AI14: =IF( $AE14 = "", "", OFFSET( Season!$E$7, 2 * $AF14 - 1 + IF( AH$4 = $AJ$4, 1, 0 ), 3*( $AE14-1) + 1 ) ) -> 11 | AJ14: =IF( $AE14 = "", "", OFFSET( Season!$E$7, 2 * $AF14 - 1 + IF( AJ$4 = $AJ$4, 1, 0 ), 3*( $AE14-1) + 0 ) ) -> M10 | AK14: =IF( $AE14 = "", "", OFFSET( Season!$E$7, 2 * $AF14 - 1 + IF( AJ$4 = $AJ$4, 1, 0 ), 3*( $AE14-1) + 1 ) ) -> 10 | AL14: M10 | AM14: E25 | AR14: 4 | AS14: If still tied, then use "Season Net Pts" at cell Z6 (lower is better) | BB14: 1 | BC14: 2 | BD14: 3 | BE14: =CONCATENATE( " ", BB13, " is better than ", BD13 ) -> 
A15: 10 | C15: =Season!E20 -> E42 | D15: 6 | E15: 7 | F15: 2 | G15: 14 | H15: 4 | I15: 15 | L15: =Season!E33 -> E20 | M15: 7 | N15: 8 | O15: 0 | P15: 14 | Q15: 4.5 | R15: 15 | V15: =X2 & " Head-to-Head Matches" -> B Head-to-Head Matches | AE15: 1 | AF15: 11 | AG15: =IF( OR( ISNA( MATCH( AH15, $W$8:$W$13, 0 ) ), ISNA( MATCH( AJ15, $W$8:$W$13, 0 ) ) ), " . ", MAX( $AG$4:AG14 ) + 1 ) -> . | AH15: =IF( $AE15 = "", "", OFFSET( Season!$E$7, 2 * $AF15 - 1 + IF( AH$4 = $AJ$4, 1, 0 ), 3*( $AE15-1) + 0 ) ) -> ENGR | AI15: =IF( $AE15 = "", "", OFFSET( Season!$E$7, 2 * $AF15 - 1 + IF( AH$4 = $AJ$4, 1, 0 ), 3*( $AE15-1) + 1 ) ) -> 29 | AJ15: =IF( $AE15 = "", "", OFFSET( Season!$E$7, 2 * $AF15 - 1 + IF( AJ$4 = $AJ$4, 1, 0 ), 3*( $AE15-1) + 0 ) ) -> O46 | AK15: =IF( $AE15 = "", "", OFFSET( Season!$E$7, 2 * $AF15 - 1 + IF( AJ$4 = $AJ$4, 1, 0 ), 3*( $AE15-1) + 1 ) ) -> 25 | AL15: O46 | AM15: ENGR | AT15: Data also found in Col AU on "Scoring" sheet | BE15: =CONCATENATE( " ", BH6, " would be ranked above ", BH8 ) -> CRF would be ranked above
A16: 11 | C16: =Season!E13 -> X01 | D16: 7 | E16: 8 | F16: 0 | G16: 14 | H16: 4 | I16: 15 | L16: =Season!E29 -> O46 | M16: 6 | N16: 8 | O16: 1 | P16: 13 | Q16: 5 | R16: 15 | U16: Match | V16: Week | W16: Home | X16: Pts | Y16: Away | Z16: Pts | AA16: Won | AB16: Lost | AE16: 1 | AF16: 12 | AG16: =IF( OR( ISNA( MATCH( AH16, $W$8:$W$13, 0 ) ), ISNA( MATCH( AJ16, $W$8:$W$13, 0 ) ) ), " . ", MAX( $AG$4:AG15 ) + 1 ) -> . | AH16: =IF( $AE16 = "", "", OFFSET( Season!$E$7, 2 * $AF16 - 1 + IF( AH$4 = $AJ$4, 1, 0 ), 3*( $AE16-1) + 0 ) ) -> X31 | AI16: =IF( $AE16 = "", "", OFFSET( Season!$E$7, 2 * $AF16 - 1 + IF( AH$4 = $AJ$4, 1, 0 ), 3*( $AE16-1) + 1 ) ) -> 26 | AJ16: =IF( $AE16 = "", "", OFFSET( Season!$E$7, 2 * $AF16 - 1 + IF( AJ$4 = $AJ$4, 1, 0 ), 3*( $AE16-1) + 0 ) ) -> X10 | AK16: =IF( $AE16 = "", "", OFFSET( Season!$E$7, 2 * $AF16 - 1 + IF( AJ$4 = $AJ$4, 1, 0 ), 3*( $AE16-1) + 1 ) ) -> 26 | AL16: Tie | AM16: Tie | AN16: X31 | AO16: X10 | AR16: 5 | AS16: If still tied, then flip a coin
A17: 12 | C17: =Season!E18 -> AGS | D17: 6 | E17: 8 | F17: 0 | G17: 12 | H17: 4.5 | I17: =SUM(D17:F17) -> 14 | L17: =Season!E40 -> O19 | M17: 6 | N17: 8 | O17: 1 | P17: 13 | Q17: 5 | R17: =SUM(M17:O17) -> 15 | AE17: 1 | AF17: 13 | AG17: =IF( OR( ISNA( MATCH( AH17, $W$8:$W$13, 0 ) ), ISNA( MATCH( AJ17, $W$8:$W$13, 0 ) ) ), " . ", MAX( $AG$4:AG16 ) + 1 ) -> . | AH17: =IF( $AE17 = "", "", OFFSET( Season!$E$7, 2 * $AF17 - 1 + IF( AH$4 = $AJ$4, 1, 0 ), 3*( $AE17-1) + 0 ) ) -> E75 | AI17: =IF( $AE17 = "", "", OFFSET( Season!$E$7, 2 * $AF17 - 1 + IF( AH$4 = $AJ$4, 1, 0 ), 3*( $AE17-1) + 1 ) ) -> 14 | AJ17: =IF( $AE17 = "", "", OFFSET( Season!$E$7, 2 * $AF17 - 1 + IF( AJ$4 = $AJ$4, 1, 0 ), 3*( $AE17-1) + 0 ) ) -> E20 | AK17: =IF( $AE17 = "", "", OFFSET( Season!$E$7, 2 * $AF17 - 1 + IF( AJ$4 = $AJ$4, 1, 0 ), 3*( $AE17-1) + 1 ) ) -> 24 | AL17: E75 | AM17: E20 | AT17: President or designee to execute
A18: 13 | C18: =Season!E23 -> E14 | D18: 5 | E18: 10 | F18: 0 | G18: 10 | H18: 6 | I18: 15 | L18: =Season!E41 -> A572 | M18: 5 | N18: 9 | O18: 1 | P18: 11 | Q18: 6 | R18: 15 | U18: =IF( OR( MAX(AG:AG ) = 0, IF( $W$2 = 1, $BB$37, $BC$37 ) = 1 ), "", 1 ) -> 1 | V18: =IF( $U18 = "", "", OFFSET( $AE$1, MATCH( $U18,$AG:$AG, 0 ) - 1, 0 ) ) -> 4 | W18: =IF( $U18 = "", "", OFFSET( AH$1, MATCH( $U18,$AG:$AG, 0 ) - 1, 0 ) ) -> ENGR | X18: =IF( $U18 = "", "", OFFSET( AI$1, MATCH( $U18,$AG:$AG, 0 ) - 1, 0 ) ) -> 21 | Y18: =IF( $U18 = "", "", OFFSET( AJ$1, MATCH( $U18,$AG:$AG, 0 ) - 1, 0 ) ) -> CRF | Z18: =IF( $U18 = "", "", OFFSET( AK$1, MATCH( $U18,$AG:$AG, 0 ) - 1, 0 ) ) -> 21 | AA18: =IF( $U18 = "", "", IF( $X18 = "", "", OFFSET( AL$1, MATCH( $U18,$AG:$AG, 0 ) - 1, 0 ) ) ) -> Tie | AB18: =IF( $U18 = "", "", IF( $X18 = "", "", OFFSET( AM$1, MATCH( $U18,$AG:$AG, 0 ) - 1, 0 ) ) ) -> Tie | AE18: 1 | AF18: 14 | AG18: =IF( OR( ISNA( MATCH( AH18, $W$8:$W$13, 0 ) ), ISNA( MATCH( AJ18, $W$8:$W$13, 0 ) ) ), " . ", MAX( $AG$4:AG17 ) + 1 ) -> . | AH18: =IF( $AE18 = "", "", OFFSET( Season!$E$7, 2 * $AF18 - 1 + IF( AH$4 = $AJ$4, 1, 0 ), 3*( $AE18-1) + 0 ) ) -> SCM | AI18: =IF( $AE18 = "", "", OFFSET( Season!$E$7, 2 * $AF18 - 1 + IF( AH$4 = $AJ$4, 1, 0 ), 3*( $AE18-1) + 1 ) ) -> 7 | AJ18: =IF( $AE18 = "", "", OFFSET( Season!$E$7, 2 * $AF18 - 1 + IF( AJ$4 = $AJ$4, 1, 0 ), 3*( $AE18-1) + 0 ) ) -> O87 | AK18: =IF( $AE18 = "", "", OFFSET( Season!$E$7, 2 * $AF18 - 1 + IF( AJ$4 = $AJ$4, 1, 0 ), 3*( $AE18-1) + 1 ) ) -> 18 | AL18: SCM | AM18: O87 | AZ18: Example
A19: 14 | C19: =Season!E8 -> E17 | D19: 5 | E19: 10 | F19: 0 | G19: 10 | H19: 6 | I19: 15 | L19: =Season!E31 -> X10 | M19: 5 | N19: 9 | O19: 1 | P19: 11 | Q19: 6 | R19: 15 | U19: =IF( MAX(AG:AG ) = MAX( $U$18:U18 ), "", U18 + 1 ) ->  | AE19: 1 | AF19: 15 | AG19: =IF( OR( ISNA( MATCH( AH19, $W$8:$W$13, 0 ) ), ISNA( MATCH( AJ19, $W$8:$W$13, 0 ) ) ), " . ", MAX( $AG$4:AG18 ) + 1 ) -> . | AH19: =IF( $AE19 = "", "", OFFSET( Season!$E$7, 2 * $AF19 - 1 + IF( AH$4 = $AJ$4, 1, 0 ), 3*( $AE19-1) + 0 ) ) -> NNIT | AI19: =IF( $AE19 = "", "", OFFSET( Season!$E$7, 2 * $AF19 - 1 + IF( AH$4 = $AJ$4, 1, 0 ), 3*( $AE19-1) + 1 ) ) -> 22 | AJ19: =IF( $AE19 = "", "", OFFSET( Season!$E$7, 2 * $AF19 - 1 + IF( AJ$4 = $AJ$4, 1, 0 ), 3*( $AE19-1) + 0 ) ) -> CVN | AK19: =IF( $AE19 = "", "", OFFSET( Season!$E$7, 2 * $AF19 - 1 + IF( AJ$4 = $AJ$4, 1, 0 ), 3*( $AE19-1) + 1 ) ) -> 18 | AL19: CVN | AM19: NNIT | AS19: Standings Manipulation | BA19: Enter Relevant Matches | BH19: Points For and Against
A20: 15 | C20: =Season!E11 -> AMSC | D20: 3 | E20: 10 | F20: 1 | G20: 7 | H20: 7 | I20: 14 | L20: =Season!E37 -> CVN | M20: 5 | N20: 10 | O20: 0 | P20: 10 | Q20: 6.5 | R20: 15 | U20: =IF( MAX(AG:AG ) = MAX( $U$18:U19 ), "", U19 + 1 ) ->  | AE20: 1 | AF20: 16 | AG20: =IF( OR( ISNA( MATCH( AH20, $W$8:$W$13, 0 ) ), ISNA( MATCH( AJ20, $W$8:$W$13, 0 ) ) ), " . ", MAX( $AG$4:AG19 ) + 1 ) -> . | AH20: =IF( $AE20 = "", "", OFFSET( Season!$E$7, 2 * $AF20 - 1 + IF( AH$4 = $AJ$4, 1, 0 ), 3*( $AE20-1) + 0 ) ) -> ARG | AI20: =IF( $AE20 = "", "", OFFSET( Season!$E$7, 2 * $AF20 - 1 + IF( AH$4 = $AJ$4, 1, 0 ), 3*( $AE20-1) + 1 ) ) -> 30 | AJ20: =IF( $AE20 = "", "", OFFSET( Season!$E$7, 2 * $AF20 - 1 + IF( AJ$4 = $AJ$4, 1, 0 ), 3*( $AE20-1) + 0 ) ) -> CRF | AK20: =IF( $AE20 = "", "", OFFSET( Season!$E$7, 2 * $AF20 - 1 + IF( AJ$4 = $AJ$4, 1, 0 ), 3*( $AE20-1) + 1 ) ) -> 23 | AL20: CRF | AM20: ARG | AR20: 1 | AS20: To elevate a team in the standings: | BA20: CVN | BB20: 28 | BC20: E82 | BD20: 29 | BE20: =MATCH( BA20, $BH$21:$BH$23, 0 ) * 10 + MATCH( BC20, $BH$21:$BH$23, 0 ) -> 21 | BH20: Team | BI20: =BH21 -> E82 | BJ20: =BH22 -> CVN | BK20: =BH23 -> ARG | BL20: For
A21: 16 | C21: =Season!E21 -> X04 | D21: 3 | E21: 12 | F21: 0 | G21: 6 | H21: 8 | I21: 15 | L21: =Season!E26 -> E25 | M21: 3 | N21: 11 | O21: 1 | P21: 7 | Q21: 8 | R21: 15 | U21: =IF( MAX(AG:AG ) = MAX( $U$18:U20 ), "", U20 + 1 ) ->  | AE21: 1 | AF21: 17 | AG21: =IF( OR( ISNA( MATCH( AH21, $W$8:$W$13, 0 ) ), ISNA( MATCH( AJ21, $W$8:$W$13, 0 ) ) ), " . ", MAX( $AG$4:AG20 ) + 1 ) -> . | AH21: =IF( $AE21 = "", "", OFFSET( Season!$E$7, 2 * $AF21 - 1 + IF( AH$4 = $AJ$4, 1, 0 ), 3*( $AE21-1) + 0 ) ) -> O19 | AI21: =IF( $AE21 = "", "", OFFSET( Season!$E$7, 2 * $AF21 - 1 + IF( AH$4 = $AJ$4, 1, 0 ), 3*( $AE21-1) + 1 ) ) -> 11 | AJ21: =IF( $AE21 = "", "", OFFSET( Season!$E$7, 2 * $AF21 - 1 + IF( AJ$4 = $AJ$4, 1, 0 ), 3*( $AE21-1) + 0 ) ) -> A572 | AK21: =IF( $AE21 = "", "", OFFSET( Season!$E$7, 2 * $AF21 - 1 + IF( AJ$4 = $AJ$4, 1, 0 ), 3*( $AE21-1) + 1 ) ) -> 29 | AL21: O19 | AM21: A572 | AT21: Place a value of 1 or more in front of the team name (cells B6:22 or K6:22) | BA21: E82 | BB21: 32 | BC21: ARG | BD21: 36 | BE21: =MATCH( BA21, $BH$21:$BH$23, 0 ) * 10 + MATCH( BC21, $BH$21:$BH$23, 0 ) -> 13 | BG21: 1 | BH21: =BA21 -> E82 | BI21: =IF( BB$29 = $BG21, " - ", IF( ISNA( MATCH( $BG21 * 10 + BB$29, $BE$20:$BE$22, 0 ) ), OFFSET( $BB$19, MATCH( $BG21 + BB$29 * 10, $BE$20:$BE$22, 0 ), 2 ), OFFSET( $BB$19, MATCH( $BG21 * 10 + BB$29, $BE$20:$BE$22, 0 ), 0 ) ) ) -> - | BJ21: =IF( BC$29 = $BG21, " - ", IF( ISNA( MATCH( $BG21 * 10 + BC$29, $BE$20:$BE$22, 0 ) ), OFFSET( $BB$19, MATCH( $BG21 + BC$29 * 10, $BE$20:$BE$22, 0 ), 2 ), OFFSET( $BB$19, MATCH( $BG21 * 10 + BC$29, $BE$20:$BE$22, 0 ), 0 ) ) ) -> 29 | BK21: =IF( BD$29 = $BG21, " - ", IF( ISNA( MATCH( $BG21 * 10 + BD$29, $BE$20:$BE$22, 0 ) ), OFFSET( $BB$19, MATCH( $BG21 + BD$29 * 10, $BE$20:$BE$22, 0 ), 2 ), OFFSET( $BB$19, MATCH( $BG21 * 10 + BD$29, $BE$20:$BE$22, 0 ), 0 ) ) ) -> 32 | BL21: =SUM(BI21:BK21) -> 61
A22: 17 | U22: =IF( MAX(AG:AG ) = MAX( $U$18:U21 ), "", U21 + 1 ) ->  | AE22: =AE5 + 1 -> 2 | AF22: =AF5 -> 1 | AG22: =IF( OR( ISNA( MATCH( AH22, $W$8:$W$13, 0 ) ), ISNA( MATCH( AJ22, $W$8:$W$13, 0 ) ) ), " . ", MAX( $AG$4:AG21 ) + 1 ) -> . | AH22: =IF( $AE22 = "", "", OFFSET( Season!$E$7, 2 * $AF22 - 1 + IF( AH$4 = $AJ$4, 1, 0 ), 3*( $AE22-1) + 0 ) ) -> E86 | AI22: =IF( $AE22 = "", "", OFFSET( Season!$E$7, 2 * $AF22 - 1 + IF( AH$4 = $AJ$4, 1, 0 ), 3*( $AE22-1) + 1 ) ) -> 30 | AJ22: =IF( $AE22 = "", "", OFFSET( Season!$E$7, 2 * $AF22 - 1 + IF( AJ$4 = $AJ$4, 1, 0 ), 3*( $AE22-1) + 0 ) ) -> E83 | AK22: =IF( $AE22 = "", "", OFFSET( Season!$E$7, 2 * $AF22 - 1 + IF( AJ$4 = $AJ$4, 1, 0 ), 3*( $AE22-1) + 1 ) ) -> 16 | AL22: E83 | AM22: E86 | AR22: 2 | AS22: To demote a team in the standings: | BA22: CVN | BB22: 28 | BC22: ARG | BD22: 26 | BE22: =MATCH( BA22, $BH$21:$BH$23, 0 ) * 10 + MATCH( BC22, $BH$21:$BH$23, 0 ) -> 23 | BG22: 2 | BH22: CVN | BI22: =IF( BB$29 = $BG22, " - ", IF( ISNA( MATCH( $BG22 * 10 + BB$29, $BE$20:$BE$22, 0 ) ), OFFSET( $BB$19, MATCH( $BG22 + BB$29 * 10, $BE$20:$BE$22, 0 ), 2 ), OFFSET( $BB$19, MATCH( $BG22 * 10 + BB$29, $BE$20:$BE$22, 0 ), 0 ) ) ) -> 28 | BJ22: - | BK22: 28 | BL22: =SUM(BI22:BK22) -> 56
D23: =SUM(D6:D22) -> 114 | E23: =SUM(E6:E22) -> 114 | F23: =SUM(F6:F22) -> 10 | I23: =MAX( I6:I22 ) -> 15 | M23: =SUM(M6:M22) -> 114 | N23: =SUM(N6:N22) -> 114 | O23: =SUM(O6:O22) -> 12 | R23: =MAX( R6:R22 ) -> 15 | U23: =IF( MAX(AG:AG ) = MAX( $U$18:U22 ), "", U22 + 1 ) ->  | AE23: =AE6 + 1 -> 2 | AF23: =AF6 -> 2 | AG23: =IF( OR( ISNA( MATCH( AH23, $W$8:$W$13, 0 ) ), ISNA( MATCH( AJ23, $W$8:$W$13, 0 ) ) ), " . ", MAX( $AG$4:AG22 ) + 1 ) -> . | AH23: =IF( $AE23 = "", "", OFFSET( Season!$E$7, 2 * $AF23 - 1 + IF( AH$4 = $AJ$4, 1, 0 ), 3*( $AE23-1) + 0 ) ) -> AGS | AI23: =IF( $AE23 = "", "", OFFSET( Season!$E$7, 2 * $AF23 - 1 + IF( AH$4 = $AJ$4, 1, 0 ), 3*( $AE23-1) + 1 ) ) -> 26 | AJ23: =IF( $AE23 = "", "", OFFSET( Season!$E$7, 2 * $AF23 - 1 + IF( AJ$4 = $AJ$4, 1, 0 ), 3*( $AE23-1) + 0 ) ) -> E12 | AK23: =IF( $AE23 = "", "", OFFSET( Season!$E$7, 2 * $AF23 - 1 + IF( AJ$4 = $AJ$4, 1, 0 ), 3*( $AE23-1) + 1 ) ) -> 28 | AL23: AGS | AM23: E12 | AT23: Place a value of -1 or less in front of the team name (cells B6:22 or K6:22) | BG23: 3 | BH23: =BC21 -> ARG | BI23: 36 | BJ23: 26 | BK23: - | BL23: =SUM(BI23:BK23) -> 62
U24: =IF( MAX(AG:AG ) = MAX( $U$18:U23 ), "", U23 + 1 ) ->  | AE24: 2 | AF24: 3 | AG24: =IF( OR( ISNA( MATCH( AH24, $W$8:$W$13, 0 ) ), ISNA( MATCH( AJ24, $W$8:$W$13, 0 ) ) ), " . ", MAX( $AG$4:AG23 ) + 1 ) -> . | AH24: =IF( $AE24 = "", "", OFFSET( Season!$E$7, 2 * $AF24 - 1 + IF( AH$4 = $AJ$4, 1, 0 ), 3*( $AE24-1) + 0 ) ) -> E42 | AI24: =IF( $AE24 = "", "", OFFSET( Season!$E$7, 2 * $AF24 - 1 + IF( AH$4 = $AJ$4, 1, 0 ), 3*( $AE24-1) + 1 ) ) -> 36 | AJ24: =IF( $AE24 = "", "", OFFSET( Season!$E$7, 2 * $AF24 - 1 + IF( AJ$4 = $AJ$4, 1, 0 ), 3*( $AE24-1) + 0 ) ) -> E60 | AK24: =IF( $AE24 = "", "", OFFSET( Season!$E$7, 2 * $AF24 - 1 + IF( AJ$4 = $AJ$4, 1, 0 ), 3*( $AE24-1) + 1 ) ) -> 25 | AL24: E60 | AM24: E42 | AR24: 3 | AS24: Click on the "Sort Standings" button (cell J2) | BA24: Point Difference | BH24: Against | BI24: =SUM(BI21:BI23) -> 64 | BJ24: =SUM(BJ21:BJ23) -> 55 | BK24: =SUM(BK21:BK23) -> 60
U25: =IF( MAX(AG:AG ) = MAX( $U$18:U24 ), "", U24 + 1 ) ->  | AE25: 2 | AF25: 4 | AG25: =IF( OR( ISNA( MATCH( AH25, $W$8:$W$13, 0 ) ), ISNA( MATCH( AJ25, $W$8:$W$13, 0 ) ) ), " . ", MAX( $AG$4:AG24 ) + 1 ) -> . | AH25: =IF( $AE25 = "", "", OFFSET( Season!$E$7, 2 * $AF25 - 1 + IF( AH$4 = $AJ$4, 1, 0 ), 3*( $AE25-1) + 0 ) ) -> X87 | AI25: =IF( $AE25 = "", "", OFFSET( Season!$E$7, 2 * $AF25 - 1 + IF( AH$4 = $AJ$4, 1, 0 ), 3*( $AE25-1) + 1 ) ) -> 17 | AJ25: =IF( $AE25 = "", "", OFFSET( Season!$E$7, 2 * $AF25 - 1 + IF( AJ$4 = $AJ$4, 1, 0 ), 3*( $AE25-1) + 0 ) ) -> E55B | AK25: =IF( $AE25 = "", "", OFFSET( Season!$E$7, 2 * $AF25 - 1 + IF( AJ$4 = $AJ$4, 1, 0 ), 3*( $AE25-1) + 1 ) ) -> 27 | AL25: X87 | AM25: E55B | AT25: Before July, this button sorts by Points, then by GB. After June, it is points only. | BA25: Team | BB25: =BI20 -> E82 | BC25: =BJ20 -> CVN | BD25: =BK20 -> ARG
U26: =IF( MAX(AG:AG ) = MAX( $U$18:U25 ), "", U25 + 1 ) ->  | AE26: 2 | AF26: 5 | AG26: =IF( OR( ISNA( MATCH( AH26, $W$8:$W$13, 0 ) ), ISNA( MATCH( AJ26, $W$8:$W$13, 0 ) ) ), " . ", MAX( $AG$4:AG25 ) + 1 ) -> . | AH26: =IF( $AE26 = "", "", OFFSET( Season!$E$7, 2 * $AF26 - 1 + IF( AH$4 = $AJ$4, 1, 0 ), 3*( $AE26-1) + 0 ) ) -> X88 | AI26: =IF( $AE26 = "", "", OFFSET( Season!$E$7, 2 * $AF26 - 1 + IF( AH$4 = $AJ$4, 1, 0 ), 3*( $AE26-1) + 1 ) ) -> 22.7 | AJ26: =IF( $AE26 = "", "", OFFSET( Season!$E$7, 2 * $AF26 - 1 + IF( AJ$4 = $AJ$4, 1, 0 ), 3*( $AE26-1) + 0 ) ) -> SUBS | AK26: =IF( $AE26 = "", "", OFFSET( Season!$E$7, 2 * $AF26 - 1 + IF( AJ$4 = $AJ$4, 1, 0 ), 3*( $AE26-1) + 1 ) ) -> 19.9 | AL26: SUBS | AM26: X88 | BA26: PF | BB26: =SUM(BI21:BK21) -> 61 | BC26: =SUM(BI22:BK22) -> 56 | BD26: =SUM(BI23:BK23) -> 62
U27: =IF( MAX(AG:AG ) = MAX( $U$18:U26 ), "", U26 + 1 ) ->  | AE27: 2 | AF27: 6 | AG27: =IF( OR( ISNA( MATCH( AH27, $W$8:$W$13, 0 ) ), ISNA( MATCH( AJ27, $W$8:$W$13, 0 ) ) ), " . ", MAX( $AG$4:AG26 ) + 1 ) -> . | AH27: =IF( $AE27 = "", "", OFFSET( Season!$E$7, 2 * $AF27 - 1 + IF( AH$4 = $AJ$4, 1, 0 ), 3*( $AE27-1) + 0 ) ) -> X04 | AI27: =IF( $AE27 = "", "", OFFSET( Season!$E$7, 2 * $AF27 - 1 + IF( AH$4 = $AJ$4, 1, 0 ), 3*( $AE27-1) + 1 ) ) -> 32 | AJ27: =IF( $AE27 = "", "", OFFSET( Season!$E$7, 2 * $AF27 - 1 + IF( AJ$4 = $AJ$4, 1, 0 ), 3*( $AE27-1) + 0 ) ) -> AMSC | AK27: =IF( $AE27 = "", "", OFFSET( Season!$E$7, 2 * $AF27 - 1 + IF( AJ$4 = $AJ$4, 1, 0 ), 3*( $AE27-1) + 1 ) ) -> 31 | AL27: AMSC | AM27: X04 | BA27: PA | BB27: =SUM(BI21:BI23) -> 64 | BC27: =SUM(BJ21:BJ23) -> 55 | BD27: =SUM(BK21:BK23) -> 60 | BG27: - Input fields
U28: =IF( MAX(AG:AG ) = MAX( $U$18:U27 ), "", U27 + 1 ) ->  | AE28: 2 | AF28: 7 | AG28: =IF( OR( ISNA( MATCH( AH28, $W$8:$W$13, 0 ) ), ISNA( MATCH( AJ28, $W$8:$W$13, 0 ) ) ), " . ", MAX( $AG$4:AG27 ) + 1 ) -> . | AH28: =IF( $AE28 = "", "", OFFSET( Season!$E$7, 2 * $AF28 - 1 + IF( AH$4 = $AJ$4, 1, 0 ), 3*( $AE28-1) + 0 ) ) -> E17 | AI28: =IF( $AE28 = "", "", OFFSET( Season!$E$7, 2 * $AF28 - 1 + IF( AH$4 = $AJ$4, 1, 0 ), 3*( $AE28-1) + 1 ) ) -> 30 | AJ28: =IF( $AE28 = "", "", OFFSET( Season!$E$7, 2 * $AF28 - 1 + IF( AJ$4 = $AJ$4, 1, 0 ), 3*( $AE28-1) + 0 ) ) -> E55a | AK28: =IF( $AE28 = "", "", OFFSET( Season!$E$7, 2 * $AF28 - 1 + IF( AJ$4 = $AJ$4, 1, 0 ), 3*( $AE28-1) + 1 ) ) -> 24 | AL28: E55a | AM28: E17 | BA28: Diff | BB28: =BB26-BB27 -> -3 | BC28: =BC26-BC27 -> 1 | BD28: =BD26-BD27 -> 2 | BE28: <-- The lower the score, the better
U29: =IF( MAX(AG:AG ) = MAX( $U$18:U28 ), "", U28 + 1 ) ->  | AE29: 2 | AF29: 8 | AG29: =IF( OR( ISNA( MATCH( AH29, $W$8:$W$13, 0 ) ), ISNA( MATCH( AJ29, $W$8:$W$13, 0 ) ) ), " . ", MAX( $AG$4:AG28 ) + 1 ) -> . | AH29: =IF( $AE29 = "", "", OFFSET( Season!$E$7, 2 * $AF29 - 1 + IF( AH$4 = $AJ$4, 1, 0 ), 3*( $AE29-1) + 0 ) ) -> E14 | AI29: =IF( $AE29 = "", "", OFFSET( Season!$E$7, 2 * $AF29 - 1 + IF( AH$4 = $AJ$4, 1, 0 ), 3*( $AE29-1) + 1 ) ) -> 33 | AJ29: =IF( $AE29 = "", "", OFFSET( Season!$E$7, 2 * $AF29 - 1 + IF( AJ$4 = $AJ$4, 1, 0 ), 3*( $AE29-1) + 0 ) ) -> X01 | AK29: =IF( $AE29 = "", "", OFFSET( Season!$E$7, 2 * $AF29 - 1 + IF( AJ$4 = $AJ$4, 1, 0 ), 3*( $AE29-1) + 1 ) ) -> 27 | AL29: X01 | AM29: E14 | BB29: 1 | BC29: 2 | BD29: 3 | BE29: =CONCATENATE( " ", MIN( BB28:BD28), " is better than ", MAX( BB28:BD28 ) ) -> -3 is better than 2
U30: =IF( MAX(AG:AG ) = MAX( $U$18:U29 ), "", U29 + 1 ) ->  | AE30: 2 | AF30: 9 | AG30: =IF( OR( ISNA( MATCH( AH30, $W$8:$W$13, 0 ) ), ISNA( MATCH( AJ30, $W$8:$W$13, 0 ) ) ), " . ", MAX( $AG$4:AG29 ) + 1 ) -> . | AH30: =IF( $AE30 = "", "", OFFSET( Season!$E$7, 2 * $AF30 - 1 + IF( AH$4 = $AJ$4, 1, 0 ), 3*( $AE30-1) + 0 ) ) -> 0 | AI30: =IF( $AE30 = "", "", OFFSET( Season!$E$7, 2 * $AF30 - 1 + IF( AH$4 = $AJ$4, 1, 0 ), 3*( $AE30-1) + 1 ) ) -> 0 | AJ30: =IF( $AE30 = "", "", OFFSET( Season!$E$7, 2 * $AF30 - 1 + IF( AJ$4 = $AJ$4, 1, 0 ), 3*( $AE30-1) + 0 ) ) -> 0 | AK30: =IF( $AE30 = "", "", OFFSET( Season!$E$7, 2 * $AF30 - 1 + IF( AJ$4 = $AJ$4, 1, 0 ), 3*( $AE30-1) + 1 ) ) -> 0 | AL30: x | AM30: x | BE30: =CONCATENATE( " ", BH21, " would be ranked above ", BH23 ) -> E82 would be ranked above ARG
U31: =IF( MAX(AG:AG ) = MAX( $U$18:U30 ), "", U30 + 1 ) ->  | AE31: 2 | AF31: 10 | AG31: =IF( OR( ISNA( MATCH( AH31, $W$8:$W$13, 0 ) ), ISNA( MATCH( AJ31, $W$8:$W$13, 0 ) ) ), " . ", MAX( $AG$4:AG30 ) + 1 ) -> . | AH31: =IF( $AE31 = "", "", OFFSET( Season!$E$7, 2 * $AF31 - 1 + IF( AH$4 = $AJ$4, 1, 0 ), 3*( $AE31-1) + 0 ) ) -> O19 | AI31: =IF( $AE31 = "", "", OFFSET( Season!$E$7, 2 * $AF31 - 1 + IF( AH$4 = $AJ$4, 1, 0 ), 3*( $AE31-1) + 1 ) ) -> 19 | AJ31: =IF( $AE31 = "", "", OFFSET( Season!$E$7, 2 * $AF31 - 1 + IF( AJ$4 = $AJ$4, 1, 0 ), 3*( $AE31-1) + 0 ) ) -> X31 | AK31: =IF( $AE31 = "", "", OFFSET( Season!$E$7, 2 * $AF31 - 1 + IF( AJ$4 = $AJ$4, 1, 0 ), 3*( $AE31-1) + 1 ) ) -> 13 | AL31: X31 | AM31: O19
U32: =IF( MAX(AG:AG ) = MAX( $U$18:U31 ), "", U31 + 1 ) ->  | AE32: 2 | AF32: 11 | AG32: =IF( OR( ISNA( MATCH( AH32, $W$8:$W$13, 0 ) ), ISNA( MATCH( AJ32, $W$8:$W$13, 0 ) ) ), " . ", MAX( $AG$4:AG31 ) + 1 ) -> . | AH32: =IF( $AE32 = "", "", OFFSET( Season!$E$7, 2 * $AF32 - 1 + IF( AH$4 = $AJ$4, 1, 0 ), 3*( $AE32-1) + 0 ) ) -> NNIT | AI32: =IF( $AE32 = "", "", OFFSET( Season!$E$7, 2 * $AF32 - 1 + IF( AH$4 = $AJ$4, 1, 0 ), 3*( $AE32-1) + 1 ) ) -> 32 | AJ32: =IF( $AE32 = "", "", OFFSET( Season!$E$7, 2 * $AF32 - 1 + IF( AJ$4 = $AJ$4, 1, 0 ), 3*( $AE32-1) + 0 ) ) -> E20 | AK32: =IF( $AE32 = "", "", OFFSET( Season!$E$7, 2 * $AF32 - 1 + IF( AJ$4 = $AJ$4, 1, 0 ), 3*( $AE32-1) + 1 ) ) -> 19 | AL32: E20 | AM32: NNIT
U33: =IF( MAX(AG:AG ) = MAX( $U$18:U32 ), "", U32 + 1 ) ->  | AE33: 2 | AF33: 12 | AG33: =IF( OR( ISNA( MATCH( AH33, $W$8:$W$13, 0 ) ), ISNA( MATCH( AJ33, $W$8:$W$13, 0 ) ) ), " . ", MAX( $AG$4:AG32 ) + 1 ) -> . | AH33: =IF( $AE33 = "", "", OFFSET( Season!$E$7, 2 * $AF33 - 1 + IF( AH$4 = $AJ$4, 1, 0 ), 3*( $AE33-1) + 0 ) ) -> ARG | AI33: =IF( $AE33 = "", "", OFFSET( Season!$E$7, 2 * $AF33 - 1 + IF( AH$4 = $AJ$4, 1, 0 ), 3*( $AE33-1) + 1 ) ) -> -1 | AJ33: =IF( $AE33 = "", "", OFFSET( Season!$E$7, 2 * $AF33 - 1 + IF( AJ$4 = $AJ$4, 1, 0 ), 3*( $AE33-1) + 0 ) ) -> ENGR | AK33: =IF( $AE33 = "", "", OFFSET( Season!$E$7, 2 * $AF33 - 1 + IF( AJ$4 = $AJ$4, 1, 0 ), 3*( $AE33-1) + 1 ) ) -> 34 | AL33: ARG | AM33: ENGR
AE34: 2 | AF34: 13 | AG34: =IF( OR( ISNA( MATCH( AH34, $W$8:$W$13, 0 ) ), ISNA( MATCH( AJ34, $W$8:$W$13, 0 ) ) ), " . ", MAX( $AG$4:AG33 ) + 1 ) -> . | AH34: =IF( $AE34 = "", "", OFFSET( Season!$E$7, 2 * $AF34 - 1 + IF( AH$4 = $AJ$4, 1, 0 ), 3*( $AE34-1) + 0 ) ) -> O87 | AI34: =IF( $AE34 = "", "", OFFSET( Season!$E$7, 2 * $AF34 - 1 + IF( AH$4 = $AJ$4, 1, 0 ), 3*( $AE34-1) + 1 ) ) -> 30 | AJ34: =IF( $AE34 = "", "", OFFSET( Season!$E$7, 2 * $AF34 - 1 + IF( AJ$4 = $AJ$4, 1, 0 ), 3*( $AE34-1) + 0 ) ) -> M10 | AK34: =IF( $AE34 = "", "", OFFSET( Season!$E$7, 2 * $AF34 - 1 + IF( AJ$4 = $AJ$4, 1, 0 ), 3*( $AE34-1) + 1 ) ) -> 15 | AL34: M10 | AM34: O87 | BB34: A | BC34: B
AE35: 2 | AF35: 14 | AG35: =IF( OR( ISNA( MATCH( AH35, $W$8:$W$13, 0 ) ), ISNA( MATCH( AJ35, $W$8:$W$13, 0 ) ) ), " . ", MAX( $AG$4:AG34 ) + 1 ) -> . | AH35: =IF( $AE35 = "", "", OFFSET( Season!$E$7, 2 * $AF35 - 1 + IF( AH$4 = $AJ$4, 1, 0 ), 3*( $AE35-1) + 0 ) ) -> CVN | AI35: =IF( $AE35 = "", "", OFFSET( Season!$E$7, 2 * $AF35 - 1 + IF( AH$4 = $AJ$4, 1, 0 ), 3*( $AE35-1) + 1 ) ) -> 17 | AJ35: =IF( $AE35 = "", "", OFFSET( Season!$E$7, 2 * $AF35 - 1 + IF( AJ$4 = $AJ$4, 1, 0 ), 3*( $AE35-1) + 0 ) ) -> E75 | AK35: =IF( $AE35 = "", "", OFFSET( Season!$E$7, 2 * $AF35 - 1 + IF( AJ$4 = $AJ$4, 1, 0 ), 3*( $AE35-1) + 1 ) ) -> 13 | AL35: E75 | AM35: CVN | BA35: Points | BB35: =OFFSET( $G$5, $W$4, 0 ) -> 16 | BC35: =OFFSET( $P$5, $W$4, 0 ) -> 15
AE36: 2 | AF36: 15 | AG36: =IF( OR( ISNA( MATCH( AH36, $W$8:$W$13, 0 ) ), ISNA( MATCH( AJ36, $W$8:$W$13, 0 ) ) ), " . ", MAX( $AG$4:AG35 ) + 1 ) -> . | AH36: =IF( $AE36 = "", "", OFFSET( Season!$E$7, 2 * $AF36 - 1 + IF( AH$4 = $AJ$4, 1, 0 ), 3*( $AE36-1) + 0 ) ) -> CRF | AI36: =IF( $AE36 = "", "", OFFSET( Season!$E$7, 2 * $AF36 - 1 + IF( AH$4 = $AJ$4, 1, 0 ), 3*( $AE36-1) + 1 ) ) -> 17 | AJ36: =IF( $AE36 = "", "", OFFSET( Season!$E$7, 2 * $AF36 - 1 + IF( AJ$4 = $AJ$4, 1, 0 ), 3*( $AE36-1) + 0 ) ) -> O46 | AK36: =IF( $AE36 = "", "", OFFSET( Season!$E$7, 2 * $AF36 - 1 + IF( AJ$4 = $AJ$4, 1, 0 ), 3*( $AE36-1) + 1 ) ) -> 24 | AL36: CRF | AM36: O46 | BA36: Row | BB36: =MATCH( BB$35, $G$6:$G$22, 0 ) -> 8 | BC36: =MATCH( BC$35, $P$6:$P$22, 0 ) -> 8
AE37: 2 | AF37: 16 | AG37: =IF( OR( ISNA( MATCH( AH37, $W$8:$W$13, 0 ) ), ISNA( MATCH( AJ37, $W$8:$W$13, 0 ) ) ), " . ", MAX( $AG$4:AG36 ) + 1 ) -> . | AH37: =IF( $AE37 = "", "", OFFSET( Season!$E$7, 2 * $AF37 - 1 + IF( AH$4 = $AJ$4, 1, 0 ), 3*( $AE37-1) + 0 ) ) -> E25 | AI37: =IF( $AE37 = "", "", OFFSET( Season!$E$7, 2 * $AF37 - 1 + IF( AH$4 = $AJ$4, 1, 0 ), 3*( $AE37-1) + 1 ) ) -> 32 | AJ37: =IF( $AE37 = "", "", OFFSET( Season!$E$7, 2 * $AF37 - 1 + IF( AJ$4 = $AJ$4, 1, 0 ), 3*( $AE37-1) + 0 ) ) -> SCM | AK37: =IF( $AE37 = "", "", OFFSET( Season!$E$7, 2 * $AF37 - 1 + IF( AJ$4 = $AJ$4, 1, 0 ), 3*( $AE37-1) + 1 ) ) -> 13 | AL37: SCM | AM37: E25 | BA37: Count | BB37: =COUNTIF( $G$6:$G$22, $BB$35 ) -> 1 | BC37: =COUNTIF( $P$6:$P$22, $BC$35 ) -> 2
AE38: 2 | AF38: 17 | AG38: =IF( OR( ISNA( MATCH( AH38, $W$8:$W$13, 0 ) ), ISNA( MATCH( AJ38, $W$8:$W$13, 0 ) ) ), " . ", MAX( $AG$4:AG37 ) + 1 ) -> . | AH38: =IF( $AE38 = "", "", OFFSET( Season!$E$7, 2 * $AF38 - 1 + IF( AH$4 = $AJ$4, 1, 0 ), 3*( $AE38-1) + 0 ) ) -> A572 | AI38: =IF( $AE38 = "", "", OFFSET( Season!$E$7, 2 * $AF38 - 1 + IF( AH$4 = $AJ$4, 1, 0 ), 3*( $AE38-1) + 1 ) ) -> 27 | AJ38: =IF( $AE38 = "", "", OFFSET( Season!$E$7, 2 * $AF38 - 1 + IF( AJ$4 = $AJ$4, 1, 0 ), 3*( $AE38-1) + 0 ) ) -> X10 | AK38: =IF( $AE38 = "", "", OFFSET( Season!$E$7, 2 * $AF38 - 1 + IF( AJ$4 = $AJ$4, 1, 0 ), 3*( $AE38-1) + 1 ) ) -> 8 | AL38: X10 | AM38: A572
AE39: 3 | AF39: 1 | AG39: =IF( OR( ISNA( MATCH( AH39, $W$8:$W$13, 0 ) ), ISNA( MATCH( AJ39, $W$8:$W$13, 0 ) ) ), " . ", MAX( $AG$4:AG38 ) + 1 ) -> . | AH39: =IF( $AE39 = "", "", OFFSET( Season!$E$7, 2 * $AF39 - 1 + IF( AH$4 = $AJ$4, 1, 0 ), 3*( $AE39-1) + 0 ) ) -> X88 | AI39: =IF( $AE39 = "", "", OFFSET( Season!$E$7, 2 * $AF39 - 1 + IF( AH$4 = $AJ$4, 1, 0 ), 3*( $AE39-1) + 1 ) ) -> 23 | AJ39: =IF( $AE39 = "", "", OFFSET( Season!$E$7, 2 * $AF39 - 1 + IF( AJ$4 = $AJ$4, 1, 0 ), 3*( $AE39-1) + 0 ) ) -> AMSC | AK39: =IF( $AE39 = "", "", OFFSET( Season!$E$7, 2 * $AF39 - 1 + IF( AJ$4 = $AJ$4, 1, 0 ), 3*( $AE39-1) + 1 ) ) -> 28 | AL39: X88 | AM39: AMSC
AE40: 3 | AF40: 2 | AG40: =IF( OR( ISNA( MATCH( AH40, $W$8:$W$13, 0 ) ), ISNA( MATCH( AJ40, $W$8:$W$13, 0 ) ) ), " . ", MAX( $AG$4:AG39 ) + 1 ) -> . | AH40: =IF( $AE40 = "", "", OFFSET( Season!$E$7, 2 * $AF40 - 1 + IF( AH$4 = $AJ$4, 1, 0 ), 3*( $AE40-1) + 0 ) ) -> X04 | AI40: =IF( $AE40 = "", "", OFFSET( Season!$E$7, 2 * $AF40 - 1 + IF( AH$4 = $AJ$4, 1, 0 ), 3*( $AE40-1) + 1 ) ) -> 22 | AJ40: =IF( $AE40 = "", "", OFFSET( Season!$E$7, 2 * $AF40 - 1 + IF( AJ$4 = $AJ$4, 1, 0 ), 3*( $AE40-1) + 0 ) ) -> SUBS | AK40: =IF( $AE40 = "", "", OFFSET( Season!$E$7, 2 * $AF40 - 1 + IF( AJ$4 = $AJ$4, 1, 0 ), 3*( $AE40-1) + 1 ) ) -> 13 | AL40: SUBS | AM40: X04
AE41: 3 | AF41: 3 | AG41: =IF( OR( ISNA( MATCH( AH41, $W$8:$W$13, 0 ) ), ISNA( MATCH( AJ41, $W$8:$W$13, 0 ) ) ), " . ", MAX( $AG$4:AG40 ) + 1 ) -> . | AH41: =IF( $AE41 = "", "", OFFSET( Season!$E$7, 2 * $AF41 - 1 + IF( AH$4 = $AJ$4, 1, 0 ), 3*( $AE41-1) + 0 ) ) -> E55a | AI41: =IF( $AE41 = "", "", OFFSET( Season!$E$7, 2 * $AF41 - 1 + IF( AH$4 = $AJ$4, 1, 0 ), 3*( $AE41-1) + 1 ) ) -> 21 | AJ41: =IF( $AE41 = "", "", OFFSET( Season!$E$7, 2 * $AF41 - 1 + IF( AJ$4 = $AJ$4, 1, 0 ), 3*( $AE41-1) + 0 ) ) -> E86 | AK41: =IF( $AE41 = "", "", OFFSET( Season!$E$7, 2 * $AF41 - 1 + IF( AJ$4 = $AJ$4, 1, 0 ), 3*( $AE41-1) + 1 ) ) -> 17 | AL41: E86 | AM41: E55a
AE42: 3 | AF42: 4 | AG42: =IF( OR( ISNA( MATCH( AH42, $W$8:$W$13, 0 ) ), ISNA( MATCH( AJ42, $W$8:$W$13, 0 ) ) ), " . ", MAX( $AG$4:AG41 ) + 1 ) -> . | AH42: =IF( $AE42 = "", "", OFFSET( Season!$E$7, 2 * $AF42 - 1 + IF( AH$4 = $AJ$4, 1, 0 ), 3*( $AE42-1) + 0 ) ) -> E14 | AI42: =IF( $AE42 = "", "", OFFSET( Season!$E$7, 2 * $AF42 - 1 + IF( AH$4 = $AJ$4, 1, 0 ), 3*( $AE42-1) + 1 ) ) -> 23 | AJ42: =IF( $AE42 = "", "", OFFSET( Season!$E$7, 2 * $AF42 - 1 + IF( AJ$4 = $AJ$4, 1, 0 ), 3*( $AE42-1) + 0 ) ) -> X87 | AK42: =IF( $AE42 = "", "", OFFSET( Season!$E$7, 2 * $AF42 - 1 + IF( AJ$4 = $AJ$4, 1, 0 ), 3*( $AE42-1) + 1 ) ) -> 16 | AL42: X87 | AM42: E14
AE43: 3 | AF43: 5 | AG43: =IF( OR( ISNA( MATCH( AH43, $W$8:$W$13, 0 ) ), ISNA( MATCH( AJ43, $W$8:$W$13, 0 ) ) ), " . ", MAX( $AG$4:AG42 ) + 1 ) -> . | AH43: =IF( $AE43 = "", "", OFFSET( Season!$E$7, 2 * $AF43 - 1 + IF( AH$4 = $AJ$4, 1, 0 ), 3*( $AE43-1) + 0 ) ) -> E55B | AI43: =IF( $AE43 = "", "", OFFSET( Season!$E$7, 2 * $AF43 - 1 + IF( AH$4 = $AJ$4, 1, 0 ), 3*( $AE43-1) + 1 ) ) -> 19 | AJ43: =IF( $AE43 = "", "", OFFSET( Season!$E$7, 2 * $AF43 - 1 + IF( AJ$4 = $AJ$4, 1, 0 ), 3*( $AE43-1) + 0 ) ) -> X01 | AK43: =IF( $AE43 = "", "", OFFSET( Season!$E$7, 2 * $AF43 - 1 + IF( AJ$4 = $AJ$4, 1, 0 ), 3*( $AE43-1) + 1 ) ) -> 14 | AL43: X01 | AM43: E55B
AE44: 3 | AF44: 6 | AG44: =IF( OR( ISNA( MATCH( AH44, $W$8:$W$13, 0 ) ), ISNA( MATCH( AJ44, $W$8:$W$13, 0 ) ) ), " . ", MAX( $AG$4:AG43 ) + 1 ) -> . | AH44: =IF( $AE44 = "", "", OFFSET( Season!$E$7, 2 * $AF44 - 1 + IF( AH$4 = $AJ$4, 1, 0 ), 3*( $AE44-1) + 0 ) ) -> E12 | AI44: =IF( $AE44 = "", "", OFFSET( Season!$E$7, 2 * $AF44 - 1 + IF( AH$4 = $AJ$4, 1, 0 ), 3*( $AE44-1) + 1 ) ) -> 22 | AJ44: =IF( $AE44 = "", "", OFFSET( Season!$E$7, 2 * $AF44 - 1 + IF( AJ$4 = $AJ$4, 1, 0 ), 3*( $AE44-1) + 0 ) ) -> E42 | AK44: =IF( $AE44 = "", "", OFFSET( Season!$E$7, 2 * $AF44 - 1 + IF( AJ$4 = $AJ$4, 1, 0 ), 3*( $AE44-1) + 1 ) ) -> 24 | AL44: E12 | AM44: E42
AE45: =AE28 + 1 -> 3 | AF45: =AF28 -> 7 | AG45: =IF( OR( ISNA( MATCH( AH45, $W$8:$W$13, 0 ) ), ISNA( MATCH( AJ45, $W$8:$W$13, 0 ) ) ), " . ", MAX( $AG$4:AG44 ) + 1 ) -> . | AH45: =IF( $AE45 = "", "", OFFSET( Season!$E$7, 2 * $AF45 - 1 + IF( AH$4 = $AJ$4, 1, 0 ), 3*( $AE45-1) + 0 ) ) -> E83 | AI45: =IF( $AE45 = "", "", OFFSET( Season!$E$7, 2 * $AF45 - 1 + IF( AH$4 = $AJ$4, 1, 0 ), 3*( $AE45-1) + 1 ) ) -> 17 | AJ45: =IF( $AE45 = "", "", OFFSET( Season!$E$7, 2 * $AF45 - 1 + IF( AJ$4 = $AJ$4, 1, 0 ), 3*( $AE45-1) + 0 ) ) -> E17 | AK45: =IF( $AE45 = "", "", OFFSET( Season!$E$7, 2 * $AF45 - 1 + IF( AJ$4 = $AJ$4, 1, 0 ), 3*( $AE45-1) + 1 ) ) -> 30 | AL45: E83 | AM45: E17
AE46: 3 | AF46: 8 | AG46: =IF( OR( ISNA( MATCH( AH46, $W$8:$W$13, 0 ) ), ISNA( MATCH( AJ46, $W$8:$W$13, 0 ) ) ), " . ", MAX( $AG$4:AG45 ) + 1 ) -> . | AH46: =IF( $AE46 = "", "", OFFSET( Season!$E$7, 2 * $AF46 - 1 + IF( AH$4 = $AJ$4, 1, 0 ), 3*( $AE46-1) + 0 ) ) -> E60 | AI46: =IF( $AE46 = "", "", OFFSET( Season!$E$7, 2 * $AF46 - 1 + IF( AH$4 = $AJ$4, 1, 0 ), 3*( $AE46-1) + 1 ) ) -> 17 | AJ46: =IF( $AE46 = "", "", OFFSET( Season!$E$7, 2 * $AF46 - 1 + IF( AJ$4 = $AJ$4, 1, 0 ), 3*( $AE46-1) + 0 ) ) -> AGS | AK46: =IF( $AE46 = "", "", OFFSET( Season!$E$7, 2 * $AF46 - 1 + IF( AJ$4 = $AJ$4, 1, 0 ), 3*( $AE46-1) + 1 ) ) -> 19 | AL46: E60 | AM46: AGS
AE47: 3 | AF47: 9 | AG47: =IF( OR( ISNA( MATCH( AH47, $W$8:$W$13, 0 ) ), ISNA( MATCH( AJ47, $W$8:$W$13, 0 ) ) ), " . ", MAX( $AG$4:AG46 ) + 1 ) -> . | AH47: =IF( $AE47 = "", "", OFFSET( Season!$E$7, 2 * $AF47 - 1 + IF( AH$4 = $AJ$4, 1, 0 ), 3*( $AE47-1) + 0 ) ) -> 0 | AI47: =IF( $AE47 = "", "", OFFSET( Season!$E$7, 2 * $AF47 - 1 + IF( AH$4 = $AJ$4, 1, 0 ), 3*( $AE47-1) + 1 ) ) -> 0 | AJ47: =IF( $AE47 = "", "", OFFSET( Season!$E$7, 2 * $AF47 - 1 + IF( AJ$4 = $AJ$4, 1, 0 ), 3*( $AE47-1) + 0 ) ) -> 0 | AK47: =IF( $AE47 = "", "", OFFSET( Season!$E$7, 2 * $AF47 - 1 + IF( AJ$4 = $AJ$4, 1, 0 ), 3*( $AE47-1) + 1 ) ) -> 0 | AL47: x | AM47: x
AE48: 3 | AF48: 10 | AG48: =IF( OR( ISNA( MATCH( AH48, $W$8:$W$13, 0 ) ), ISNA( MATCH( AJ48, $W$8:$W$13, 0 ) ) ), " . ", MAX( $AG$4:AG47 ) + 1 ) -> . | AH48: =IF( $AE48 = "", "", OFFSET( Season!$E$7, 2 * $AF48 - 1 + IF( AH$4 = $AJ$4, 1, 0 ), 3*( $AE48-1) + 0 ) ) -> CVN | AI48: =IF( $AE48 = "", "", OFFSET( Season!$E$7, 2 * $AF48 - 1 + IF( AH$4 = $AJ$4, 1, 0 ), 3*( $AE48-1) + 1 ) ) -> 21 | AJ48: =IF( $AE48 = "", "", OFFSET( Season!$E$7, 2 * $AF48 - 1 + IF( AJ$4 = $AJ$4, 1, 0 ), 3*( $AE48-1) + 0 ) ) -> O46 | AK48: =IF( $AE48 = "", "", OFFSET( Season!$E$7, 2 * $AF48 - 1 + IF( AJ$4 = $AJ$4, 1, 0 ), 3*( $AE48-1) + 1 ) ) -> 11 | AL48: O46 | AM48: CVN
AE49: 3 | AF49: 11 | AG49: =IF( OR( ISNA( MATCH( AH49, $W$8:$W$13, 0 ) ), ISNA( MATCH( AJ49, $W$8:$W$13, 0 ) ) ), " . ", MAX( $AG$4:AG48 ) + 1 ) -> . | AH49: =IF( $AE49 = "", "", OFFSET( Season!$E$7, 2 * $AF49 - 1 + IF( AH$4 = $AJ$4, 1, 0 ), 3*( $AE49-1) + 0 ) ) -> CRF | AI49: =IF( $AE49 = "", "", OFFSET( Season!$E$7, 2 * $AF49 - 1 + IF( AH$4 = $AJ$4, 1, 0 ), 3*( $AE49-1) + 1 ) ) -> 20 | AJ49: =IF( $AE49 = "", "", OFFSET( Season!$E$7, 2 * $AF49 - 1 + IF( AJ$4 = $AJ$4, 1, 0 ), 3*( $AE49-1) + 0 ) ) -> E75 | AK49: =IF( $AE49 = "", "", OFFSET( Season!$E$7, 2 * $AF49 - 1 + IF( AJ$4 = $AJ$4, 1, 0 ), 3*( $AE49-1) + 1 ) ) -> 18 | AL49: E75 | AM49: CRF
AE50: 3 | AF50: 12 | AG50: =IF( OR( ISNA( MATCH( AH50, $W$8:$W$13, 0 ) ), ISNA( MATCH( AJ50, $W$8:$W$13, 0 ) ) ), " . ", MAX( $AG$4:AG49 ) + 1 ) -> . | AH50: =IF( $AE50 = "", "", OFFSET( Season!$E$7, 2 * $AF50 - 1 + IF( AH$4 = $AJ$4, 1, 0 ), 3*( $AE50-1) + 0 ) ) -> SCM | AI50: =IF( $AE50 = "", "", OFFSET( Season!$E$7, 2 * $AF50 - 1 + IF( AH$4 = $AJ$4, 1, 0 ), 3*( $AE50-1) + 1 ) ) -> 20 | AJ50: =IF( $AE50 = "", "", OFFSET( Season!$E$7, 2 * $AF50 - 1 + IF( AJ$4 = $AJ$4, 1, 0 ), 3*( $AE50-1) + 0 ) ) -> O19 | AK50: =IF( $AE50 = "", "", OFFSET( Season!$E$7, 2 * $AF50 - 1 + IF( AJ$4 = $AJ$4, 1, 0 ), 3*( $AE50-1) + 1 ) ) -> 29 | AL50: SCM | AM50: O19
AE51: 3 | AF51: 13 | AG51: =IF( OR( ISNA( MATCH( AH51, $W$8:$W$13, 0 ) ), ISNA( MATCH( AJ51, $W$8:$W$13, 0 ) ) ), " . ", MAX( $AG$4:AG50 ) + 1 ) -> . | AH51: =IF( $AE51 = "", "", OFFSET( Season!$E$7, 2 * $AF51 - 1 + IF( AH$4 = $AJ$4, 1, 0 ), 3*( $AE51-1) + 0 ) ) -> A572 | AI51: =IF( $AE51 = "", "", OFFSET( Season!$E$7, 2 * $AF51 - 1 + IF( AH$4 = $AJ$4, 1, 0 ), 3*( $AE51-1) + 1 ) ) -> 16 | AJ51: =IF( $AE51 = "", "", OFFSET( Season!$E$7, 2 * $AF51 - 1 + IF( AJ$4 = $AJ$4, 1, 0 ), 3*( $AE51-1) + 0 ) ) -> O87 | AK51: =IF( $AE51 = "", "", OFFSET( Season!$E$7, 2 * $AF51 - 1 + IF( AJ$4 = $AJ$4, 1, 0 ), 3*( $AE51-1) + 1 ) ) -> 15 | AL51: O87 | AM51: A572
AE52: 3 | AF52: 14 | AG52: =IF( OR( ISNA( MATCH( AH52, $W$8:$W$13, 0 ) ), ISNA( MATCH( AJ52, $W$8:$W$13, 0 ) ) ), " . ", MAX( $AG$4:AG51 ) + 1 ) -> . | AH52: =IF( $AE52 = "", "", OFFSET( Season!$E$7, 2 * $AF52 - 1 + IF( AH$4 = $AJ$4, 1, 0 ), 3*( $AE52-1) + 0 ) ) -> M10 | AI52: =IF( $AE52 = "", "", OFFSET( Season!$E$7, 2 * $AF52 - 1 + IF( AH$4 = $AJ$4, 1, 0 ), 3*( $AE52-1) + 1 ) ) -> 6 | AJ52: =IF( $AE52 = "", "", OFFSET( Season!$E$7, 2 * $AF52 - 1 + IF( AJ$4 = $AJ$4, 1, 0 ), 3*( $AE52-1) + 0 ) ) -> X10 | AK52: =IF( $AE52 = "", "", OFFSET( Season!$E$7, 2 * $AF52 - 1 + IF( AJ$4 = $AJ$4, 1, 0 ), 3*( $AE52-1) + 1 ) ) -> 34 | AL52: M10 | AM52: X10
AE53: 3 | AF53: 15 | AG53: =IF( OR( ISNA( MATCH( AH53, $W$8:$W$13, 0 ) ), ISNA( MATCH( AJ53, $W$8:$W$13, 0 ) ) ), " . ", MAX( $AG$4:AG52 ) + 1 ) -> . | AH53: =IF( $AE53 = "", "", OFFSET( Season!$E$7, 2 * $AF53 - 1 + IF( AH$4 = $AJ$4, 1, 0 ), 3*( $AE53-1) + 0 ) ) -> E20 | AI53: =IF( $AE53 = "", "", OFFSET( Season!$E$7, 2 * $AF53 - 1 + IF( AH$4 = $AJ$4, 1, 0 ), 3*( $AE53-1) + 1 ) ) -> 10 | AJ53: =IF( $AE53 = "", "", OFFSET( Season!$E$7, 2 * $AF53 - 1 + IF( AJ$4 = $AJ$4, 1, 0 ), 3*( $AE53-1) + 0 ) ) -> ARG | AK53: =IF( $AE53 = "", "", OFFSET( Season!$E$7, 2 * $AF53 - 1 + IF( AJ$4 = $AJ$4, 1, 0 ), 3*( $AE53-1) + 1 ) ) -> 21 | AL53: E20 | AM53: ARG
AE54: 3 | AF54: 16 | AG54: =IF( OR( ISNA( MATCH( AH54, $W$8:$W$13, 0 ) ), ISNA( MATCH( AJ54, $W$8:$W$13, 0 ) ) ), " . ", MAX( $AG$4:AG53 ) + 1 ) -> . | AH54: =IF( $AE54 = "", "", OFFSET( Season!$E$7, 2 * $AF54 - 1 + IF( AH$4 = $AJ$4, 1, 0 ), 3*( $AE54-1) + 0 ) ) -> X31 | AI54: =IF( $AE54 = "", "", OFFSET( Season!$E$7, 2 * $AF54 - 1 + IF( AH$4 = $AJ$4, 1, 0 ), 3*( $AE54-1) + 1 ) ) -> 13 | AJ54: =IF( $AE54 = "", "", OFFSET( Season!$E$7, 2 * $AF54 - 1 + IF( AJ$4 = $AJ$4, 1, 0 ), 3*( $AE54-1) + 0 ) ) -> E25 | AK54: =IF( $AE54 = "", "", OFFSET( Season!$E$7, 2 * $AF54 - 1 + IF( AJ$4 = $AJ$4, 1, 0 ), 3*( $AE54-1) + 1 ) ) -> 21 | AL54: X31 | AM54: E25
AE55: 3 | AF55: 17 | AG55: =IF( OR( ISNA( MATCH( AH55, $W$8:$W$13, 0 ) ), ISNA( MATCH( AJ55, $W$8:$W$13, 0 ) ) ), " . ", MAX( $AG$4:AG54 ) + 1 ) -> . | AH55: =IF( $AE55 = "", "", OFFSET( Season!$E$7, 2 * $AF55 - 1 + IF( AH$4 = $AJ$4, 1, 0 ), 3*( $AE55-1) + 0 ) ) -> ENGR | AI55: =IF( $AE55 = "", "", OFFSET( Season!$E$7, 2 * $AF55 - 1 + IF( AH$4 = $AJ$4, 1, 0 ), 3*( $AE55-1) + 1 ) ) -> 20 | AJ55: =IF( $AE55 = "", "", OFFSET( Season!$E$7, 2 * $AF55 - 1 + IF( AJ$4 = $AJ$4, 1, 0 ), 3*( $AE55-1) + 0 ) ) -> NNIT | AK55: =IF( $AE55 = "", "", OFFSET( Season!$E$7, 2 * $AF55 - 1 + IF( AJ$4 = $AJ$4, 1, 0 ), 3*( $AE55-1) + 1 ) ) -> 7 | AL55: NNIT | AM55: ENGR
AE56: 4 | AF56: 1 | AG56: =IF( OR( ISNA( MATCH( AH56, $W$8:$W$13, 0 ) ), ISNA( MATCH( AJ56, $W$8:$W$13, 0 ) ) ), " . ", MAX( $AG$4:AG55 ) + 1 ) -> . | AH56: =IF( $AE56 = "", "", OFFSET( Season!$E$7, 2 * $AF56 - 1 + IF( AH$4 = $AJ$4, 1, 0 ), 3*( $AE56-1) + 0 ) ) -> E14 | AI56: =IF( $AE56 = "", "", OFFSET( Season!$E$7, 2 * $AF56 - 1 + IF( AH$4 = $AJ$4, 1, 0 ), 3*( $AE56-1) + 1 ) ) -> 15 | AJ56: =IF( $AE56 = "", "", OFFSET( Season!$E$7, 2 * $AF56 - 1 + IF( AJ$4 = $AJ$4, 1, 0 ), 3*( $AE56-1) + 0 ) ) -> E83 | AK56: =IF( $AE56 = "", "", OFFSET( Season!$E$7, 2 * $AF56 - 1 + IF( AJ$4 = $AJ$4, 1, 0 ), 3*( $AE56-1) + 1 ) ) -> 4 | AL56: E83 | AM56: E14
AE57: 4 | AF57: 2 | AG57: =IF( OR( ISNA( MATCH( AH57, $W$8:$W$13, 0 ) ), ISNA( MATCH( AJ57, $W$8:$W$13, 0 ) ) ), " . ", MAX( $AG$4:AG56 ) + 1 ) -> . | AH57: =IF( $AE57 = "", "", OFFSET( Season!$E$7, 2 * $AF57 - 1 + IF( AH$4 = $AJ$4, 1, 0 ), 3*( $AE57-1) + 0 ) ) -> X01 | AI57: =IF( $AE57 = "", "", OFFSET( Season!$E$7, 2 * $AF57 - 1 + IF( AH$4 = $AJ$4, 1, 0 ), 3*( $AE57-1) + 1 ) ) -> 28 | AJ57: =IF( $AE57 = "", "", OFFSET( Season!$E$7, 2 * $AF57 - 1 + IF( AJ$4 = $AJ$4, 1, 0 ), 3*( $AE57-1) + 0 ) ) -> E86 | AK57: =IF( $AE57 = "", "", OFFSET( Season!$E$7, 2 * $AF57 - 1 + IF( AJ$4 = $AJ$4, 1, 0 ), 3*( $AE57-1) + 1 ) ) -> 18 | AL57: E86 | AM57: X01
AE58: 4 | AF58: 3 | AG58: =IF( OR( ISNA( MATCH( AH58, $W$8:$W$13, 0 ) ), ISNA( MATCH( AJ58, $W$8:$W$13, 0 ) ) ), " . ", MAX( $AG$4:AG57 ) + 1 ) -> . | AH58: =IF( $AE58 = "", "", OFFSET( Season!$E$7, 2 * $AF58 - 1 + IF( AH$4 = $AJ$4, 1, 0 ), 3*( $AE58-1) + 0 ) ) -> X87 | AI58: =IF( $AE58 = "", "", OFFSET( Season!$E$7, 2 * $AF58 - 1 + IF( AH$4 = $AJ$4, 1, 0 ), 3*( $AE58-1) + 1 ) ) -> 7 | AJ58: =IF( $AE58 = "", "", OFFSET( Season!$E$7, 2 * $AF58 - 1 + IF( AJ$4 = $AJ$4, 1, 0 ), 3*( $AE58-1) + 0 ) ) -> E17 | AK58: =IF( $AE58 = "", "", OFFSET( Season!$E$7, 2 * $AF58 - 1 + IF( AJ$4 = $AJ$4, 1, 0 ), 3*( $AE58-1) + 1 ) ) -> 26 | AL58: X87 | AM58: E17
AE59: 4 | AF59: 4 | AG59: =IF( OR( ISNA( MATCH( AH59, $W$8:$W$13, 0 ) ), ISNA( MATCH( AJ59, $W$8:$W$13, 0 ) ) ), " . ", MAX( $AG$4:AG58 ) + 1 ) -> . | AH59: =IF( $AE59 = "", "", OFFSET( Season!$E$7, 2 * $AF59 - 1 + IF( AH$4 = $AJ$4, 1, 0 ), 3*( $AE59-1) + 0 ) ) -> E42 | AI59: =IF( $AE59 = "", "", OFFSET( Season!$E$7, 2 * $AF59 - 1 + IF( AH$4 = $AJ$4, 1, 0 ), 3*( $AE59-1) + 1 ) ) -> 24 | AJ59: =IF( $AE59 = "", "", OFFSET( Season!$E$7, 2 * $AF59 - 1 + IF( AJ$4 = $AJ$4, 1, 0 ), 3*( $AE59-1) + 0 ) ) -> AMSC | AK59: =IF( $AE59 = "", "", OFFSET( Season!$E$7, 2 * $AF59 - 1 + IF( AJ$4 = $AJ$4, 1, 0 ), 3*( $AE59-1) + 1 ) ) -> 30 | AL59: E42 | AM59: AMSC
AE60: 4 | AF60: 5 | AG60: =IF( OR( ISNA( MATCH( AH60, $W$8:$W$13, 0 ) ), ISNA( MATCH( AJ60, $W$8:$W$13, 0 ) ) ), " . ", MAX( $AG$4:AG59 ) + 1 ) -> . | AH60: =IF( $AE60 = "", "", OFFSET( Season!$E$7, 2 * $AF60 - 1 + IF( AH$4 = $AJ$4, 1, 0 ), 3*( $AE60-1) + 0 ) ) -> E12 | AI60: =IF( $AE60 = "", "", OFFSET( Season!$E$7, 2 * $AF60 - 1 + IF( AH$4 = $AJ$4, 1, 0 ), 3*( $AE60-1) + 1 ) ) -> 16 | AJ60: =IF( $AE60 = "", "", OFFSET( Season!$E$7, 2 * $AF60 - 1 + IF( AJ$4 = $AJ$4, 1, 0 ), 3*( $AE60-1) + 0 ) ) -> X88 | AK60: =IF( $AE60 = "", "", OFFSET( Season!$E$7, 2 * $AF60 - 1 + IF( AJ$4 = $AJ$4, 1, 0 ), 3*( $AE60-1) + 1 ) ) -> 17 | AL60: E12 | AM60: X88
AE61: 4 | AF61: 6 | AG61: =IF( OR( ISNA( MATCH( AH61, $W$8:$W$13, 0 ) ), ISNA( MATCH( AJ61, $W$8:$W$13, 0 ) ) ), " . ", MAX( $AG$4:AG60 ) + 1 ) -> . | AH61: =IF( $AE61 = "", "", OFFSET( Season!$E$7, 2 * $AF61 - 1 + IF( AH$4 = $AJ$4, 1, 0 ), 3*( $AE61-1) + 0 ) ) -> E60 | AI61: =IF( $AE61 = "", "", OFFSET( Season!$E$7, 2 * $AF61 - 1 + IF( AH$4 = $AJ$4, 1, 0 ), 3*( $AE61-1) + 1 ) ) -> 10 | AJ61: =IF( $AE61 = "", "", OFFSET( Season!$E$7, 2 * $AF61 - 1 + IF( AJ$4 = $AJ$4, 1, 0 ), 3*( $AE61-1) + 0 ) ) -> X04 | AK61: =IF( $AE61 = "", "", OFFSET( Season!$E$7, 2 * $AF61 - 1 + IF( AJ$4 = $AJ$4, 1, 0 ), 3*( $AE61-1) + 1 ) ) -> 27 | AL61: E60 | AM61: X04
AE62: 4 | AF62: 7 | AG62: =IF( OR( ISNA( MATCH( AH62, $W$8:$W$13, 0 ) ), ISNA( MATCH( AJ62, $W$8:$W$13, 0 ) ) ), " . ", MAX( $AG$4:AG61 ) + 1 ) -> . | AH62: =IF( $AE62 = "", "", OFFSET( Season!$E$7, 2 * $AF62 - 1 + IF( AH$4 = $AJ$4, 1, 0 ), 3*( $AE62-1) + 0 ) ) -> SUBS | AI62: =IF( $AE62 = "", "", OFFSET( Season!$E$7, 2 * $AF62 - 1 + IF( AH$4 = $AJ$4, 1, 0 ), 3*( $AE62-1) + 1 ) ) -> 25 | AJ62: =IF( $AE62 = "", "", OFFSET( Season!$E$7, 2 * $AF62 - 1 + IF( AJ$4 = $AJ$4, 1, 0 ), 3*( $AE62-1) + 0 ) ) -> AGS | AK62: =IF( $AE62 = "", "", OFFSET( Season!$E$7, 2 * $AF62 - 1 + IF( AJ$4 = $AJ$4, 1, 0 ), 3*( $AE62-1) + 1 ) ) -> 24 | AL62: AGS | AM62: SUBS
AE63: 4 | AF63: 8 | AG63: =IF( OR( ISNA( MATCH( AH63, $W$8:$W$13, 0 ) ), ISNA( MATCH( AJ63, $W$8:$W$13, 0 ) ) ), " . ", MAX( $AG$4:AG62 ) + 1 ) -> . | AH63: =IF( $AE63 = "", "", OFFSET( Season!$E$7, 2 * $AF63 - 1 + IF( AH$4 = $AJ$4, 1, 0 ), 3*( $AE63-1) + 0 ) ) -> E55B | AI63: =IF( $AE63 = "", "", OFFSET( Season!$E$7, 2 * $AF63 - 1 + IF( AH$4 = $AJ$4, 1, 0 ), 3*( $AE63-1) + 1 ) ) -> 34 | AJ63: =IF( $AE63 = "", "", OFFSET( Season!$E$7, 2 * $AF63 - 1 + IF( AJ$4 = $AJ$4, 1, 0 ), 3*( $AE63-1) + 0 ) ) -> E55a | AK63: =IF( $AE63 = "", "", OFFSET( Season!$E$7, 2 * $AF63 - 1 + IF( AJ$4 = $AJ$4, 1, 0 ), 3*( $AE63-1) + 1 ) ) -> 32 | AL63: E55a | AM63: E55B
AE64: 4 | AF64: 9 | AG64: =IF( OR( ISNA( MATCH( AH64, $W$8:$W$13, 0 ) ), ISNA( MATCH( AJ64, $W$8:$W$13, 0 ) ) ), " . ", MAX( $AG$4:AG63 ) + 1 ) -> . | AH64: =IF( $AE64 = "", "", OFFSET( Season!$E$7, 2 * $AF64 - 1 + IF( AH$4 = $AJ$4, 1, 0 ), 3*( $AE64-1) + 0 ) ) -> 0 | AI64: =IF( $AE64 = "", "", OFFSET( Season!$E$7, 2 * $AF64 - 1 + IF( AH$4 = $AJ$4, 1, 0 ), 3*( $AE64-1) + 1 ) ) -> 0 | AJ64: =IF( $AE64 = "", "", OFFSET( Season!$E$7, 2 * $AF64 - 1 + IF( AJ$4 = $AJ$4, 1, 0 ), 3*( $AE64-1) + 0 ) ) -> 0 | AK64: =IF( $AE64 = "", "", OFFSET( Season!$E$7, 2 * $AF64 - 1 + IF( AJ$4 = $AJ$4, 1, 0 ), 3*( $AE64-1) + 1 ) ) -> 0 | AL64: x | AM64: x
AE65: 4 | AF65: 10 | AG65: =IF( OR( ISNA( MATCH( AH65, $W$8:$W$13, 0 ) ), ISNA( MATCH( AJ65, $W$8:$W$13, 0 ) ) ), " . ", MAX( $AG$4:AG64 ) + 1 ) -> . | AH65: =IF( $AE65 = "", "", OFFSET( Season!$E$7, 2 * $AF65 - 1 + IF( AH$4 = $AJ$4, 1, 0 ), 3*( $AE65-1) + 0 ) ) -> A572 | AI65: =IF( $AE65 = "", "", OFFSET( Season!$E$7, 2 * $AF65 - 1 + IF( AH$4 = $AJ$4, 1, 0 ), 3*( $AE65-1) + 1 ) ) -> 14 | AJ65: =IF( $AE65 = "", "", OFFSET( Season!$E$7, 2 * $AF65 - 1 + IF( AJ$4 = $AJ$4, 1, 0 ), 3*( $AE65-1) + 0 ) ) -> X31 | AK65: =IF( $AE65 = "", "", OFFSET( Season!$E$7, 2 * $AF65 - 1 + IF( AJ$4 = $AJ$4, 1, 0 ), 3*( $AE65-1) + 1 ) ) -> 13 | AL65: X31 | AM65: A572
AE66: 4 | AF66: 11 | AG66: =IF( OR( ISNA( MATCH( AH66, $W$8:$W$13, 0 ) ), ISNA( MATCH( AJ66, $W$8:$W$13, 0 ) ) ), " . ", MAX( $AG$4:AG65 ) + 1 ) -> . | AH66: =IF( $AE66 = "", "", OFFSET( Season!$E$7, 2 * $AF66 - 1 + IF( AH$4 = $AJ$4, 1, 0 ), 3*( $AE66-1) + 0 ) ) -> X10 | AI66: =IF( $AE66 = "", "", OFFSET( Season!$E$7, 2 * $AF66 - 1 + IF( AH$4 = $AJ$4, 1, 0 ), 3*( $AE66-1) + 1 ) ) -> 11 | AJ66: =IF( $AE66 = "", "", OFFSET( Season!$E$7, 2 * $AF66 - 1 + IF( AJ$4 = $AJ$4, 1, 0 ), 3*( $AE66-1) + 0 ) ) -> O19 | AK66: =IF( $AE66 = "", "", OFFSET( Season!$E$7, 2 * $AF66 - 1 + IF( AJ$4 = $AJ$4, 1, 0 ), 3*( $AE66-1) + 1 ) ) -> 31 | AL66: X10 | AM66: O19
AE67: 4 | AF67: 12 | AG67: =IF( OR( ISNA( MATCH( AH67, $W$8:$W$13, 0 ) ), ISNA( MATCH( AJ67, $W$8:$W$13, 0 ) ) ), " . ", MAX( $AG$4:AG66 ) + 1 ) -> . | AH67: =IF( $AE67 = "", "", OFFSET( Season!$E$7, 2 * $AF67 - 1 + IF( AH$4 = $AJ$4, 1, 0 ), 3*( $AE67-1) + 0 ) ) -> O87 | AI67: =IF( $AE67 = "", "", OFFSET( Season!$E$7, 2 * $AF67 - 1 + IF( AH$4 = $AJ$4, 1, 0 ), 3*( $AE67-1) + 1 ) ) -> 37 | AJ67: =IF( $AE67 = "", "", OFFSET( Season!$E$7, 2 * $AF67 - 1 + IF( AJ$4 = $AJ$4, 1, 0 ), 3*( $AE67-1) + 0 ) ) -> E25 | AK67: =IF( $AE67 = "", "", OFFSET( Season!$E$7, 2 * $AF67 - 1 + IF( AJ$4 = $AJ$4, 1, 0 ), 3*( $AE67-1) + 1 ) ) -> 41 | AL67: O87 | AM67: E25
AE68: 4 | AF68: 13 | AG68: =IF( OR( ISNA( MATCH( AH68, $W$8:$W$13, 0 ) ), ISNA( MATCH( AJ68, $W$8:$W$13, 0 ) ) ), " . ", MAX( $AG$4:AG67 ) + 1 ) -> . | AH68: =IF( $AE68 = "", "", OFFSET( Season!$E$7, 2 * $AF68 - 1 + IF( AH$4 = $AJ$4, 1, 0 ), 3*( $AE68-1) + 0 ) ) -> ARG | AI68: =IF( $AE68 = "", "", OFFSET( Season!$E$7, 2 * $AF68 - 1 + IF( AH$4 = $AJ$4, 1, 0 ), 3*( $AE68-1) + 1 ) ) -> 7 | AJ68: =IF( $AE68 = "", "", OFFSET( Season!$E$7, 2 * $AF68 - 1 + IF( AJ$4 = $AJ$4, 1, 0 ), 3*( $AE68-1) + 0 ) ) -> O46 | AK68: =IF( $AE68 = "", "", OFFSET( Season!$E$7, 2 * $AF68 - 1 + IF( AJ$4 = $AJ$4, 1, 0 ), 3*( $AE68-1) + 1 ) ) -> 9 | AL68: ARG | AM68: O46
AE69: 4 | AF69: 14 | AG69: =IF( OR( ISNA( MATCH( AH69, $W$8:$W$13, 0 ) ), ISNA( MATCH( AJ69, $W$8:$W$13, 0 ) ) ), " . ", MAX( $AG$4:AG68 ) + 1 ) -> . | AH69: =IF( $AE69 = "", "", OFFSET( Season!$E$7, 2 * $AF69 - 1 + IF( AH$4 = $AJ$4, 1, 0 ), 3*( $AE69-1) + 0 ) ) -> E20 | AI69: =IF( $AE69 = "", "", OFFSET( Season!$E$7, 2 * $AF69 - 1 + IF( AH$4 = $AJ$4, 1, 0 ), 3*( $AE69-1) + 1 ) ) -> 19 | AJ69: =IF( $AE69 = "", "", OFFSET( Season!$E$7, 2 * $AF69 - 1 + IF( AJ$4 = $AJ$4, 1, 0 ), 3*( $AE69-1) + 0 ) ) -> CVN | AK69: =IF( $AE69 = "", "", OFFSET( Season!$E$7, 2 * $AF69 - 1 + IF( AJ$4 = $AJ$4, 1, 0 ), 3*( $AE69-1) + 1 ) ) -> 9 | AL69: =IF( LEFT( $AI69, 1 ) = "f", $AJ69, IF( LEFT( $AK69, 1 ) = "f", $AH69, IF( AND( $AI69 = "", $AK69 = "" ), ".", IF( $AI69^2 + $AK69^2 = 0, "x", IF( $AI69 = $AK69, "Tie", IF( $AI69 < $AK69, $AH69, $AJ69 ) ) ) ) ) ) -> CVN | AM69: =IF( LEFT( $AI69, 1 ) = "f", $AH69, IF( LEFT( $AK69, 1 ) = "f", $AJ69, IF( AND( $AI69 = "", $AK69 = "" ), ".", IF( $AI69^2 + $AK69^2 = 0, "x", IF( $AI69 = $AK69, "Tie", IF( $AI69 > $AK69, $AH69, $AJ69 ) ) ) ) ) ) -> E20 | AN69: =IF( AL69 = "Tie", $AH69, "" ) ->  | AO69: =IF( AM69 = "Tie", $AJ69, "" ) -> 
AE70: 4 | AF70: 15 | AG70: =IF( OR( ISNA( MATCH( AH70, $W$8:$W$13, 0 ) ), ISNA( MATCH( AJ70, $W$8:$W$13, 0 ) ) ), " . ", MAX( $AG$4:AG69 ) + 1 ) -> 1 | AH70: =IF( $AE70 = "", "", OFFSET( Season!$E$7, 2 * $AF70 - 1 + IF( AH$4 = $AJ$4, 1, 0 ), 3*( $AE70-1) + 0 ) ) -> ENGR | AI70: =IF( $AE70 = "", "", OFFSET( Season!$E$7, 2 * $AF70 - 1 + IF( AH$4 = $AJ$4, 1, 0 ), 3*( $AE70-1) + 1 ) ) -> 21 | AJ70: =IF( $AE70 = "", "", OFFSET( Season!$E$7, 2 * $AF70 - 1 + IF( AJ$4 = $AJ$4, 1, 0 ), 3*( $AE70-1) + 0 ) ) -> CRF | AK70: =IF( $AE70 = "", "", OFFSET( Season!$E$7, 2 * $AF70 - 1 + IF( AJ$4 = $AJ$4, 1, 0 ), 3*( $AE70-1) + 1 ) ) -> 21 | AL70: Tie | AM70: Tie | AN70: ENGR | AO70: CRF
AE71: 4 | AF71: 16 | AG71: =IF( OR( ISNA( MATCH( AH71, $W$8:$W$13, 0 ) ), ISNA( MATCH( AJ71, $W$8:$W$13, 0 ) ) ), " . ", MAX( $AG$4:AG70 ) + 1 ) -> . | AH71: =IF( $AE71 = "", "", OFFSET( Season!$E$7, 2 * $AF71 - 1 + IF( AH$4 = $AJ$4, 1, 0 ), 3*( $AE71-1) + 0 ) ) -> E75 | AI71: =IF( $AE71 = "", "", OFFSET( Season!$E$7, 2 * $AF71 - 1 + IF( AH$4 = $AJ$4, 1, 0 ), 3*( $AE71-1) + 1 ) ) -> 16 | AJ71: =IF( $AE71 = "", "", OFFSET( Season!$E$7, 2 * $AF71 - 1 + IF( AJ$4 = $AJ$4, 1, 0 ), 3*( $AE71-1) + 0 ) ) -> NNIT | AK71: =IF( $AE71 = "", "", OFFSET( Season!$E$7, 2 * $AF71 - 1 + IF( AJ$4 = $AJ$4, 1, 0 ), 3*( $AE71-1) + 1 ) ) -> 17 | AL71: E75 | AM71: NNIT
AE72: 4 | AF72: 17 | AG72: =IF( OR( ISNA( MATCH( AH72, $W$8:$W$13, 0 ) ), ISNA( MATCH( AJ72, $W$8:$W$13, 0 ) ) ), " . ", MAX( $AG$4:AG71 ) + 1 ) -> . | AH72: =IF( $AE72 = "", "", OFFSET( Season!$E$7, 2 * $AF72 - 1 + IF( AH$4 = $AJ$4, 1, 0 ), 3*( $AE72-1) + 0 ) ) -> M10 | AI72: =IF( $AE72 = "", "", OFFSET( Season!$E$7, 2 * $AF72 - 1 + IF( AH$4 = $AJ$4, 1, 0 ), 3*( $AE72-1) + 1 ) ) -> 25 | AJ72: =IF( $AE72 = "", "", OFFSET( Season!$E$7, 2 * $AF72 - 1 + IF( AJ$4 = $AJ$4, 1, 0 ), 3*( $AE72-1) + 0 ) ) -> SCM | AK72: =IF( $AE72 = "", "", OFFSET( Season!$E$7, 2 * $AF72 - 1 + IF( AJ$4 = $AJ$4, 1, 0 ), 3*( $AE72-1) + 1 ) ) -> 6 | AL72: SCM | AM72: M10
AE73: 5 | AF73: 1 | AG73: =IF( OR( ISNA( MATCH( AH73, $W$8:$W$13, 0 ) ), ISNA( MATCH( AJ73, $W$8:$W$13, 0 ) ) ), " . ", MAX( $AG$4:AG72 ) + 1 ) -> . | AH73: =IF( $AE73 = "", "", OFFSET( Season!$E$7, 2 * $AF73 - 1 + IF( AH$4 = $AJ$4, 1, 0 ), 3*( $AE73-1) + 0 ) ) -> E60 | AI73: =IF( $AE73 = "", "", OFFSET( Season!$E$7, 2 * $AF73 - 1 + IF( AH$4 = $AJ$4, 1, 0 ), 3*( $AE73-1) + 1 ) ) -> 0.001 | AJ73: =IF( $AE73 = "", "", OFFSET( Season!$E$7, 2 * $AF73 - 1 + IF( AJ$4 = $AJ$4, 1, 0 ), 3*( $AE73-1) + 0 ) ) -> E12 | AK73: =IF( $AE73 = "", "", OFFSET( Season!$E$7, 2 * $AF73 - 1 + IF( AJ$4 = $AJ$4, 1, 0 ), 3*( $AE73-1) + 1 ) ) -> 16 | AL73: E60 | AM73: E12
AE74: 5 | AF74: 2 | AG74: =IF( OR( ISNA( MATCH( AH74, $W$8:$W$13, 0 ) ), ISNA( MATCH( AJ74, $W$8:$W$13, 0 ) ) ), " . ", MAX( $AG$4:AG73 ) + 1 ) -> . | AH74: =IF( $AE74 = "", "", OFFSET( Season!$E$7, 2 * $AF74 - 1 + IF( AH$4 = $AJ$4, 1, 0 ), 3*( $AE74-1) + 0 ) ) -> X01 | AI74: =IF( $AE74 = "", "", OFFSET( Season!$E$7, 2 * $AF74 - 1 + IF( AH$4 = $AJ$4, 1, 0 ), 3*( $AE74-1) + 1 ) ) -> 13 | AJ74: =IF( $AE74 = "", "", OFFSET( Season!$E$7, 2 * $AF74 - 1 + IF( AJ$4 = $AJ$4, 1, 0 ), 3*( $AE74-1) + 0 ) ) -> E17 | AK74: =IF( $AE74 = "", "", OFFSET( Season!$E$7, 2 * $AF74 - 1 + IF( AJ$4 = $AJ$4, 1, 0 ), 3*( $AE74-1) + 1 ) ) -> 31 | AL74: X01 | AM74: E17
AE75: 5 | AF75: 3 | AG75: =IF( OR( ISNA( MATCH( AH75, $W$8:$W$13, 0 ) ), ISNA( MATCH( AJ75, $W$8:$W$13, 0 ) ) ), " . ", MAX( $AG$4:AG74 ) + 1 ) -> . | AH75: =IF( $AE75 = "", "", OFFSET( Season!$E$7, 2 * $AF75 - 1 + IF( AH$4 = $AJ$4, 1, 0 ), 3*( $AE75-1) + 0 ) ) -> AGS | AI75: =IF( $AE75 = "", "", OFFSET( Season!$E$7, 2 * $AF75 - 1 + IF( AH$4 = $AJ$4, 1, 0 ), 3*( $AE75-1) + 1 ) ) -> 30 | AJ75: =IF( $AE75 = "", "", OFFSET( Season!$E$7, 2 * $AF75 - 1 + IF( AJ$4 = $AJ$4, 1, 0 ), 3*( $AE75-1) + 0 ) ) -> E42 | AK75: =IF( $AE75 = "", "", OFFSET( Season!$E$7, 2 * $AF75 - 1 + IF( AJ$4 = $AJ$4, 1, 0 ), 3*( $AE75-1) + 1 ) ) -> 28 | AL75: E42 | AM75: AGS
AE76: 5 | AF76: 4 | AG76: =IF( OR( ISNA( MATCH( AH76, $W$8:$W$13, 0 ) ), ISNA( MATCH( AJ76, $W$8:$W$13, 0 ) ) ), " . ", MAX( $AG$4:AG75 ) + 1 ) -> . | AH76: =IF( $AE76 = "", "", OFFSET( Season!$E$7, 2 * $AF76 - 1 + IF( AH$4 = $AJ$4, 1, 0 ), 3*( $AE76-1) + 0 ) ) -> E83 | AI76: =IF( $AE76 = "", "", OFFSET( Season!$E$7, 2 * $AF76 - 1 + IF( AH$4 = $AJ$4, 1, 0 ), 3*( $AE76-1) + 1 ) ) -> 20 | AJ76: =IF( $AE76 = "", "", OFFSET( Season!$E$7, 2 * $AF76 - 1 + IF( AJ$4 = $AJ$4, 1, 0 ), 3*( $AE76-1) + 0 ) ) -> E55B | AK76: =IF( $AE76 = "", "", OFFSET( Season!$E$7, 2 * $AF76 - 1 + IF( AJ$4 = $AJ$4, 1, 0 ), 3*( $AE76-1) + 1 ) ) -> 36 | AL76: E83 | AM76: E55B
AE77: 5 | AF77: 5 | AG77: =IF( OR( ISNA( MATCH( AH77, $W$8:$W$13, 0 ) ), ISNA( MATCH( AJ77, $W$8:$W$13, 0 ) ) ), " . ", MAX( $AG$4:AG76 ) + 1 ) -> . | AH77: =IF( $AE77 = "", "", OFFSET( Season!$E$7, 2 * $AF77 - 1 + IF( AH$4 = $AJ$4, 1, 0 ), 3*( $AE77-1) + 0 ) ) -> AMSC | AI77: =IF( $AE77 = "", "", OFFSET( Season!$E$7, 2 * $AF77 - 1 + IF( AH$4 = $AJ$4, 1, 0 ), 3*( $AE77-1) + 1 ) ) -> 43 | AJ77: =IF( $AE77 = "", "", OFFSET( Season!$E$7, 2 * $AF77 - 1 + IF( AJ$4 = $AJ$4, 1, 0 ), 3*( $AE77-1) + 0 ) ) -> SUBS | AK77: =IF( $AE77 = "", "", OFFSET( Season!$E$7, 2 * $AF77 - 1 + IF( AJ$4 = $AJ$4, 1, 0 ), 3*( $AE77-1) + 1 ) ) -> 12 | AL77: SUBS | AM77: AMSC
AE78: 5 | AF78: 6 | AG78: =IF( OR( ISNA( MATCH( AH78, $W$8:$W$13, 0 ) ), ISNA( MATCH( AJ78, $W$8:$W$13, 0 ) ) ), " . ", MAX( $AG$4:AG77 ) + 1 ) -> . | AH78: =IF( $AE78 = "", "", OFFSET( Season!$E$7, 2 * $AF78 - 1 + IF( AH$4 = $AJ$4, 1, 0 ), 3*( $AE78-1) + 0 ) ) -> E55a | AI78: =IF( $AE78 = "", "", OFFSET( Season!$E$7, 2 * $AF78 - 1 + IF( AH$4 = $AJ$4, 1, 0 ), 3*( $AE78-1) + 1 ) ) -> 29 | AJ78: =IF( $AE78 = "", "", OFFSET( Season!$E$7, 2 * $AF78 - 1 + IF( AJ$4 = $AJ$4, 1, 0 ), 3*( $AE78-1) + 0 ) ) -> E14 | AK78: =IF( $AE78 = "", "", OFFSET( Season!$E$7, 2 * $AF78 - 1 + IF( AJ$4 = $AJ$4, 1, 0 ), 3*( $AE78-1) + 1 ) ) -> 17 | AL78: E14 | AM78: E55a
AE79: 5 | AF79: 7 | AG79: =IF( OR( ISNA( MATCH( AH79, $W$8:$W$13, 0 ) ), ISNA( MATCH( AJ79, $W$8:$W$13, 0 ) ) ), " . ", MAX( $AG$4:AG78 ) + 1 ) -> . | AH79: =IF( $AE79 = "", "", OFFSET( Season!$E$7, 2 * $AF79 - 1 + IF( AH$4 = $AJ$4, 1, 0 ), 3*( $AE79-1) + 0 ) ) -> X04 | AI79: =IF( $AE79 = "", "", OFFSET( Season!$E$7, 2 * $AF79 - 1 + IF( AH$4 = $AJ$4, 1, 0 ), 3*( $AE79-1) + 1 ) ) -> 24 | AJ79: =IF( $AE79 = "", "", OFFSET( Season!$E$7, 2 * $AF79 - 1 + IF( AJ$4 = $AJ$4, 1, 0 ), 3*( $AE79-1) + 0 ) ) -> X88 | AK79: =IF( $AE79 = "", "", OFFSET( Season!$E$7, 2 * $AF79 - 1 + IF( AJ$4 = $AJ$4, 1, 0 ), 3*( $AE79-1) + 1 ) ) -> 20 | AL79: X88 | AM79: X04
AE80: 5 | AF80: 8 | AG80: =IF( OR( ISNA( MATCH( AH80, $W$8:$W$13, 0 ) ), ISNA( MATCH( AJ80, $W$8:$W$13, 0 ) ) ), " . ", MAX( $AG$4:AG79 ) + 1 ) -> . | AH80: =IF( $AE80 = "", "", OFFSET( Season!$E$7, 2 * $AF80 - 1 + IF( AH$4 = $AJ$4, 1, 0 ), 3*( $AE80-1) + 0 ) ) -> X87 | AI80: =IF( $AE80 = "", "", OFFSET( Season!$E$7, 2 * $AF80 - 1 + IF( AH$4 = $AJ$4, 1, 0 ), 3*( $AE80-1) + 1 ) ) -> 26 | AJ80: =IF( $AE80 = "", "", OFFSET( Season!$E$7, 2 * $AF80 - 1 + IF( AJ$4 = $AJ$4, 1, 0 ), 3*( $AE80-1) + 0 ) ) -> E86 | AK80: =IF( $AE80 = "", "", OFFSET( Season!$E$7, 2 * $AF80 - 1 + IF( AJ$4 = $AJ$4, 1, 0 ), 3*( $AE80-1) + 1 ) ) -> 21 | AL80: E86 | AM80: X87
AE81: 5 | AF81: 9 | AG81: =IF( OR( ISNA( MATCH( AH81, $W$8:$W$13, 0 ) ), ISNA( MATCH( AJ81, $W$8:$W$13, 0 ) ) ), " . ", MAX( $AG$4:AG80 ) + 1 ) -> . | AH81: =IF( $AE81 = "", "", OFFSET( Season!$E$7, 2 * $AF81 - 1 + IF( AH$4 = $AJ$4, 1, 0 ), 3*( $AE81-1) + 0 ) ) -> 0 | AI81: =IF( $AE81 = "", "", OFFSET( Season!$E$7, 2 * $AF81 - 1 + IF( AH$4 = $AJ$4, 1, 0 ), 3*( $AE81-1) + 1 ) ) -> 0 | AJ81: =IF( $AE81 = "", "", OFFSET( Season!$E$7, 2 * $AF81 - 1 + IF( AJ$4 = $AJ$4, 1, 0 ), 3*( $AE81-1) + 0 ) ) -> 0 | AK81: =IF( $AE81 = "", "", OFFSET( Season!$E$7, 2 * $AF81 - 1 + IF( AJ$4 = $AJ$4, 1, 0 ), 3*( $AE81-1) + 1 ) ) -> 0 | AL81: x | AM81: x
AE82: 5 | AF82: 10 | AG82: =IF( OR( ISNA( MATCH( AH82, $W$8:$W$13, 0 ) ), ISNA( MATCH( AJ82, $W$8:$W$13, 0 ) ) ), " . ", MAX( $AG$4:AG81 ) + 1 ) -> . | AH82: =IF( $AE82 = "", "", OFFSET( Season!$E$7, 2 * $AF82 - 1 + IF( AH$4 = $AJ$4, 1, 0 ), 3*( $AE82-1) + 0 ) ) -> ENGR | AI82: =IF( $AE82 = "", "", OFFSET( Season!$E$7, 2 * $AF82 - 1 + IF( AH$4 = $AJ$4, 1, 0 ), 3*( $AE82-1) + 1 ) ) -> 14 | AJ82: =IF( $AE82 = "", "", OFFSET( Season!$E$7, 2 * $AF82 - 1 + IF( AJ$4 = $AJ$4, 1, 0 ), 3*( $AE82-1) + 0 ) ) -> E20 | AK82: =IF( $AE82 = "", "", OFFSET( Season!$E$7, 2 * $AF82 - 1 + IF( AJ$4 = $AJ$4, 1, 0 ), 3*( $AE82-1) + 1 ) ) -> 15 | AL82: ENGR | AM82: E20
AE83: 5 | AF83: 11 | AG83: =IF( OR( ISNA( MATCH( AH83, $W$8:$W$13, 0 ) ), ISNA( MATCH( AJ83, $W$8:$W$13, 0 ) ) ), " . ", MAX( $AG$4:AG82 ) + 1 ) -> . | AH83: =IF( $AE83 = "", "", OFFSET( Season!$E$7, 2 * $AF83 - 1 + IF( AH$4 = $AJ$4, 1, 0 ), 3*( $AE83-1) + 0 ) ) -> X10 | AI83: =IF( $AE83 = "", "", OFFSET( Season!$E$7, 2 * $AF83 - 1 + IF( AH$4 = $AJ$4, 1, 0 ), 3*( $AE83-1) + 1 ) ) -> 24 | AJ83: =IF( $AE83 = "", "", OFFSET( Season!$E$7, 2 * $AF83 - 1 + IF( AJ$4 = $AJ$4, 1, 0 ), 3*( $AE83-1) + 0 ) ) -> E25 | AK83: =IF( $AE83 = "", "", OFFSET( Season!$E$7, 2 * $AF83 - 1 + IF( AJ$4 = $AJ$4, 1, 0 ), 3*( $AE83-1) + 1 ) ) -> 15 | AL83: E25 | AM83: X10
AE84: 5 | AF84: 12 | AG84: =IF( OR( ISNA( MATCH( AH84, $W$8:$W$13, 0 ) ), ISNA( MATCH( AJ84, $W$8:$W$13, 0 ) ) ), " . ", MAX( $AG$4:AG83 ) + 1 ) -> . | AH84: =IF( $AE84 = "", "", OFFSET( Season!$E$7, 2 * $AF84 - 1 + IF( AH$4 = $AJ$4, 1, 0 ), 3*( $AE84-1) + 0 ) ) -> NNIT | AI84: =IF( $AE84 = "", "", OFFSET( Season!$E$7, 2 * $AF84 - 1 + IF( AH$4 = $AJ$4, 1, 0 ), 3*( $AE84-1) + 1 ) ) -> 31 | AJ84: =IF( $AE84 = "", "", OFFSET( Season!$E$7, 2 * $AF84 - 1 + IF( AJ$4 = $AJ$4, 1, 0 ), 3*( $AE84-1) + 0 ) ) -> ARG | AK84: =IF( $AE84 = "", "", OFFSET( Season!$E$7, 2 * $AF84 - 1 + IF( AJ$4 = $AJ$4, 1, 0 ), 3*( $AE84-1) + 1 ) ) -> 19 | AL84: ARG | AM84: NNIT
AE85: 5 | AF85: 13 | AG85: =IF( OR( ISNA( MATCH( AH85, $W$8:$W$13, 0 ) ), ISNA( MATCH( AJ85, $W$8:$W$13, 0 ) ) ), " . ", MAX( $AG$4:AG84 ) + 1 ) -> . | AH85: =IF( $AE85 = "", "", OFFSET( Season!$E$7, 2 * $AF85 - 1 + IF( AH$4 = $AJ$4, 1, 0 ), 3*( $AE85-1) + 0 ) ) -> X31 | AI85: =IF( $AE85 = "", "", OFFSET( Season!$E$7, 2 * $AF85 - 1 + IF( AH$4 = $AJ$4, 1, 0 ), 3*( $AE85-1) + 1 ) ) -> 0.1 | AJ85: =IF( $AE85 = "", "", OFFSET( Season!$E$7, 2 * $AF85 - 1 + IF( AJ$4 = $AJ$4, 1, 0 ), 3*( $AE85-1) + 0 ) ) -> M10 | AK85: =IF( $AE85 = "", "", OFFSET( Season!$E$7, 2 * $AF85 - 1 + IF( AJ$4 = $AJ$4, 1, 0 ), 3*( $AE85-1) + 1 ) ) -> 14 | AL85: X31 | AM85: M10
AE86: 5 | AF86: 14 | AG86: =IF( OR( ISNA( MATCH( AH86, $W$8:$W$13, 0 ) ), ISNA( MATCH( AJ86, $W$8:$W$13, 0 ) ) ), " . ", MAX( $AG$4:AG85 ) + 1 ) -> . | AH86: =IF( $AE86 = "", "", OFFSET( Season!$E$7, 2 * $AF86 - 1 + IF( AH$4 = $AJ$4, 1, 0 ), 3*( $AE86-1) + 0 ) ) -> O46 | AI86: =IF( $AE86 = "", "", OFFSET( Season!$E$7, 2 * $AF86 - 1 + IF( AH$4 = $AJ$4, 1, 0 ), 3*( $AE86-1) + 1 ) ) -> 14 | AJ86: =IF( $AE86 = "", "", OFFSET( Season!$E$7, 2 * $AF86 - 1 + IF( AJ$4 = $AJ$4, 1, 0 ), 3*( $AE86-1) + 0 ) ) -> E75 | AK86: =IF( $AE86 = "", "", OFFSET( Season!$E$7, 2 * $AF86 - 1 + IF( AJ$4 = $AJ$4, 1, 0 ), 3*( $AE86-1) + 1 ) ) -> 12 | AL86: E75 | AM86: O46
AE87: =AE70 + 1 -> 5 | AF87: =AF70 -> 15 | AG87: =IF( OR( ISNA( MATCH( AH87, $W$8:$W$13, 0 ) ), ISNA( MATCH( AJ87, $W$8:$W$13, 0 ) ) ), " . ", MAX( $AG$4:AG86 ) + 1 ) -> . | AH87: =IF( $AE87 = "", "", OFFSET( Season!$E$7, 2 * $AF87 - 1 + IF( AH$4 = $AJ$4, 1, 0 ), 3*( $AE87-1) + 0 ) ) -> SCM | AI87: =IF( $AE87 = "", "", OFFSET( Season!$E$7, 2 * $AF87 - 1 + IF( AH$4 = $AJ$4, 1, 0 ), 3*( $AE87-1) + 1 ) ) -> 31 | AJ87: =IF( $AE87 = "", "", OFFSET( Season!$E$7, 2 * $AF87 - 1 + IF( AJ$4 = $AJ$4, 1, 0 ), 3*( $AE87-1) + 0 ) ) -> A572 | AK87: =IF( $AE87 = "", "", OFFSET( Season!$E$7, 2 * $AF87 - 1 + IF( AJ$4 = $AJ$4, 1, 0 ), 3*( $AE87-1) + 1 ) ) -> 11 | AL87: A572 | AM87: SCM
AE88: 5 | AF88: 16 | AG88: =IF( OR( ISNA( MATCH( AH88, $W$8:$W$13, 0 ) ), ISNA( MATCH( AJ88, $W$8:$W$13, 0 ) ) ), " . ", MAX( $AG$4:AG87 ) + 1 ) -> . | AH88: =IF( $AE88 = "", "", OFFSET( Season!$E$7, 2 * $AF88 - 1 + IF( AH$4 = $AJ$4, 1, 0 ), 3*( $AE88-1) + 0 ) ) -> CRF | AI88: =IF( $AE88 = "", "", OFFSET( Season!$E$7, 2 * $AF88 - 1 + IF( AH$4 = $AJ$4, 1, 0 ), 3*( $AE88-1) + 1 ) ) -> 27 | AJ88: =IF( $AE88 = "", "", OFFSET( Season!$E$7, 2 * $AF88 - 1 + IF( AJ$4 = $AJ$4, 1, 0 ), 3*( $AE88-1) + 0 ) ) -> CVN | AK88: =IF( $AE88 = "", "", OFFSET( Season!$E$7, 2 * $AF88 - 1 + IF( AJ$4 = $AJ$4, 1, 0 ), 3*( $AE88-1) + 1 ) ) -> 35 | AL88: CRF | AM88: CVN
AE89: 5 | AF89: 17 | AG89: =IF( OR( ISNA( MATCH( AH89, $W$8:$W$13, 0 ) ), ISNA( MATCH( AJ89, $W$8:$W$13, 0 ) ) ), " . ", MAX( $AG$4:AG88 ) + 1 ) -> . | AH89: =IF( $AE89 = "", "", OFFSET( Season!$E$7, 2 * $AF89 - 1 + IF( AH$4 = $AJ$4, 1, 0 ), 3*( $AE89-1) + 0 ) ) -> O87 | AI89: =IF( $AE89 = "", "", OFFSET( Season!$E$7, 2 * $AF89 - 1 + IF( AH$4 = $AJ$4, 1, 0 ), 3*( $AE89-1) + 1 ) ) -> 8 | AJ89: =IF( $AE89 = "", "", OFFSET( Season!$E$7, 2 * $AF89 - 1 + IF( AJ$4 = $AJ$4, 1, 0 ), 3*( $AE89-1) + 0 ) ) -> O19 | AK89: =IF( $AE89 = "", "", OFFSET( Season!$E$7, 2 * $AF89 - 1 + IF( AJ$4 = $AJ$4, 1, 0 ), 3*( $AE89-1) + 1 ) ) -> 19 | AL89: O87 | AM89: O19
AE90: 6 | AF90: 1 | AG90: =IF( OR( ISNA( MATCH( AH90, $W$8:$W$13, 0 ) ), ISNA( MATCH( AJ90, $W$8:$W$13, 0 ) ) ), " . ", MAX( $AG$4:AG89 ) + 1 ) -> . | AH90: =IF( $AE90 = "", "", OFFSET( Season!$E$7, 2 * $AF90 - 1 + IF( AH$4 = $AJ$4, 1, 0 ), 3*( $AE90-1) + 0 ) ) -> E17 | AI90: =IF( $AE90 = "", "", OFFSET( Season!$E$7, 2 * $AF90 - 1 + IF( AH$4 = $AJ$4, 1, 0 ), 3*( $AE90-1) + 1 ) ) -> 16 | AJ90: =IF( $AE90 = "", "", OFFSET( Season!$E$7, 2 * $AF90 - 1 + IF( AJ$4 = $AJ$4, 1, 0 ), 3*( $AE90-1) + 0 ) ) -> E42 | AK90: =IF( $AE90 = "", "", OFFSET( Season!$E$7, 2 * $AF90 - 1 + IF( AJ$4 = $AJ$4, 1, 0 ), 3*( $AE90-1) + 1 ) ) -> 17 | AL90: E17 | AM90: E42
AE91: 6 | AF91: 2 | AG91: =IF( OR( ISNA( MATCH( AH91, $W$8:$W$13, 0 ) ), ISNA( MATCH( AJ91, $W$8:$W$13, 0 ) ) ), " . ", MAX( $AG$4:AG90 ) + 1 ) -> . | AH91: =IF( $AE91 = "", "", OFFSET( Season!$E$7, 2 * $AF91 - 1 + IF( AH$4 = $AJ$4, 1, 0 ), 3*( $AE91-1) + 0 ) ) -> E55a | AI91: =IF( $AE91 = "", "", OFFSET( Season!$E$7, 2 * $AF91 - 1 + IF( AH$4 = $AJ$4, 1, 0 ), 3*( $AE91-1) + 1 ) ) -> 17 | AJ91: =IF( $AE91 = "", "", OFFSET( Season!$E$7, 2 * $AF91 - 1 + IF( AJ$4 = $AJ$4, 1, 0 ), 3*( $AE91-1) + 0 ) ) -> AMSC | AK91: =IF( $AE91 = "", "", OFFSET( Season!$E$7, 2 * $AF91 - 1 + IF( AJ$4 = $AJ$4, 1, 0 ), 3*( $AE91-1) + 1 ) ) -> 21 | AL91: E55a | AM91: AMSC
AE92: 6 | AF92: 3 | AG92: =IF( OR( ISNA( MATCH( AH92, $W$8:$W$13, 0 ) ), ISNA( MATCH( AJ92, $W$8:$W$13, 0 ) ) ), " . ", MAX( $AG$4:AG91 ) + 1 ) -> . | AH92: =IF( $AE92 = "", "", OFFSET( Season!$E$7, 2 * $AF92 - 1 + IF( AH$4 = $AJ$4, 1, 0 ), 3*( $AE92-1) + 0 ) ) -> E60 | AI92: =IF( $AE92 = "", "", OFFSET( Season!$E$7, 2 * $AF92 - 1 + IF( AH$4 = $AJ$4, 1, 0 ), 3*( $AE92-1) + 1 ) ) -> 13 | AJ92: =IF( $AE92 = "", "", OFFSET( Season!$E$7, 2 * $AF92 - 1 + IF( AJ$4 = $AJ$4, 1, 0 ), 3*( $AE92-1) + 0 ) ) -> E55B | AK92: =IF( $AE92 = "", "", OFFSET( Season!$E$7, 2 * $AF92 - 1 + IF( AJ$4 = $AJ$4, 1, 0 ), 3*( $AE92-1) + 1 ) ) -> 26 | AL92: E60 | AM92: E55B
AE93: 6 | AF93: 4 | AG93: =IF( OR( ISNA( MATCH( AH93, $W$8:$W$13, 0 ) ), ISNA( MATCH( AJ93, $W$8:$W$13, 0 ) ) ), " . ", MAX( $AG$4:AG92 ) + 1 ) -> . | AH93: =IF( $AE93 = "", "", OFFSET( Season!$E$7, 2 * $AF93 - 1 + IF( AH$4 = $AJ$4, 1, 0 ), 3*( $AE93-1) + 0 ) ) -> X88 | AI93: =IF( $AE93 = "", "", OFFSET( Season!$E$7, 2 * $AF93 - 1 + IF( AH$4 = $AJ$4, 1, 0 ), 3*( $AE93-1) + 1 ) ) -> -3 | AJ93: =IF( $AE93 = "", "", OFFSET( Season!$E$7, 2 * $AF93 - 1 + IF( AJ$4 = $AJ$4, 1, 0 ), 3*( $AE93-1) + 0 ) ) -> E83 | AK93: =IF( $AE93 = "", "", OFFSET( Season!$E$7, 2 * $AF93 - 1 + IF( AJ$4 = $AJ$4, 1, 0 ), 3*( $AE93-1) + 1 ) ) -> 18 | AL93: X88 | AM93: E83
AE94: 6 | AF94: 5 | AG94: =IF( OR( ISNA( MATCH( AH94, $W$8:$W$13, 0 ) ), ISNA( MATCH( AJ94, $W$8:$W$13, 0 ) ) ), " . ", MAX( $AG$4:AG93 ) + 1 ) -> . | AH94: =IF( $AE94 = "", "", OFFSET( Season!$E$7, 2 * $AF94 - 1 + IF( AH$4 = $AJ$4, 1, 0 ), 3*( $AE94-1) + 0 ) ) -> X04 | AI94: =IF( $AE94 = "", "", OFFSET( Season!$E$7, 2 * $AF94 - 1 + IF( AH$4 = $AJ$4, 1, 0 ), 3*( $AE94-1) + 1 ) ) -> 29 | AJ94: =IF( $AE94 = "", "", OFFSET( Season!$E$7, 2 * $AF94 - 1 + IF( AJ$4 = $AJ$4, 1, 0 ), 3*( $AE94-1) + 0 ) ) -> X87 | AK94: =IF( $AE94 = "", "", OFFSET( Season!$E$7, 2 * $AF94 - 1 + IF( AJ$4 = $AJ$4, 1, 0 ), 3*( $AE94-1) + 1 ) ) -> 11 | AL94: X87 | AM94: X04
AE95: 6 | AF95: 6 | AG95: =IF( OR( ISNA( MATCH( AH95, $W$8:$W$13, 0 ) ), ISNA( MATCH( AJ95, $W$8:$W$13, 0 ) ) ), " . ", MAX( $AG$4:AG94 ) + 1 ) -> . | AH95: =IF( $AE95 = "", "", OFFSET( Season!$E$7, 2 * $AF95 - 1 + IF( AH$4 = $AJ$4, 1, 0 ), 3*( $AE95-1) + 0 ) ) -> AGS | AI95: =IF( $AE95 = "", "", OFFSET( Season!$E$7, 2 * $AF95 - 1 + IF( AH$4 = $AJ$4, 1, 0 ), 3*( $AE95-1) + 1 ) ) -> 26 | AJ95: =IF( $AE95 = "", "", OFFSET( Season!$E$7, 2 * $AF95 - 1 + IF( AJ$4 = $AJ$4, 1, 0 ), 3*( $AE95-1) + 0 ) ) -> E14 | AK95: =IF( $AE95 = "", "", OFFSET( Season!$E$7, 2 * $AF95 - 1 + IF( AJ$4 = $AJ$4, 1, 0 ), 3*( $AE95-1) + 1 ) ) -> 13 | AL95: E14 | AM95: AGS
AE96: 6 | AF96: 7 | AG96: =IF( OR( ISNA( MATCH( AH96, $W$8:$W$13, 0 ) ), ISNA( MATCH( AJ96, $W$8:$W$13, 0 ) ) ), " . ", MAX( $AG$4:AG95 ) + 1 ) -> . | AH96: =IF( $AE96 = "", "", OFFSET( Season!$E$7, 2 * $AF96 - 1 + IF( AH$4 = $AJ$4, 1, 0 ), 3*( $AE96-1) + 0 ) ) -> X01 | AI96: =IF( $AE96 = "", "", OFFSET( Season!$E$7, 2 * $AF96 - 1 + IF( AH$4 = $AJ$4, 1, 0 ), 3*( $AE96-1) + 1 ) ) -> 35 | AJ96: =IF( $AE96 = "", "", OFFSET( Season!$E$7, 2 * $AF96 - 1 + IF( AJ$4 = $AJ$4, 1, 0 ), 3*( $AE96-1) + 0 ) ) -> SUBS | AK96: =IF( $AE96 = "", "", OFFSET( Season!$E$7, 2 * $AF96 - 1 + IF( AJ$4 = $AJ$4, 1, 0 ), 3*( $AE96-1) + 1 ) ) -> 28 | AL96: SUBS | AM96: X01
AE97: 6 | AF97: 8 | AG97: =IF( OR( ISNA( MATCH( AH97, $W$8:$W$13, 0 ) ), ISNA( MATCH( AJ97, $W$8:$W$13, 0 ) ) ), " . ", MAX( $AG$4:AG96 ) + 1 ) -> . | AH97: =IF( $AE97 = "", "", OFFSET( Season!$E$7, 2 * $AF97 - 1 + IF( AH$4 = $AJ$4, 1, 0 ), 3*( $AE97-1) + 0 ) ) -> E12 | AI97: =IF( $AE97 = "", "", OFFSET( Season!$E$7, 2 * $AF97 - 1 + IF( AH$4 = $AJ$4, 1, 0 ), 3*( $AE97-1) + 1 ) ) -> 21 | AJ97: =IF( $AE97 = "", "", OFFSET( Season!$E$7, 2 * $AF97 - 1 + IF( AJ$4 = $AJ$4, 1, 0 ), 3*( $AE97-1) + 0 ) ) -> E86 | AK97: =IF( $AE97 = "", "", OFFSET( Season!$E$7, 2 * $AF97 - 1 + IF( AJ$4 = $AJ$4, 1, 0 ), 3*( $AE97-1) + 1 ) ) -> 13 | AL97: E86 | AM97: E12
AE98: 6 | AF98: 9 | AG98: =IF( OR( ISNA( MATCH( AH98, $W$8:$W$13, 0 ) ), ISNA( MATCH( AJ98, $W$8:$W$13, 0 ) ) ), " . ", MAX( $AG$4:AG97 ) + 1 ) -> . | AH98: =IF( $AE98 = "", "", OFFSET( Season!$E$7, 2 * $AF98 - 1 + IF( AH$4 = $AJ$4, 1, 0 ), 3*( $AE98-1) + 0 ) ) -> 0 | AI98: =IF( $AE98 = "", "", OFFSET( Season!$E$7, 2 * $AF98 - 1 + IF( AH$4 = $AJ$4, 1, 0 ), 3*( $AE98-1) + 1 ) ) -> 0 | AJ98: =IF( $AE98 = "", "", OFFSET( Season!$E$7, 2 * $AF98 - 1 + IF( AJ$4 = $AJ$4, 1, 0 ), 3*( $AE98-1) + 0 ) ) -> 0 | AK98: =IF( $AE98 = "", "", OFFSET( Season!$E$7, 2 * $AF98 - 1 + IF( AJ$4 = $AJ$4, 1, 0 ), 3*( $AE98-1) + 1 ) ) -> 0 | AL98: x | AM98: x
AE99: 6 | AF99: 10 | AG99: =IF( OR( ISNA( MATCH( AH99, $W$8:$W$13, 0 ) ), ISNA( MATCH( AJ99, $W$8:$W$13, 0 ) ) ), " . ", MAX( $AG$4:AG98 ) + 1 ) -> . | AH99: =IF( $AE99 = "", "", OFFSET( Season!$E$7, 2 * $AF99 - 1 + IF( AH$4 = $AJ$4, 1, 0 ), 3*( $AE99-1) + 0 ) ) -> E25 | AI99: =IF( $AE99 = "", "", OFFSET( Season!$E$7, 2 * $AF99 - 1 + IF( AH$4 = $AJ$4, 1, 0 ), 3*( $AE99-1) + 1 ) ) -> 39 | AJ99: =IF( $AE99 = "", "", OFFSET( Season!$E$7, 2 * $AF99 - 1 + IF( AJ$4 = $AJ$4, 1, 0 ), 3*( $AE99-1) + 0 ) ) -> ARG | AK99: =IF( $AE99 = "", "", OFFSET( Season!$E$7, 2 * $AF99 - 1 + IF( AJ$4 = $AJ$4, 1, 0 ), 3*( $AE99-1) + 1 ) ) -> 9 | AL99: ARG | AM99: E25
AE100: 6 | AF100: 11 | AG100: =IF( OR( ISNA( MATCH( AH100, $W$8:$W$13, 0 ) ), ISNA( MATCH( AJ100, $W$8:$W$13, 0 ) ) ), " . ", MAX( $AG$4:AG99 ) + 1 ) -> . | AH100: =IF( $AE100 = "", "", OFFSET( Season!$E$7, 2 * $AF100 - 1 + IF( AH$4 = $AJ$4, 1, 0 ), 3*( $AE100-1) + 0 ) ) -> SCM | AI100: =IF( $AE100 = "", "", OFFSET( Season!$E$7, 2 * $AF100 - 1 + IF( AH$4 = $AJ$4, 1, 0 ), 3*( $AE100-1) + 1 ) ) -> 16 | AJ100: =IF( $AE100 = "", "", OFFSET( Season!$E$7, 2 * $AF100 - 1 + IF( AJ$4 = $AJ$4, 1, 0 ), 3*( $AE100-1) + 0 ) ) -> O46 | AK100: =IF( $AE100 = "", "", OFFSET( Season!$E$7, 2 * $AF100 - 1 + IF( AJ$4 = $AJ$4, 1, 0 ), 3*( $AE100-1) + 1 ) ) -> 21 | AL100: SCM | AM100: O46
AE101: 6 | AF101: 12 | AG101: =IF( OR( ISNA( MATCH( AH101, $W$8:$W$13, 0 ) ), ISNA( MATCH( AJ101, $W$8:$W$13, 0 ) ) ), " . ", MAX( $AG$4:AG100 ) + 1 ) -> . | AH101: =IF( $AE101 = "", "", OFFSET( Season!$E$7, 2 * $AF101 - 1 + IF( AH$4 = $AJ$4, 1, 0 ), 3*( $AE101-1) + 0 ) ) -> ENGR | AI101: =IF( $AE101 = "", "", OFFSET( Season!$E$7, 2 * $AF101 - 1 + IF( AH$4 = $AJ$4, 1, 0 ), 3*( $AE101-1) + 1 ) ) -> 38 | AJ101: =IF( $AE101 = "", "", OFFSET( Season!$E$7, 2 * $AF101 - 1 + IF( AJ$4 = $AJ$4, 1, 0 ), 3*( $AE101-1) + 0 ) ) -> M10 | AK101: =IF( $AE101 = "", "", OFFSET( Season!$E$7, 2 * $AF101 - 1 + IF( AJ$4 = $AJ$4, 1, 0 ), 3*( $AE101-1) + 1 ) ) -> 25 | AL101: M10 | AM101: ENGR
AE102: 6 | AF102: 13 | AG102: =IF( OR( ISNA( MATCH( AH102, $W$8:$W$13, 0 ) ), ISNA( MATCH( AJ102, $W$8:$W$13, 0 ) ) ), " . ", MAX( $AG$4:AG101 ) + 1 ) -> . | AH102: =IF( $AE102 = "", "", OFFSET( Season!$E$7, 2 * $AF102 - 1 + IF( AH$4 = $AJ$4, 1, 0 ), 3*( $AE102-1) + 0 ) ) -> CVN | AI102: =IF( $AE102 = "", "", OFFSET( Season!$E$7, 2 * $AF102 - 1 + IF( AH$4 = $AJ$4, 1, 0 ), 3*( $AE102-1) + 1 ) ) -> 23 | AJ102: =IF( $AE102 = "", "", OFFSET( Season!$E$7, 2 * $AF102 - 1 + IF( AJ$4 = $AJ$4, 1, 0 ), 3*( $AE102-1) + 0 ) ) -> X31 | AK102: =IF( $AE102 = "", "", OFFSET( Season!$E$7, 2 * $AF102 - 1 + IF( AJ$4 = $AJ$4, 1, 0 ), 3*( $AE102-1) + 1 ) ) -> 31 | AL102: CVN | AM102: X31
AE103: 6 | AF103: 14 | AG103: =IF( OR( ISNA( MATCH( AH103, $W$8:$W$13, 0 ) ), ISNA( MATCH( AJ103, $W$8:$W$13, 0 ) ) ), " . ", MAX( $AG$4:AG102 ) + 1 ) -> . | AH103: =IF( $AE103 = "", "", OFFSET( Season!$E$7, 2 * $AF103 - 1 + IF( AH$4 = $AJ$4, 1, 0 ), 3*( $AE103-1) + 0 ) ) -> CRF | AI103: =IF( $AE103 = "", "", OFFSET( Season!$E$7, 2 * $AF103 - 1 + IF( AH$4 = $AJ$4, 1, 0 ), 3*( $AE103-1) + 1 ) ) -> 12 | AJ103: =IF( $AE103 = "", "", OFFSET( Season!$E$7, 2 * $AF103 - 1 + IF( AJ$4 = $AJ$4, 1, 0 ), 3*( $AE103-1) + 0 ) ) -> O87 | AK103: =IF( $AE103 = "", "", OFFSET( Season!$E$7, 2 * $AF103 - 1 + IF( AJ$4 = $AJ$4, 1, 0 ), 3*( $AE103-1) + 1 ) ) -> 8 | AL103: O87 | AM103: CRF
AE104: 6 | AF104: 15 | AG104: =IF( OR( ISNA( MATCH( AH104, $W$8:$W$13, 0 ) ), ISNA( MATCH( AJ104, $W$8:$W$13, 0 ) ) ), " . ", MAX( $AG$4:AG103 ) + 1 ) -> . | AH104: =IF( $AE104 = "", "", OFFSET( Season!$E$7, 2 * $AF104 - 1 + IF( AH$4 = $AJ$4, 1, 0 ), 3*( $AE104-1) + 0 ) ) -> NNIT | AI104: =IF( $AE104 = "", "", OFFSET( Season!$E$7, 2 * $AF104 - 1 + IF( AH$4 = $AJ$4, 1, 0 ), 3*( $AE104-1) + 1 ) ) -> 12 | AJ104: =IF( $AE104 = "", "", OFFSET( Season!$E$7, 2 * $AF104 - 1 + IF( AJ$4 = $AJ$4, 1, 0 ), 3*( $AE104-1) + 0 ) ) -> A572 | AK104: =IF( $AE104 = "", "", OFFSET( Season!$E$7, 2 * $AF104 - 1 + IF( AJ$4 = $AJ$4, 1, 0 ), 3*( $AE104-1) + 1 ) ) -> 28 | AL104: NNIT | AM104: A572
AE105: 6 | AF105: 16 | AG105: =IF( OR( ISNA( MATCH( AH105, $W$8:$W$13, 0 ) ), ISNA( MATCH( AJ105, $W$8:$W$13, 0 ) ) ), " . ", MAX( $AG$4:AG104 ) + 1 ) -> . | AH105: =IF( $AE105 = "", "", OFFSET( Season!$E$7, 2 * $AF105 - 1 + IF( AH$4 = $AJ$4, 1, 0 ), 3*( $AE105-1) + 0 ) ) -> X10 | AI105: =IF( $AE105 = "", "", OFFSET( Season!$E$7, 2 * $AF105 - 1 + IF( AH$4 = $AJ$4, 1, 0 ), 3*( $AE105-1) + 1 ) ) -> 23 | AJ105: =IF( $AE105 = "", "", OFFSET( Season!$E$7, 2 * $AF105 - 1 + IF( AJ$4 = $AJ$4, 1, 0 ), 3*( $AE105-1) + 0 ) ) -> E75 | AK105: =IF( $AE105 = "", "", OFFSET( Season!$E$7, 2 * $AF105 - 1 + IF( AJ$4 = $AJ$4, 1, 0 ), 3*( $AE105-1) + 1 ) ) -> 21 | AL105: E75 | AM105: X10
AE106: 6 | AF106: 17 | AG106: =IF( OR( ISNA( MATCH( AH106, $W$8:$W$13, 0 ) ), ISNA( MATCH( AJ106, $W$8:$W$13, 0 ) ) ), " . ", MAX( $AG$4:AG105 ) + 1 ) -> . | AH106: =IF( $AE106 = "", "", OFFSET( Season!$E$7, 2 * $AF106 - 1 + IF( AH$4 = $AJ$4, 1, 0 ), 3*( $AE106-1) + 0 ) ) -> E20 | AI106: =IF( $AE106 = "", "", OFFSET( Season!$E$7, 2 * $AF106 - 1 + IF( AH$4 = $AJ$4, 1, 0 ), 3*( $AE106-1) + 1 ) ) -> 21 | AJ106: =IF( $AE106 = "", "", OFFSET( Season!$E$7, 2 * $AF106 - 1 + IF( AJ$4 = $AJ$4, 1, 0 ), 3*( $AE106-1) + 0 ) ) -> O19 | AK106: =IF( $AE106 = "", "", OFFSET( Season!$E$7, 2 * $AF106 - 1 + IF( AJ$4 = $AJ$4, 1, 0 ), 3*( $AE106-1) + 1 ) ) -> 14 | AL106: O19 | AM106: E20
AE107: 7 | AF107: 1 | AG107: =IF( OR( ISNA( MATCH( AH107, $W$8:$W$13, 0 ) ), ISNA( MATCH( AJ107, $W$8:$W$13, 0 ) ) ), " . ", MAX( $AG$4:AG106 ) + 1 ) -> . | AH107: =IF( $AE107 = "", "", OFFSET( Season!$E$7, 2 * $AF107 - 1 + IF( AH$4 = $AJ$4, 1, 0 ), 3*( $AE107-1) + 0 ) ) -> X88 | AI107: =IF( $AE107 = "", "", OFFSET( Season!$E$7, 2 * $AF107 - 1 + IF( AH$4 = $AJ$4, 1, 0 ), 3*( $AE107-1) + 1 ) ) -> 34.7 | AJ107: =IF( $AE107 = "", "", OFFSET( Season!$E$7, 2 * $AF107 - 1 + IF( AJ$4 = $AJ$4, 1, 0 ), 3*( $AE107-1) + 0 ) ) -> E55B | AK107: =IF( $AE107 = "", "", OFFSET( Season!$E$7, 2 * $AF107 - 1 + IF( AJ$4 = $AJ$4, 1, 0 ), 3*( $AE107-1) + 1 ) ) -> 15 | AL107: E55B | AM107: X88
AE108: 7 | AF108: 2 | AG108: =IF( OR( ISNA( MATCH( AH108, $W$8:$W$13, 0 ) ), ISNA( MATCH( AJ108, $W$8:$W$13, 0 ) ) ), " . ", MAX( $AG$4:AG107 ) + 1 ) -> . | AH108: =IF( $AE108 = "", "", OFFSET( Season!$E$7, 2 * $AF108 - 1 + IF( AH$4 = $AJ$4, 1, 0 ), 3*( $AE108-1) + 0 ) ) -> E86 | AI108: =IF( $AE108 = "", "", OFFSET( Season!$E$7, 2 * $AF108 - 1 + IF( AH$4 = $AJ$4, 1, 0 ), 3*( $AE108-1) + 1 ) ) -> 29 | AJ108: =IF( $AE108 = "", "", OFFSET( Season!$E$7, 2 * $AF108 - 1 + IF( AJ$4 = $AJ$4, 1, 0 ), 3*( $AE108-1) + 0 ) ) -> X04 | AK108: =IF( $AE108 = "", "", OFFSET( Season!$E$7, 2 * $AF108 - 1 + IF( AJ$4 = $AJ$4, 1, 0 ), 3*( $AE108-1) + 1 ) ) -> 34 | AL108: E86 | AM108: X04
AE109: 7 | AF109: 3 | AG109: =IF( OR( ISNA( MATCH( AH109, $W$8:$W$13, 0 ) ), ISNA( MATCH( AJ109, $W$8:$W$13, 0 ) ) ), " . ", MAX( $AG$4:AG108 ) + 1 ) -> . | AH109: =IF( $AE109 = "", "", OFFSET( Season!$E$7, 2 * $AF109 - 1 + IF( AH$4 = $AJ$4, 1, 0 ), 3*( $AE109-1) + 0 ) ) -> X87 | AI109: =IF( $AE109 = "", "", OFFSET( Season!$E$7, 2 * $AF109 - 1 + IF( AH$4 = $AJ$4, 1, 0 ), 3*( $AE109-1) + 1 ) ) -> 18 | AJ109: =IF( $AE109 = "", "", OFFSET( Season!$E$7, 2 * $AF109 - 1 + IF( AJ$4 = $AJ$4, 1, 0 ), 3*( $AE109-1) + 0 ) ) -> E12 | AK109: =IF( $AE109 = "", "", OFFSET( Season!$E$7, 2 * $AF109 - 1 + IF( AJ$4 = $AJ$4, 1, 0 ), 3*( $AE109-1) + 1 ) ) -> 17 | AL109: E12 | AM109: X87
AE110: 7 | AF110: 4 | AG110: =IF( OR( ISNA( MATCH( AH110, $W$8:$W$13, 0 ) ), ISNA( MATCH( AJ110, $W$8:$W$13, 0 ) ) ), " . ", MAX( $AG$4:AG109 ) + 1 ) -> . | AH110: =IF( $AE110 = "", "", OFFSET( Season!$E$7, 2 * $AF110 - 1 + IF( AH$4 = $AJ$4, 1, 0 ), 3*( $AE110-1) + 0 ) ) -> AGS | AI110: =IF( $AE110 = "", "", OFFSET( Season!$E$7, 2 * $AF110 - 1 + IF( AH$4 = $AJ$4, 1, 0 ), 3*( $AE110-1) + 1 ) ) -> 15 | AJ110: =IF( $AE110 = "", "", OFFSET( Season!$E$7, 2 * $AF110 - 1 + IF( AJ$4 = $AJ$4, 1, 0 ), 3*( $AE110-1) + 0 ) ) -> E55a | AK110: =IF( $AE110 = "", "", OFFSET( Season!$E$7, 2 * $AF110 - 1 + IF( AJ$4 = $AJ$4, 1, 0 ), 3*( $AE110-1) + 1 ) ) -> 22 | AL110: AGS | AM110: E55a
AE111: 7 | AF111: 5 | AG111: =IF( OR( ISNA( MATCH( AH111, $W$8:$W$13, 0 ) ), ISNA( MATCH( AJ111, $W$8:$W$13, 0 ) ) ), " . ", MAX( $AG$4:AG110 ) + 1 ) -> . | AH111: =IF( $AE111 = "", "", OFFSET( Season!$E$7, 2 * $AF111 - 1 + IF( AH$4 = $AJ$4, 1, 0 ), 3*( $AE111-1) + 0 ) ) -> E83 | AI111: =IF( $AE111 = "", "", OFFSET( Season!$E$7, 2 * $AF111 - 1 + IF( AH$4 = $AJ$4, 1, 0 ), 3*( $AE111-1) + 1 ) ) -> 7 | AJ111: =IF( $AE111 = "", "", OFFSET( Season!$E$7, 2 * $AF111 - 1 + IF( AJ$4 = $AJ$4, 1, 0 ), 3*( $AE111-1) + 0 ) ) -> E60 | AK111: =IF( $AE111 = "", "", OFFSET( Season!$E$7, 2 * $AF111 - 1 + IF( AJ$4 = $AJ$4, 1, 0 ), 3*( $AE111-1) + 1 ) ) -> 2 | AL111: E60 | AM111: E83
AE112: 7 | AF112: 6 | AG112: =IF( OR( ISNA( MATCH( AH112, $W$8:$W$13, 0 ) ), ISNA( MATCH( AJ112, $W$8:$W$13, 0 ) ) ), " . ", MAX( $AG$4:AG111 ) + 1 ) -> . | AH112: =IF( $AE112 = "", "", OFFSET( Season!$E$7, 2 * $AF112 - 1 + IF( AH$4 = $AJ$4, 1, 0 ), 3*( $AE112-1) + 0 ) ) -> E17 | AI112: =IF( $AE112 = "", "", OFFSET( Season!$E$7, 2 * $AF112 - 1 + IF( AH$4 = $AJ$4, 1, 0 ), 3*( $AE112-1) + 1 ) ) -> 15 | AJ112: =IF( $AE112 = "", "", OFFSET( Season!$E$7, 2 * $AF112 - 1 + IF( AJ$4 = $AJ$4, 1, 0 ), 3*( $AE112-1) + 0 ) ) -> SUBS | AK112: =IF( $AE112 = "", "", OFFSET( Season!$E$7, 2 * $AF112 - 1 + IF( AJ$4 = $AJ$4, 1, 0 ), 3*( $AE112-1) + 1 ) ) -> 26 | AL112: E17 | AM112: SUBS
AE113: 7 | AF113: 7 | AG113: =IF( OR( ISNA( MATCH( AH113, $W$8:$W$13, 0 ) ), ISNA( MATCH( AJ113, $W$8:$W$13, 0 ) ) ), " . ", MAX( $AG$4:AG112 ) + 1 ) -> . | AH113: =IF( $AE113 = "", "", OFFSET( Season!$E$7, 2 * $AF113 - 1 + IF( AH$4 = $AJ$4, 1, 0 ), 3*( $AE113-1) + 0 ) ) -> AMSC | AI113: =IF( $AE113 = "", "", OFFSET( Season!$E$7, 2 * $AF113 - 1 + IF( AH$4 = $AJ$4, 1, 0 ), 3*( $AE113-1) + 1 ) ) -> 25 | AJ113: =IF( $AE113 = "", "", OFFSET( Season!$E$7, 2 * $AF113 - 1 + IF( AJ$4 = $AJ$4, 1, 0 ), 3*( $AE113-1) + 0 ) ) -> E14 | AK113: =IF( $AE113 = "", "", OFFSET( Season!$E$7, 2 * $AF113 - 1 + IF( AJ$4 = $AJ$4, 1, 0 ), 3*( $AE113-1) + 1 ) ) -> 24 | AL113: E14 | AM113: AMSC
AE114: 7 | AF114: 8 | AG114: =IF( OR( ISNA( MATCH( AH114, $W$8:$W$13, 0 ) ), ISNA( MATCH( AJ114, $W$8:$W$13, 0 ) ) ), " . ", MAX( $AG$4:AG113 ) + 1 ) -> . | AH114: =IF( $AE114 = "", "", OFFSET( Season!$E$7, 2 * $AF114 - 1 + IF( AH$4 = $AJ$4, 1, 0 ), 3*( $AE114-1) + 0 ) ) -> X01 | AI114: =IF( $AE114 = "", "", OFFSET( Season!$E$7, 2 * $AF114 - 1 + IF( AH$4 = $AJ$4, 1, 0 ), 3*( $AE114-1) + 1 ) ) -> 8 | AJ114: =IF( $AE114 = "", "", OFFSET( Season!$E$7, 2 * $AF114 - 1 + IF( AJ$4 = $AJ$4, 1, 0 ), 3*( $AE114-1) + 0 ) ) -> E42 | AK114: =IF( $AE114 = "", "", OFFSET( Season!$E$7, 2 * $AF114 - 1 + IF( AJ$4 = $AJ$4, 1, 0 ), 3*( $AE114-1) + 1 ) ) -> 6 | AL114: E42 | AM114: X01
AE115: 7 | AF115: 9 | AG115: =IF( OR( ISNA( MATCH( AH115, $W$8:$W$13, 0 ) ), ISNA( MATCH( AJ115, $W$8:$W$13, 0 ) ) ), " . ", MAX( $AG$4:AG114 ) + 1 ) -> . | AH115: =IF( $AE115 = "", "", OFFSET( Season!$E$7, 2 * $AF115 - 1 + IF( AH$4 = $AJ$4, 1, 0 ), 3*( $AE115-1) + 0 ) ) -> 0 | AI115: =IF( $AE115 = "", "", OFFSET( Season!$E$7, 2 * $AF115 - 1 + IF( AH$4 = $AJ$4, 1, 0 ), 3*( $AE115-1) + 1 ) ) -> 0 | AJ115: =IF( $AE115 = "", "", OFFSET( Season!$E$7, 2 * $AF115 - 1 + IF( AJ$4 = $AJ$4, 1, 0 ), 3*( $AE115-1) + 0 ) ) -> 0 | AK115: =IF( $AE115 = "", "", OFFSET( Season!$E$7, 2 * $AF115 - 1 + IF( AJ$4 = $AJ$4, 1, 0 ), 3*( $AE115-1) + 1 ) ) -> 0 | AL115: x | AM115: x
AE116: 7 | AF116: 10 | AG116: =IF( OR( ISNA( MATCH( AH116, $W$8:$W$13, 0 ) ), ISNA( MATCH( AJ116, $W$8:$W$13, 0 ) ) ), " . ", MAX( $AG$4:AG115 ) + 1 ) -> . | AH116: =IF( $AE116 = "", "", OFFSET( Season!$E$7, 2 * $AF116 - 1 + IF( AH$4 = $AJ$4, 1, 0 ), 3*( $AE116-1) + 0 ) ) -> CVN | AI116: =IF( $AE116 = "", "", OFFSET( Season!$E$7, 2 * $AF116 - 1 + IF( AH$4 = $AJ$4, 1, 0 ), 3*( $AE116-1) + 1 ) ) -> 25 | AJ116: =IF( $AE116 = "", "", OFFSET( Season!$E$7, 2 * $AF116 - 1 + IF( AJ$4 = $AJ$4, 1, 0 ), 3*( $AE116-1) + 0 ) ) -> M10 | AK116: =IF( $AE116 = "", "", OFFSET( Season!$E$7, 2 * $AF116 - 1 + IF( AJ$4 = $AJ$4, 1, 0 ), 3*( $AE116-1) + 1 ) ) -> 12 | AL116: M10 | AM116: CVN
AE117: 7 | AF117: 11 | AG117: =IF( OR( ISNA( MATCH( AH117, $W$8:$W$13, 0 ) ), ISNA( MATCH( AJ117, $W$8:$W$13, 0 ) ) ), " . ", MAX( $AG$4:AG116 ) + 1 ) -> . | AH117: =IF( $AE117 = "", "", OFFSET( Season!$E$7, 2 * $AF117 - 1 + IF( AH$4 = $AJ$4, 1, 0 ), 3*( $AE117-1) + 0 ) ) -> O19 | AI117: =IF( $AE117 = "", "", OFFSET( Season!$E$7, 2 * $AF117 - 1 + IF( AH$4 = $AJ$4, 1, 0 ), 3*( $AE117-1) + 1 ) ) -> 26 | AJ117: =IF( $AE117 = "", "", OFFSET( Season!$E$7, 2 * $AF117 - 1 + IF( AJ$4 = $AJ$4, 1, 0 ), 3*( $AE117-1) + 0 ) ) -> CRF | AK117: =IF( $AE117 = "", "", OFFSET( Season!$E$7, 2 * $AF117 - 1 + IF( AJ$4 = $AJ$4, 1, 0 ), 3*( $AE117-1) + 1 ) ) -> 16 | AL117: CRF | AM117: O19
AE118: 7 | AF118: 12 | AG118: =IF( OR( ISNA( MATCH( AH118, $W$8:$W$13, 0 ) ), ISNA( MATCH( AJ118, $W$8:$W$13, 0 ) ) ), " . ", MAX( $AG$4:AG117 ) + 1 ) -> . | AH118: =IF( $AE118 = "", "", OFFSET( Season!$E$7, 2 * $AF118 - 1 + IF( AH$4 = $AJ$4, 1, 0 ), 3*( $AE118-1) + 0 ) ) -> O87 | AI118: =IF( $AE118 = "", "", OFFSET( Season!$E$7, 2 * $AF118 - 1 + IF( AH$4 = $AJ$4, 1, 0 ), 3*( $AE118-1) + 1 ) ) -> 11 | AJ118: =IF( $AE118 = "", "", OFFSET( Season!$E$7, 2 * $AF118 - 1 + IF( AJ$4 = $AJ$4, 1, 0 ), 3*( $AE118-1) + 0 ) ) -> E20 | AK118: =IF( $AE118 = "", "", OFFSET( Season!$E$7, 2 * $AF118 - 1 + IF( AJ$4 = $AJ$4, 1, 0 ), 3*( $AE118-1) + 1 ) ) -> 20 | AL118: O87 | AM118: E20
AE119: 7 | AF119: 13 | AG119: =IF( OR( ISNA( MATCH( AH119, $W$8:$W$13, 0 ) ), ISNA( MATCH( AJ119, $W$8:$W$13, 0 ) ) ), " . ", MAX( $AG$4:AG118 ) + 1 ) -> . | AH119: =IF( $AE119 = "", "", OFFSET( Season!$E$7, 2 * $AF119 - 1 + IF( AH$4 = $AJ$4, 1, 0 ), 3*( $AE119-1) + 0 ) ) -> NNIT | AI119: =IF( $AE119 = "", "", OFFSET( Season!$E$7, 2 * $AF119 - 1 + IF( AH$4 = $AJ$4, 1, 0 ), 3*( $AE119-1) + 1 ) ) -> 23 | AJ119: =IF( $AE119 = "", "", OFFSET( Season!$E$7, 2 * $AF119 - 1 + IF( AJ$4 = $AJ$4, 1, 0 ), 3*( $AE119-1) + 0 ) ) -> SCM | AK119: =IF( $AE119 = "", "", OFFSET( Season!$E$7, 2 * $AF119 - 1 + IF( AJ$4 = $AJ$4, 1, 0 ), 3*( $AE119-1) + 1 ) ) -> -3 | AL119: SCM | AM119: NNIT
AE120: 7 | AF120: 14 | AG120: =IF( OR( ISNA( MATCH( AH120, $W$8:$W$13, 0 ) ), ISNA( MATCH( AJ120, $W$8:$W$13, 0 ) ) ), " . ", MAX( $AG$4:AG119 ) + 1 ) -> . | AH120: =IF( $AE120 = "", "", OFFSET( Season!$E$7, 2 * $AF120 - 1 + IF( AH$4 = $AJ$4, 1, 0 ), 3*( $AE120-1) + 0 ) ) -> X31 | AI120: =IF( $AE120 = "", "", OFFSET( Season!$E$7, 2 * $AF120 - 1 + IF( AH$4 = $AJ$4, 1, 0 ), 3*( $AE120-1) + 1 ) ) -> -8 | AJ120: =IF( $AE120 = "", "", OFFSET( Season!$E$7, 2 * $AF120 - 1 + IF( AJ$4 = $AJ$4, 1, 0 ), 3*( $AE120-1) + 0 ) ) -> ENGR | AK120: =IF( $AE120 = "", "", OFFSET( Season!$E$7, 2 * $AF120 - 1 + IF( AJ$4 = $AJ$4, 1, 0 ), 3*( $AE120-1) + 1 ) ) -> 2 | AL120: X31 | AM120: ENGR
AE121: 7 | AF121: 15 | AG121: =IF( OR( ISNA( MATCH( AH121, $W$8:$W$13, 0 ) ), ISNA( MATCH( AJ121, $W$8:$W$13, 0 ) ) ), " . ", MAX( $AG$4:AG120 ) + 1 ) -> . | AH121: =IF( $AE121 = "", "", OFFSET( Season!$E$7, 2 * $AF121 - 1 + IF( AH$4 = $AJ$4, 1, 0 ), 3*( $AE121-1) + 0 ) ) -> E25 | AI121: =IF( $AE121 = "", "", OFFSET( Season!$E$7, 2 * $AF121 - 1 + IF( AH$4 = $AJ$4, 1, 0 ), 3*( $AE121-1) + 1 ) ) -> 26 | AJ121: =IF( $AE121 = "", "", OFFSET( Season!$E$7, 2 * $AF121 - 1 + IF( AJ$4 = $AJ$4, 1, 0 ), 3*( $AE121-1) + 0 ) ) -> E75 | AK121: =IF( $AE121 = "", "", OFFSET( Season!$E$7, 2 * $AF121 - 1 + IF( AJ$4 = $AJ$4, 1, 0 ), 3*( $AE121-1) + 1 ) ) -> 25 | AL121: E75 | AM121: E25
AE122: 7 | AF122: 16 | AG122: =IF( OR( ISNA( MATCH( AH122, $W$8:$W$13, 0 ) ), ISNA( MATCH( AJ122, $W$8:$W$13, 0 ) ) ), " . ", MAX( $AG$4:AG121 ) + 1 ) -> . | AH122: =IF( $AE122 = "", "", OFFSET( Season!$E$7, 2 * $AF122 - 1 + IF( AH$4 = $AJ$4, 1, 0 ), 3*( $AE122-1) + 0 ) ) -> O46 | AI122: =IF( $AE122 = "", "", OFFSET( Season!$E$7, 2 * $AF122 - 1 + IF( AH$4 = $AJ$4, 1, 0 ), 3*( $AE122-1) + 1 ) ) -> 19 | AJ122: =IF( $AE122 = "", "", OFFSET( Season!$E$7, 2 * $AF122 - 1 + IF( AJ$4 = $AJ$4, 1, 0 ), 3*( $AE122-1) + 0 ) ) -> A572 | AK122: =IF( $AE122 = "", "", OFFSET( Season!$E$7, 2 * $AF122 - 1 + IF( AJ$4 = $AJ$4, 1, 0 ), 3*( $AE122-1) + 1 ) ) -> 15 | AL122: A572 | AM122: O46
AE123: 7 | AF123: 17 | AG123: =IF( OR( ISNA( MATCH( AH123, $W$8:$W$13, 0 ) ), ISNA( MATCH( AJ123, $W$8:$W$13, 0 ) ) ), " . ", MAX( $AG$4:AG122 ) + 1 ) -> . | AH123: =IF( $AE123 = "", "", OFFSET( Season!$E$7, 2 * $AF123 - 1 + IF( AH$4 = $AJ$4, 1, 0 ), 3*( $AE123-1) + 0 ) ) -> X10 | AI123: =IF( $AE123 = "", "", OFFSET( Season!$E$7, 2 * $AF123 - 1 + IF( AH$4 = $AJ$4, 1, 0 ), 3*( $AE123-1) + 1 ) ) -> 18 | AJ123: =IF( $AE123 = "", "", OFFSET( Season!$E$7, 2 * $AF123 - 1 + IF( AJ$4 = $AJ$4, 1, 0 ), 3*( $AE123-1) + 0 ) ) -> ARG | AK123: =IF( $AE123 = "", "", OFFSET( Season!$E$7, 2 * $AF123 - 1 + IF( AJ$4 = $AJ$4, 1, 0 ), 3*( $AE123-1) + 1 ) ) -> 19 | AL123: X10 | AM123: ARG
AE124: 8 | AF124: 1 | AG124: =IF( OR( ISNA( MATCH( AH124, $W$8:$W$13, 0 ) ), ISNA( MATCH( AJ124, $W$8:$W$13, 0 ) ) ), " . ", MAX( $AG$4:AG123 ) + 1 ) -> . | AH124: =IF( $AE124 = "", "", OFFSET( Season!$E$7, 2 * $AF124 - 1 + IF( AH$4 = $AJ$4, 1, 0 ), 3*( $AE124-1) + 0 ) ) -> X04 | AI124: =IF( $AE124 = "", "", OFFSET( Season!$E$7, 2 * $AF124 - 1 + IF( AH$4 = $AJ$4, 1, 0 ), 3*( $AE124-1) + 1 ) ) -> 20 | AJ124: =IF( $AE124 = "", "", OFFSET( Season!$E$7, 2 * $AF124 - 1 + IF( AJ$4 = $AJ$4, 1, 0 ), 3*( $AE124-1) + 0 ) ) -> E14 | AK124: =IF( $AE124 = "", "", OFFSET( Season!$E$7, 2 * $AF124 - 1 + IF( AJ$4 = $AJ$4, 1, 0 ), 3*( $AE124-1) + 1 ) ) -> 12 | AL124: E14 | AM124: X04
AE125: 8 | AF125: 2 | AG125: =IF( OR( ISNA( MATCH( AH125, $W$8:$W$13, 0 ) ), ISNA( MATCH( AJ125, $W$8:$W$13, 0 ) ) ), " . ", MAX( $AG$4:AG124 ) + 1 ) -> . | AH125: =IF( $AE125 = "", "", OFFSET( Season!$E$7, 2 * $AF125 - 1 + IF( AH$4 = $AJ$4, 1, 0 ), 3*( $AE125-1) + 0 ) ) -> E42 | AI125: =IF( $AE125 = "", "", OFFSET( Season!$E$7, 2 * $AF125 - 1 + IF( AH$4 = $AJ$4, 1, 0 ), 3*( $AE125-1) + 1 ) ) -> 10 | AJ125: =IF( $AE125 = "", "", OFFSET( Season!$E$7, 2 * $AF125 - 1 + IF( AJ$4 = $AJ$4, 1, 0 ), 3*( $AE125-1) + 0 ) ) -> E83 | AK125: =IF( $AE125 = "", "", OFFSET( Season!$E$7, 2 * $AF125 - 1 + IF( AJ$4 = $AJ$4, 1, 0 ), 3*( $AE125-1) + 1 ) ) -> 18 | AL125: E42 | AM125: E83
AE126: 8 | AF126: 3 | AG126: =IF( OR( ISNA( MATCH( AH126, $W$8:$W$13, 0 ) ), ISNA( MATCH( AJ126, $W$8:$W$13, 0 ) ) ), " . ", MAX( $AG$4:AG125 ) + 1 ) -> . | AH126: =IF( $AE126 = "", "", OFFSET( Season!$E$7, 2 * $AF126 - 1 + IF( AH$4 = $AJ$4, 1, 0 ), 3*( $AE126-1) + 0 ) ) -> E55a | AI126: =IF( $AE126 = "", "", OFFSET( Season!$E$7, 2 * $AF126 - 1 + IF( AH$4 = $AJ$4, 1, 0 ), 3*( $AE126-1) + 1 ) ) -> 18 | AJ126: =IF( $AE126 = "", "", OFFSET( Season!$E$7, 2 * $AF126 - 1 + IF( AJ$4 = $AJ$4, 1, 0 ), 3*( $AE126-1) + 0 ) ) -> E12 | AK126: =IF( $AE126 = "", "", OFFSET( Season!$E$7, 2 * $AF126 - 1 + IF( AJ$4 = $AJ$4, 1, 0 ), 3*( $AE126-1) + 1 ) ) -> 14 | AL126: E12 | AM126: E55a
AE127: 8 | AF127: 4 | AG127: =IF( OR( ISNA( MATCH( AH127, $W$8:$W$13, 0 ) ), ISNA( MATCH( AJ127, $W$8:$W$13, 0 ) ) ), " . ", MAX( $AG$4:AG126 ) + 1 ) -> . | AH127: =IF( $AE127 = "", "", OFFSET( Season!$E$7, 2 * $AF127 - 1 + IF( AH$4 = $AJ$4, 1, 0 ), 3*( $AE127-1) + 0 ) ) -> E86 | AI127: =IF( $AE127 = "", "", OFFSET( Season!$E$7, 2 * $AF127 - 1 + IF( AH$4 = $AJ$4, 1, 0 ), 3*( $AE127-1) + 1 ) ) -> f | AJ127: =IF( $AE127 = "", "", OFFSET( Season!$E$7, 2 * $AF127 - 1 + IF( AJ$4 = $AJ$4, 1, 0 ), 3*( $AE127-1) + 0 ) ) -> AMSC | AK127: =IF( $AE127 = "", "", OFFSET( Season!$E$7, 2 * $AF127 - 1 + IF( AJ$4 = $AJ$4, 1, 0 ), 3*( $AE127-1) + 1 ) ) -> 0 | AL127: AMSC | AM127: E86
AE128: 8 | AF128: 5 | AG128: =IF( OR( ISNA( MATCH( AH128, $W$8:$W$13, 0 ) ), ISNA( MATCH( AJ128, $W$8:$W$13, 0 ) ) ), " . ", MAX( $AG$4:AG127 ) + 1 ) -> . | AH128: =IF( $AE128 = "", "", OFFSET( Season!$E$7, 2 * $AF128 - 1 + IF( AH$4 = $AJ$4, 1, 0 ), 3*( $AE128-1) + 0 ) ) -> AGS | AI128: =IF( $AE128 = "", "", OFFSET( Season!$E$7, 2 * $AF128 - 1 + IF( AH$4 = $AJ$4, 1, 0 ), 3*( $AE128-1) + 1 ) ) -> 18 | AJ128: =IF( $AE128 = "", "", OFFSET( Season!$E$7, 2 * $AF128 - 1 + IF( AJ$4 = $AJ$4, 1, 0 ), 3*( $AE128-1) + 0 ) ) -> X87 | AK128: =IF( $AE128 = "", "", OFFSET( Season!$E$7, 2 * $AF128 - 1 + IF( AJ$4 = $AJ$4, 1, 0 ), 3*( $AE128-1) + 1 ) ) -> 7 | AL128: X87 | AM128: AGS
AE129: 8 | AF129: 6 | AG129: =IF( OR( ISNA( MATCH( AH129, $W$8:$W$13, 0 ) ), ISNA( MATCH( AJ129, $W$8:$W$13, 0 ) ) ), " . ", MAX( $AG$4:AG128 ) + 1 ) -> . | AH129: =IF( $AE129 = "", "", OFFSET( Season!$E$7, 2 * $AF129 - 1 + IF( AH$4 = $AJ$4, 1, 0 ), 3*( $AE129-1) + 0 ) ) -> SUBS | AI129: =IF( $AE129 = "", "", OFFSET( Season!$E$7, 2 * $AF129 - 1 + IF( AH$4 = $AJ$4, 1, 0 ), 3*( $AE129-1) + 1 ) ) -> 6 | AJ129: =IF( $AE129 = "", "", OFFSET( Season!$E$7, 2 * $AF129 - 1 + IF( AJ$4 = $AJ$4, 1, 0 ), 3*( $AE129-1) + 0 ) ) -> E55B | AK129: =IF( $AE129 = "", "", OFFSET( Season!$E$7, 2 * $AF129 - 1 + IF( AJ$4 = $AJ$4, 1, 0 ), 3*( $AE129-1) + 1 ) ) -> 24 | AL129: SUBS | AM129: E55B
AE130: 8 | AF130: 7 | AG130: =IF( OR( ISNA( MATCH( AH130, $W$8:$W$13, 0 ) ), ISNA( MATCH( AJ130, $W$8:$W$13, 0 ) ) ), " . ", MAX( $AG$4:AG129 ) + 1 ) -> . | AH130: =IF( $AE130 = "", "", OFFSET( Season!$E$7, 2 * $AF130 - 1 + IF( AH$4 = $AJ$4, 1, 0 ), 3*( $AE130-1) + 0 ) ) -> X01 | AI130: =IF( $AE130 = "", "", OFFSET( Season!$E$7, 2 * $AF130 - 1 + IF( AH$4 = $AJ$4, 1, 0 ), 3*( $AE130-1) + 1 ) ) -> 17 | AJ130: =IF( $AE130 = "", "", OFFSET( Season!$E$7, 2 * $AF130 - 1 + IF( AJ$4 = $AJ$4, 1, 0 ), 3*( $AE130-1) + 0 ) ) -> E60 | AK130: =IF( $AE130 = "", "", OFFSET( Season!$E$7, 2 * $AF130 - 1 + IF( AJ$4 = $AJ$4, 1, 0 ), 3*( $AE130-1) + 1 ) ) -> 21 | AL130: X01 | AM130: E60
AE131: 8 | AF131: 8 | AG131: =IF( OR( ISNA( MATCH( AH131, $W$8:$W$13, 0 ) ), ISNA( MATCH( AJ131, $W$8:$W$13, 0 ) ) ), " . ", MAX( $AG$4:AG130 ) + 1 ) -> . | AH131: =IF( $AE131 = "", "", OFFSET( Season!$E$7, 2 * $AF131 - 1 + IF( AH$4 = $AJ$4, 1, 0 ), 3*( $AE131-1) + 0 ) ) -> X88 | AI131: =IF( $AE131 = "", "", OFFSET( Season!$E$7, 2 * $AF131 - 1 + IF( AH$4 = $AJ$4, 1, 0 ), 3*( $AE131-1) + 1 ) ) -> 16 | AJ131: =IF( $AE131 = "", "", OFFSET( Season!$E$7, 2 * $AF131 - 1 + IF( AJ$4 = $AJ$4, 1, 0 ), 3*( $AE131-1) + 0 ) ) -> E17 | AK131: =IF( $AE131 = "", "", OFFSET( Season!$E$7, 2 * $AF131 - 1 + IF( AJ$4 = $AJ$4, 1, 0 ), 3*( $AE131-1) + 1 ) ) -> 34 | AL131: X88 | AM131: E17
AE132: 8 | AF132: 9 | AG132: =IF( OR( ISNA( MATCH( AH132, $W$8:$W$13, 0 ) ), ISNA( MATCH( AJ132, $W$8:$W$13, 0 ) ) ), " . ", MAX( $AG$4:AG131 ) + 1 ) -> . | AH132: =IF( $AE132 = "", "", OFFSET( Season!$E$7, 2 * $AF132 - 1 + IF( AH$4 = $AJ$4, 1, 0 ), 3*( $AE132-1) + 0 ) ) -> 0 | AI132: =IF( $AE132 = "", "", OFFSET( Season!$E$7, 2 * $AF132 - 1 + IF( AH$4 = $AJ$4, 1, 0 ), 3*( $AE132-1) + 1 ) ) -> 0 | AJ132: =IF( $AE132 = "", "", OFFSET( Season!$E$7, 2 * $AF132 - 1 + IF( AJ$4 = $AJ$4, 1, 0 ), 3*( $AE132-1) + 0 ) ) -> 0 | AK132: =IF( $AE132 = "", "", OFFSET( Season!$E$7, 2 * $AF132 - 1 + IF( AJ$4 = $AJ$4, 1, 0 ), 3*( $AE132-1) + 1 ) ) -> 0 | AL132: x | AM132: x
AE133: 8 | AF133: 10 | AG133: =IF( OR( ISNA( MATCH( AH133, $W$8:$W$13, 0 ) ), ISNA( MATCH( AJ133, $W$8:$W$13, 0 ) ) ), " . ", MAX( $AG$4:AG132 ) + 1 ) -> . | AH133: =IF( $AE133 = "", "", OFFSET( Season!$E$7, 2 * $AF133 - 1 + IF( AH$4 = $AJ$4, 1, 0 ), 3*( $AE133-1) + 0 ) ) -> CRF | AI133: =IF( $AE133 = "", "", OFFSET( Season!$E$7, 2 * $AF133 - 1 + IF( AH$4 = $AJ$4, 1, 0 ), 3*( $AE133-1) + 1 ) ) -> 12 | AJ133: =IF( $AE133 = "", "", OFFSET( Season!$E$7, 2 * $AF133 - 1 + IF( AJ$4 = $AJ$4, 1, 0 ), 3*( $AE133-1) + 0 ) ) -> A572 | AK133: =IF( $AE133 = "", "", OFFSET( Season!$E$7, 2 * $AF133 - 1 + IF( AJ$4 = $AJ$4, 1, 0 ), 3*( $AE133-1) + 1 ) ) -> 16 | AL133: =IF( LEFT( $AI133, 1 ) = "f", $AJ133, IF( LEFT( $AK133, 1 ) = "f", $AH133, IF( AND( $AI133 = "", $AK133 = "" ), ".", IF( $AI133^2 + $AK133^2 = 0, "x", IF( $AI133 = $AK133, "Tie", IF( $AI133 < $AK133, $AH133, $AJ133 ) ) ) ) ) ) -> CRF | AM133: =IF( LEFT( $AI133, 1 ) = "f", $AH133, IF( LEFT( $AK133, 1 ) = "f", $AJ133, IF( AND( $AI133 = "", $AK133 = "" ), ".", IF( $AI133^2 + $AK133^2 = 0, "x", IF( $AI133 = $AK133, "Tie", IF( $AI133 > $AK133, $AH133, $AJ133 ) ) ) ) ) ) -> A572 | AN133: =IF( AL133 = "Tie", $AH133, "" ) ->  | AO133: =IF( AM133 = "Tie", $AJ133, "" ) -> 
AE134: 8 | AF134: 11 | AG134: =IF( OR( ISNA( MATCH( AH134, $W$8:$W$13, 0 ) ), ISNA( MATCH( AJ134, $W$8:$W$13, 0 ) ) ), " . ", MAX( $AG$4:AG133 ) + 1 ) -> . | AH134: =IF( $AE134 = "", "", OFFSET( Season!$E$7, 2 * $AF134 - 1 + IF( AH$4 = $AJ$4, 1, 0 ), 3*( $AE134-1) + 0 ) ) -> ARG | AI134: =IF( $AE134 = "", "", OFFSET( Season!$E$7, 2 * $AF134 - 1 + IF( AH$4 = $AJ$4, 1, 0 ), 3*( $AE134-1) + 1 ) ) -> 0 | AJ134: =IF( $AE134 = "", "", OFFSET( Season!$E$7, 2 * $AF134 - 1 + IF( AJ$4 = $AJ$4, 1, 0 ), 3*( $AE134-1) + 0 ) ) -> X31 | AK134: =IF( $AE134 = "", "", OFFSET( Season!$E$7, 2 * $AF134 - 1 + IF( AJ$4 = $AJ$4, 1, 0 ), 3*( $AE134-1) + 1 ) ) -> f | AL134: ARG | AM134: X31
AE135: 8 | AF135: 12 | AG135: =IF( OR( ISNA( MATCH( AH135, $W$8:$W$13, 0 ) ), ISNA( MATCH( AJ135, $W$8:$W$13, 0 ) ) ), " . ", MAX( $AG$4:AG134 ) + 1 ) -> . | AH135: =IF( $AE135 = "", "", OFFSET( Season!$E$7, 2 * $AF135 - 1 + IF( AH$4 = $AJ$4, 1, 0 ), 3*( $AE135-1) + 0 ) ) -> SCM | AI135: =IF( $AE135 = "", "", OFFSET( Season!$E$7, 2 * $AF135 - 1 + IF( AH$4 = $AJ$4, 1, 0 ), 3*( $AE135-1) + 1 ) ) -> 23 | AJ135: =IF( $AE135 = "", "", OFFSET( Season!$E$7, 2 * $AF135 - 1 + IF( AJ$4 = $AJ$4, 1, 0 ), 3*( $AE135-1) + 0 ) ) -> E20 | AK135: =IF( $AE135 = "", "", OFFSET( Season!$E$7, 2 * $AF135 - 1 + IF( AJ$4 = $AJ$4, 1, 0 ), 3*( $AE135-1) + 1 ) ) -> 22 | AL135: E20 | AM135: SCM
AE136: 8 | AF136: 13 | AG136: =IF( OR( ISNA( MATCH( AH136, $W$8:$W$13, 0 ) ), ISNA( MATCH( AJ136, $W$8:$W$13, 0 ) ) ), " . ", MAX( $AG$4:AG135 ) + 1 ) -> . | AH136: =IF( $AE136 = "", "", OFFSET( Season!$E$7, 2 * $AF136 - 1 + IF( AH$4 = $AJ$4, 1, 0 ), 3*( $AE136-1) + 0 ) ) -> O19 | AI136: =IF( $AE136 = "", "", OFFSET( Season!$E$7, 2 * $AF136 - 1 + IF( AH$4 = $AJ$4, 1, 0 ), 3*( $AE136-1) + 1 ) ) -> 19 | AJ136: =IF( $AE136 = "", "", OFFSET( Season!$E$7, 2 * $AF136 - 1 + IF( AJ$4 = $AJ$4, 1, 0 ), 3*( $AE136-1) + 0 ) ) -> O46 | AK136: =IF( $AE136 = "", "", OFFSET( Season!$E$7, 2 * $AF136 - 1 + IF( AJ$4 = $AJ$4, 1, 0 ), 3*( $AE136-1) + 1 ) ) -> 24 | AL136: O19 | AM136: O46
AE137: 8 | AF137: 14 | AG137: =IF( OR( ISNA( MATCH( AH137, $W$8:$W$13, 0 ) ), ISNA( MATCH( AJ137, $W$8:$W$13, 0 ) ) ), " . ", MAX( $AG$4:AG136 ) + 1 ) -> . | AH137: =IF( $AE137 = "", "", OFFSET( Season!$E$7, 2 * $AF137 - 1 + IF( AH$4 = $AJ$4, 1, 0 ), 3*( $AE137-1) + 0 ) ) -> NNIT | AI137: =IF( $AE137 = "", "", OFFSET( Season!$E$7, 2 * $AF137 - 1 + IF( AH$4 = $AJ$4, 1, 0 ), 3*( $AE137-1) + 1 ) ) -> -11 | AJ137: =IF( $AE137 = "", "", OFFSET( Season!$E$7, 2 * $AF137 - 1 + IF( AJ$4 = $AJ$4, 1, 0 ), 3*( $AE137-1) + 0 ) ) -> O87 | AK137: =IF( $AE137 = "", "", OFFSET( Season!$E$7, 2 * $AF137 - 1 + IF( AJ$4 = $AJ$4, 1, 0 ), 3*( $AE137-1) + 1 ) ) -> -4 | AL137: NNIT | AM137: O87
AE138: 8 | AF138: 15 | AG138: =IF( OR( ISNA( MATCH( AH138, $W$8:$W$13, 0 ) ), ISNA( MATCH( AJ138, $W$8:$W$13, 0 ) ) ), " . ", MAX( $AG$4:AG137 ) + 1 ) -> . | AH138: =IF( $AE138 = "", "", OFFSET( Season!$E$7, 2 * $AF138 - 1 + IF( AH$4 = $AJ$4, 1, 0 ), 3*( $AE138-1) + 0 ) ) -> E75 | AI138: =IF( $AE138 = "", "", OFFSET( Season!$E$7, 2 * $AF138 - 1 + IF( AH$4 = $AJ$4, 1, 0 ), 3*( $AE138-1) + 1 ) ) -> 18 | AJ138: =IF( $AE138 = "", "", OFFSET( Season!$E$7, 2 * $AF138 - 1 + IF( AJ$4 = $AJ$4, 1, 0 ), 3*( $AE138-1) + 0 ) ) -> M10 | AK138: =IF( $AE138 = "", "", OFFSET( Season!$E$7, 2 * $AF138 - 1 + IF( AJ$4 = $AJ$4, 1, 0 ), 3*( $AE138-1) + 1 ) ) -> 29 | AL138: E75 | AM138: M10
AE139: 8 | AF139: 16 | AG139: =IF( OR( ISNA( MATCH( AH139, $W$8:$W$13, 0 ) ), ISNA( MATCH( AJ139, $W$8:$W$13, 0 ) ) ), " . ", MAX( $AG$4:AG138 ) + 1 ) -> . | AH139: =IF( $AE139 = "", "", OFFSET( Season!$E$7, 2 * $AF139 - 1 + IF( AH$4 = $AJ$4, 1, 0 ), 3*( $AE139-1) + 0 ) ) -> X10 | AI139: =IF( $AE139 = "", "", OFFSET( Season!$E$7, 2 * $AF139 - 1 + IF( AH$4 = $AJ$4, 1, 0 ), 3*( $AE139-1) + 1 ) ) -> 21 | AJ139: =IF( $AE139 = "", "", OFFSET( Season!$E$7, 2 * $AF139 - 1 + IF( AJ$4 = $AJ$4, 1, 0 ), 3*( $AE139-1) + 0 ) ) -> ENGR | AK139: =IF( $AE139 = "", "", OFFSET( Season!$E$7, 2 * $AF139 - 1 + IF( AJ$4 = $AJ$4, 1, 0 ), 3*( $AE139-1) + 1 ) ) -> 31 | AL139: X10 | AM139: ENGR
AE140: 8 | AF140: 17 | AG140: =IF( OR( ISNA( MATCH( AH140, $W$8:$W$13, 0 ) ), ISNA( MATCH( AJ140, $W$8:$W$13, 0 ) ) ), " . ", MAX( $AG$4:AG139 ) + 1 ) -> . | AH140: =IF( $AE140 = "", "", OFFSET( Season!$E$7, 2 * $AF140 - 1 + IF( AH$4 = $AJ$4, 1, 0 ), 3*( $AE140-1) + 0 ) ) -> CVN | AI140: =IF( $AE140 = "", "", OFFSET( Season!$E$7, 2 * $AF140 - 1 + IF( AH$4 = $AJ$4, 1, 0 ), 3*( $AE140-1) + 1 ) ) -> f | AJ140: =IF( $AE140 = "", "", OFFSET( Season!$E$7, 2 * $AF140 - 1 + IF( AJ$4 = $AJ$4, 1, 0 ), 3*( $AE140-1) + 0 ) ) -> E25 | AK140: =IF( $AE140 = "", "", OFFSET( Season!$E$7, 2 * $AF140 - 1 + IF( AJ$4 = $AJ$4, 1, 0 ), 3*( $AE140-1) + 1 ) ) -> 0 | AL140: E25 | AM140: CVN
AE141: 9 | AF141: 1 | AG141: =IF( OR( ISNA( MATCH( AH141, $W$8:$W$13, 0 ) ), ISNA( MATCH( AJ141, $W$8:$W$13, 0 ) ) ), " . ", MAX( $AG$4:AG140 ) + 1 ) -> . | AH141: =IF( $AE141 = "", "", OFFSET( Season!$E$7, 2 * $AF141 - 1 + IF( AH$4 = $AJ$4, 1, 0 ), 3*( $AE141-1) + 0 ) ) -> X04 | AI141: =IF( $AE141 = "", "", OFFSET( Season!$E$7, 2 * $AF141 - 1 + IF( AH$4 = $AJ$4, 1, 0 ), 3*( $AE141-1) + 1 ) ) -> f | AJ141: =IF( $AE141 = "", "", OFFSET( Season!$E$7, 2 * $AF141 - 1 + IF( AJ$4 = $AJ$4, 1, 0 ), 3*( $AE141-1) + 0 ) ) -> E55B | AK141: =IF( $AE141 = "", "", OFFSET( Season!$E$7, 2 * $AF141 - 1 + IF( AJ$4 = $AJ$4, 1, 0 ), 3*( $AE141-1) + 1 ) ) -> 0 | AL141: E55B | AM141: X04
AE142: 9 | AF142: 2 | AG142: =IF( OR( ISNA( MATCH( AH142, $W$8:$W$13, 0 ) ), ISNA( MATCH( AJ142, $W$8:$W$13, 0 ) ) ), " . ", MAX( $AG$4:AG141 ) + 1 ) -> . | AH142: =IF( $AE142 = "", "", OFFSET( Season!$E$7, 2 * $AF142 - 1 + IF( AH$4 = $AJ$4, 1, 0 ), 3*( $AE142-1) + 0 ) ) -> X87 | AI142: =IF( $AE142 = "", "", OFFSET( Season!$E$7, 2 * $AF142 - 1 + IF( AH$4 = $AJ$4, 1, 0 ), 3*( $AE142-1) + 1 ) ) -> 10 | AJ142: =IF( $AE142 = "", "", OFFSET( Season!$E$7, 2 * $AF142 - 1 + IF( AJ$4 = $AJ$4, 1, 0 ), 3*( $AE142-1) + 0 ) ) -> E60 | AK142: =IF( $AE142 = "", "", OFFSET( Season!$E$7, 2 * $AF142 - 1 + IF( AJ$4 = $AJ$4, 1, 0 ), 3*( $AE142-1) + 1 ) ) -> 17 | AL142: X87 | AM142: E60
AE143: 9 | AF143: 3 | AG143: =IF( OR( ISNA( MATCH( AH143, $W$8:$W$13, 0 ) ), ISNA( MATCH( AJ143, $W$8:$W$13, 0 ) ) ), " . ", MAX( $AG$4:AG142 ) + 1 ) -> . | AH143: =IF( $AE143 = "", "", OFFSET( Season!$E$7, 2 * $AF143 - 1 + IF( AH$4 = $AJ$4, 1, 0 ), 3*( $AE143-1) + 0 ) ) -> E86 | AI143: =IF( $AE143 = "", "", OFFSET( Season!$E$7, 2 * $AF143 - 1 + IF( AH$4 = $AJ$4, 1, 0 ), 3*( $AE143-1) + 1 ) ) -> 12 | AJ143: =IF( $AE143 = "", "", OFFSET( Season!$E$7, 2 * $AF143 - 1 + IF( AJ$4 = $AJ$4, 1, 0 ), 3*( $AE143-1) + 0 ) ) -> X88 | AK143: =IF( $AE143 = "", "", OFFSET( Season!$E$7, 2 * $AF143 - 1 + IF( AJ$4 = $AJ$4, 1, 0 ), 3*( $AE143-1) + 1 ) ) -> 12 | AL143: Tie | AM143: Tie | AN143: E86 | AO143: X88
AE144: 9 | AF144: 4 | AG144: =IF( OR( ISNA( MATCH( AH144, $W$8:$W$13, 0 ) ), ISNA( MATCH( AJ144, $W$8:$W$13, 0 ) ) ), " . ", MAX( $AG$4:AG143 ) + 1 ) -> . | AH144: =IF( $AE144 = "", "", OFFSET( Season!$E$7, 2 * $AF144 - 1 + IF( AH$4 = $AJ$4, 1, 0 ), 3*( $AE144-1) + 0 ) ) -> E17 | AI144: =IF( $AE144 = "", "", OFFSET( Season!$E$7, 2 * $AF144 - 1 + IF( AH$4 = $AJ$4, 1, 0 ), 3*( $AE144-1) + 1 ) ) -> 8 | AJ144: =IF( $AE144 = "", "", OFFSET( Season!$E$7, 2 * $AF144 - 1 + IF( AJ$4 = $AJ$4, 1, 0 ), 3*( $AE144-1) + 0 ) ) -> AMSC | AK144: =IF( $AE144 = "", "", OFFSET( Season!$E$7, 2 * $AF144 - 1 + IF( AJ$4 = $AJ$4, 1, 0 ), 3*( $AE144-1) + 1 ) ) -> 7 | AL144: AMSC | AM144: E17
AE145: 9 | AF145: 5 | AG145: =IF( OR( ISNA( MATCH( AH145, $W$8:$W$13, 0 ) ), ISNA( MATCH( AJ145, $W$8:$W$13, 0 ) ) ), " . ", MAX( $AG$4:AG144 ) + 1 ) -> . | AH145: =IF( $AE145 = "", "", OFFSET( Season!$E$7, 2 * $AF145 - 1 + IF( AH$4 = $AJ$4, 1, 0 ), 3*( $AE145-1) + 0 ) ) -> SUBS | AI145: =IF( $AE145 = "", "", OFFSET( Season!$E$7, 2 * $AF145 - 1 + IF( AH$4 = $AJ$4, 1, 0 ), 3*( $AE145-1) + 1 ) ) -> 26 | AJ145: =IF( $AE145 = "", "", OFFSET( Season!$E$7, 2 * $AF145 - 1 + IF( AJ$4 = $AJ$4, 1, 0 ), 3*( $AE145-1) + 0 ) ) -> E14 | AK145: =IF( $AE145 = "", "", OFFSET( Season!$E$7, 2 * $AF145 - 1 + IF( AJ$4 = $AJ$4, 1, 0 ), 3*( $AE145-1) + 1 ) ) -> 38 | AL145: SUBS | AM145: E14
AE146: 9 | AF146: 6 | AG146: =IF( OR( ISNA( MATCH( AH146, $W$8:$W$13, 0 ) ), ISNA( MATCH( AJ146, $W$8:$W$13, 0 ) ) ), " . ", MAX( $AG$4:AG145 ) + 1 ) -> . | AH146: =IF( $AE146 = "", "", OFFSET( Season!$E$7, 2 * $AF146 - 1 + IF( AH$4 = $AJ$4, 1, 0 ), 3*( $AE146-1) + 0 ) ) -> E42 | AI146: =IF( $AE146 = "", "", OFFSET( Season!$E$7, 2 * $AF146 - 1 + IF( AH$4 = $AJ$4, 1, 0 ), 3*( $AE146-1) + 1 ) ) -> 16 | AJ146: =IF( $AE146 = "", "", OFFSET( Season!$E$7, 2 * $AF146 - 1 + IF( AJ$4 = $AJ$4, 1, 0 ), 3*( $AE146-1) + 0 ) ) -> E55a | AK146: =IF( $AE146 = "", "", OFFSET( Season!$E$7, 2 * $AF146 - 1 + IF( AJ$4 = $AJ$4, 1, 0 ), 3*( $AE146-1) + 1 ) ) -> 10 | AL146: E55a | AM146: E42
AE147: 9 | AF147: 7 | AG147: =IF( OR( ISNA( MATCH( AH147, $W$8:$W$13, 0 ) ), ISNA( MATCH( AJ147, $W$8:$W$13, 0 ) ) ), " . ", MAX( $AG$4:AG146 ) + 1 ) -> . | AH147: =IF( $AE147 = "", "", OFFSET( Season!$E$7, 2 * $AF147 - 1 + IF( AH$4 = $AJ$4, 1, 0 ), 3*( $AE147-1) + 0 ) ) -> E12 | AI147: =IF( $AE147 = "", "", OFFSET( Season!$E$7, 2 * $AF147 - 1 + IF( AH$4 = $AJ$4, 1, 0 ), 3*( $AE147-1) + 1 ) ) -> 15 | AJ147: =IF( $AE147 = "", "", OFFSET( Season!$E$7, 2 * $AF147 - 1 + IF( AJ$4 = $AJ$4, 1, 0 ), 3*( $AE147-1) + 0 ) ) -> E83 | AK147: =IF( $AE147 = "", "", OFFSET( Season!$E$7, 2 * $AF147 - 1 + IF( AJ$4 = $AJ$4, 1, 0 ), 3*( $AE147-1) + 1 ) ) -> 17 | AL147: E12 | AM147: E83
AE148: 9 | AF148: 8 | AG148: =IF( OR( ISNA( MATCH( AH148, $W$8:$W$13, 0 ) ), ISNA( MATCH( AJ148, $W$8:$W$13, 0 ) ) ), " . ", MAX( $AG$4:AG147 ) + 1 ) -> . | AH148: =IF( $AE148 = "", "", OFFSET( Season!$E$7, 2 * $AF148 - 1 + IF( AH$4 = $AJ$4, 1, 0 ), 3*( $AE148-1) + 0 ) ) -> X01 | AI148: =IF( $AE148 = "", "", OFFSET( Season!$E$7, 2 * $AF148 - 1 + IF( AH$4 = $AJ$4, 1, 0 ), 3*( $AE148-1) + 1 ) ) -> 23 | AJ148: =IF( $AE148 = "", "", OFFSET( Season!$E$7, 2 * $AF148 - 1 + IF( AJ$4 = $AJ$4, 1, 0 ), 3*( $AE148-1) + 0 ) ) -> AGS | AK148: =IF( $AE148 = "", "", OFFSET( Season!$E$7, 2 * $AF148 - 1 + IF( AJ$4 = $AJ$4, 1, 0 ), 3*( $AE148-1) + 1 ) ) -> 11 | AL148: AGS | AM148: X01
AE149: 9 | AF149: 9 | AG149: =IF( OR( ISNA( MATCH( AH149, $W$8:$W$13, 0 ) ), ISNA( MATCH( AJ149, $W$8:$W$13, 0 ) ) ), " . ", MAX( $AG$4:AG148 ) + 1 ) -> . | AH149: =IF( $AE149 = "", "", OFFSET( Season!$E$7, 2 * $AF149 - 1 + IF( AH$4 = $AJ$4, 1, 0 ), 3*( $AE149-1) + 0 ) ) -> 0 | AI149: =IF( $AE149 = "", "", OFFSET( Season!$E$7, 2 * $AF149 - 1 + IF( AH$4 = $AJ$4, 1, 0 ), 3*( $AE149-1) + 1 ) ) -> 0 | AJ149: =IF( $AE149 = "", "", OFFSET( Season!$E$7, 2 * $AF149 - 1 + IF( AJ$4 = $AJ$4, 1, 0 ), 3*( $AE149-1) + 0 ) ) -> 0 | AK149: =IF( $AE149 = "", "", OFFSET( Season!$E$7, 2 * $AF149 - 1 + IF( AJ$4 = $AJ$4, 1, 0 ), 3*( $AE149-1) + 1 ) ) -> 0 | AL149: x | AM149: x
AE150: 9 | AF150: 10 | AG150: =IF( OR( ISNA( MATCH( AH150, $W$8:$W$13, 0 ) ), ISNA( MATCH( AJ150, $W$8:$W$13, 0 ) ) ), " . ", MAX( $AG$4:AG149 ) + 1 ) -> . | AH150: =IF( $AE150 = "", "", OFFSET( Season!$E$7, 2 * $AF150 - 1 + IF( AH$4 = $AJ$4, 1, 0 ), 3*( $AE150-1) + 0 ) ) -> CRF | AI150: =IF( $AE150 = "", "", OFFSET( Season!$E$7, 2 * $AF150 - 1 + IF( AH$4 = $AJ$4, 1, 0 ), 3*( $AE150-1) + 1 ) ) -> 8 | AJ150: =IF( $AE150 = "", "", OFFSET( Season!$E$7, 2 * $AF150 - 1 + IF( AJ$4 = $AJ$4, 1, 0 ), 3*( $AE150-1) + 0 ) ) -> M10 | AK150: =IF( $AE150 = "", "", OFFSET( Season!$E$7, 2 * $AF150 - 1 + IF( AJ$4 = $AJ$4, 1, 0 ), 3*( $AE150-1) + 1 ) ) -> 11 | AL150: CRF | AM150: M10
AE151: =AE134 + 1 -> 9 | AF151: =AF134 -> 11 | AG151: =IF( OR( ISNA( MATCH( AH151, $W$8:$W$13, 0 ) ), ISNA( MATCH( AJ151, $W$8:$W$13, 0 ) ) ), " . ", MAX( $AG$4:AG150 ) + 1 ) -> . | AH151: =IF( $AE151 = "", "", OFFSET( Season!$E$7, 2 * $AF151 - 1 + IF( AH$4 = $AJ$4, 1, 0 ), 3*( $AE151-1) + 0 ) ) -> O87 | AI151: =IF( $AE151 = "", "", OFFSET( Season!$E$7, 2 * $AF151 - 1 + IF( AH$4 = $AJ$4, 1, 0 ), 3*( $AE151-1) + 1 ) ) -> 10 | AJ151: =IF( $AE151 = "", "", OFFSET( Season!$E$7, 2 * $AF151 - 1 + IF( AJ$4 = $AJ$4, 1, 0 ), 3*( $AE151-1) + 0 ) ) -> ENGR | AK151: =IF( $AE151 = "", "", OFFSET( Season!$E$7, 2 * $AF151 - 1 + IF( AJ$4 = $AJ$4, 1, 0 ), 3*( $AE151-1) + 1 ) ) -> 7 | AL151: ENGR | AM151: O87
AE152: 9 | AF152: 12 | AG152: =IF( OR( ISNA( MATCH( AH152, $W$8:$W$13, 0 ) ), ISNA( MATCH( AJ152, $W$8:$W$13, 0 ) ) ), " . ", MAX( $AG$4:AG151 ) + 1 ) -> . | AH152: =IF( $AE152 = "", "", OFFSET( Season!$E$7, 2 * $AF152 - 1 + IF( AH$4 = $AJ$4, 1, 0 ), 3*( $AE152-1) + 0 ) ) -> O19 | AI152: =IF( $AE152 = "", "", OFFSET( Season!$E$7, 2 * $AF152 - 1 + IF( AH$4 = $AJ$4, 1, 0 ), 3*( $AE152-1) + 1 ) ) -> 20 | AJ152: =IF( $AE152 = "", "", OFFSET( Season!$E$7, 2 * $AF152 - 1 + IF( AJ$4 = $AJ$4, 1, 0 ), 3*( $AE152-1) + 0 ) ) -> CVN | AK152: =IF( $AE152 = "", "", OFFSET( Season!$E$7, 2 * $AF152 - 1 + IF( AJ$4 = $AJ$4, 1, 0 ), 3*( $AE152-1) + 1 ) ) -> 31 | AL152: O19 | AM152: CVN
AE153: 9 | AF153: 13 | AG153: =IF( OR( ISNA( MATCH( AH153, $W$8:$W$13, 0 ) ), ISNA( MATCH( AJ153, $W$8:$W$13, 0 ) ) ), " . ", MAX( $AG$4:AG152 ) + 1 ) -> . | AH153: =IF( $AE153 = "", "", OFFSET( Season!$E$7, 2 * $AF153 - 1 + IF( AH$4 = $AJ$4, 1, 0 ), 3*( $AE153-1) + 0 ) ) -> E25 | AI153: =IF( $AE153 = "", "", OFFSET( Season!$E$7, 2 * $AF153 - 1 + IF( AH$4 = $AJ$4, 1, 0 ), 3*( $AE153-1) + 1 ) ) -> 37 | AJ153: =IF( $AE153 = "", "", OFFSET( Season!$E$7, 2 * $AF153 - 1 + IF( AJ$4 = $AJ$4, 1, 0 ), 3*( $AE153-1) + 0 ) ) -> O46 | AK153: =IF( $AE153 = "", "", OFFSET( Season!$E$7, 2 * $AF153 - 1 + IF( AJ$4 = $AJ$4, 1, 0 ), 3*( $AE153-1) + 1 ) ) -> 18 | AL153: O46 | AM153: E25
AE154: 9 | AF154: 14 | AG154: =IF( OR( ISNA( MATCH( AH154, $W$8:$W$13, 0 ) ), ISNA( MATCH( AJ154, $W$8:$W$13, 0 ) ) ), " . ", MAX( $AG$4:AG153 ) + 1 ) -> . | AH154: =IF( $AE154 = "", "", OFFSET( Season!$E$7, 2 * $AF154 - 1 + IF( AH$4 = $AJ$4, 1, 0 ), 3*( $AE154-1) + 0 ) ) -> E75 | AI154: =IF( $AE154 = "", "", OFFSET( Season!$E$7, 2 * $AF154 - 1 + IF( AH$4 = $AJ$4, 1, 0 ), 3*( $AE154-1) + 1 ) ) -> -6 | AJ154: =IF( $AE154 = "", "", OFFSET( Season!$E$7, 2 * $AF154 - 1 + IF( AJ$4 = $AJ$4, 1, 0 ), 3*( $AE154-1) + 0 ) ) -> A572 | AK154: =IF( $AE154 = "", "", OFFSET( Season!$E$7, 2 * $AF154 - 1 + IF( AJ$4 = $AJ$4, 1, 0 ), 3*( $AE154-1) + 1 ) ) -> -6 | AL154: Tie | AM154: Tie | AN154: E75 | AO154: A572
AE155: 9 | AF155: 15 | AG155: =IF( OR( ISNA( MATCH( AH155, $W$8:$W$13, 0 ) ), ISNA( MATCH( AJ155, $W$8:$W$13, 0 ) ) ), " . ", MAX( $AG$4:AG154 ) + 1 ) -> . | AH155: =IF( $AE155 = "", "", OFFSET( Season!$E$7, 2 * $AF155 - 1 + IF( AH$4 = $AJ$4, 1, 0 ), 3*( $AE155-1) + 0 ) ) -> ARG | AI155: =IF( $AE155 = "", "", OFFSET( Season!$E$7, 2 * $AF155 - 1 + IF( AH$4 = $AJ$4, 1, 0 ), 3*( $AE155-1) + 1 ) ) -> 17 | AJ155: =IF( $AE155 = "", "", OFFSET( Season!$E$7, 2 * $AF155 - 1 + IF( AJ$4 = $AJ$4, 1, 0 ), 3*( $AE155-1) + 0 ) ) -> SCM | AK155: =IF( $AE155 = "", "", OFFSET( Season!$E$7, 2 * $AF155 - 1 + IF( AJ$4 = $AJ$4, 1, 0 ), 3*( $AE155-1) + 1 ) ) -> 20 | AL155: ARG | AM155: SCM
AE156: 9 | AF156: 16 | AG156: =IF( OR( ISNA( MATCH( AH156, $W$8:$W$13, 0 ) ), ISNA( MATCH( AJ156, $W$8:$W$13, 0 ) ) ), " . ", MAX( $AG$4:AG155 ) + 1 ) -> . | AH156: =IF( $AE156 = "", "", OFFSET( Season!$E$7, 2 * $AF156 - 1 + IF( AH$4 = $AJ$4, 1, 0 ), 3*( $AE156-1) + 0 ) ) -> E20 | AI156: =IF( $AE156 = "", "", OFFSET( Season!$E$7, 2 * $AF156 - 1 + IF( AH$4 = $AJ$4, 1, 0 ), 3*( $AE156-1) + 1 ) ) -> 18 | AJ156: =IF( $AE156 = "", "", OFFSET( Season!$E$7, 2 * $AF156 - 1 + IF( AJ$4 = $AJ$4, 1, 0 ), 3*( $AE156-1) + 0 ) ) -> X31 | AK156: =IF( $AE156 = "", "", OFFSET( Season!$E$7, 2 * $AF156 - 1 + IF( AJ$4 = $AJ$4, 1, 0 ), 3*( $AE156-1) + 1 ) ) -> 23 | AL156: E20 | AM156: X31
AE157: 9 | AF157: 17 | AG157: =IF( OR( ISNA( MATCH( AH157, $W$8:$W$13, 0 ) ), ISNA( MATCH( AJ157, $W$8:$W$13, 0 ) ) ), " . ", MAX( $AG$4:AG156 ) + 1 ) -> . | AH157: =IF( $AE157 = "", "", OFFSET( Season!$E$7, 2 * $AF157 - 1 + IF( AH$4 = $AJ$4, 1, 0 ), 3*( $AE157-1) + 0 ) ) -> X10 | AI157: =IF( $AE157 = "", "", OFFSET( Season!$E$7, 2 * $AF157 - 1 + IF( AH$4 = $AJ$4, 1, 0 ), 3*( $AE157-1) + 1 ) ) -> 25 | AJ157: =IF( $AE157 = "", "", OFFSET( Season!$E$7, 2 * $AF157 - 1 + IF( AJ$4 = $AJ$4, 1, 0 ), 3*( $AE157-1) + 0 ) ) -> NNIT | AK157: =IF( $AE157 = "", "", OFFSET( Season!$E$7, 2 * $AF157 - 1 + IF( AJ$4 = $AJ$4, 1, 0 ), 3*( $AE157-1) + 1 ) ) -> 14 | AL157: NNIT | AM157: X10
AE158: 10 | AF158: 1 | AG158: =IF( OR( ISNA( MATCH( AH158, $W$8:$W$13, 0 ) ), ISNA( MATCH( AJ158, $W$8:$W$13, 0 ) ) ), " . ", MAX( $AG$4:AG157 ) + 1 ) -> . | AH158: =IF( $AE158 = "", "", OFFSET( Season!$E$7, 2 * $AF158 - 1 + IF( AH$4 = $AJ$4, 1, 0 ), 3*( $AE158-1) + 0 ) ) -> AMSC | AI158: =IF( $AE158 = "", "", OFFSET( Season!$E$7, 2 * $AF158 - 1 + IF( AH$4 = $AJ$4, 1, 0 ), 3*( $AE158-1) + 1 ) ) -> 12 | AJ158: =IF( $AE158 = "", "", OFFSET( Season!$E$7, 2 * $AF158 - 1 + IF( AJ$4 = $AJ$4, 1, 0 ), 3*( $AE158-1) + 0 ) ) -> X01 | AK158: =IF( $AE158 = "", "", OFFSET( Season!$E$7, 2 * $AF158 - 1 + IF( AJ$4 = $AJ$4, 1, 0 ), 3*( $AE158-1) + 1 ) ) -> 2 | AL158: X01 | AM158: AMSC
AE159: 10 | AF159: 2 | AG159: =IF( OR( ISNA( MATCH( AH159, $W$8:$W$13, 0 ) ), ISNA( MATCH( AJ159, $W$8:$W$13, 0 ) ) ), " . ", MAX( $AG$4:AG158 ) + 1 ) -> . | AH159: =IF( $AE159 = "", "", OFFSET( Season!$E$7, 2 * $AF159 - 1 + IF( AH$4 = $AJ$4, 1, 0 ), 3*( $AE159-1) + 0 ) ) -> E55B | AI159: =IF( $AE159 = "", "", OFFSET( Season!$E$7, 2 * $AF159 - 1 + IF( AH$4 = $AJ$4, 1, 0 ), 3*( $AE159-1) + 1 ) ) -> 3 | AJ159: =IF( $AE159 = "", "", OFFSET( Season!$E$7, 2 * $AF159 - 1 + IF( AJ$4 = $AJ$4, 1, 0 ), 3*( $AE159-1) + 0 ) ) -> E12 | AK159: =IF( $AE159 = "", "", OFFSET( Season!$E$7, 2 * $AF159 - 1 + IF( AJ$4 = $AJ$4, 1, 0 ), 3*( $AE159-1) + 1 ) ) -> 11 | AL159: E55B | AM159: E12
AE160: 10 | AF160: 3 | AG160: =IF( OR( ISNA( MATCH( AH160, $W$8:$W$13, 0 ) ), ISNA( MATCH( AJ160, $W$8:$W$13, 0 ) ) ), " . ", MAX( $AG$4:AG159 ) + 1 ) -> . | AH160: =IF( $AE160 = "", "", OFFSET( Season!$E$7, 2 * $AF160 - 1 + IF( AH$4 = $AJ$4, 1, 0 ), 3*( $AE160-1) + 0 ) ) -> E55a | AI160: =IF( $AE160 = "", "", OFFSET( Season!$E$7, 2 * $AF160 - 1 + IF( AH$4 = $AJ$4, 1, 0 ), 3*( $AE160-1) + 1 ) ) -> 16 | AJ160: =IF( $AE160 = "", "", OFFSET( Season!$E$7, 2 * $AF160 - 1 + IF( AJ$4 = $AJ$4, 1, 0 ), 3*( $AE160-1) + 0 ) ) -> SUBS | AK160: =IF( $AE160 = "", "", OFFSET( Season!$E$7, 2 * $AF160 - 1 + IF( AJ$4 = $AJ$4, 1, 0 ), 3*( $AE160-1) + 1 ) ) -> 13 | AL160: SUBS | AM160: E55a
AE161: 10 | AF161: 4 | AG161: =IF( OR( ISNA( MATCH( AH161, $W$8:$W$13, 0 ) ), ISNA( MATCH( AJ161, $W$8:$W$13, 0 ) ) ), " . ", MAX( $AG$4:AG160 ) + 1 ) -> . | AH161: =IF( $AE161 = "", "", OFFSET( Season!$E$7, 2 * $AF161 - 1 + IF( AH$4 = $AJ$4, 1, 0 ), 3*( $AE161-1) + 0 ) ) -> E42 | AI161: =IF( $AE161 = "", "", OFFSET( Season!$E$7, 2 * $AF161 - 1 + IF( AH$4 = $AJ$4, 1, 0 ), 3*( $AE161-1) + 1 ) ) -> 1 | AJ161: =IF( $AE161 = "", "", OFFSET( Season!$E$7, 2 * $AF161 - 1 + IF( AJ$4 = $AJ$4, 1, 0 ), 3*( $AE161-1) + 0 ) ) -> E14 | AK161: =IF( $AE161 = "", "", OFFSET( Season!$E$7, 2 * $AF161 - 1 + IF( AJ$4 = $AJ$4, 1, 0 ), 3*( $AE161-1) + 1 ) ) -> 19 | AL161: E42 | AM161: E14
AE162: 10 | AF162: 5 | AG162: =IF( OR( ISNA( MATCH( AH162, $W$8:$W$13, 0 ) ), ISNA( MATCH( AJ162, $W$8:$W$13, 0 ) ) ), " . ", MAX( $AG$4:AG161 ) + 1 ) -> . | AH162: =IF( $AE162 = "", "", OFFSET( Season!$E$7, 2 * $AF162 - 1 + IF( AH$4 = $AJ$4, 1, 0 ), 3*( $AE162-1) + 0 ) ) -> AGS | AI162: =IF( $AE162 = "", "", OFFSET( Season!$E$7, 2 * $AF162 - 1 + IF( AH$4 = $AJ$4, 1, 0 ), 3*( $AE162-1) + 1 ) ) -> 14 | AJ162: =IF( $AE162 = "", "", OFFSET( Season!$E$7, 2 * $AF162 - 1 + IF( AJ$4 = $AJ$4, 1, 0 ), 3*( $AE162-1) + 0 ) ) -> E17 | AK162: =IF( $AE162 = "", "", OFFSET( Season!$E$7, 2 * $AF162 - 1 + IF( AJ$4 = $AJ$4, 1, 0 ), 3*( $AE162-1) + 1 ) ) -> 8 | AL162: E17 | AM162: AGS
AE163: 10 | AF163: 6 | AG163: =IF( OR( ISNA( MATCH( AH163, $W$8:$W$13, 0 ) ), ISNA( MATCH( AJ163, $W$8:$W$13, 0 ) ) ), " . ", MAX( $AG$4:AG162 ) + 1 ) -> . | AH163: =IF( $AE163 = "", "", OFFSET( Season!$E$7, 2 * $AF163 - 1 + IF( AH$4 = $AJ$4, 1, 0 ), 3*( $AE163-1) + 0 ) ) -> E60 | AI163: =IF( $AE163 = "", "", OFFSET( Season!$E$7, 2 * $AF163 - 1 + IF( AH$4 = $AJ$4, 1, 0 ), 3*( $AE163-1) + 1 ) ) -> 24 | AJ163: =IF( $AE163 = "", "", OFFSET( Season!$E$7, 2 * $AF163 - 1 + IF( AJ$4 = $AJ$4, 1, 0 ), 3*( $AE163-1) + 0 ) ) -> E86 | AK163: =IF( $AE163 = "", "", OFFSET( Season!$E$7, 2 * $AF163 - 1 + IF( AJ$4 = $AJ$4, 1, 0 ), 3*( $AE163-1) + 1 ) ) -> 12 | AL163: E86 | AM163: E60
AE164: 10 | AF164: 7 | AG164: =IF( OR( ISNA( MATCH( AH164, $W$8:$W$13, 0 ) ), ISNA( MATCH( AJ164, $W$8:$W$13, 0 ) ) ), " . ", MAX( $AG$4:AG163 ) + 1 ) -> . | AH164: =IF( $AE164 = "", "", OFFSET( Season!$E$7, 2 * $AF164 - 1 + IF( AH$4 = $AJ$4, 1, 0 ), 3*( $AE164-1) + 0 ) ) -> X88 | AI164: =IF( $AE164 = "", "", OFFSET( Season!$E$7, 2 * $AF164 - 1 + IF( AH$4 = $AJ$4, 1, 0 ), 3*( $AE164-1) + 1 ) ) -> 28 | AJ164: =IF( $AE164 = "", "", OFFSET( Season!$E$7, 2 * $AF164 - 1 + IF( AJ$4 = $AJ$4, 1, 0 ), 3*( $AE164-1) + 0 ) ) -> X87 | AK164: =IF( $AE164 = "", "", OFFSET( Season!$E$7, 2 * $AF164 - 1 + IF( AJ$4 = $AJ$4, 1, 0 ), 3*( $AE164-1) + 1 ) ) -> 10 | AL164: X87 | AM164: X88
AE165: 10 | AF165: 8 | AG165: =IF( OR( ISNA( MATCH( AH165, $W$8:$W$13, 0 ) ), ISNA( MATCH( AJ165, $W$8:$W$13, 0 ) ) ), " . ", MAX( $AG$4:AG164 ) + 1 ) -> . | AH165: =IF( $AE165 = "", "", OFFSET( Season!$E$7, 2 * $AF165 - 1 + IF( AH$4 = $AJ$4, 1, 0 ), 3*( $AE165-1) + 0 ) ) -> E83 | AI165: =IF( $AE165 = "", "", OFFSET( Season!$E$7, 2 * $AF165 - 1 + IF( AH$4 = $AJ$4, 1, 0 ), 3*( $AE165-1) + 1 ) ) -> 16 | AJ165: =IF( $AE165 = "", "", OFFSET( Season!$E$7, 2 * $AF165 - 1 + IF( AJ$4 = $AJ$4, 1, 0 ), 3*( $AE165-1) + 0 ) ) -> X04 | AK165: =IF( $AE165 = "", "", OFFSET( Season!$E$7, 2 * $AF165 - 1 + IF( AJ$4 = $AJ$4, 1, 0 ), 3*( $AE165-1) + 1 ) ) -> 12 | AL165: X04 | AM165: E83
AE166: 10 | AF166: 9 | AG166: =IF( OR( ISNA( MATCH( AH166, $W$8:$W$13, 0 ) ), ISNA( MATCH( AJ166, $W$8:$W$13, 0 ) ) ), " . ", MAX( $AG$4:AG165 ) + 1 ) -> . | AH166: =IF( $AE166 = "", "", OFFSET( Season!$E$7, 2 * $AF166 - 1 + IF( AH$4 = $AJ$4, 1, 0 ), 3*( $AE166-1) + 0 ) ) -> 0 | AI166: =IF( $AE166 = "", "", OFFSET( Season!$E$7, 2 * $AF166 - 1 + IF( AH$4 = $AJ$4, 1, 0 ), 3*( $AE166-1) + 1 ) ) -> 0 | AJ166: =IF( $AE166 = "", "", OFFSET( Season!$E$7, 2 * $AF166 - 1 + IF( AJ$4 = $AJ$4, 1, 0 ), 3*( $AE166-1) + 0 ) ) -> 0 | AK166: =IF( $AE166 = "", "", OFFSET( Season!$E$7, 2 * $AF166 - 1 + IF( AJ$4 = $AJ$4, 1, 0 ), 3*( $AE166-1) + 1 ) ) -> 0 | AL166: x | AM166: x
AE167: 10 | AF167: 10 | AG167: =IF( OR( ISNA( MATCH( AH167, $W$8:$W$13, 0 ) ), ISNA( MATCH( AJ167, $W$8:$W$13, 0 ) ) ), " . ", MAX( $AG$4:AG166 ) + 1 ) -> . | AH167: =IF( $AE167 = "", "", OFFSET( Season!$E$7, 2 * $AF167 - 1 + IF( AH$4 = $AJ$4, 1, 0 ), 3*( $AE167-1) + 0 ) ) -> O46 | AI167: =IF( $AE167 = "", "", OFFSET( Season!$E$7, 2 * $AF167 - 1 + IF( AH$4 = $AJ$4, 1, 0 ), 3*( $AE167-1) + 1 ) ) -> 6 | AJ167: =IF( $AE167 = "", "", OFFSET( Season!$E$7, 2 * $AF167 - 1 + IF( AJ$4 = $AJ$4, 1, 0 ), 3*( $AE167-1) + 0 ) ) -> X10 | AK167: =IF( $AE167 = "", "", OFFSET( Season!$E$7, 2 * $AF167 - 1 + IF( AJ$4 = $AJ$4, 1, 0 ), 3*( $AE167-1) + 1 ) ) -> 10 | AL167: O46 | AM167: X10
AE168: 10 | AF168: 11 | AG168: =IF( OR( ISNA( MATCH( AH168, $W$8:$W$13, 0 ) ), ISNA( MATCH( AJ168, $W$8:$W$13, 0 ) ) ), " . ", MAX( $AG$4:AG167 ) + 1 ) -> . | AH168: =IF( $AE168 = "", "", OFFSET( Season!$E$7, 2 * $AF168 - 1 + IF( AH$4 = $AJ$4, 1, 0 ), 3*( $AE168-1) + 0 ) ) -> M10 | AI168: =IF( $AE168 = "", "", OFFSET( Season!$E$7, 2 * $AF168 - 1 + IF( AH$4 = $AJ$4, 1, 0 ), 3*( $AE168-1) + 1 ) ) -> 8 | AJ168: =IF( $AE168 = "", "", OFFSET( Season!$E$7, 2 * $AF168 - 1 + IF( AJ$4 = $AJ$4, 1, 0 ), 3*( $AE168-1) + 0 ) ) -> E20 | AK168: =IF( $AE168 = "", "", OFFSET( Season!$E$7, 2 * $AF168 - 1 + IF( AJ$4 = $AJ$4, 1, 0 ), 3*( $AE168-1) + 1 ) ) -> 13 | AL168: M10 | AM168: E20
AE169: 10 | AF169: 12 | AG169: =IF( OR( ISNA( MATCH( AH169, $W$8:$W$13, 0 ) ), ISNA( MATCH( AJ169, $W$8:$W$13, 0 ) ) ), " . ", MAX( $AG$4:AG168 ) + 1 ) -> . | AH169: =IF( $AE169 = "", "", OFFSET( Season!$E$7, 2 * $AF169 - 1 + IF( AH$4 = $AJ$4, 1, 0 ), 3*( $AE169-1) + 0 ) ) -> SCM | AI169: =IF( $AE169 = "", "", OFFSET( Season!$E$7, 2 * $AF169 - 1 + IF( AH$4 = $AJ$4, 1, 0 ), 3*( $AE169-1) + 1 ) ) -> 20 | AJ169: =IF( $AE169 = "", "", OFFSET( Season!$E$7, 2 * $AF169 - 1 + IF( AJ$4 = $AJ$4, 1, 0 ), 3*( $AE169-1) + 0 ) ) -> E75 | AK169: =IF( $AE169 = "", "", OFFSET( Season!$E$7, 2 * $AF169 - 1 + IF( AJ$4 = $AJ$4, 1, 0 ), 3*( $AE169-1) + 1 ) ) -> 8 | AL169: E75 | AM169: SCM
AE170: 10 | AF170: 13 | AG170: =IF( OR( ISNA( MATCH( AH170, $W$8:$W$13, 0 ) ), ISNA( MATCH( AJ170, $W$8:$W$13, 0 ) ) ), " . ", MAX( $AG$4:AG169 ) + 1 ) -> . | AH170: =IF( $AE170 = "", "", OFFSET( Season!$E$7, 2 * $AF170 - 1 + IF( AH$4 = $AJ$4, 1, 0 ), 3*( $AE170-1) + 0 ) ) -> ARG | AI170: =IF( $AE170 = "", "", OFFSET( Season!$E$7, 2 * $AF170 - 1 + IF( AH$4 = $AJ$4, 1, 0 ), 3*( $AE170-1) + 1 ) ) -> 13 | AJ170: =IF( $AE170 = "", "", OFFSET( Season!$E$7, 2 * $AF170 - 1 + IF( AJ$4 = $AJ$4, 1, 0 ), 3*( $AE170-1) + 0 ) ) -> A572 | AK170: =IF( $AE170 = "", "", OFFSET( Season!$E$7, 2 * $AF170 - 1 + IF( AJ$4 = $AJ$4, 1, 0 ), 3*( $AE170-1) + 1 ) ) -> 6 | AL170: A572 | AM170: ARG
AE171: 10 | AF171: 14 | AG171: =IF( OR( ISNA( MATCH( AH171, $W$8:$W$13, 0 ) ), ISNA( MATCH( AJ171, $W$8:$W$13, 0 ) ) ), " . ", MAX( $AG$4:AG170 ) + 1 ) -> . | AH171: =IF( $AE171 = "", "", OFFSET( Season!$E$7, 2 * $AF171 - 1 + IF( AH$4 = $AJ$4, 1, 0 ), 3*( $AE171-1) + 0 ) ) -> NNIT | AI171: =IF( $AE171 = "", "", OFFSET( Season!$E$7, 2 * $AF171 - 1 + IF( AH$4 = $AJ$4, 1, 0 ), 3*( $AE171-1) + 1 ) ) -> 5 | AJ171: =IF( $AE171 = "", "", OFFSET( Season!$E$7, 2 * $AF171 - 1 + IF( AJ$4 = $AJ$4, 1, 0 ), 3*( $AE171-1) + 0 ) ) -> E25 | AK171: =IF( $AE171 = "", "", OFFSET( Season!$E$7, 2 * $AF171 - 1 + IF( AJ$4 = $AJ$4, 1, 0 ), 3*( $AE171-1) + 1 ) ) -> 20 | AL171: NNIT | AM171: E25
AE172: 10 | AF172: 15 | AG172: =IF( OR( ISNA( MATCH( AH172, $W$8:$W$13, 0 ) ), ISNA( MATCH( AJ172, $W$8:$W$13, 0 ) ) ), " . ", MAX( $AG$4:AG171 ) + 1 ) -> . | AH172: =IF( $AE172 = "", "", OFFSET( Season!$E$7, 2 * $AF172 - 1 + IF( AH$4 = $AJ$4, 1, 0 ), 3*( $AE172-1) + 0 ) ) -> ENGR | AI172: =IF( $AE172 = "", "", OFFSET( Season!$E$7, 2 * $AF172 - 1 + IF( AH$4 = $AJ$4, 1, 0 ), 3*( $AE172-1) + 1 ) ) -> 19 | AJ172: =IF( $AE172 = "", "", OFFSET( Season!$E$7, 2 * $AF172 - 1 + IF( AJ$4 = $AJ$4, 1, 0 ), 3*( $AE172-1) + 0 ) ) -> O19 | AK172: =IF( $AE172 = "", "", OFFSET( Season!$E$7, 2 * $AF172 - 1 + IF( AJ$4 = $AJ$4, 1, 0 ), 3*( $AE172-1) + 1 ) ) -> 11 | AL172: O19 | AM172: ENGR
AE173: 10 | AF173: 16 | AG173: =IF( OR( ISNA( MATCH( AH173, $W$8:$W$13, 0 ) ), ISNA( MATCH( AJ173, $W$8:$W$13, 0 ) ) ), " . ", MAX( $AG$4:AG172 ) + 1 ) -> . | AH173: =IF( $AE173 = "", "", OFFSET( Season!$E$7, 2 * $AF173 - 1 + IF( AH$4 = $AJ$4, 1, 0 ), 3*( $AE173-1) + 0 ) ) -> CVN | AI173: =IF( $AE173 = "", "", OFFSET( Season!$E$7, 2 * $AF173 - 1 + IF( AH$4 = $AJ$4, 1, 0 ), 3*( $AE173-1) + 1 ) ) -> 28 | AJ173: =IF( $AE173 = "", "", OFFSET( Season!$E$7, 2 * $AF173 - 1 + IF( AJ$4 = $AJ$4, 1, 0 ), 3*( $AE173-1) + 0 ) ) -> O87 | AK173: =IF( $AE173 = "", "", OFFSET( Season!$E$7, 2 * $AF173 - 1 + IF( AJ$4 = $AJ$4, 1, 0 ), 3*( $AE173-1) + 1 ) ) -> 21 | AL173: O87 | AM173: CVN
AE174: 10 | AF174: 17 | AG174: =IF( OR( ISNA( MATCH( AH174, $W$8:$W$13, 0 ) ), ISNA( MATCH( AJ174, $W$8:$W$13, 0 ) ) ), " . ", MAX( $AG$4:AG173 ) + 1 ) -> . | AH174: =IF( $AE174 = "", "", OFFSET( Season!$E$7, 2 * $AF174 - 1 + IF( AH$4 = $AJ$4, 1, 0 ), 3*( $AE174-1) + 0 ) ) -> X31 | AI174: =IF( $AE174 = "", "", OFFSET( Season!$E$7, 2 * $AF174 - 1 + IF( AH$4 = $AJ$4, 1, 0 ), 3*( $AE174-1) + 1 ) ) -> 10 | AJ174: =IF( $AE174 = "", "", OFFSET( Season!$E$7, 2 * $AF174 - 1 + IF( AJ$4 = $AJ$4, 1, 0 ), 3*( $AE174-1) + 0 ) ) -> CRF | AK174: =IF( $AE174 = "", "", OFFSET( Season!$E$7, 2 * $AF174 - 1 + IF( AJ$4 = $AJ$4, 1, 0 ), 3*( $AE174-1) + 1 ) ) -> 26 | AL174: X31 | AM174: CRF
AE175: 11 | AF175: 1 | AG175: =IF( OR( ISNA( MATCH( AH175, $W$8:$W$13, 0 ) ), ISNA( MATCH( AJ175, $W$8:$W$13, 0 ) ) ), " . ", MAX( $AG$4:AG174 ) + 1 ) -> . | AH175: =IF( $AE175 = "", "", OFFSET( Season!$E$7, 2 * $AF175 - 1 + IF( AH$4 = $AJ$4, 1, 0 ), 3*( $AE175-1) + 0 ) ) -> E86 | AI175: =IF( $AE175 = "", "", OFFSET( Season!$E$7, 2 * $AF175 - 1 + IF( AH$4 = $AJ$4, 1, 0 ), 3*( $AE175-1) + 1 ) ) -> 25 | AJ175: =IF( $AE175 = "", "", OFFSET( Season!$E$7, 2 * $AF175 - 1 + IF( AJ$4 = $AJ$4, 1, 0 ), 3*( $AE175-1) + 0 ) ) -> AGS | AK175: =IF( $AE175 = "", "", OFFSET( Season!$E$7, 2 * $AF175 - 1 + IF( AJ$4 = $AJ$4, 1, 0 ), 3*( $AE175-1) + 1 ) ) -> 26 | AL175: E86 | AM175: AGS
AE176: 11 | AF176: 2 | AG176: =IF( OR( ISNA( MATCH( AH176, $W$8:$W$13, 0 ) ), ISNA( MATCH( AJ176, $W$8:$W$13, 0 ) ) ), " . ", MAX( $AG$4:AG175 ) + 1 ) -> . | AH176: =IF( $AE176 = "", "", OFFSET( Season!$E$7, 2 * $AF176 - 1 + IF( AH$4 = $AJ$4, 1, 0 ), 3*( $AE176-1) + 0 ) ) -> E14 | AI176: =IF( $AE176 = "", "", OFFSET( Season!$E$7, 2 * $AF176 - 1 + IF( AH$4 = $AJ$4, 1, 0 ), 3*( $AE176-1) + 1 ) ) -> 21 | AJ176: =IF( $AE176 = "", "", OFFSET( Season!$E$7, 2 * $AF176 - 1 + IF( AJ$4 = $AJ$4, 1, 0 ), 3*( $AE176-1) + 0 ) ) -> E12 | AK176: =IF( $AE176 = "", "", OFFSET( Season!$E$7, 2 * $AF176 - 1 + IF( AJ$4 = $AJ$4, 1, 0 ), 3*( $AE176-1) + 1 ) ) -> 8 | AL176: E12 | AM176: E14
AE177: 11 | AF177: 3 | AG177: =IF( OR( ISNA( MATCH( AH177, $W$8:$W$13, 0 ) ), ISNA( MATCH( AJ177, $W$8:$W$13, 0 ) ) ), " . ", MAX( $AG$4:AG176 ) + 1 ) -> . | AH177: =IF( $AE177 = "", "", OFFSET( Season!$E$7, 2 * $AF177 - 1 + IF( AH$4 = $AJ$4, 1, 0 ), 3*( $AE177-1) + 0 ) ) -> E83 | AI177: =IF( $AE177 = "", "", OFFSET( Season!$E$7, 2 * $AF177 - 1 + IF( AH$4 = $AJ$4, 1, 0 ), 3*( $AE177-1) + 1 ) ) -> 25 | AJ177: =IF( $AE177 = "", "", OFFSET( Season!$E$7, 2 * $AF177 - 1 + IF( AJ$4 = $AJ$4, 1, 0 ), 3*( $AE177-1) + 0 ) ) -> SUBS | AK177: =IF( $AE177 = "", "", OFFSET( Season!$E$7, 2 * $AF177 - 1 + IF( AJ$4 = $AJ$4, 1, 0 ), 3*( $AE177-1) + 1 ) ) -> 34 | AL177: E83 | AM177: SUBS
AE178: 11 | AF178: 4 | AG178: =IF( OR( ISNA( MATCH( AH178, $W$8:$W$13, 0 ) ), ISNA( MATCH( AJ178, $W$8:$W$13, 0 ) ) ), " . ", MAX( $AG$4:AG177 ) + 1 ) -> . | AH178: =IF( $AE178 = "", "", OFFSET( Season!$E$7, 2 * $AF178 - 1 + IF( AH$4 = $AJ$4, 1, 0 ), 3*( $AE178-1) + 0 ) ) -> X04 | AI178: =IF( $AE178 = "", "", OFFSET( Season!$E$7, 2 * $AF178 - 1 + IF( AH$4 = $AJ$4, 1, 0 ), 3*( $AE178-1) + 1 ) ) -> 28 | AJ178: =IF( $AE178 = "", "", OFFSET( Season!$E$7, 2 * $AF178 - 1 + IF( AJ$4 = $AJ$4, 1, 0 ), 3*( $AE178-1) + 0 ) ) -> E55a | AK178: =IF( $AE178 = "", "", OFFSET( Season!$E$7, 2 * $AF178 - 1 + IF( AJ$4 = $AJ$4, 1, 0 ), 3*( $AE178-1) + 1 ) ) -> 12.1 | AL178: E55a | AM178: X04
AE179: 11 | AF179: 5 | AG179: =IF( OR( ISNA( MATCH( AH179, $W$8:$W$13, 0 ) ), ISNA( MATCH( AJ179, $W$8:$W$13, 0 ) ) ), " . ", MAX( $AG$4:AG178 ) + 1 ) -> . | AH179: =IF( $AE179 = "", "", OFFSET( Season!$E$7, 2 * $AF179 - 1 + IF( AH$4 = $AJ$4, 1, 0 ), 3*( $AE179-1) + 0 ) ) -> X01 | AI179: =IF( $AE179 = "", "", OFFSET( Season!$E$7, 2 * $AF179 - 1 + IF( AH$4 = $AJ$4, 1, 0 ), 3*( $AE179-1) + 1 ) ) -> 15 | AJ179: =IF( $AE179 = "", "", OFFSET( Season!$E$7, 2 * $AF179 - 1 + IF( AJ$4 = $AJ$4, 1, 0 ), 3*( $AE179-1) + 0 ) ) -> X88 | AK179: =IF( $AE179 = "", "", OFFSET( Season!$E$7, 2 * $AF179 - 1 + IF( AJ$4 = $AJ$4, 1, 0 ), 3*( $AE179-1) + 1 ) ) -> 6 | AL179: X88 | AM179: X01
AE180: 11 | AF180: 6 | AG180: =IF( OR( ISNA( MATCH( AH180, $W$8:$W$13, 0 ) ), ISNA( MATCH( AJ180, $W$8:$W$13, 0 ) ) ), " . ", MAX( $AG$4:AG179 ) + 1 ) -> . | AH180: =IF( $AE180 = "", "", OFFSET( Season!$E$7, 2 * $AF180 - 1 + IF( AH$4 = $AJ$4, 1, 0 ), 3*( $AE180-1) + 0 ) ) -> AMSC | AI180: =IF( $AE180 = "", "", OFFSET( Season!$E$7, 2 * $AF180 - 1 + IF( AH$4 = $AJ$4, 1, 0 ), 3*( $AE180-1) + 1 ) ) -> 14 | AJ180: =IF( $AE180 = "", "", OFFSET( Season!$E$7, 2 * $AF180 - 1 + IF( AJ$4 = $AJ$4, 1, 0 ), 3*( $AE180-1) + 0 ) ) -> X87 | AK180: =IF( $AE180 = "", "", OFFSET( Season!$E$7, 2 * $AF180 - 1 + IF( AJ$4 = $AJ$4, 1, 0 ), 3*( $AE180-1) + 1 ) ) -> 10 | AL180: X87 | AM180: AMSC
AE181: 11 | AF181: 7 | AG181: =IF( OR( ISNA( MATCH( AH181, $W$8:$W$13, 0 ) ), ISNA( MATCH( AJ181, $W$8:$W$13, 0 ) ) ), " . ", MAX( $AG$4:AG180 ) + 1 ) -> . | AH181: =IF( $AE181 = "", "", OFFSET( Season!$E$7, 2 * $AF181 - 1 + IF( AH$4 = $AJ$4, 1, 0 ), 3*( $AE181-1) + 0 ) ) -> E55B | AI181: =IF( $AE181 = "", "", OFFSET( Season!$E$7, 2 * $AF181 - 1 + IF( AH$4 = $AJ$4, 1, 0 ), 3*( $AE181-1) + 1 ) ) -> 15 | AJ181: =IF( $AE181 = "", "", OFFSET( Season!$E$7, 2 * $AF181 - 1 + IF( AJ$4 = $AJ$4, 1, 0 ), 3*( $AE181-1) + 0 ) ) -> E42 | AK181: =IF( $AE181 = "", "", OFFSET( Season!$E$7, 2 * $AF181 - 1 + IF( AJ$4 = $AJ$4, 1, 0 ), 3*( $AE181-1) + 1 ) ) -> 33 | AL181: E55B | AM181: E42
AE182: 11 | AF182: 8 | AG182: =IF( OR( ISNA( MATCH( AH182, $W$8:$W$13, 0 ) ), ISNA( MATCH( AJ182, $W$8:$W$13, 0 ) ) ), " . ", MAX( $AG$4:AG181 ) + 1 ) -> . | AH182: =IF( $AE182 = "", "", OFFSET( Season!$E$7, 2 * $AF182 - 1 + IF( AH$4 = $AJ$4, 1, 0 ), 3*( $AE182-1) + 0 ) ) -> E60 | AI182: =IF( $AE182 = "", "", OFFSET( Season!$E$7, 2 * $AF182 - 1 + IF( AH$4 = $AJ$4, 1, 0 ), 3*( $AE182-1) + 1 ) ) -> 0 | AJ182: =IF( $AE182 = "", "", OFFSET( Season!$E$7, 2 * $AF182 - 1 + IF( AJ$4 = $AJ$4, 1, 0 ), 3*( $AE182-1) + 0 ) ) -> E17 | AK182: =IF( $AE182 = "", "", OFFSET( Season!$E$7, 2 * $AF182 - 1 + IF( AJ$4 = $AJ$4, 1, 0 ), 3*( $AE182-1) + 1 ) ) -> f | AL182: E60 | AM182: E17
AE183: 11 | AF183: 9 | AG183: =IF( OR( ISNA( MATCH( AH183, $W$8:$W$13, 0 ) ), ISNA( MATCH( AJ183, $W$8:$W$13, 0 ) ) ), " . ", MAX( $AG$4:AG182 ) + 1 ) -> . | AH183: =IF( $AE183 = "", "", OFFSET( Season!$E$7, 2 * $AF183 - 1 + IF( AH$4 = $AJ$4, 1, 0 ), 3*( $AE183-1) + 0 ) ) -> 0 | AI183: =IF( $AE183 = "", "", OFFSET( Season!$E$7, 2 * $AF183 - 1 + IF( AH$4 = $AJ$4, 1, 0 ), 3*( $AE183-1) + 1 ) ) -> 0 | AJ183: =IF( $AE183 = "", "", OFFSET( Season!$E$7, 2 * $AF183 - 1 + IF( AJ$4 = $AJ$4, 1, 0 ), 3*( $AE183-1) + 0 ) ) -> 0 | AK183: =IF( $AE183 = "", "", OFFSET( Season!$E$7, 2 * $AF183 - 1 + IF( AJ$4 = $AJ$4, 1, 0 ), 3*( $AE183-1) + 1 ) ) -> 0 | AL183: x | AM183: x
AE184: 11 | AF184: 10 | AG184: =IF( OR( ISNA( MATCH( AH184, $W$8:$W$13, 0 ) ), ISNA( MATCH( AJ184, $W$8:$W$13, 0 ) ) ), " . ", MAX( $AG$4:AG183 ) + 1 ) -> . | AH184: =IF( $AE184 = "", "", OFFSET( Season!$E$7, 2 * $AF184 - 1 + IF( AH$4 = $AJ$4, 1, 0 ), 3*( $AE184-1) + 0 ) ) -> O19 | AI184: =IF( $AE184 = "", "", OFFSET( Season!$E$7, 2 * $AF184 - 1 + IF( AH$4 = $AJ$4, 1, 0 ), 3*( $AE184-1) + 1 ) ) -> 14 | AJ184: =IF( $AE184 = "", "", OFFSET( Season!$E$7, 2 * $AF184 - 1 + IF( AJ$4 = $AJ$4, 1, 0 ), 3*( $AE184-1) + 0 ) ) -> NNIT | AK184: =IF( $AE184 = "", "", OFFSET( Season!$E$7, 2 * $AF184 - 1 + IF( AJ$4 = $AJ$4, 1, 0 ), 3*( $AE184-1) + 1 ) ) -> 6 | AL184: NNIT | AM184: O19
AE185: 11 | AF185: 11 | AG185: =IF( OR( ISNA( MATCH( AH185, $W$8:$W$13, 0 ) ), ISNA( MATCH( AJ185, $W$8:$W$13, 0 ) ) ), " . ", MAX( $AG$4:AG184 ) + 1 ) -> . | AH185: =IF( $AE185 = "", "", OFFSET( Season!$E$7, 2 * $AF185 - 1 + IF( AH$4 = $AJ$4, 1, 0 ), 3*( $AE185-1) + 0 ) ) -> A572 | AI185: =IF( $AE185 = "", "", OFFSET( Season!$E$7, 2 * $AF185 - 1 + IF( AH$4 = $AJ$4, 1, 0 ), 3*( $AE185-1) + 1 ) ) -> -1 | AJ185: =IF( $AE185 = "", "", OFFSET( Season!$E$7, 2 * $AF185 - 1 + IF( AJ$4 = $AJ$4, 1, 0 ), 3*( $AE185-1) + 0 ) ) -> E20 | AK185: =IF( $AE185 = "", "", OFFSET( Season!$E$7, 2 * $AF185 - 1 + IF( AJ$4 = $AJ$4, 1, 0 ), 3*( $AE185-1) + 1 ) ) -> 10 | AL185: A572 | AM185: E20
AE186: 11 | AF186: 12 | AG186: =IF( OR( ISNA( MATCH( AH186, $W$8:$W$13, 0 ) ), ISNA( MATCH( AJ186, $W$8:$W$13, 0 ) ) ), " . ", MAX( $AG$4:AG185 ) + 1 ) -> . | AH186: =IF( $AE186 = "", "", OFFSET( Season!$E$7, 2 * $AF186 - 1 + IF( AH$4 = $AJ$4, 1, 0 ), 3*( $AE186-1) + 0 ) ) -> X31 | AI186: =IF( $AE186 = "", "", OFFSET( Season!$E$7, 2 * $AF186 - 1 + IF( AH$4 = $AJ$4, 1, 0 ), 3*( $AE186-1) + 1 ) ) -> 20 | AJ186: =IF( $AE186 = "", "", OFFSET( Season!$E$7, 2 * $AF186 - 1 + IF( AJ$4 = $AJ$4, 1, 0 ), 3*( $AE186-1) + 0 ) ) -> E75 | AK186: =IF( $AE186 = "", "", OFFSET( Season!$E$7, 2 * $AF186 - 1 + IF( AJ$4 = $AJ$4, 1, 0 ), 3*( $AE186-1) + 1 ) ) -> 26 | AL186: X31 | AM186: E75
AE187: 11 | AF187: 13 | AG187: =IF( OR( ISNA( MATCH( AH187, $W$8:$W$13, 0 ) ), ISNA( MATCH( AJ187, $W$8:$W$13, 0 ) ) ), " . ", MAX( $AG$4:AG186 ) + 1 ) -> . | AH187: =IF( $AE187 = "", "", OFFSET( Season!$E$7, 2 * $AF187 - 1 + IF( AH$4 = $AJ$4, 1, 0 ), 3*( $AE187-1) + 0 ) ) -> CRF | AI187: =IF( $AE187 = "", "", OFFSET( Season!$E$7, 2 * $AF187 - 1 + IF( AH$4 = $AJ$4, 1, 0 ), 3*( $AE187-1) + 1 ) ) -> 8 | AJ187: =IF( $AE187 = "", "", OFFSET( Season!$E$7, 2 * $AF187 - 1 + IF( AJ$4 = $AJ$4, 1, 0 ), 3*( $AE187-1) + 0 ) ) -> SCM | AK187: =IF( $AE187 = "", "", OFFSET( Season!$E$7, 2 * $AF187 - 1 + IF( AJ$4 = $AJ$4, 1, 0 ), 3*( $AE187-1) + 1 ) ) -> -6 | AL187: SCM | AM187: CRF
AE188: 11 | AF188: 14 | AG188: =IF( OR( ISNA( MATCH( AH188, $W$8:$W$13, 0 ) ), ISNA( MATCH( AJ188, $W$8:$W$13, 0 ) ) ), " . ", MAX( $AG$4:AG187 ) + 1 ) -> . | AH188: =IF( $AE188 = "", "", OFFSET( Season!$E$7, 2 * $AF188 - 1 + IF( AH$4 = $AJ$4, 1, 0 ), 3*( $AE188-1) + 0 ) ) -> X10 | AI188: =IF( $AE188 = "", "", OFFSET( Season!$E$7, 2 * $AF188 - 1 + IF( AH$4 = $AJ$4, 1, 0 ), 3*( $AE188-1) + 1 ) ) -> 4 | AJ188: =IF( $AE188 = "", "", OFFSET( Season!$E$7, 2 * $AF188 - 1 + IF( AJ$4 = $AJ$4, 1, 0 ), 3*( $AE188-1) + 0 ) ) -> CVN | AK188: =IF( $AE188 = "", "", OFFSET( Season!$E$7, 2 * $AF188 - 1 + IF( AJ$4 = $AJ$4, 1, 0 ), 3*( $AE188-1) + 1 ) ) -> -1 | AL188: CVN | AM188: X10
AE189: 11 | AF189: 15 | AG189: =IF( OR( ISNA( MATCH( AH189, $W$8:$W$13, 0 ) ), ISNA( MATCH( AJ189, $W$8:$W$13, 0 ) ) ), " . ", MAX( $AG$4:AG188 ) + 1 ) -> . | AH189: =IF( $AE189 = "", "", OFFSET( Season!$E$7, 2 * $AF189 - 1 + IF( AH$4 = $AJ$4, 1, 0 ), 3*( $AE189-1) + 0 ) ) -> O46 | AI189: =IF( $AE189 = "", "", OFFSET( Season!$E$7, 2 * $AF189 - 1 + IF( AH$4 = $AJ$4, 1, 0 ), 3*( $AE189-1) + 1 ) ) -> 12 | AJ189: =IF( $AE189 = "", "", OFFSET( Season!$E$7, 2 * $AF189 - 1 + IF( AJ$4 = $AJ$4, 1, 0 ), 3*( $AE189-1) + 0 ) ) -> O87 | AK189: =IF( $AE189 = "", "", OFFSET( Season!$E$7, 2 * $AF189 - 1 + IF( AJ$4 = $AJ$4, 1, 0 ), 3*( $AE189-1) + 1 ) ) -> 12 | AL189: Tie | AM189: Tie | AN189: O46 | AO189: O87
AE190: 11 | AF190: 16 | AG190: =IF( OR( ISNA( MATCH( AH190, $W$8:$W$13, 0 ) ), ISNA( MATCH( AJ190, $W$8:$W$13, 0 ) ) ), " . ", MAX( $AG$4:AG189 ) + 1 ) -> . | AH190: =IF( $AE190 = "", "", OFFSET( Season!$E$7, 2 * $AF190 - 1 + IF( AH$4 = $AJ$4, 1, 0 ), 3*( $AE190-1) + 0 ) ) -> M10 | AI190: =IF( $AE190 = "", "", OFFSET( Season!$E$7, 2 * $AF190 - 1 + IF( AH$4 = $AJ$4, 1, 0 ), 3*( $AE190-1) + 1 ) ) -> 17 | AJ190: =IF( $AE190 = "", "", OFFSET( Season!$E$7, 2 * $AF190 - 1 + IF( AJ$4 = $AJ$4, 1, 0 ), 3*( $AE190-1) + 0 ) ) -> ARG | AK190: =IF( $AE190 = "", "", OFFSET( Season!$E$7, 2 * $AF190 - 1 + IF( AJ$4 = $AJ$4, 1, 0 ), 3*( $AE190-1) + 1 ) ) -> 28 | AL190: M10 | AM190: ARG
AE191: 11 | AF191: 17 | AG191: =IF( OR( ISNA( MATCH( AH191, $W$8:$W$13, 0 ) ), ISNA( MATCH( AJ191, $W$8:$W$13, 0 ) ) ), " . ", MAX( $AG$4:AG190 ) + 1 ) -> . | AH191: =IF( $AE191 = "", "", OFFSET( Season!$E$7, 2 * $AF191 - 1 + IF( AH$4 = $AJ$4, 1, 0 ), 3*( $AE191-1) + 0 ) ) -> ENGR | AI191: =IF( $AE191 = "", "", OFFSET( Season!$E$7, 2 * $AF191 - 1 + IF( AH$4 = $AJ$4, 1, 0 ), 3*( $AE191-1) + 1 ) ) -> 8 | AJ191: =IF( $AE191 = "", "", OFFSET( Season!$E$7, 2 * $AF191 - 1 + IF( AJ$4 = $AJ$4, 1, 0 ), 3*( $AE191-1) + 0 ) ) -> E25 | AK191: =IF( $AE191 = "", "", OFFSET( Season!$E$7, 2 * $AF191 - 1 + IF( AJ$4 = $AJ$4, 1, 0 ), 3*( $AE191-1) + 1 ) ) -> 17 | AL191: ENGR | AM191: E25
AE192: 12 | AF192: 1 | AG192: =IF( OR( ISNA( MATCH( AH192, $W$8:$W$13, 0 ) ), ISNA( MATCH( AJ192, $W$8:$W$13, 0 ) ) ), " . ", MAX( $AG$4:AG191 ) + 1 ) -> . | AH192: =IF( $AE192 = "", "", OFFSET( Season!$E$7, 2 * $AF192 - 1 + IF( AH$4 = $AJ$4, 1, 0 ), 3*( $AE192-1) + 0 ) ) -> E42 | AI192: =IF( $AE192 = "", "", OFFSET( Season!$E$7, 2 * $AF192 - 1 + IF( AH$4 = $AJ$4, 1, 0 ), 3*( $AE192-1) + 1 ) ) -> 21 | AJ192: =IF( $AE192 = "", "", OFFSET( Season!$E$7, 2 * $AF192 - 1 + IF( AJ$4 = $AJ$4, 1, 0 ), 3*( $AE192-1) + 0 ) ) -> X87 | AK192: =IF( $AE192 = "", "", OFFSET( Season!$E$7, 2 * $AF192 - 1 + IF( AJ$4 = $AJ$4, 1, 0 ), 3*( $AE192-1) + 1 ) ) -> 21 | AL192: Tie | AM192: Tie | AN192: E42 | AO192: X87
AE193: 12 | AF193: 2 | AG193: =IF( OR( ISNA( MATCH( AH193, $W$8:$W$13, 0 ) ), ISNA( MATCH( AJ193, $W$8:$W$13, 0 ) ) ), " . ", MAX( $AG$4:AG192 ) + 1 ) -> . | AH193: =IF( $AE193 = "", "", OFFSET( Season!$E$7, 2 * $AF193 - 1 + IF( AH$4 = $AJ$4, 1, 0 ), 3*( $AE193-1) + 0 ) ) -> E83 | AI193: =IF( $AE193 = "", "", OFFSET( Season!$E$7, 2 * $AF193 - 1 + IF( AH$4 = $AJ$4, 1, 0 ), 3*( $AE193-1) + 1 ) ) -> 11 | AJ193: =IF( $AE193 = "", "", OFFSET( Season!$E$7, 2 * $AF193 - 1 + IF( AJ$4 = $AJ$4, 1, 0 ), 3*( $AE193-1) + 0 ) ) -> AGS | AK193: =IF( $AE193 = "", "", OFFSET( Season!$E$7, 2 * $AF193 - 1 + IF( AJ$4 = $AJ$4, 1, 0 ), 3*( $AE193-1) + 1 ) ) -> 14 | AL193: E83 | AM193: AGS
AE194: 12 | AF194: 3 | AG194: =IF( OR( ISNA( MATCH( AH194, $W$8:$W$13, 0 ) ), ISNA( MATCH( AJ194, $W$8:$W$13, 0 ) ) ), " . ", MAX( $AG$4:AG193 ) + 1 ) -> . | AH194: =IF( $AE194 = "", "", OFFSET( Season!$E$7, 2 * $AF194 - 1 + IF( AH$4 = $AJ$4, 1, 0 ), 3*( $AE194-1) + 0 ) ) -> E14 | AI194: =IF( $AE194 = "", "", OFFSET( Season!$E$7, 2 * $AF194 - 1 + IF( AH$4 = $AJ$4, 1, 0 ), 3*( $AE194-1) + 1 ) ) -> 24 | AJ194: =IF( $AE194 = "", "", OFFSET( Season!$E$7, 2 * $AF194 - 1 + IF( AJ$4 = $AJ$4, 1, 0 ), 3*( $AE194-1) + 0 ) ) -> X88 | AK194: =IF( $AE194 = "", "", OFFSET( Season!$E$7, 2 * $AF194 - 1 + IF( AJ$4 = $AJ$4, 1, 0 ), 3*( $AE194-1) + 1 ) ) -> 0.001 | AL194: X88 | AM194: E14
AE195: 12 | AF195: 4 | AG195: =IF( OR( ISNA( MATCH( AH195, $W$8:$W$13, 0 ) ), ISNA( MATCH( AJ195, $W$8:$W$13, 0 ) ) ), " . ", MAX( $AG$4:AG194 ) + 1 ) -> . | AH195: =IF( $AE195 = "", "", OFFSET( Season!$E$7, 2 * $AF195 - 1 + IF( AH$4 = $AJ$4, 1, 0 ), 3*( $AE195-1) + 0 ) ) -> E17 | AI195: =IF( $AE195 = "", "", OFFSET( Season!$E$7, 2 * $AF195 - 1 + IF( AH$4 = $AJ$4, 1, 0 ), 3*( $AE195-1) + 1 ) ) -> 33 | AJ195: =IF( $AE195 = "", "", OFFSET( Season!$E$7, 2 * $AF195 - 1 + IF( AJ$4 = $AJ$4, 1, 0 ), 3*( $AE195-1) + 0 ) ) -> X04 | AK195: =IF( $AE195 = "", "", OFFSET( Season!$E$7, 2 * $AF195 - 1 + IF( AJ$4 = $AJ$4, 1, 0 ), 3*( $AE195-1) + 1 ) ) -> 13 | AL195: X04 | AM195: E17
AE196: 12 | AF196: 5 | AG196: =IF( OR( ISNA( MATCH( AH196, $W$8:$W$13, 0 ) ), ISNA( MATCH( AJ196, $W$8:$W$13, 0 ) ) ), " . ", MAX( $AG$4:AG195 ) + 1 ) -> . | AH196: =IF( $AE196 = "", "", OFFSET( Season!$E$7, 2 * $AF196 - 1 + IF( AH$4 = $AJ$4, 1, 0 ), 3*( $AE196-1) + 0 ) ) -> E60 | AI196: =IF( $AE196 = "", "", OFFSET( Season!$E$7, 2 * $AF196 - 1 + IF( AH$4 = $AJ$4, 1, 0 ), 3*( $AE196-1) + 1 ) ) -> 5 | AJ196: =IF( $AE196 = "", "", OFFSET( Season!$E$7, 2 * $AF196 - 1 + IF( AJ$4 = $AJ$4, 1, 0 ), 3*( $AE196-1) + 0 ) ) -> E55a | AK196: =IF( $AE196 = "", "", OFFSET( Season!$E$7, 2 * $AF196 - 1 + IF( AJ$4 = $AJ$4, 1, 0 ), 3*( $AE196-1) + 1 ) ) -> 19 | AL196: E60 | AM196: E55a
AE197: 12 | AF197: 6 | AG197: =IF( OR( ISNA( MATCH( AH197, $W$8:$W$13, 0 ) ), ISNA( MATCH( AJ197, $W$8:$W$13, 0 ) ) ), " . ", MAX( $AG$4:AG196 ) + 1 ) -> . | AH197: =IF( $AE197 = "", "", OFFSET( Season!$E$7, 2 * $AF197 - 1 + IF( AH$4 = $AJ$4, 1, 0 ), 3*( $AE197-1) + 0 ) ) -> E12 | AI197: =IF( $AE197 = "", "", OFFSET( Season!$E$7, 2 * $AF197 - 1 + IF( AH$4 = $AJ$4, 1, 0 ), 3*( $AE197-1) + 1 ) ) -> 3 | AJ197: =IF( $AE197 = "", "", OFFSET( Season!$E$7, 2 * $AF197 - 1 + IF( AJ$4 = $AJ$4, 1, 0 ), 3*( $AE197-1) + 0 ) ) -> X01 | AK197: =IF( $AE197 = "", "", OFFSET( Season!$E$7, 2 * $AF197 - 1 + IF( AJ$4 = $AJ$4, 1, 0 ), 3*( $AE197-1) + 1 ) ) -> 5 | AL197: =IF( LEFT( $AI197, 1 ) = "f", $AJ197, IF( LEFT( $AK197, 1 ) = "f", $AH197, IF( AND( $AI197 = "", $AK197 = "" ), ".", IF( $AI197^2 + $AK197^2 = 0, "x", IF( $AI197 = $AK197, "Tie", IF( $AI197 < $AK197, $AH197, $AJ197 ) ) ) ) ) ) -> E12 | AM197: =IF( LEFT( $AI197, 1 ) = "f", $AH197, IF( LEFT( $AK197, 1 ) = "f", $AJ197, IF( AND( $AI197 = "", $AK197 = "" ), ".", IF( $AI197^2 + $AK197^2 = 0, "x", IF( $AI197 = $AK197, "Tie", IF( $AI197 > $AK197, $AH197, $AJ197 ) ) ) ) ) ) -> X01 | AN197: =IF( AL197 = "Tie", $AH197, "" ) ->  | AO197: =IF( AM197 = "Tie", $AJ197, "" ) -> 
AE198: 12 | AF198: 7 | AG198: =IF( OR( ISNA( MATCH( AH198, $W$8:$W$13, 0 ) ), ISNA( MATCH( AJ198, $W$8:$W$13, 0 ) ) ), " . ", MAX( $AG$4:AG197 ) + 1 ) -> . | AH198: =IF( $AE198 = "", "", OFFSET( Season!$E$7, 2 * $AF198 - 1 + IF( AH$4 = $AJ$4, 1, 0 ), 3*( $AE198-1) + 0 ) ) -> AMSC | AI198: =IF( $AE198 = "", "", OFFSET( Season!$E$7, 2 * $AF198 - 1 + IF( AH$4 = $AJ$4, 1, 0 ), 3*( $AE198-1) + 1 ) ) -> 22 | AJ198: =IF( $AE198 = "", "", OFFSET( Season!$E$7, 2 * $AF198 - 1 + IF( AJ$4 = $AJ$4, 1, 0 ), 3*( $AE198-1) + 0 ) ) -> E55B | AK198: =IF( $AE198 = "", "", OFFSET( Season!$E$7, 2 * $AF198 - 1 + IF( AJ$4 = $AJ$4, 1, 0 ), 3*( $AE198-1) + 1 ) ) -> 10 | AL198: E55B | AM198: AMSC
AE199: 12 | AF199: 8 | AG199: =IF( OR( ISNA( MATCH( AH199, $W$8:$W$13, 0 ) ), ISNA( MATCH( AJ199, $W$8:$W$13, 0 ) ) ), " . ", MAX( $AG$4:AG198 ) + 1 ) -> . | AH199: =IF( $AE199 = "", "", OFFSET( Season!$E$7, 2 * $AF199 - 1 + IF( AH$4 = $AJ$4, 1, 0 ), 3*( $AE199-1) + 0 ) ) -> SUBS | AI199: =IF( $AE199 = "", "", OFFSET( Season!$E$7, 2 * $AF199 - 1 + IF( AH$4 = $AJ$4, 1, 0 ), 3*( $AE199-1) + 1 ) ) -> 21 | AJ199: =IF( $AE199 = "", "", OFFSET( Season!$E$7, 2 * $AF199 - 1 + IF( AJ$4 = $AJ$4, 1, 0 ), 3*( $AE199-1) + 0 ) ) -> E86 | AK199: =IF( $AE199 = "", "", OFFSET( Season!$E$7, 2 * $AF199 - 1 + IF( AJ$4 = $AJ$4, 1, 0 ), 3*( $AE199-1) + 1 ) ) -> 18 | AL199: E86 | AM199: SUBS
AE200: 12 | AF200: 9 | AG200: =IF( OR( ISNA( MATCH( AH200, $W$8:$W$13, 0 ) ), ISNA( MATCH( AJ200, $W$8:$W$13, 0 ) ) ), " . ", MAX( $AG$4:AG199 ) + 1 ) -> . | AH200: =IF( $AE200 = "", "", OFFSET( Season!$E$7, 2 * $AF200 - 1 + IF( AH$4 = $AJ$4, 1, 0 ), 3*( $AE200-1) + 0 ) ) -> 0 | AI200: =IF( $AE200 = "", "", OFFSET( Season!$E$7, 2 * $AF200 - 1 + IF( AH$4 = $AJ$4, 1, 0 ), 3*( $AE200-1) + 1 ) ) -> 0 | AJ200: =IF( $AE200 = "", "", OFFSET( Season!$E$7, 2 * $AF200 - 1 + IF( AJ$4 = $AJ$4, 1, 0 ), 3*( $AE200-1) + 0 ) ) -> 0 | AK200: =IF( $AE200 = "", "", OFFSET( Season!$E$7, 2 * $AF200 - 1 + IF( AJ$4 = $AJ$4, 1, 0 ), 3*( $AE200-1) + 1 ) ) -> 0 | AL200: x | AM200: x
... 76 more rows

Sheet Scoring
K3: W | L3: L | M3: T | AG3: W | AH3: L | AI3: T
C4: A League | J4: =C7 -> E86 | K4: =COUNTIF( E9:T9, ">0" ) + 0.0001 + COUNTIF( E8:T8, "f" ) + COUNTIF( E8:T8, "ff" ) -> 10.0001 | L4: =COUNTIF( E9:U9, "<0" ) + 0.0001 + COUNTIF( E7:T7, "f" ) + COUNTIF( E7:T7, "ff" ) -> 3.0001 | M4: =U7 - K4 - L4 -> 1.9998 | Y4: B League | AF4: =Y7 -> E75 | AG4: =COUNTIF( AA9:AP9, ">0" ) + 0.0001 + COUNTIF( AA8:AP8, "f" ) + COUNTIF( AA8:AP8, "ff" ) -> 11.0001 | AH4: =COUNTIF( AA9:AQ9, "<0" ) + 0.0001 + COUNTIF( AA7:AP7, "f" ) + COUNTIF( AA7:AP7, "ff" ) -> 3.0001 | AI4: =AQ7 - AG4 - AH4 -> 0.9998
E5: Season Summary | AA5: Season Summary | AQ5: =IF( SUMSQ( AQ3:AQ4 ) = 0, "", AQ4-AQ3 ) -> 
C6: Team | D6: Ave | E6: 1 | F6: =E6+1 -> 2 | G6: 3 | H6: 4 | I6: 5 | J6: 6 | K6: 7 | L6: 8 | M6: 9 | N6: 10 | O6: 11 | P6: 12 | Q6: 13 | R6: 14 | S6: =R6+1 -> 15 | T6: =S6+1 -> 16 | U6: No | Y6: Team | Z6: Ave | AA6: 1 | AB6: =AA6+1 -> 2 | AC6: 3 | AD6: 4 | AE6: 5 | AF6: 6 | AG6: 7 | AH6: 8 | AI6: 9 | AJ6: 10 | AK6: 11 | AL6: 12 | AM6: 13 | AN6: 14 | AO6: =AN6+1 -> 15 | AP6: =AO6+1 -> 16 | AQ6: No
B7: 17 | C7: =OFFSET( Standings!C5, MAX( Standings!$A:$A ) + 1 - B7, 0 ) -> E86 | D7: =IF( U7 = 0, "", SUM( E7:T7 ) / ( U7 - COUNTIF( E$7:T$8, "f" ) - COUNTIF( E$7:T$8, "ff" ) ) ) -> 19.91666667 | E7: =INDEX(E14:E30, MATCH($C$7, $C$14:$C$30,0), 1 ) -> 17 | F7: 30 | G7: 17 | H7: 18 | I7: 21 | J7: 13 | K7: 29 | L7: f | M7: 12 | N7: 12 | O7: 25 | P7: 18 | Q7: 27 | R7: f | S7: =INDEX(S14:S30, MATCH($C$7, $C$14:$C$30,0), 1 ) -> 0 | U7: =MAX( E6:U6 ) - COUNTIF( E9:T9, "" ) -> 15 | X7: 17 | Y7: =OFFSET( Standings!L5, MAX( Standings!$A:$A ) + 1 - X7, 0 ) -> E75 | Z7: =IF( AQ7 = 0, "", SUM( AA7:AP7 ) / ( AQ7 - COUNTIF( AA$7:AP$8, "f" ) - COUNTIF( AA$7:AP$8, "ff" ) ) ) -> 14.73333333 | AA7: =INDEX(AA14:AA30, MATCH($Y$7, $Y$14:$Y$30,0), 1 ) -> 14 | AB7: 13 | AC7: 18 | AD7: 16 | AE7: 12 | AF7: 21 | AG7: 25 | AH7: 18 | AI7: -6 | AJ7: 8 | AK7: 26 | AL7: 14 | AM7: 12 | AN7: 17 | AO7: =INDEX(AO14:AO30, MATCH($Y$7, $Y$14:$Y$30,0), 1 ) -> 13 | AQ7: =MAX( AA6:AQ6 ) - COUNTIF( AA9:AP9, "" ) -> 15
C8: Opp | D8: =IF( U8 = 0, "", SUM( E8:T8 ) / ( U8 - COUNTIF( E$7:T$8, "f" ) - COUNTIF( E$7:T$8, "ff" ) ) ) -> 21.46153846 | E8: =INDEX(E37:E53, MATCH($C$7, $C$37:$C$53,0), 1 ) -> 23 | F8: 16 | G8: 21 | H8: 28 | I8: 26 | J8: 21 | K8: 34 | L8: 0 | M8: 12 | N8: 24 | O8: 26 | P8: 21 | Q8: 27 | R8: 0 | S8: =INDEX(S37:S53, MATCH($C$7, $C$37:$C$53,0), 1 ) -> f | U8: =U7 - COUNTIF( E9:R9, "=W" ) - COUNTIF( E9:R9, "=L" ) + COUNTIF( E7:T8, "F" ) + COUNTIF( E7:T8, "FF" ) -> 16 | Y8: Opp | Z8: =IF( AQ8 = 0, "", SUM( AA8:AP8 ) / ( AQ8 - COUNTIF( AA$7:AP$8, "f" ) - COUNTIF( AA$7:AP$8, "ff" ) ) ) -> 17.4 | AA8: =INDEX(AA37:AA53, MATCH($Y$7, $Y$37:$Y$53,0), 1 ) -> 24 | AB8: 17 | AC8: 20 | AD8: 17 | AE8: 14 | AF8: 23 | AG8: 26 | AH8: 29 | AI8: -6 | AJ8: 20 | AK8: 20 | AL8: 19 | AM8: 26 | AN8: 14 | AO8: =INDEX(AO37:AO53, MATCH($Y$7, $Y$37:$Y$53,0), 1 ) -> -2 | AQ8: =AQ7 - COUNTIF( AA9:AN9, "=W" ) - COUNTIF( AA9:AN9, "=L" ) + COUNTIF( AA7:AP8, "F" ) + COUNTIF( AA7:AP8, "FF" ) -> 15
C9: Diff: | D9: =IF( U7 = 0, "", D7 - D8 ) -> -1.544871795 | E9: =IF( E8 = "f", "W", IF( E7 = "f", "L", IF( SUMSQ( E7:E8 ) = 0, "", E8 - E7 ) ) ) -> 6 | F9: =IF( F8 = "f", "W", IF( F7 = "f", "L", IF( SUMSQ( F7:F8 ) = 0, "", F8 - F7 ) ) ) -> -14 | G9: 4 | H9: 10 | I9: 5 | J9: 8 | K9: 5 | L9: L | M9: 0 | N9: 12 | O9: 1 | P9: 3 | Q9: 0 | R9: L | S9: =IF( S8 = "f", "W", IF( S7 = "f", "L", IF( SUMSQ( S7:S8 ) = 0, "", S8 - S7 ) ) ) -> W | Y9: Diff: | Z9: =IF( AQ7 = 0, "", Z7 - Z8 ) -> -2.666666667 | AA9: =IF( AA8 = "f", "W", IF( AA7 = "f", "L", IF( SUMSQ( AA7:AA8 ) = 0, "", AA8 - AA7 ) ) ) -> 10 | AB9: =IF( AB8 = "f", "W", IF( AB7 = "f", "L", IF( SUMSQ( AB7:AB8 ) = 0, "", AB8 - AB7 ) ) ) -> 4 | AC9: =IF( AC8 = "f", "W", IF( AC7 = "f", "L", IF( SUMSQ( AC7:AC8 ) = 0, "", AC8 - AC7 ) ) ) -> 2 | AD9: =IF( AD8 = "f", "W", IF( AD7 = "f", "L", IF( SUMSQ( AD7:AD8 ) = 0, "", AD8 - AD7 ) ) ) -> 1 | AE9: =IF( AE8 = "f", "W", IF( AE7 = "f", "L", IF( SUMSQ( AE7:AE8 ) = 0, "", AE8 - AE7 ) ) ) -> 2 | AF9: =IF( AF8 = "f", "W", IF( AF7 = "f", "L", IF( SUMSQ( AF7:AF8 ) = 0, "", AF8 - AF7 ) ) ) -> 2 | AG9: =IF( AG8 = "f", "W", IF( AG7 = "f", "L", IF( SUMSQ( AG7:AG8 ) = 0, "", AG8 - AG7 ) ) ) -> 1 | AH9: =IF( AH8 = "f", "W", IF( AH7 = "f", "L", IF( SUMSQ( AH7:AH8 ) = 0, "", AH8 - AH7 ) ) ) -> 11 | AI9: =IF( AI8 = "f", "W", IF( AI7 = "f", "L", IF( SUMSQ( AI7:AI8 ) = 0, "", AI8 - AI7 ) ) ) -> 0 | AJ9: =IF( AJ8 = "f", "W", IF( AJ7 = "f", "L", IF( SUMSQ( AJ7:AJ8 ) = 0, "", AJ8 - AJ7 ) ) ) -> 12 | AK9: =IF( AK8 = "f", "W", IF( AK7 = "f", "L", IF( SUMSQ( AK7:AK8 ) = 0, "", AK8 - AK7 ) ) ) -> -6 | AL9: =IF( AL8 = "f", "W", IF( AL7 = "f", "L", IF( SUMSQ( AL7:AL8 ) = 0, "", AL8 - AL7 ) ) ) -> 5 | AM9: =IF( AM8 = "f", "W", IF( AM7 = "f", "L", IF( SUMSQ( AM7:AM8 ) = 0, "", AM8 - AM7 ) ) ) -> 14 | AN9: =IF( AN8 = "f", "W", IF( AN7 = "f", "L", IF( SUMSQ( AN7:AN8 ) = 0, "", AN8 - AN7 ) ) ) -> -3 | AO9: -15
E11: Week by Week Scoring by your Team | AA11: =E11 -> Week by Week Scoring by your Team | AU11: A league
C12: Team | D12: Ave | E12: 1 | F12: =E12+1 -> 2 | G12: 3 | H12: 4 | I12: 5 | J12: 6 | K12: 7 | L12: 8 | M12: 9 | N12: 10 | O12: 11 | P12: 12 | Q12: 13 | R12: 14 | S12: =R12+1 -> 15 | T12: =S12+1 -> 16 | U12: No | Y12: Team | Z12: Ave | AA12: 1 | AB12: =AA12+1 -> 2 | AC12: 3 | AD12: 4 | AE12: 5 | AF12: 6 | AG12: 7 | AH12: 8 | AI12: 9 | AJ12: 10 | AK12: 11 | AL12: 12 | AM12: 13 | AN12: 14 | AO12: =AN12+1 -> 15 | AP12: =AO12+1 -> 16 | AQ12: No | AT12: Team | AU12: For | AV12: Opp | AW12: Diff
D13: 0 | Z13: 0 | AW13: 99
B14: =B13+1 -> 1 | C14: =Standings!C8 -> E60 | D14: =IF( U14 = 0, "", SUM( E14:T14 ) / U14 ) -> 13.21435714 | E14: =OFFSET( Season!$F$7, MATCH( $C14, OFFSET( Season!$E$8, 0, 3* ( E$12 - 1 ), 34, 1 ), 0 ), 3*(E$12 - 1 ) ) -> 16 | F14: =OFFSET( Season!$F$7, MATCH( $C14, OFFSET( Season!$E$8, 0, 3* ( F$12 - 1 ), 34, 1 ), 0 ), 3*(F$12 - 1 ) ) -> 25 | G14: =OFFSET( Season!$F$7, MATCH( $C14, OFFSET( Season!$E$8, 0, 3* ( G$12 - 1 ), 34, 1 ), 0 ), 3*(G$12 - 1 ) ) -> 17 | H14: =OFFSET( Season!$F$7, MATCH( $C14, OFFSET( Season!$E$8, 0, 3* ( H$12 - 1 ), 34, 1 ), 0 ), 3*(H$12 - 1 ) ) -> 10 | I14: =OFFSET( Season!$F$7, MATCH( $C14, OFFSET( Season!$E$8, 0, 3* ( I$12 - 1 ), 34, 1 ), 0 ), 3*(I$12 - 1 ) ) -> 0.001 | J14: =OFFSET( Season!$F$7, MATCH( $C14, OFFSET( Season!$E$8, 0, 3* ( J$12 - 1 ), 34, 1 ), 0 ), 3*(J$12 - 1 ) ) -> 13 | K14: =OFFSET( Season!$F$7, MATCH( $C14, OFFSET( Season!$E$8, 0, 3* ( K$12 - 1 ), 34, 1 ), 0 ), 3*(K$12 - 1 ) ) -> 2 | L14: =OFFSET( Season!$F$7, MATCH( $C14, OFFSET( Season!$E$8, 0, 3* ( L$12 - 1 ), 34, 1 ), 0 ), 3*(L$12 - 1 ) ) -> 21 | M14: =OFFSET( Season!$F$7, MATCH( $C14, OFFSET( Season!$E$8, 0, 3* ( M$12 - 1 ), 34, 1 ), 0 ), 3*(M$12 - 1 ) ) -> 17 | N14: =OFFSET( Season!$F$7, MATCH( $C14, OFFSET( Season!$E$8, 0, 3* ( N$12 - 1 ), 34, 1 ), 0 ), 3*(N$12 - 1 ) ) -> 24 | O14: =OFFSET( Season!$F$7, MATCH( $C14, OFFSET( Season!$E$8, 0, 3* ( O$12 - 1 ), 34, 1 ), 0 ), 3*(O$12 - 1 ) ) -> 0 | P14: =OFFSET( Season!$F$7, MATCH( $C14, OFFSET( Season!$E$8, 0, 3* ( P$12 - 1 ), 34, 1 ), 0 ), 3*(P$12 - 1 ) ) -> 5 | Q14: =OFFSET( Season!$F$7, MATCH( $C14, OFFSET( Season!$E$8, 0, 3* ( Q$12 - 1 ), 34, 1 ), 0 ), 3*(Q$12 - 1 ) ) -> 18 | R14: =OFFSET( Season!$F$7, MATCH( $C14, OFFSET( Season!$E$8, 0, 3* ( R$12 - 1 ), 34, 1 ), 0 ), 3*(R$12 - 1 ) ) -> 3 | S14: =OFFSET( Season!$F$7, MATCH( $C14, OFFSET( Season!$E$8, 0, 3* ( S$12 - 1 ), 34, 1 ), 0 ), 3*(S$12 - 1 ) ) -> 14 | U14: =MAX( $E$6:$S$6 ) - COUNTIF( E14:T14, "0" ) - COUNTIF( E14:T14, "W" ) - COUNTIF( E14:T14, "F" ) - COUNTIF( E14:T14, "FF" ) -> 14 | X14: =X13+1 -> 1 | Y14: =Standings!L10 -> SCM | Z14: =IF( AQ14 = 0, "", SUM( AA14:AP14 ) / AQ14 ) -> 11.2 | AA14: =OFFSET( Season!$F$7, MATCH( $Y14, OFFSET( Season!$E$8, 0, 3* ( AA$12 - 1 ), 34, 1 ), 0 ), 3*(AA$12 - 1 ) ) -> 7 | AB14: =OFFSET( Season!$F$7, MATCH( $Y14, OFFSET( Season!$E$8, 0, 3* ( AB$12 - 1 ), 34, 1 ), 0 ), 3*(AB$12 - 1 ) ) -> 13 | AC14: =OFFSET( Season!$F$7, MATCH( $Y14, OFFSET( Season!$E$8, 0, 3* ( AC$12 - 1 ), 34, 1 ), 0 ), 3*(AC$12 - 1 ) ) -> 20 | AD14: =OFFSET( Season!$F$7, MATCH( $Y14, OFFSET( Season!$E$8, 0, 3* ( AD$12 - 1 ), 34, 1 ), 0 ), 3*(AD$12 - 1 ) ) -> 6 | AE14: =OFFSET( Season!$F$7, MATCH( $Y14, OFFSET( Season!$E$8, 0, 3* ( AE$12 - 1 ), 34, 1 ), 0 ), 3*(AE$12 - 1 ) ) -> 31 | AF14: =OFFSET( Season!$F$7, MATCH( $Y14, OFFSET( Season!$E$8, 0, 3* ( AF$12 - 1 ), 34, 1 ), 0 ), 3*(AF$12 - 1 ) ) -> 16 | AG14: =OFFSET( Season!$F$7, MATCH( $Y14, OFFSET( Season!$E$8, 0, 3* ( AG$12 - 1 ), 34, 1 ), 0 ), 3*(AG$12 - 1 ) ) -> -3 | AH14: =OFFSET( Season!$F$7, MATCH( $Y14, OFFSET( Season!$E$8, 0, 3* ( AH$12 - 1 ), 34, 1 ), 0 ), 3*(AH$12 - 1 ) ) -> 23 | AI14: =OFFSET( Season!$F$7, MATCH( $Y14, OFFSET( Season!$E$8, 0, 3* ( AI$12 - 1 ), 34, 1 ), 0 ), 3*(AI$12 - 1 ) ) -> 20 | AJ14: =OFFSET( Season!$F$7, MATCH( $Y14, OFFSET( Season!$E$8, 0, 3* ( AJ$12 - 1 ), 34, 1 ), 0 ), 3*(AJ$12 - 1 ) ) -> 20 | AK14: =OFFSET( Season!$F$7, MATCH( $Y14, OFFSET( Season!$E$8, 0, 3* ( AK$12 - 1 ), 34, 1 ), 0 ), 3*(AK$12 - 1 ) ) -> -6 | AL14: =OFFSET( Season!$F$7, MATCH( $Y14, OFFSET( Season!$E$8, 0, 3* ( AL$12 - 1 ), 34, 1 ), 0 ), 3*(AL$12 - 1 ) ) -> 11 | AM14: =OFFSET( Season!$F$7, MATCH( $Y14, OFFSET( Season!$E$8, 0, 3* ( AM$12 - 1 ), 34, 1 ), 0 ), 3*(AM$12 - 1 ) ) -> 2 | AN14: =OFFSET( Season!$F$7, MATCH( $Y14, OFFSET( Season!$E$8, 0, 3* ( AN$12 - 1 ), 34, 1 ), 0 ), 3*(AN$12 - 1 ) ) -> -5 | AO14: =OFFSET( Season!$F$7, MATCH( $Y14, OFFSET( Season!$E$8, 0, 3* ( AO$12 - 1 ), 34, 1 ), 0 ), 3*(AO$12 - 1 ) ) -> 13 | AQ14: =MAX( $E$6:$S$6 ) - COUNTIF( AA14:AP14, "0" ) - COUNTIF( AA14:AP14, "W" ) - COUNTIF( AA14:AP14, "F" ) - COUNTIF( AA14:AP14, "FF" ) -> 15 | AT14: =Standings!C7 -> X87 | AU14: =VLOOKUP(AT14, $C$14:$D$30, 2, 0 ) -> 14.13333333 | AV14: =VLOOKUP(AT14, $C$37:$D$53, 2, 0 ) -> 20.26666667 | AW14: =IF( AV14 = "", "", AU14 - AV14 ) -> -6.133333333
B15: =B14+1 -> 2 | C15: =Standings!C10 -> E83 | D15: 14.06666667 | E15: =OFFSET( Season!$F$7, MATCH( $C15, OFFSET( Season!$E$8, 0, 3* ( E$12 - 1 ), 34, 1 ), 0 ), 3*(E$12 - 1 ) ) -> 30 | F15: =OFFSET( Season!$F$7, MATCH( $C15, OFFSET( Season!$E$8, 0, 3* ( F$12 - 1 ), 34, 1 ), 0 ), 3*(F$12 - 1 ) ) -> 16 | G15: =OFFSET( Season!$F$7, MATCH( $C15, OFFSET( Season!$E$8, 0, 3* ( G$12 - 1 ), 34, 1 ), 0 ), 3*(G$12 - 1 ) ) -> 17 | H15: =OFFSET( Season!$F$7, MATCH( $C15, OFFSET( Season!$E$8, 0, 3* ( H$12 - 1 ), 34, 1 ), 0 ), 3*(H$12 - 1 ) ) -> 4 | I15: =OFFSET( Season!$F$7, MATCH( $C15, OFFSET( Season!$E$8, 0, 3* ( I$12 - 1 ), 34, 1 ), 0 ), 3*(I$12 - 1 ) ) -> 20 | J15: =OFFSET( Season!$F$7, MATCH( $C15, OFFSET( Season!$E$8, 0, 3* ( J$12 - 1 ), 34, 1 ), 0 ), 3*(J$12 - 1 ) ) -> 18 | K15: =OFFSET( Season!$F$7, MATCH( $C15, OFFSET( Season!$E$8, 0, 3* ( K$12 - 1 ), 34, 1 ), 0 ), 3*(K$12 - 1 ) ) -> 7 | L15: =OFFSET( Season!$F$7, MATCH( $C15, OFFSET( Season!$E$8, 0, 3* ( L$12 - 1 ), 34, 1 ), 0 ), 3*(L$12 - 1 ) ) -> 18 | M15: =OFFSET( Season!$F$7, MATCH( $C15, OFFSET( Season!$E$8, 0, 3* ( M$12 - 1 ), 34, 1 ), 0 ), 3*(M$12 - 1 ) ) -> 17 | N15: =OFFSET( Season!$F$7, MATCH( $C15, OFFSET( Season!$E$8, 0, 3* ( N$12 - 1 ), 34, 1 ), 0 ), 3*(N$12 - 1 ) ) -> 16 | O15: =OFFSET( Season!$F$7, MATCH( $C15, OFFSET( Season!$E$8, 0, 3* ( O$12 - 1 ), 34, 1 ), 0 ), 3*(O$12 - 1 ) ) -> 25 | P15: =OFFSET( Season!$F$7, MATCH( $C15, OFFSET( Season!$E$8, 0, 3* ( P$12 - 1 ), 34, 1 ), 0 ), 3*(P$12 - 1 ) ) -> 11 | Q15: =OFFSET( Season!$F$7, MATCH( $C15, OFFSET( Season!$E$8, 0, 3* ( Q$12 - 1 ), 34, 1 ), 0 ), 3*(Q$12 - 1 ) ) -> 14 | R15: =OFFSET( Season!$F$7, MATCH( $C15, OFFSET( Season!$E$8, 0, 3* ( R$12 - 1 ), 34, 1 ), 0 ), 3*(R$12 - 1 ) ) -> 4 | S15: =OFFSET( Season!$F$7, MATCH( $C15, OFFSET( Season!$E$8, 0, 3* ( S$12 - 1 ), 34, 1 ), 0 ), 3*(S$12 - 1 ) ) -> -6 | U15: =MAX( $E$6:$S$6 ) - COUNTIF( E15:T15, "0" ) - COUNTIF( E15:T15, "W" ) - COUNTIF( E15:T15, "F" ) - COUNTIF( E15:T15, "FF" ) -> 15 | X15: 2 | Y15: =Standings!L7 -> X31 | Z15: 13.79285714 | AA15: =OFFSET( Season!$F$7, MATCH( $Y15, OFFSET( Season!$E$8, 0, 3* ( AA$12 - 1 ), 34, 1 ), 0 ), 3*(AA$12 - 1 ) ) -> 26 | AB15: =OFFSET( Season!$F$7, MATCH( $Y15, OFFSET( Season!$E$8, 0, 3* ( AB$12 - 1 ), 34, 1 ), 0 ), 3*(AB$12 - 1 ) ) -> 13 | AC15: =OFFSET( Season!$F$7, MATCH( $Y15, OFFSET( Season!$E$8, 0, 3* ( AC$12 - 1 ), 34, 1 ), 0 ), 3*(AC$12 - 1 ) ) -> 13 | AD15: =OFFSET( Season!$F$7, MATCH( $Y15, OFFSET( Season!$E$8, 0, 3* ( AD$12 - 1 ), 34, 1 ), 0 ), 3*(AD$12 - 1 ) ) -> 13 | AE15: =OFFSET( Season!$F$7, MATCH( $Y15, OFFSET( Season!$E$8, 0, 3* ( AE$12 - 1 ), 34, 1 ), 0 ), 3*(AE$12 - 1 ) ) -> 0.1 | AF15: =OFFSET( Season!$F$7, MATCH( $Y15, OFFSET( Season!$E$8, 0, 3* ( AF$12 - 1 ), 34, 1 ), 0 ), 3*(AF$12 - 1 ) ) -> 31 | AG15: =OFFSET( Season!$F$7, MATCH( $Y15, OFFSET( Season!$E$8, 0, 3* ( AG$12 - 1 ), 34, 1 ), 0 ), 3*(AG$12 - 1 ) ) -> -8 | AH15: =OFFSET( Season!$F$7, MATCH( $Y15, OFFSET( Season!$E$8, 0, 3* ( AH$12 - 1 ), 34, 1 ), 0 ), 3*(AH$12 - 1 ) ) -> f | AI15: =OFFSET( Season!$F$7, MATCH( $Y15, OFFSET( Season!$E$8, 0, 3* ( AI$12 - 1 ), 34, 1 ), 0 ), 3*(AI$12 - 1 ) ) -> 23 | AJ15: =OFFSET( Season!$F$7, MATCH( $Y15, OFFSET( Season!$E$8, 0, 3* ( AJ$12 - 1 ), 34, 1 ), 0 ), 3*(AJ$12 - 1 ) ) -> 10 | AK15: =OFFSET( Season!$F$7, MATCH( $Y15, OFFSET( Season!$E$8, 0, 3* ( AK$12 - 1 ), 34, 1 ), 0 ), 3*(AK$12 - 1 ) ) -> 20 | AL15: =OFFSET( Season!$F$7, MATCH( $Y15, OFFSET( Season!$E$8, 0, 3* ( AL$12 - 1 ), 34, 1 ), 0 ), 3*(AL$12 - 1 ) ) -> 11 | AM15: =OFFSET( Season!$F$7, MATCH( $Y15, OFFSET( Season!$E$8, 0, 3* ( AM$12 - 1 ), 34, 1 ), 0 ), 3*(AM$12 - 1 ) ) -> 18 | AN15: =OFFSET( Season!$F$7, MATCH( $Y15, OFFSET( Season!$E$8, 0, 3* ( AN$12 - 1 ), 34, 1 ), 0 ), 3*(AN$12 - 1 ) ) -> 11 | AO15: =OFFSET( Season!$F$7, MATCH( $Y15, OFFSET( Season!$E$8, 0, 3* ( AO$12 - 1 ), 34, 1 ), 0 ), 3*(AO$12 - 1 ) ) -> 12 | AQ15: =MAX( $E$6:$S$6 ) - COUNTIF( AA15:AP15, "0" ) - COUNTIF( AA15:AP15, "W" ) - COUNTIF( AA15:AP15, "F" ) - COUNTIF( AA15:AP15, "FF" ) -> 14 | AT15: =Standings!C8 -> E60 | AU15: 13.21435714 | AV15: 17.92857143 | AW15: -4.714214286
B16: 3 | C16: =Standings!C7 -> X87 | D16: 14.13333333 | E16: =OFFSET( Season!$F$7, MATCH( $C16, OFFSET( Season!$E$8, 0, 3* ( E$12 - 1 ), 34, 1 ), 0 ), 3*(E$12 - 1 ) ) -> 23 | F16: =OFFSET( Season!$F$7, MATCH( $C16, OFFSET( Season!$E$8, 0, 3* ( F$12 - 1 ), 34, 1 ), 0 ), 3*(F$12 - 1 ) ) -> 17 | G16: =OFFSET( Season!$F$7, MATCH( $C16, OFFSET( Season!$E$8, 0, 3* ( G$12 - 1 ), 34, 1 ), 0 ), 3*(G$12 - 1 ) ) -> 16 | H16: =OFFSET( Season!$F$7, MATCH( $C16, OFFSET( Season!$E$8, 0, 3* ( H$12 - 1 ), 34, 1 ), 0 ), 3*(H$12 - 1 ) ) -> 7 | I16: =OFFSET( Season!$F$7, MATCH( $C16, OFFSET( Season!$E$8, 0, 3* ( I$12 - 1 ), 34, 1 ), 0 ), 3*(I$12 - 1 ) ) -> 26 | J16: =OFFSET( Season!$F$7, MATCH( $C16, OFFSET( Season!$E$8, 0, 3* ( J$12 - 1 ), 34, 1 ), 0 ), 3*(J$12 - 1 ) ) -> 11 | K16: =OFFSET( Season!$F$7, MATCH( $C16, OFFSET( Season!$E$8, 0, 3* ( K$12 - 1 ), 34, 1 ), 0 ), 3*(K$12 - 1 ) ) -> 18 | L16: =OFFSET( Season!$F$7, MATCH( $C16, OFFSET( Season!$E$8, 0, 3* ( L$12 - 1 ), 34, 1 ), 0 ), 3*(L$12 - 1 ) ) -> 7 | M16: =OFFSET( Season!$F$7, MATCH( $C16, OFFSET( Season!$E$8, 0, 3* ( M$12 - 1 ), 34, 1 ), 0 ), 3*(M$12 - 1 ) ) -> 10 | N16: =OFFSET( Season!$F$7, MATCH( $C16, OFFSET( Season!$E$8, 0, 3* ( N$12 - 1 ), 34, 1 ), 0 ), 3*(N$12 - 1 ) ) -> 10 | O16: =OFFSET( Season!$F$7, MATCH( $C16, OFFSET( Season!$E$8, 0, 3* ( O$12 - 1 ), 34, 1 ), 0 ), 3*(O$12 - 1 ) ) -> 10 | P16: =OFFSET( Season!$F$7, MATCH( $C16, OFFSET( Season!$E$8, 0, 3* ( P$12 - 1 ), 34, 1 ), 0 ), 3*(P$12 - 1 ) ) -> 21 | Q16: =OFFSET( Season!$F$7, MATCH( $C16, OFFSET( Season!$E$8, 0, 3* ( Q$12 - 1 ), 34, 1 ), 0 ), 3*(Q$12 - 1 ) ) -> 9 | R16: =OFFSET( Season!$F$7, MATCH( $C16, OFFSET( Season!$E$8, 0, 3* ( R$12 - 1 ), 34, 1 ), 0 ), 3*(R$12 - 1 ) ) -> 14 | S16: =OFFSET( Season!$F$7, MATCH( $C16, OFFSET( Season!$E$8, 0, 3* ( S$12 - 1 ), 34, 1 ), 0 ), 3*(S$12 - 1 ) ) -> 13 | U16: 15 | X16: 3 | Y16: =Standings!L11 -> NNIT | Z16: 13.86666667 | AA16: =OFFSET( Season!$F$7, MATCH( $Y16, OFFSET( Season!$E$8, 0, 3* ( AA$12 - 1 ), 34, 1 ), 0 ), 3*(AA$12 - 1 ) ) -> 22 | AB16: =OFFSET( Season!$F$7, MATCH( $Y16, OFFSET( Season!$E$8, 0, 3* ( AB$12 - 1 ), 34, 1 ), 0 ), 3*(AB$12 - 1 ) ) -> 32 | AC16: =OFFSET( Season!$F$7, MATCH( $Y16, OFFSET( Season!$E$8, 0, 3* ( AC$12 - 1 ), 34, 1 ), 0 ), 3*(AC$12 - 1 ) ) -> 7 | AD16: =OFFSET( Season!$F$7, MATCH( $Y16, OFFSET( Season!$E$8, 0, 3* ( AD$12 - 1 ), 34, 1 ), 0 ), 3*(AD$12 - 1 ) ) -> 17 | AE16: =OFFSET( Season!$F$7, MATCH( $Y16, OFFSET( Season!$E$8, 0, 3* ( AE$12 - 1 ), 34, 1 ), 0 ), 3*(AE$12 - 1 ) ) -> 31 | AF16: =OFFSET( Season!$F$7, MATCH( $Y16, OFFSET( Season!$E$8, 0, 3* ( AF$12 - 1 ), 34, 1 ), 0 ), 3*(AF$12 - 1 ) ) -> 12 | AG16: =OFFSET( Season!$F$7, MATCH( $Y16, OFFSET( Season!$E$8, 0, 3* ( AG$12 - 1 ), 34, 1 ), 0 ), 3*(AG$12 - 1 ) ) -> 23 | AH16: =OFFSET( Season!$F$7, MATCH( $Y16, OFFSET( Season!$E$8, 0, 3* ( AH$12 - 1 ), 34, 1 ), 0 ), 3*(AH$12 - 1 ) ) -> -11 | AI16: =OFFSET( Season!$F$7, MATCH( $Y16, OFFSET( Season!$E$8, 0, 3* ( AI$12 - 1 ), 34, 1 ), 0 ), 3*(AI$12 - 1 ) ) -> 14 | AJ16: =OFFSET( Season!$F$7, MATCH( $Y16, OFFSET( Season!$E$8, 0, 3* ( AJ$12 - 1 ), 34, 1 ), 0 ), 3*(AJ$12 - 1 ) ) -> 5 | AK16: =OFFSET( Season!$F$7, MATCH( $Y16, OFFSET( Season!$E$8, 0, 3* ( AK$12 - 1 ), 34, 1 ), 0 ), 3*(AK$12 - 1 ) ) -> 6 | AL16: =OFFSET( Season!$F$7, MATCH( $Y16, OFFSET( Season!$E$8, 0, 3* ( AL$12 - 1 ), 34, 1 ), 0 ), 3*(AL$12 - 1 ) ) -> 15 | AM16: =OFFSET( Season!$F$7, MATCH( $Y16, OFFSET( Season!$E$8, 0, 3* ( AM$12 - 1 ), 34, 1 ), 0 ), 3*(AM$12 - 1 ) ) -> 7 | AN16: =OFFSET( Season!$F$7, MATCH( $Y16, OFFSET( Season!$E$8, 0, 3* ( AN$12 - 1 ), 34, 1 ), 0 ), 3*(AN$12 - 1 ) ) -> 16 | AO16: =OFFSET( Season!$F$7, MATCH( $Y16, OFFSET( Season!$E$8, 0, 3* ( AO$12 - 1 ), 34, 1 ), 0 ), 3*(AO$12 - 1 ) ) -> 12 | AQ16: 15 | AT16: =Standings!C11 -> X88 | AU16: 15.8934 | AV16: 20.12666667 | AW16: -4.233266667
B17: 4 | C17: =Standings!C12 -> E12 | D17: 15.73333333 | E17: =OFFSET( Season!$F$7, MATCH( $C17, OFFSET( Season!$E$8, 0, 3* ( E$12 - 1 ), 34, 1 ), 0 ), 3*(E$12 - 1 ) ) -> 30 | F17: =OFFSET( Season!$F$7, MATCH( $C17, OFFSET( Season!$E$8, 0, 3* ( F$12 - 1 ), 34, 1 ), 0 ), 3*(F$12 - 1 ) ) -> 28 | G17: =OFFSET( Season!$F$7, MATCH( $C17, OFFSET( Season!$E$8, 0, 3* ( G$12 - 1 ), 34, 1 ), 0 ), 3*(G$12 - 1 ) ) -> 22 | H17: =OFFSET( Season!$F$7, MATCH( $C17, OFFSET( Season!$E$8, 0, 3* ( H$12 - 1 ), 34, 1 ), 0 ), 3*(H$12 - 1 ) ) -> 16 | I17: =OFFSET( Season!$F$7, MATCH( $C17, OFFSET( Season!$E$8, 0, 3* ( I$12 - 1 ), 34, 1 ), 0 ), 3*(I$12 - 1 ) ) -> 16 | J17: =OFFSET( Season!$F$7, MATCH( $C17, OFFSET( Season!$E$8, 0, 3* ( J$12 - 1 ), 34, 1 ), 0 ), 3*(J$12 - 1 ) ) -> 21 | K17: =OFFSET( Season!$F$7, MATCH( $C17, OFFSET( Season!$E$8, 0, 3* ( K$12 - 1 ), 34, 1 ), 0 ), 3*(K$12 - 1 ) ) -> 17 | L17: =OFFSET( Season!$F$7, MATCH( $C17, OFFSET( Season!$E$8, 0, 3* ( L$12 - 1 ), 34, 1 ), 0 ), 3*(L$12 - 1 ) ) -> 14 | M17: =OFFSET( Season!$F$7, MATCH( $C17, OFFSET( Season!$E$8, 0, 3* ( M$12 - 1 ), 34, 1 ), 0 ), 3*(M$12 - 1 ) ) -> 15 | N17: =OFFSET( Season!$F$7, MATCH( $C17, OFFSET( Season!$E$8, 0, 3* ( N$12 - 1 ), 34, 1 ), 0 ), 3*(N$12 - 1 ) ) -> 11 | O17: =OFFSET( Season!$F$7, MATCH( $C17, OFFSET( Season!$E$8, 0, 3* ( O$12 - 1 ), 34, 1 ), 0 ), 3*(O$12 - 1 ) ) -> 8 | P17: =OFFSET( Season!$F$7, MATCH( $C17, OFFSET( Season!$E$8, 0, 3* ( P$12 - 1 ), 34, 1 ), 0 ), 3*(P$12 - 1 ) ) -> 3 | Q17: =OFFSET( Season!$F$7, MATCH( $C17, OFFSET( Season!$E$8, 0, 3* ( Q$12 - 1 ), 34, 1 ), 0 ), 3*(Q$12 - 1 ) ) -> 17 | R17: =OFFSET( Season!$F$7, MATCH( $C17, OFFSET( Season!$E$8, 0, 3* ( R$12 - 1 ), 34, 1 ), 0 ), 3*(R$12 - 1 ) ) -> 23 | S17: =OFFSET( Season!$F$7, MATCH( $C17, OFFSET( Season!$E$8, 0, 3* ( S$12 - 1 ), 34, 1 ), 0 ), 3*(S$12 - 1 ) ) -> -5 | U17: 15 | X17: 4 | Y17: =Standings!L12 -> ARG | Z17: 14.07142857 | AA17: =OFFSET( Season!$F$7, MATCH( $Y17, OFFSET( Season!$E$8, 0, 3* ( AA$12 - 1 ), 34, 1 ), 0 ), 3*(AA$12 - 1 ) ) -> 30 | AB17: =OFFSET( Season!$F$7, MATCH( $Y17, OFFSET( Season!$E$8, 0, 3* ( AB$12 - 1 ), 34, 1 ), 0 ), 3*(AB$12 - 1 ) ) -> -1 | AC17: =OFFSET( Season!$F$7, MATCH( $Y17, OFFSET( Season!$E$8, 0, 3* ( AC$12 - 1 ), 34, 1 ), 0 ), 3*(AC$12 - 1 ) ) -> 21 | AD17: =OFFSET( Season!$F$7, MATCH( $Y17, OFFSET( Season!$E$8, 0, 3* ( AD$12 - 1 ), 34, 1 ), 0 ), 3*(AD$12 - 1 ) ) -> 7 | AE17: =OFFSET( Season!$F$7, MATCH( $Y17, OFFSET( Season!$E$8, 0, 3* ( AE$12 - 1 ), 34, 1 ), 0 ), 3*(AE$12 - 1 ) ) -> 19 | AF17: =OFFSET( Season!$F$7, MATCH( $Y17, OFFSET( Season!$E$8, 0, 3* ( AF$12 - 1 ), 34, 1 ), 0 ), 3*(AF$12 - 1 ) ) -> 9 | AG17: =OFFSET( Season!$F$7, MATCH( $Y17, OFFSET( Season!$E$8, 0, 3* ( AG$12 - 1 ), 34, 1 ), 0 ), 3*(AG$12 - 1 ) ) -> 19 | AH17: =OFFSET( Season!$F$7, MATCH( $Y17, OFFSET( Season!$E$8, 0, 3* ( AH$12 - 1 ), 34, 1 ), 0 ), 3*(AH$12 - 1 ) ) -> 0 | AI17: =OFFSET( Season!$F$7, MATCH( $Y17, OFFSET( Season!$E$8, 0, 3* ( AI$12 - 1 ), 34, 1 ), 0 ), 3*(AI$12 - 1 ) ) -> 17 | AJ17: =OFFSET( Season!$F$7, MATCH( $Y17, OFFSET( Season!$E$8, 0, 3* ( AJ$12 - 1 ), 34, 1 ), 0 ), 3*(AJ$12 - 1 ) ) -> 13 | AK17: =OFFSET( Season!$F$7, MATCH( $Y17, OFFSET( Season!$E$8, 0, 3* ( AK$12 - 1 ), 34, 1 ), 0 ), 3*(AK$12 - 1 ) ) -> 28 | AL17: =OFFSET( Season!$F$7, MATCH( $Y17, OFFSET( Season!$E$8, 0, 3* ( AL$12 - 1 ), 34, 1 ), 0 ), 3*(AL$12 - 1 ) ) -> 4 | AM17: =OFFSET( Season!$F$7, MATCH( $Y17, OFFSET( Season!$E$8, 0, 3* ( AM$12 - 1 ), 34, 1 ), 0 ), 3*(AM$12 - 1 ) ) -> 10 | AN17: =OFFSET( Season!$F$7, MATCH( $Y17, OFFSET( Season!$E$8, 0, 3* ( AN$12 - 1 ), 34, 1 ), 0 ), 3*(AN$12 - 1 ) ) -> 23 | AO17: =OFFSET( Season!$F$7, MATCH( $Y17, OFFSET( Season!$E$8, 0, 3* ( AO$12 - 1 ), 34, 1 ), 0 ), 3*(AO$12 - 1 ) ) -> -2 | AQ17: 14 | AT17: =Standings!C10 -> E83 | AU17: 14.06666667 | AV17: 17.46666667 | AW17: -3.4
B18: 5 | C18: =Standings!C11 -> X88 | D18: 15.8934 | E18: =OFFSET( Season!$F$7, MATCH( $C18, OFFSET( Season!$E$8, 0, 3* ( E$12 - 1 ), 34, 1 ), 0 ), 3*(E$12 - 1 ) ) -> 19 | F18: =OFFSET( Season!$F$7, MATCH( $C18, OFFSET( Season!$E$8, 0, 3* ( F$12 - 1 ), 34, 1 ), 0 ), 3*(F$12 - 1 ) ) -> 22.7 | G18: =OFFSET( Season!$F$7, MATCH( $C18, OFFSET( Season!$E$8, 0, 3* ( G$12 - 1 ), 34, 1 ), 0 ), 3*(G$12 - 1 ) ) -> 23 | H18: =OFFSET( Season!$F$7, MATCH( $C18, OFFSET( Season!$E$8, 0, 3* ( H$12 - 1 ), 34, 1 ), 0 ), 3*(H$12 - 1 ) ) -> 17 | I18: =OFFSET( Season!$F$7, MATCH( $C18, OFFSET( Season!$E$8, 0, 3* ( I$12 - 1 ), 34, 1 ), 0 ), 3*(I$12 - 1 ) ) -> 20 | J18: =OFFSET( Season!$F$7, MATCH( $C18, OFFSET( Season!$E$8, 0, 3* ( J$12 - 1 ), 34, 1 ), 0 ), 3*(J$12 - 1 ) ) -> -3 | K18: =OFFSET( Season!$F$7, MATCH( $C18, OFFSET( Season!$E$8, 0, 3* ( K$12 - 1 ), 34, 1 ), 0 ), 3*(K$12 - 1 ) ) -> 34.7 | L18: =OFFSET( Season!$F$7, MATCH( $C18, OFFSET( Season!$E$8, 0, 3* ( L$12 - 1 ), 34, 1 ), 0 ), 3*(L$12 - 1 ) ) -> 16 | M18: =OFFSET( Season!$F$7, MATCH( $C18, OFFSET( Season!$E$8, 0, 3* ( M$12 - 1 ), 34, 1 ), 0 ), 3*(M$12 - 1 ) ) -> 12 | N18: =OFFSET( Season!$F$7, MATCH( $C18, OFFSET( Season!$E$8, 0, 3* ( N$12 - 1 ), 34, 1 ), 0 ), 3*(N$12 - 1 ) ) -> 28 | O18: =OFFSET( Season!$F$7, MATCH( $C18, OFFSET( Season!$E$8, 0, 3* ( O$12 - 1 ), 34, 1 ), 0 ), 3*(O$12 - 1 ) ) -> 6 | P18: =OFFSET( Season!$F$7, MATCH( $C18, OFFSET( Season!$E$8, 0, 3* ( P$12 - 1 ), 34, 1 ), 0 ), 3*(P$12 - 1 ) ) -> 0.001 | Q18: =OFFSET( Season!$F$7, MATCH( $C18, OFFSET( Season!$E$8, 0, 3* ( Q$12 - 1 ), 34, 1 ), 0 ), 3*(Q$12 - 1 ) ) -> 26 | R18: =OFFSET( Season!$F$7, MATCH( $C18, OFFSET( Season!$E$8, 0, 3* ( R$12 - 1 ), 34, 1 ), 0 ), 3*(R$12 - 1 ) ) -> 8 | S18: =OFFSET( Season!$F$7, MATCH( $C18, OFFSET( Season!$E$8, 0, 3* ( S$12 - 1 ), 34, 1 ), 0 ), 3*(S$12 - 1 ) ) -> 9 | U18: 15 | X18: 5 | Y18: =Standings!L6 -> E75 | Z18: 14.73333333 | AA18: =OFFSET( Season!$F$7, MATCH( $Y18, OFFSET( Season!$E$8, 0, 3* ( AA$12 - 1 ), 34, 1 ), 0 ), 3*(AA$12 - 1 ) ) -> 14 | AB18: =OFFSET( Season!$F$7, MATCH( $Y18, OFFSET( Season!$E$8, 0, 3* ( AB$12 - 1 ), 34, 1 ), 0 ), 3*(AB$12 - 1 ) ) -> 13 | AC18: =OFFSET( Season!$F$7, MATCH( $Y18, OFFSET( Season!$E$8, 0, 3* ( AC$12 - 1 ), 34, 1 ), 0 ), 3*(AC$12 - 1 ) ) -> 18 | AD18: =OFFSET( Season!$F$7, MATCH( $Y18, OFFSET( Season!$E$8, 0, 3* ( AD$12 - 1 ), 34, 1 ), 0 ), 3*(AD$12 - 1 ) ) -> 16 | AE18: =OFFSET( Season!$F$7, MATCH( $Y18, OFFSET( Season!$E$8, 0, 3* ( AE$12 - 1 ), 34, 1 ), 0 ), 3*(AE$12 - 1 ) ) -> 12 | AF18: =OFFSET( Season!$F$7, MATCH( $Y18, OFFSET( Season!$E$8, 0, 3* ( AF$12 - 1 ), 34, 1 ), 0 ), 3*(AF$12 - 1 ) ) -> 21 | AG18: =OFFSET( Season!$F$7, MATCH( $Y18, OFFSET( Season!$E$8, 0, 3* ( AG$12 - 1 ), 34, 1 ), 0 ), 3*(AG$12 - 1 ) ) -> 25 | AH18: =OFFSET( Season!$F$7, MATCH( $Y18, OFFSET( Season!$E$8, 0, 3* ( AH$12 - 1 ), 34, 1 ), 0 ), 3*(AH$12 - 1 ) ) -> 18 | AI18: =OFFSET( Season!$F$7, MATCH( $Y18, OFFSET( Season!$E$8, 0, 3* ( AI$12 - 1 ), 34, 1 ), 0 ), 3*(AI$12 - 1 ) ) -> -6 | AJ18: =OFFSET( Season!$F$7, MATCH( $Y18, OFFSET( Season!$E$8, 0, 3* ( AJ$12 - 1 ), 34, 1 ), 0 ), 3*(AJ$12 - 1 ) ) -> 8 | AK18: =OFFSET( Season!$F$7, MATCH( $Y18, OFFSET( Season!$E$8, 0, 3* ( AK$12 - 1 ), 34, 1 ), 0 ), 3*(AK$12 - 1 ) ) -> 26 | AL18: =OFFSET( Season!$F$7, MATCH( $Y18, OFFSET( Season!$E$8, 0, 3* ( AL$12 - 1 ), 34, 1 ), 0 ), 3*(AL$12 - 1 ) ) -> 14 | AM18: =OFFSET( Season!$F$7, MATCH( $Y18, OFFSET( Season!$E$8, 0, 3* ( AM$12 - 1 ), 34, 1 ), 0 ), 3*(AM$12 - 1 ) ) -> 12 | AN18: =OFFSET( Season!$F$7, MATCH( $Y18, OFFSET( Season!$E$8, 0, 3* ( AN$12 - 1 ), 34, 1 ), 0 ), 3*(AN$12 - 1 ) ) -> 17 | AO18: =OFFSET( Season!$F$7, MATCH( $Y18, OFFSET( Season!$E$8, 0, 3* ( AO$12 - 1 ), 34, 1 ), 0 ), 3*(AO$12 - 1 ) ) -> 13 | AQ18: 15 | AT18: =Standings!C6 -> E86 | AU18: 19.91666667 | AV18: 23.25 | AW18: -3.333333333
B19: 6 | C19: =Standings!C16 -> X01 | D19: 16.6 | E19: =OFFSET( Season!$F$7, MATCH( $C19, OFFSET( Season!$E$8, 0, 3* ( E$12 - 1 ), 34, 1 ), 0 ), 3*(E$12 - 1 ) ) -> 20 | F19: =OFFSET( Season!$F$7, MATCH( $C19, OFFSET( Season!$E$8, 0, 3* ( F$12 - 1 ), 34, 1 ), 0 ), 3*(F$12 - 1 ) ) -> 27 | G19: =OFFSET( Season!$F$7, MATCH( $C19, OFFSET( Season!$E$8, 0, 3* ( G$12 - 1 ), 34, 1 ), 0 ), 3*(G$12 - 1 ) ) -> 14 | H19: =OFFSET( Season!$F$7, MATCH( $C19, OFFSET( Season!$E$8, 0, 3* ( H$12 - 1 ), 34, 1 ), 0 ), 3*(H$12 - 1 ) ) -> 28 | I19: =OFFSET( Season!$F$7, MATCH( $C19, OFFSET( Season!$E$8, 0, 3* ( I$12 - 1 ), 34, 1 ), 0 ), 3*(I$12 - 1 ) ) -> 13 | J19: =OFFSET( Season!$F$7, MATCH( $C19, OFFSET( Season!$E$8, 0, 3* ( J$12 - 1 ), 34, 1 ), 0 ), 3*(J$12 - 1 ) ) -> 35 | K19: =OFFSET( Season!$F$7, MATCH( $C19, OFFSET( Season!$E$8, 0, 3* ( K$12 - 1 ), 34, 1 ), 0 ), 3*(K$12 - 1 ) ) -> 8 | L19: =OFFSET( Season!$F$7, MATCH( $C19, OFFSET( Season!$E$8, 0, 3* ( L$12 - 1 ), 34, 1 ), 0 ), 3*(L$12 - 1 ) ) -> 17 | M19: =OFFSET( Season!$F$7, MATCH( $C19, OFFSET( Season!$E$8, 0, 3* ( M$12 - 1 ), 34, 1 ), 0 ), 3*(M$12 - 1 ) ) -> 23 | N19: =OFFSET( Season!$F$7, MATCH( $C19, OFFSET( Season!$E$8, 0, 3* ( N$12 - 1 ), 34, 1 ), 0 ), 3*(N$12 - 1 ) ) -> 2 | O19: =OFFSET( Season!$F$7, MATCH( $C19, OFFSET( Season!$E$8, 0, 3* ( O$12 - 1 ), 34, 1 ), 0 ), 3*(O$12 - 1 ) ) -> 15 | P19: =OFFSET( Season!$F$7, MATCH( $C19, OFFSET( Season!$E$8, 0, 3* ( P$12 - 1 ), 34, 1 ), 0 ), 3*(P$12 - 1 ) ) -> 5 | Q19: =OFFSET( Season!$F$7, MATCH( $C19, OFFSET( Season!$E$8, 0, 3* ( Q$12 - 1 ), 34, 1 ), 0 ), 3*(Q$12 - 1 ) ) -> 8 | R19: =OFFSET( Season!$F$7, MATCH( $C19, OFFSET( Season!$E$8, 0, 3* ( R$12 - 1 ), 34, 1 ), 0 ), 3*(R$12 - 1 ) ) -> 14 | S19: =OFFSET( Season!$F$7, MATCH( $C19, OFFSET( Season!$E$8, 0, 3* ( S$12 - 1 ), 34, 1 ), 0 ), 3*(S$12 - 1 ) ) -> 20 | U19: 15 | X19: 6 | Y19: =Standings!L16 -> O46 | Z19: 14.73333333 | AA19: =OFFSET( Season!$F$7, MATCH( $Y19, OFFSET( Season!$E$8, 0, 3* ( AA$12 - 1 ), 34, 1 ), 0 ), 3*(AA$12 - 1 ) ) -> 25 | AB19: =OFFSET( Season!$F$7, MATCH( $Y19, OFFSET( Season!$E$8, 0, 3* ( AB$12 - 1 ), 34, 1 ), 0 ), 3*(AB$12 - 1 ) ) -> 24 | AC19: =OFFSET( Season!$F$7, MATCH( $Y19, OFFSET( Season!$E$8, 0, 3* ( AC$12 - 1 ), 34, 1 ), 0 ), 3*(AC$12 - 1 ) ) -> 11 | AD19: =OFFSET( Season!$F$7, MATCH( $Y19, OFFSET( Season!$E$8, 0, 3* ( AD$12 - 1 ), 34, 1 ), 0 ), 3*(AD$12 - 1 ) ) -> 9 | AE19: =OFFSET( Season!$F$7, MATCH( $Y19, OFFSET( Season!$E$8, 0, 3* ( AE$12 - 1 ), 34, 1 ), 0 ), 3*(AE$12 - 1 ) ) -> 14 | AF19: =OFFSET( Season!$F$7, MATCH( $Y19, OFFSET( Season!$E$8, 0, 3* ( AF$12 - 1 ), 34, 1 ), 0 ), 3*(AF$12 - 1 ) ) -> 21 | AG19: =OFFSET( Season!$F$7, MATCH( $Y19, OFFSET( Season!$E$8, 0, 3* ( AG$12 - 1 ), 34, 1 ), 0 ), 3*(AG$12 - 1 ) ) -> 19 | AH19: =OFFSET( Season!$F$7, MATCH( $Y19, OFFSET( Season!$E$8, 0, 3* ( AH$12 - 1 ), 34, 1 ), 0 ), 3*(AH$12 - 1 ) ) -> 24 | AI19: =OFFSET( Season!$F$7, MATCH( $Y19, OFFSET( Season!$E$8, 0, 3* ( AI$12 - 1 ), 34, 1 ), 0 ), 3*(AI$12 - 1 ) ) -> 18 | AJ19: =OFFSET( Season!$F$7, MATCH( $Y19, OFFSET( Season!$E$8, 0, 3* ( AJ$12 - 1 ), 34, 1 ), 0 ), 3*(AJ$12 - 1 ) ) -> 6 | AK19: =OFFSET( Season!$F$7, MATCH( $Y19, OFFSET( Season!$E$8, 0, 3* ( AK$12 - 1 ), 34, 1 ), 0 ), 3*(AK$12 - 1 ) ) -> 12 | AL19: =OFFSET( Season!$F$7, MATCH( $Y19, OFFSET( Season!$E$8, 0, 3* ( AL$12 - 1 ), 34, 1 ), 0 ), 3*(AL$12 - 1 ) ) -> 10 | AM19: =OFFSET( Season!$F$7, MATCH( $Y19, OFFSET( Season!$E$8, 0, 3* ( AM$12 - 1 ), 34, 1 ), 0 ), 3*(AM$12 - 1 ) ) -> 13 | AN19: =OFFSET( Season!$F$7, MATCH( $Y19, OFFSET( Season!$E$8, 0, 3* ( AN$12 - 1 ), 34, 1 ), 0 ), 3*(AN$12 - 1 ) ) -> -7 | AO19: =OFFSET( Season!$F$7, MATCH( $Y19, OFFSET( Season!$E$8, 0, 3* ( AO$12 - 1 ), 34, 1 ), 0 ), 3*(AO$12 - 1 ) ) -> 22 | AQ19: 15 | AT19: =Standings!C9 -> SUBS | AU19: 21.52666667 | AV19: 23.78 | AW19: -2.253333333
B20: 7 | C20: =Standings!C14 -> E55a | D20: 18.60666667 | E20: =OFFSET( Season!$F$7, MATCH( $C20, OFFSET( Season!$E$8, 0, 3* ( E$12 - 1 ), 34, 1 ), 0 ), 3*(E$12 - 1 ) ) -> 7 | F20: =OFFSET( Season!$F$7, MATCH( $C20, OFFSET( Season!$E$8, 0, 3* ( F$12 - 1 ), 34, 1 ), 0 ), 3*(F$12 - 1 ) ) -> 24 | G20: =OFFSET( Season!$F$7, MATCH( $C20, OFFSET( Season!$E$8, 0, 3* ( G$12 - 1 ), 34, 1 ), 0 ), 3*(G$12 - 1 ) ) -> 21 | H20: =OFFSET( Season!$F$7, MATCH( $C20, OFFSET( Season!$E$8, 0, 3* ( H$12 - 1 ), 34, 1 ), 0 ), 3*(H$12 - 1 ) ) -> 32 | I20: =OFFSET( Season!$F$7, MATCH( $C20, OFFSET( Season!$E$8, 0, 3* ( I$12 - 1 ), 34, 1 ), 0 ), 3*(I$12 - 1 ) ) -> 29 | J20: =OFFSET( Season!$F$7, MATCH( $C20, OFFSET( Season!$E$8, 0, 3* ( J$12 - 1 ), 34, 1 ), 0 ), 3*(J$12 - 1 ) ) -> 17 | K20: =OFFSET( Season!$F$7, MATCH( $C20, OFFSET( Season!$E$8, 0, 3* ( K$12 - 1 ), 34, 1 ), 0 ), 3*(K$12 - 1 ) ) -> 22 | L20: =OFFSET( Season!$F$7, MATCH( $C20, OFFSET( Season!$E$8, 0, 3* ( L$12 - 1 ), 34, 1 ), 0 ), 3*(L$12 - 1 ) ) -> 18 | M20: =OFFSET( Season!$F$7, MATCH( $C20, OFFSET( Season!$E$8, 0, 3* ( M$12 - 1 ), 34, 1 ), 0 ), 3*(M$12 - 1 ) ) -> 10 | N20: =OFFSET( Season!$F$7, MATCH( $C20, OFFSET( Season!$E$8, 0, 3* ( N$12 - 1 ), 34, 1 ), 0 ), 3*(N$12 - 1 ) ) -> 16 | O20: =OFFSET( Season!$F$7, MATCH( $C20, OFFSET( Season!$E$8, 0, 3* ( O$12 - 1 ), 34, 1 ), 0 ), 3*(O$12 - 1 ) ) -> 12.1 | P20: =OFFSET( Season!$F$7, MATCH( $C20, OFFSET( Season!$E$8, 0, 3* ( P$12 - 1 ), 34, 1 ), 0 ), 3*(P$12 - 1 ) ) -> 19 | Q20: =OFFSET( Season!$F$7, MATCH( $C20, OFFSET( Season!$E$8, 0, 3* ( Q$12 - 1 ), 34, 1 ), 0 ), 3*(Q$12 - 1 ) ) -> 26 | R20: =OFFSET( Season!$F$7, MATCH( $C20, OFFSET( Season!$E$8, 0, 3* ( R$12 - 1 ), 34, 1 ), 0 ), 3*(R$12 - 1 ) ) -> 12 | S20: =OFFSET( Season!$F$7, MATCH( $C20, OFFSET( Season!$E$8, 0, 3* ( S$12 - 1 ), 34, 1 ), 0 ), 3*(S$12 - 1 ) ) -> 14 | U20: 15 | X20: 7 | Y20: =Standings!L8 -> O87 | Z20: 15 | AA20: =OFFSET( Season!$F$7, MATCH( $Y20, OFFSET( Season!$E$8, 0, 3* ( AA$12 - 1 ), 34, 1 ), 0 ), 3*(AA$12 - 1 ) ) -> 18 | AB20: =OFFSET( Season!$F$7, MATCH( $Y20, OFFSET( Season!$E$8, 0, 3* ( AB$12 - 1 ), 34, 1 ), 0 ), 3*(AB$12 - 1 ) ) -> 30 | AC20: =OFFSET( Season!$F$7, MATCH( $Y20, OFFSET( Season!$E$8, 0, 3* ( AC$12 - 1 ), 34, 1 ), 0 ), 3*(AC$12 - 1 ) ) -> 15 | AD20: =OFFSET( Season!$F$7, MATCH( $Y20, OFFSET( Season!$E$8, 0, 3* ( AD$12 - 1 ), 34, 1 ), 0 ), 3*(AD$12 - 1 ) ) -> 37 | AE20: =OFFSET( Season!$F$7, MATCH( $Y20, OFFSET( Season!$E$8, 0, 3* ( AE$12 - 1 ), 34, 1 ), 0 ), 3*(AE$12 - 1 ) ) -> 8 | AF20: =OFFSET( Season!$F$7, MATCH( $Y20, OFFSET( Season!$E$8, 0, 3* ( AF$12 - 1 ), 34, 1 ), 0 ), 3*(AF$12 - 1 ) ) -> 8 | AG20: =OFFSET( Season!$F$7, MATCH( $Y20, OFFSET( Season!$E$8, 0, 3* ( AG$12 - 1 ), 34, 1 ), 0 ), 3*(AG$12 - 1 ) ) -> 11 | AH20: =OFFSET( Season!$F$7, MATCH( $Y20, OFFSET( Season!$E$8, 0, 3* ( AH$12 - 1 ), 34, 1 ), 0 ), 3*(AH$12 - 1 ) ) -> -4 | AI20: =OFFSET( Season!$F$7, MATCH( $Y20, OFFSET( Season!$E$8, 0, 3* ( AI$12 - 1 ), 34, 1 ), 0 ), 3*(AI$12 - 1 ) ) -> 10 | AJ20: =OFFSET( Season!$F$7, MATCH( $Y20, OFFSET( Season!$E$8, 0, 3* ( AJ$12 - 1 ), 34, 1 ), 0 ), 3*(AJ$12 - 1 ) ) -> 21 | AK20: =OFFSET( Season!$F$7, MATCH( $Y20, OFFSET( Season!$E$8, 0, 3* ( AK$12 - 1 ), 34, 1 ), 0 ), 3*(AK$12 - 1 ) ) -> 12 | AL20: =OFFSET( Season!$F$7, MATCH( $Y20, OFFSET( Season!$E$8, 0, 3* ( AL$12 - 1 ), 34, 1 ), 0 ), 3*(AL$12 - 1 ) ) -> 2 | AM20: =OFFSET( Season!$F$7, MATCH( $Y20, OFFSET( Season!$E$8, 0, 3* ( AM$12 - 1 ), 34, 1 ), 0 ), 3*(AM$12 - 1 ) ) -> 26 | AN20: =OFFSET( Season!$F$7, MATCH( $Y20, OFFSET( Season!$E$8, 0, 3* ( AN$12 - 1 ), 34, 1 ), 0 ), 3*(AN$12 - 1 ) ) -> 9 | AO20: =OFFSET( Season!$F$7, MATCH( $Y20, OFFSET( Season!$E$8, 0, 3* ( AO$12 - 1 ), 34, 1 ), 0 ), 3*(AO$12 - 1 ) ) -> 22 | AQ20: 15 | AT20: =Standings!C12 -> E12 | AU20: 15.73333333 | AV20: =VLOOKUP( AT20, $C$37:$D$53, 2, 0 ) -> 17.46673333 | AW20: -1.7334
B21: 8 | C21: =Standings!C17 -> AGS | D21: 19.53846154 | E21: =OFFSET( Season!$F$7, MATCH( $C21, OFFSET( Season!$E$8, 0, 3* ( E$12 - 1 ), 34, 1 ), 0 ), 3*(E$12 - 1 ) ) -> 16 | F21: =OFFSET( Season!$F$7, MATCH( $C21, OFFSET( Season!$E$8, 0, 3* ( F$12 - 1 ), 34, 1 ), 0 ), 3*(F$12 - 1 ) ) -> 26 | G21: =OFFSET( Season!$F$7, MATCH( $C21, OFFSET( Season!$E$8, 0, 3* ( G$12 - 1 ), 34, 1 ), 0 ), 3*(G$12 - 1 ) ) -> 19 | H21: =OFFSET( Season!$F$7, MATCH( $C21, OFFSET( Season!$E$8, 0, 3* ( H$12 - 1 ), 34, 1 ), 0 ), 3*(H$12 - 1 ) ) -> 24 | I21: =OFFSET( Season!$F$7, MATCH( $C21, OFFSET( Season!$E$8, 0, 3* ( I$12 - 1 ), 34, 1 ), 0 ), 3*(I$12 - 1 ) ) -> 30 | J21: =OFFSET( Season!$F$7, MATCH( $C21, OFFSET( Season!$E$8, 0, 3* ( J$12 - 1 ), 34, 1 ), 0 ), 3*(J$12 - 1 ) ) -> 26 | K21: =OFFSET( Season!$F$7, MATCH( $C21, OFFSET( Season!$E$8, 0, 3* ( K$12 - 1 ), 34, 1 ), 0 ), 3*(K$12 - 1 ) ) -> 15 | L21: =OFFSET( Season!$F$7, MATCH( $C21, OFFSET( Season!$E$8, 0, 3* ( L$12 - 1 ), 34, 1 ), 0 ), 3*(L$12 - 1 ) ) -> 18 | M21: =OFFSET( Season!$F$7, MATCH( $C21, OFFSET( Season!$E$8, 0, 3* ( M$12 - 1 ), 34, 1 ), 0 ), 3*(M$12 - 1 ) ) -> 11 | N21: =OFFSET( Season!$F$7, MATCH( $C21, OFFSET( Season!$E$8, 0, 3* ( N$12 - 1 ), 34, 1 ), 0 ), 3*(N$12 - 1 ) ) -> 14 | O21: =OFFSET( Season!$F$7, MATCH( $C21, OFFSET( Season!$E$8, 0, 3* ( O$12 - 1 ), 34, 1 ), 0 ), 3*(O$12 - 1 ) ) -> 26 | P21: =OFFSET( Season!$F$7, MATCH( $C21, OFFSET( Season!$E$8, 0, 3* ( P$12 - 1 ), 34, 1 ), 0 ), 3*(P$12 - 1 ) ) -> 14 | Q21: =OFFSET( Season!$F$7, MATCH( $C21, OFFSET( Season!$E$8, 0, 3* ( Q$12 - 1 ), 34, 1 ), 0 ), 3*(Q$12 - 1 ) ) -> 15 | R21: =OFFSET( Season!$F$7, MATCH( $C21, OFFSET( Season!$E$8, 0, 3* ( R$12 - 1 ), 34, 1 ), 0 ), 3*(R$12 - 1 ) ) -> f | S21: =OFFSET( Season!$F$7, MATCH( $C21, OFFSET( Season!$E$8, 0, 3* ( S$12 - 1 ), 34, 1 ), 0 ), 3*(S$12 - 1 ) ) -> 0 | U21: 13 | X21: 8 | Y21: =Standings!L15 -> E20 | Z21: 15.46666667 | AA21: =OFFSET( Season!$F$7, MATCH( $Y21, OFFSET( Season!$E$8, 0, 3* ( AA$12 - 1 ), 34, 1 ), 0 ), 3*(AA$12 - 1 ) ) -> 24 | AB21: =OFFSET( Season!$F$7, MATCH( $Y21, OFFSET( Season!$E$8, 0, 3* ( AB$12 - 1 ), 34, 1 ), 0 ), 3*(AB$12 - 1 ) ) -> 19 | AC21: =OFFSET( Season!$F$7, MATCH( $Y21, OFFSET( Season!$E$8, 0, 3* ( AC$12 - 1 ), 34, 1 ), 0 ), 3*(AC$12 - 1 ) ) -> 10 | AD21: =OFFSET( Season!$F$7, MATCH( $Y21, OFFSET( Season!$E$8, 0, 3* ( AD$12 - 1 ), 34, 1 ), 0 ), 3*(AD$12 - 1 ) ) -> 19 | AE21: =OFFSET( Season!$F$7, MATCH( $Y21, OFFSET( Season!$E$8, 0, 3* ( AE$12 - 1 ), 34, 1 ), 0 ), 3*(AE$12 - 1 ) ) -> 15 | AF21: =OFFSET( Season!$F$7, MATCH( $Y21, OFFSET( Season!$E$8, 0, 3* ( AF$12 - 1 ), 34, 1 ), 0 ), 3*(AF$12 - 1 ) ) -> 21 | AG21: =OFFSET( Season!$F$7, MATCH( $Y21, OFFSET( Season!$E$8, 0, 3* ( AG$12 - 1 ), 34, 1 ), 0 ), 3*(AG$12 - 1 ) ) -> 20 | AH21: =OFFSET( Season!$F$7, MATCH( $Y21, OFFSET( Season!$E$8, 0, 3* ( AH$12 - 1 ), 34, 1 ), 0 ), 3*(AH$12 - 1 ) ) -> 22 | AI21: =OFFSET( Season!$F$7, MATCH( $Y21, OFFSET( Season!$E$8, 0, 3* ( AI$12 - 1 ), 34, 1 ), 0 ), 3*(AI$12 - 1 ) ) -> 18 | AJ21: =OFFSET( Season!$F$7, MATCH( $Y21, OFFSET( Season!$E$8, 0, 3* ( AJ$12 - 1 ), 34, 1 ), 0 ), 3*(AJ$12 - 1 ) ) -> 13 | AK21: =OFFSET( Season!$F$7, MATCH( $Y21, OFFSET( Season!$E$8, 0, 3* ( AK$12 - 1 ), 34, 1 ), 0 ), 3*(AK$12 - 1 ) ) -> 10 | AL21: =OFFSET( Season!$F$7, MATCH( $Y21, OFFSET( Season!$E$8, 0, 3* ( AL$12 - 1 ), 34, 1 ), 0 ), 3*(AL$12 - 1 ) ) -> 15 | AM21: =OFFSET( Season!$F$7, MATCH( $Y21, OFFSET( Season!$E$8, 0, 3* ( AM$12 - 1 ), 34, 1 ), 0 ), 3*(AM$12 - 1 ) ) -> 6 | AN21: =OFFSET( Season!$F$7, MATCH( $Y21, OFFSET( Season!$E$8, 0, 3* ( AN$12 - 1 ), 34, 1 ), 0 ), 3*(AN$12 - 1 ) ) -> 4 | AO21: =OFFSET( Season!$F$7, MATCH( $Y21, OFFSET( Season!$E$8, 0, 3* ( AO$12 - 1 ), 34, 1 ), 0 ), 3*(AO$12 - 1 ) ) -> 16 | AQ21: 15 | AT21: =Standings!C16 -> X01 | AU21: 16.6 | AV21: =VLOOKUP(AT21, $C$37:$D$53, 2, 0 ) -> 17.86666667 | AW21: -1.266666667
B22: 9 | C22: =Standings!C6 -> E86 | D22: 19.91666667 | E22: =OFFSET( Season!$F$7, MATCH( $C22, OFFSET( Season!$E$8, 0, 3* ( E$12 - 1 ), 34, 1 ), 0 ), 3*(E$12 - 1 ) ) -> 17 | F22: =OFFSET( Season!$F$7, MATCH( $C22, OFFSET( Season!$E$8, 0, 3* ( F$12 - 1 ), 34, 1 ), 0 ), 3*(F$12 - 1 ) ) -> 30 | G22: =OFFSET( Season!$F$7, MATCH( $C22, OFFSET( Season!$E$8, 0, 3* ( G$12 - 1 ), 34, 1 ), 0 ), 3*(G$12 - 1 ) ) -> 17 | H22: =OFFSET( Season!$F$7, MATCH( $C22, OFFSET( Season!$E$8, 0, 3* ( H$12 - 1 ), 34, 1 ), 0 ), 3*(H$12 - 1 ) ) -> 18 | I22: =OFFSET( Season!$F$7, MATCH( $C22, OFFSET( Season!$E$8, 0, 3* ( I$12 - 1 ), 34, 1 ), 0 ), 3*(I$12 - 1 ) ) -> 21 | J22: =OFFSET( Season!$F$7, MATCH( $C22, OFFSET( Season!$E$8, 0, 3* ( J$12 - 1 ), 34, 1 ), 0 ), 3*(J$12 - 1 ) ) -> 13 | K22: =OFFSET( Season!$F$7, MATCH( $C22, OFFSET( Season!$E$8, 0, 3* ( K$12 - 1 ), 34, 1 ), 0 ), 3*(K$12 - 1 ) ) -> 29 | L22: =OFFSET( Season!$F$7, MATCH( $C22, OFFSET( Season!$E$8, 0, 3* ( L$12 - 1 ), 34, 1 ), 0 ), 3*(L$12 - 1 ) ) -> f | M22: =OFFSET( Season!$F$7, MATCH( $C22, OFFSET( Season!$E$8, 0, 3* ( M$12 - 1 ), 34, 1 ), 0 ), 3*(M$12 - 1 ) ) -> 12 | N22: =OFFSET( Season!$F$7, MATCH( $C22, OFFSET( Season!$E$8, 0, 3* ( N$12 - 1 ), 34, 1 ), 0 ), 3*(N$12 - 1 ) ) -> 12 | O22: =OFFSET( Season!$F$7, MATCH( $C22, OFFSET( Season!$E$8, 0, 3* ( O$12 - 1 ), 34, 1 ), 0 ), 3*(O$12 - 1 ) ) -> 25 | P22: =OFFSET( Season!$F$7, MATCH( $C22, OFFSET( Season!$E$8, 0, 3* ( P$12 - 1 ), 34, 1 ), 0 ), 3*(P$12 - 1 ) ) -> 18 | Q22: =OFFSET( Season!$F$7, MATCH( $C22, OFFSET( Season!$E$8, 0, 3* ( Q$12 - 1 ), 34, 1 ), 0 ), 3*(Q$12 - 1 ) ) -> 27 | R22: =OFFSET( Season!$F$7, MATCH( $C22, OFFSET( Season!$E$8, 0, 3* ( R$12 - 1 ), 34, 1 ), 0 ), 3*(R$12 - 1 ) ) -> f | S22: =OFFSET( Season!$F$7, MATCH( $C22, OFFSET( Season!$E$8, 0, 3* ( S$12 - 1 ), 34, 1 ), 0 ), 3*(S$12 - 1 ) ) -> 0 | U22: 12 | X22: 9 | Y22: =Standings!L18 -> A572 | Z22: 15.46666667 | AA22: =OFFSET( Season!$F$7, MATCH( $Y22, OFFSET( Season!$E$8, 0, 3* ( AA$12 - 1 ), 34, 1 ), 0 ), 3*(AA$12 - 1 ) ) -> 29 | AB22: =OFFSET( Season!$F$7, MATCH( $Y22, OFFSET( Season!$E$8, 0, 3* ( AB$12 - 1 ), 34, 1 ), 0 ), 3*(AB$12 - 1 ) ) -> 27 | AC22: =OFFSET( Season!$F$7, MATCH( $Y22, OFFSET( Season!$E$8, 0, 3* ( AC$12 - 1 ), 34, 1 ), 0 ), 3*(AC$12 - 1 ) ) -> 16 | AD22: =OFFSET( Season!$F$7, MATCH( $Y22, OFFSET( Season!$E$8, 0, 3* ( AD$12 - 1 ), 34, 1 ), 0 ), 3*(AD$12 - 1 ) ) -> 14 | AE22: =OFFSET( Season!$F$7, MATCH( $Y22, OFFSET( Season!$E$8, 0, 3* ( AE$12 - 1 ), 34, 1 ), 0 ), 3*(AE$12 - 1 ) ) -> 11 | AF22: =OFFSET( Season!$F$7, MATCH( $Y22, OFFSET( Season!$E$8, 0, 3* ( AF$12 - 1 ), 34, 1 ), 0 ), 3*(AF$12 - 1 ) ) -> 28 | AG22: =OFFSET( Season!$F$7, MATCH( $Y22, OFFSET( Season!$E$8, 0, 3* ( AG$12 - 1 ), 34, 1 ), 0 ), 3*(AG$12 - 1 ) ) -> 15 | AH22: =OFFSET( Season!$F$7, MATCH( $Y22, OFFSET( Season!$E$8, 0, 3* ( AH$12 - 1 ), 34, 1 ), 0 ), 3*(AH$12 - 1 ) ) -> 16 | AI22: =OFFSET( Season!$F$7, MATCH( $Y22, OFFSET( Season!$E$8, 0, 3* ( AI$12 - 1 ), 34, 1 ), 0 ), 3*(AI$12 - 1 ) ) -> -6 | AJ22: =OFFSET( Season!$F$7, MATCH( $Y22, OFFSET( Season!$E$8, 0, 3* ( AJ$12 - 1 ), 34, 1 ), 0 ), 3*(AJ$12 - 1 ) ) -> 6 | AK22: =OFFSET( Season!$F$7, MATCH( $Y22, OFFSET( Season!$E$8, 0, 3* ( AK$12 - 1 ), 34, 1 ), 0 ), 3*(AK$12 - 1 ) ) -> -1 | AL22: =OFFSET( Season!$F$7, MATCH( $Y22, OFFSET( Season!$E$8, 0, 3* ( AL$12 - 1 ), 34, 1 ), 0 ), 3*(AL$12 - 1 ) ) -> 18 | AM22: =OFFSET( Season!$F$7, MATCH( $Y22, OFFSET( Season!$E$8, 0, 3* ( AM$12 - 1 ), 34, 1 ), 0 ), 3*(AM$12 - 1 ) ) -> 18 | AN22: =OFFSET( Season!$F$7, MATCH( $Y22, OFFSET( Season!$E$8, 0, 3* ( AN$12 - 1 ), 34, 1 ), 0 ), 3*(AN$12 - 1 ) ) -> 26 | AO22: =OFFSET( Season!$F$7, MATCH( $Y22, OFFSET( Season!$E$8, 0, 3* ( AO$12 - 1 ), 34, 1 ), 0 ), 3*(AO$12 - 1 ) ) -> 15 | AQ22: 15 | AT22: =Standings!C22 -> 0 | AU22: 0 | AV22: 0 | AW22: 0
B23: 10 | C23: =Standings!C13 -> E55B | D23: 20.54545455 | E23: =OFFSET( Season!$F$7, MATCH( $C23, OFFSET( Season!$E$8, 0, 3* ( E$12 - 1 ), 34, 1 ), 0 ), 3*(E$12 - 1 ) ) -> 0 | F23: =OFFSET( Season!$F$7, MATCH( $C23, OFFSET( Season!$E$8, 0, 3* ( F$12 - 1 ), 34, 1 ), 0 ), 3*(F$12 - 1 ) ) -> 27 | G23: =OFFSET( Season!$F$7, MATCH( $C23, OFFSET( Season!$E$8, 0, 3* ( G$12 - 1 ), 34, 1 ), 0 ), 3*(G$12 - 1 ) ) -> 19 | H23: =OFFSET( Season!$F$7, MATCH( $C23, OFFSET( Season!$E$8, 0, 3* ( H$12 - 1 ), 34, 1 ), 0 ), 3*(H$12 - 1 ) ) -> 34 | I23: =OFFSET( Season!$F$7, MATCH( $C23, OFFSET( Season!$E$8, 0, 3* ( I$12 - 1 ), 34, 1 ), 0 ), 3*(I$12 - 1 ) ) -> 36 | J23: =OFFSET( Season!$F$7, MATCH( $C23, OFFSET( Season!$E$8, 0, 3* ( J$12 - 1 ), 34, 1 ), 0 ), 3*(J$12 - 1 ) ) -> 26 | K23: =OFFSET( Season!$F$7, MATCH( $C23, OFFSET( Season!$E$8, 0, 3* ( K$12 - 1 ), 34, 1 ), 0 ), 3*(K$12 - 1 ) ) -> 15 | L23: =OFFSET( Season!$F$7, MATCH( $C23, OFFSET( Season!$E$8, 0, 3* ( L$12 - 1 ), 34, 1 ), 0 ), 3*(L$12 - 1 ) ) -> 24 | M23: =OFFSET( Season!$F$7, MATCH( $C23, OFFSET( Season!$E$8, 0, 3* ( M$12 - 1 ), 34, 1 ), 0 ), 3*(M$12 - 1 ) ) -> 0 | N23: =OFFSET( Season!$F$7, MATCH( $C23, OFFSET( Season!$E$8, 0, 3* ( N$12 - 1 ), 34, 1 ), 0 ), 3*(N$12 - 1 ) ) -> 3 | O23: =OFFSET( Season!$F$7, MATCH( $C23, OFFSET( Season!$E$8, 0, 3* ( O$12 - 1 ), 34, 1 ), 0 ), 3*(O$12 - 1 ) ) -> 15 | P23: =OFFSET( Season!$F$7, MATCH( $C23, OFFSET( Season!$E$8, 0, 3* ( P$12 - 1 ), 34, 1 ), 0 ), 3*(P$12 - 1 ) ) -> 10 | Q23: =OFFSET( Season!$F$7, MATCH( $C23, OFFSET( Season!$E$8, 0, 3* ( Q$12 - 1 ), 34, 1 ), 0 ), 3*(Q$12 - 1 ) ) -> 17 | R23: =OFFSET( Season!$F$7, MATCH( $C23, OFFSET( Season!$E$8, 0, 3* ( R$12 - 1 ), 34, 1 ), 0 ), 3*(R$12 - 1 ) ) -> 0 | S23: =OFFSET( Season!$F$7, MATCH( $C23, OFFSET( Season!$E$8, 0, 3* ( S$12 - 1 ), 34, 1 ), 0 ), 3*(S$12 - 1 ) ) -> 0 | U23: 11 | X23: 10 | Y23: =Standings!L9 -> M10 | Z23: 16 | AA23: =OFFSET( Season!$F$7, MATCH( $Y23, OFFSET( Season!$E$8, 0, 3* ( AA$12 - 1 ), 34, 1 ), 0 ), 3*(AA$12 - 1 ) ) -> 10 | AB23: =OFFSET( Season!$F$7, MATCH( $Y23, OFFSET( Season!$E$8, 0, 3* ( AB$12 - 1 ), 34, 1 ), 0 ), 3*(AB$12 - 1 ) ) -> 15 | AC23: =OFFSET( Season!$F$7, MATCH( $Y23, OFFSET( Season!$E$8, 0, 3* ( AC$12 - 1 ), 34, 1 ), 0 ), 3*(AC$12 - 1 ) ) -> 6 | AD23: =OFFSET( Season!$F$7, MATCH( $Y23, OFFSET( Season!$E$8, 0, 3* ( AD$12 - 1 ), 34, 1 ), 0 ), 3*(AD$12 - 1 ) ) -> 25 | AE23: =OFFSET( Season!$F$7, MATCH( $Y23, OFFSET( Season!$E$8, 0, 3* ( AE$12 - 1 ), 34, 1 ), 0 ), 3*(AE$12 - 1 ) ) -> 14 | AF23: =OFFSET( Season!$F$7, MATCH( $Y23, OFFSET( Season!$E$8, 0, 3* ( AF$12 - 1 ), 34, 1 ), 0 ), 3*(AF$12 - 1 ) ) -> 25 | AG23: =OFFSET( Season!$F$7, MATCH( $Y23, OFFSET( Season!$E$8, 0, 3* ( AG$12 - 1 ), 34, 1 ), 0 ), 3*(AG$12 - 1 ) ) -> 12 | AH23: =OFFSET( Season!$F$7, MATCH( $Y23, OFFSET( Season!$E$8, 0, 3* ( AH$12 - 1 ), 34, 1 ), 0 ), 3*(AH$12 - 1 ) ) -> 29 | AI23: =OFFSET( Season!$F$7, MATCH( $Y23, OFFSET( Season!$E$8, 0, 3* ( AI$12 - 1 ), 34, 1 ), 0 ), 3*(AI$12 - 1 ) ) -> 11 | AJ23: =OFFSET( Season!$F$7, MATCH( $Y23, OFFSET( Season!$E$8, 0, 3* ( AJ$12 - 1 ), 34, 1 ), 0 ), 3*(AJ$12 - 1 ) ) -> 8 | AK23: =OFFSET( Season!$F$7, MATCH( $Y23, OFFSET( Season!$E$8, 0, 3* ( AK$12 - 1 ), 34, 1 ), 0 ), 3*(AK$12 - 1 ) ) -> 17 | AL23: =OFFSET( Season!$F$7, MATCH( $Y23, OFFSET( Season!$E$8, 0, 3* ( AL$12 - 1 ), 34, 1 ), 0 ), 3*(AL$12 - 1 ) ) -> 8 | AM23: =OFFSET( Season!$F$7, MATCH( $Y23, OFFSET( Season!$E$8, 0, 3* ( AM$12 - 1 ), 34, 1 ), 0 ), 3*(AM$12 - 1 ) ) -> 7 | AN23: =OFFSET( Season!$F$7, MATCH( $Y23, OFFSET( Season!$E$8, 0, 3* ( AN$12 - 1 ), 34, 1 ), 0 ), 3*(AN$12 - 1 ) ) -> 41 | AO23: =OFFSET( Season!$F$7, MATCH( $Y23, OFFSET( Season!$E$8, 0, 3* ( AO$12 - 1 ), 34, 1 ), 0 ), 3*(AO$12 - 1 ) ) -> 12 | AQ23: 15 | AT23: =Standings!C13 -> E55B | AU23: 20.54545455 | AV23: 19.79090909 | AW23: 0.7545454545
B24: 11 | C24: =Standings!C18 -> E14 | D24: 20.71428571 | E24: =OFFSET( Season!$F$7, MATCH( $C24, OFFSET( Season!$E$8, 0, 3* ( E$12 - 1 ), 34, 1 ), 0 ), 3*(E$12 - 1 ) ) -> 23 | F24: =OFFSET( Season!$F$7, MATCH( $C24, OFFSET( Season!$E$8, 0, 3* ( F$12 - 1 ), 34, 1 ), 0 ), 3*(F$12 - 1 ) ) -> 33 | G24: =OFFSET( Season!$F$7, MATCH( $C24, OFFSET( Season!$E$8, 0, 3* ( G$12 - 1 ), 34, 1 ), 0 ), 3*(G$12 - 1 ) ) -> 23 | H24: =OFFSET( Season!$F$7, MATCH( $C24, OFFSET( Season!$E$8, 0, 3* ( H$12 - 1 ), 34, 1 ), 0 ), 3*(H$12 - 1 ) ) -> 15 | I24: =OFFSET( Season!$F$7, MATCH( $C24, OFFSET( Season!$E$8, 0, 3* ( I$12 - 1 ), 34, 1 ), 0 ), 3*(I$12 - 1 ) ) -> 17 | J24: =OFFSET( Season!$F$7, MATCH( $C24, OFFSET( Season!$E$8, 0, 3* ( J$12 - 1 ), 34, 1 ), 0 ), 3*(J$12 - 1 ) ) -> 13 | K24: =OFFSET( Season!$F$7, MATCH( $C24, OFFSET( Season!$E$8, 0, 3* ( K$12 - 1 ), 34, 1 ), 0 ), 3*(K$12 - 1 ) ) -> 24 | L24: =OFFSET( Season!$F$7, MATCH( $C24, OFFSET( Season!$E$8, 0, 3* ( L$12 - 1 ), 34, 1 ), 0 ), 3*(L$12 - 1 ) ) -> 12 | M24: =OFFSET( Season!$F$7, MATCH( $C24, OFFSET( Season!$E$8, 0, 3* ( M$12 - 1 ), 34, 1 ), 0 ), 3*(M$12 - 1 ) ) -> 38 | N24: =OFFSET( Season!$F$7, MATCH( $C24, OFFSET( Season!$E$8, 0, 3* ( N$12 - 1 ), 34, 1 ), 0 ), 3*(N$12 - 1 ) ) -> 19 | O24: =OFFSET( Season!$F$7, MATCH( $C24, OFFSET( Season!$E$8, 0, 3* ( O$12 - 1 ), 34, 1 ), 0 ), 3*(O$12 - 1 ) ) -> 21 | P24: =OFFSET( Season!$F$7, MATCH( $C24, OFFSET( Season!$E$8, 0, 3* ( P$12 - 1 ), 34, 1 ), 0 ), 3*(P$12 - 1 ) ) -> 24 | Q24: =OFFSET( Season!$F$7, MATCH( $C24, OFFSET( Season!$E$8, 0, 3* ( Q$12 - 1 ), 34, 1 ), 0 ), 3*(Q$12 - 1 ) ) -> 5 | R24: =OFFSET( Season!$F$7, MATCH( $C24, OFFSET( Season!$E$8, 0, 3* ( R$12 - 1 ), 34, 1 ), 0 ), 3*(R$12 - 1 ) ) -> 23 | S24: =OFFSET( Season!$F$7, MATCH( $C24, OFFSET( Season!$E$8, 0, 3* ( S$12 - 1 ), 34, 1 ), 0 ), 3*(S$12 - 1 ) ) -> f | U24: 14 | X24: 11 | Y24: =Standings!L14 -> ENGR | Z24: 17.14285714 | AA24: =OFFSET( Season!$F$7, MATCH( $Y24, OFFSET( Season!$E$8, 0, 3* ( AA$12 - 1 ), 34, 1 ), 0 ), 3*(AA$12 - 1 ) ) -> 29 | AB24: =OFFSET( Season!$F$7, MATCH( $Y24, OFFSET( Season!$E$8, 0, 3* ( AB$12 - 1 ), 34, 1 ), 0 ), 3*(AB$12 - 1 ) ) -> 34 | AC24: =OFFSET( Season!$F$7, MATCH( $Y24, OFFSET( Season!$E$8, 0, 3* ( AC$12 - 1 ), 34, 1 ), 0 ), 3*(AC$12 - 1 ) ) -> 20 | AD24: =OFFSET( Season!$F$7, MATCH( $Y24, OFFSET( Season!$E$8, 0, 3* ( AD$12 - 1 ), 34, 1 ), 0 ), 3*(AD$12 - 1 ) ) -> 21 | AE24: =OFFSET( Season!$F$7, MATCH( $Y24, OFFSET( Season!$E$8, 0, 3* ( AE$12 - 1 ), 34, 1 ), 0 ), 3*(AE$12 - 1 ) ) -> 14 | AF24: =OFFSET( Season!$F$7, MATCH( $Y24, OFFSET( Season!$E$8, 0, 3* ( AF$12 - 1 ), 34, 1 ), 0 ), 3*(AF$12 - 1 ) ) -> 38 | AG24: =OFFSET( Season!$F$7, MATCH( $Y24, OFFSET( Season!$E$8, 0, 3* ( AG$12 - 1 ), 34, 1 ), 0 ), 3*(AG$12 - 1 ) ) -> 2 | AH24: =OFFSET( Season!$F$7, MATCH( $Y24, OFFSET( Season!$E$8, 0, 3* ( AH$12 - 1 ), 34, 1 ), 0 ), 3*(AH$12 - 1 ) ) -> 31 | AI24: =OFFSET( Season!$F$7, MATCH( $Y24, OFFSET( Season!$E$8, 0, 3* ( AI$12 - 1 ), 34, 1 ), 0 ), 3*(AI$12 - 1 ) ) -> 7 | AJ24: =OFFSET( Season!$F$7, MATCH( $Y24, OFFSET( Season!$E$8, 0, 3* ( AJ$12 - 1 ), 34, 1 ), 0 ), 3*(AJ$12 - 1 ) ) -> 19 | AK24: =OFFSET( Season!$F$7, MATCH( $Y24, OFFSET( Season!$E$8, 0, 3* ( AK$12 - 1 ), 34, 1 ), 0 ), 3*(AK$12 - 1 ) ) -> 8 | AL24: =OFFSET( Season!$F$7, MATCH( $Y24, OFFSET( Season!$E$8, 0, 3* ( AL$12 - 1 ), 34, 1 ), 0 ), 3*(AL$12 - 1 ) ) -> -3 | AM24: =OFFSET( Season!$F$7, MATCH( $Y24, OFFSET( Season!$E$8, 0, 3* ( AM$12 - 1 ), 34, 1 ), 0 ), 3*(AM$12 - 1 ) ) -> 6 | AN24: =OFFSET( Season!$F$7, MATCH( $Y24, OFFSET( Season!$E$8, 0, 3* ( AN$12 - 1 ), 34, 1 ), 0 ), 3*(AN$12 - 1 ) ) -> 14 | AO24: =OFFSET( Season!$F$7, MATCH( $Y24, OFFSET( Season!$E$8, 0, 3* ( AO$12 - 1 ), 34, 1 ), 0 ), 3*(AO$12 - 1 ) ) -> 0 | AQ24: 14 | AT24: =Standings!C14 -> E55a | AU24: 18.60666667 | AV24: 17.8 | AW24: 0.8066666667
B25: 12 | C25: =Standings!C19 -> E17 | D25: 21.5 | E25: =OFFSET( Season!$F$7, MATCH( $C25, OFFSET( Season!$E$8, 0, 3* ( E$12 - 1 ), 34, 1 ), 0 ), 3*(E$12 - 1 ) ) -> f | F25: =OFFSET( Season!$F$7, MATCH( $C25, OFFSET( Season!$E$8, 0, 3* ( F$12 - 1 ), 34, 1 ), 0 ), 3*(F$12 - 1 ) ) -> 30 | G25: =OFFSET( Season!$F$7, MATCH( $C25, OFFSET( Season!$E$8, 0, 3* ( G$12 - 1 ), 34, 1 ), 0 ), 3*(G$12 - 1 ) ) -> 30 | H25: =OFFSET( Season!$F$7, MATCH( $C25, OFFSET( Season!$E$8, 0, 3* ( H$12 - 1 ), 34, 1 ), 0 ), 3*(H$12 - 1 ) ) -> 26 | I25: =OFFSET( Season!$F$7, MATCH( $C25, OFFSET( Season!$E$8, 0, 3* ( I$12 - 1 ), 34, 1 ), 0 ), 3*(I$12 - 1 ) ) -> 31 | J25: =OFFSET( Season!$F$7, MATCH( $C25, OFFSET( Season!$E$8, 0, 3* ( J$12 - 1 ), 34, 1 ), 0 ), 3*(J$12 - 1 ) ) -> 16 | K25: =OFFSET( Season!$F$7, MATCH( $C25, OFFSET( Season!$E$8, 0, 3* ( K$12 - 1 ), 34, 1 ), 0 ), 3*(K$12 - 1 ) ) -> 15 | L25: =OFFSET( Season!$F$7, MATCH( $C25, OFFSET( Season!$E$8, 0, 3* ( L$12 - 1 ), 34, 1 ), 0 ), 3*(L$12 - 1 ) ) -> 34 | M25: =OFFSET( Season!$F$7, MATCH( $C25, OFFSET( Season!$E$8, 0, 3* ( M$12 - 1 ), 34, 1 ), 0 ), 3*(M$12 - 1 ) ) -> 8 | N25: =OFFSET( Season!$F$7, MATCH( $C25, OFFSET( Season!$E$8, 0, 3* ( N$12 - 1 ), 34, 1 ), 0 ), 3*(N$12 - 1 ) ) -> 8 | O25: =OFFSET( Season!$F$7, MATCH( $C25, OFFSET( Season!$E$8, 0, 3* ( O$12 - 1 ), 34, 1 ), 0 ), 3*(O$12 - 1 ) ) -> f | P25: =OFFSET( Season!$F$7, MATCH( $C25, OFFSET( Season!$E$8, 0, 3* ( P$12 - 1 ), 34, 1 ), 0 ), 3*(P$12 - 1 ) ) -> 33 | Q25: =OFFSET( Season!$F$7, MATCH( $C25, OFFSET( Season!$E$8, 0, 3* ( Q$12 - 1 ), 34, 1 ), 0 ), 3*(Q$12 - 1 ) ) -> 14 | R25: =OFFSET( Season!$F$7, MATCH( $C25, OFFSET( Season!$E$8, 0, 3* ( R$12 - 1 ), 34, 1 ), 0 ), 3*(R$12 - 1 ) ) -> 13 | S25: =OFFSET( Season!$F$7, MATCH( $C25, OFFSET( Season!$E$8, 0, 3* ( S$12 - 1 ), 34, 1 ), 0 ), 3*(S$12 - 1 ) ) -> f | U25: 12 | X25: 12 | Y25: =Standings!L19 -> X10 | Z25: 17.66666667 | AA25: =OFFSET( Season!$F$7, MATCH( $Y25, OFFSET( Season!$E$8, 0, 3* ( AA$12 - 1 ), 34, 1 ), 0 ), 3*(AA$12 - 1 ) ) -> 26 | AB25: =OFFSET( Season!$F$7, MATCH( $Y25, OFFSET( Season!$E$8, 0, 3* ( AB$12 - 1 ), 34, 1 ), 0 ), 3*(AB$12 - 1 ) ) -> 8 | AC25: =OFFSET( Season!$F$7, MATCH( $Y25, OFFSET( Season!$E$8, 0, 3* ( AC$12 - 1 ), 34, 1 ), 0 ), 3*(AC$12 - 1 ) ) -> 34 | AD25: =OFFSET( Season!$F$7, MATCH( $Y25, OFFSET( Season!$E$8, 0, 3* ( AD$12 - 1 ), 34, 1 ), 0 ), 3*(AD$12 - 1 ) ) -> 11 | AE25: =OFFSET( Season!$F$7, MATCH( $Y25, OFFSET( Season!$E$8, 0, 3* ( AE$12 - 1 ), 34, 1 ), 0 ), 3*(AE$12 - 1 ) ) -> 24 | AF25: =OFFSET( Season!$F$7, MATCH( $Y25, OFFSET( Season!$E$8, 0, 3* ( AF$12 - 1 ), 34, 1 ), 0 ), 3*(AF$12 - 1 ) ) -> 23 | AG25: =OFFSET( Season!$F$7, MATCH( $Y25, OFFSET( Season!$E$8, 0, 3* ( AG$12 - 1 ), 34, 1 ), 0 ), 3*(AG$12 - 1 ) ) -> 18 | AH25: =OFFSET( Season!$F$7, MATCH( $Y25, OFFSET( Season!$E$8, 0, 3* ( AH$12 - 1 ), 34, 1 ), 0 ), 3*(AH$12 - 1 ) ) -> 21 | AI25: =OFFSET( Season!$F$7, MATCH( $Y25, OFFSET( Season!$E$8, 0, 3* ( AI$12 - 1 ), 34, 1 ), 0 ), 3*(AI$12 - 1 ) ) -> 25 | AJ25: =OFFSET( Season!$F$7, MATCH( $Y25, OFFSET( Season!$E$8, 0, 3* ( AJ$12 - 1 ), 34, 1 ), 0 ), 3*(AJ$12 - 1 ) ) -> 10 | AK25: =OFFSET( Season!$F$7, MATCH( $Y25, OFFSET( Season!$E$8, 0, 3* ( AK$12 - 1 ), 34, 1 ), 0 ), 3*(AK$12 - 1 ) ) -> 4 | AL25: =OFFSET( Season!$F$7, MATCH( $Y25, OFFSET( Season!$E$8, 0, 3* ( AL$12 - 1 ), 34, 1 ), 0 ), 3*(AL$12 - 1 ) ) -> 18 | AM25: =OFFSET( Season!$F$7, MATCH( $Y25, OFFSET( Season!$E$8, 0, 3* ( AM$12 - 1 ), 34, 1 ), 0 ), 3*(AM$12 - 1 ) ) -> -2 | AN25: =OFFSET( Season!$F$7, MATCH( $Y25, OFFSET( Season!$E$8, 0, 3* ( AN$12 - 1 ), 34, 1 ), 0 ), 3*(AN$12 - 1 ) ) -> 11 | AO25: =OFFSET( Season!$F$7, MATCH( $Y25, OFFSET( Season!$E$8, 0, 3* ( AO$12 - 1 ), 34, 1 ), 0 ), 3*(AO$12 - 1 ) ) -> 34 | AQ25: 15 | AT25: =Standings!C17 -> AGS | AU25: =VLOOKUP( AT25, $C$14:$D$30, 2, 0 ) -> 19.53846154 | AV25: 18.69230769 | AW25: 0.8461538462
B26: 13 | C26: =Standings!C9 -> SUBS | D26: 21.52666667 | E26: =OFFSET( Season!$F$7, MATCH( $C26, OFFSET( Season!$E$8, 0, 3* ( E$12 - 1 ), 34, 1 ), 0 ), 3*(E$12 - 1 ) ) -> 28 | F26: =OFFSET( Season!$F$7, MATCH( $C26, OFFSET( Season!$E$8, 0, 3* ( F$12 - 1 ), 34, 1 ), 0 ), 3*(F$12 - 1 ) ) -> 19.9 | G26: =OFFSET( Season!$F$7, MATCH( $C26, OFFSET( Season!$E$8, 0, 3* ( G$12 - 1 ), 34, 1 ), 0 ), 3*(G$12 - 1 ) ) -> 13 | H26: =OFFSET( Season!$F$7, MATCH( $C26, OFFSET( Season!$E$8, 0, 3* ( H$12 - 1 ), 34, 1 ), 0 ), 3*(H$12 - 1 ) ) -> 25 | I26: =OFFSET( Season!$F$7, MATCH( $C26, OFFSET( Season!$E$8, 0, 3* ( I$12 - 1 ), 34, 1 ), 0 ), 3*(I$12 - 1 ) ) -> 12 | J26: =OFFSET( Season!$F$7, MATCH( $C26, OFFSET( Season!$E$8, 0, 3* ( J$12 - 1 ), 34, 1 ), 0 ), 3*(J$12 - 1 ) ) -> 28 | K26: =OFFSET( Season!$F$7, MATCH( $C26, OFFSET( Season!$E$8, 0, 3* ( K$12 - 1 ), 34, 1 ), 0 ), 3*(K$12 - 1 ) ) -> 26 | L26: =OFFSET( Season!$F$7, MATCH( $C26, OFFSET( Season!$E$8, 0, 3* ( L$12 - 1 ), 34, 1 ), 0 ), 3*(L$12 - 1 ) ) -> 6 | M26: =OFFSET( Season!$F$7, MATCH( $C26, OFFSET( Season!$E$8, 0, 3* ( M$12 - 1 ), 34, 1 ), 0 ), 3*(M$12 - 1 ) ) -> 26 | N26: =OFFSET( Season!$F$7, MATCH( $C26, OFFSET( Season!$E$8, 0, 3* ( N$12 - 1 ), 34, 1 ), 0 ), 3*(N$12 - 1 ) ) -> 13 | O26: =OFFSET( Season!$F$7, MATCH( $C26, OFFSET( Season!$E$8, 0, 3* ( O$12 - 1 ), 34, 1 ), 0 ), 3*(O$12 - 1 ) ) -> 34 | P26: =OFFSET( Season!$F$7, MATCH( $C26, OFFSET( Season!$E$8, 0, 3* ( P$12 - 1 ), 34, 1 ), 0 ), 3*(P$12 - 1 ) ) -> 21 | Q26: =OFFSET( Season!$F$7, MATCH( $C26, OFFSET( Season!$E$8, 0, 3* ( Q$12 - 1 ), 34, 1 ), 0 ), 3*(Q$12 - 1 ) ) -> 32 | R26: =OFFSET( Season!$F$7, MATCH( $C26, OFFSET( Season!$E$8, 0, 3* ( R$12 - 1 ), 34, 1 ), 0 ), 3*(R$12 - 1 ) ) -> 10 | S26: =OFFSET( Season!$F$7, MATCH( $C26, OFFSET( Season!$E$8, 0, 3* ( S$12 - 1 ), 34, 1 ), 0 ), 3*(S$12 - 1 ) ) -> 29 | U26: 15 | X26: 13 | Y26: =Standings!L17 -> O19 | Z26: 19.06666667 | AA26: =OFFSET( Season!$F$7, MATCH( $Y26, OFFSET( Season!$E$8, 0, 3* ( AA$12 - 1 ), 34, 1 ), 0 ), 3*(AA$12 - 1 ) ) -> 11 | AB26: =OFFSET( Season!$F$7, MATCH( $Y26, OFFSET( Season!$E$8, 0, 3* ( AB$12 - 1 ), 34, 1 ), 0 ), 3*(AB$12 - 1 ) ) -> 19 | AC26: =OFFSET( Season!$F$7, MATCH( $Y26, OFFSET( Season!$E$8, 0, 3* ( AC$12 - 1 ), 34, 1 ), 0 ), 3*(AC$12 - 1 ) ) -> 29 | AD26: =OFFSET( Season!$F$7, MATCH( $Y26, OFFSET( Season!$E$8, 0, 3* ( AD$12 - 1 ), 34, 1 ), 0 ), 3*(AD$12 - 1 ) ) -> 31 | AE26: =OFFSET( Season!$F$7, MATCH( $Y26, OFFSET( Season!$E$8, 0, 3* ( AE$12 - 1 ), 34, 1 ), 0 ), 3*(AE$12 - 1 ) ) -> 19 | AF26: =OFFSET( Season!$F$7, MATCH( $Y26, OFFSET( Season!$E$8, 0, 3* ( AF$12 - 1 ), 34, 1 ), 0 ), 3*(AF$12 - 1 ) ) -> 14 | AG26: =OFFSET( Season!$F$7, MATCH( $Y26, OFFSET( Season!$E$8, 0, 3* ( AG$12 - 1 ), 34, 1 ), 0 ), 3*(AG$12 - 1 ) ) -> 26 | AH26: =OFFSET( Season!$F$7, MATCH( $Y26, OFFSET( Season!$E$8, 0, 3* ( AH$12 - 1 ), 34, 1 ), 0 ), 3*(AH$12 - 1 ) ) -> 19 | AI26: =OFFSET( Season!$F$7, MATCH( $Y26, OFFSET( Season!$E$8, 0, 3* ( AI$12 - 1 ), 34, 1 ), 0 ), 3*(AI$12 - 1 ) ) -> 20 | AJ26: =OFFSET( Season!$F$7, MATCH( $Y26, OFFSET( Season!$E$8, 0, 3* ( AJ$12 - 1 ), 34, 1 ), 0 ), 3*(AJ$12 - 1 ) ) -> 11 | AK26: =OFFSET( Season!$F$7, MATCH( $Y26, OFFSET( Season!$E$8, 0, 3* ( AK$12 - 1 ), 34, 1 ), 0 ), 3*(AK$12 - 1 ) ) -> 14 | AL26: =OFFSET( Season!$F$7, MATCH( $Y26, OFFSET( Season!$E$8, 0, 3* ( AL$12 - 1 ), 34, 1 ), 0 ), 3*(AL$12 - 1 ) ) -> 19 | AM26: =OFFSET( Season!$F$7, MATCH( $Y26, OFFSET( Season!$E$8, 0, 3* ( AM$12 - 1 ), 34, 1 ), 0 ), 3*(AM$12 - 1 ) ) -> 22 | AN26: =OFFSET( Season!$F$7, MATCH( $Y26, OFFSET( Season!$E$8, 0, 3* ( AN$12 - 1 ), 34, 1 ), 0 ), 3*(AN$12 - 1 ) ) -> 17 | AO26: =OFFSET( Season!$F$7, MATCH( $Y26, OFFSET( Season!$E$8, 0, 3* ( AO$12 - 1 ), 34, 1 ), 0 ), 3*(AO$12 - 1 ) ) -> 15 | AQ26: 15 | AT26: =Standings!C15 -> E42 | AU26: =VLOOKUP(AT26, $C$14:$D$30, 2, 0 ) -> 21.8 | AV26: 20.13333333 | AW26: 1.666666667
